Workbook

Sheet Visualization (hidden)
B2: ='Topic 3 Calculator'!D9 -> Select One | AA2: Summary | AC2: [Tbtu]
AA4: 5 year Site Energy Savings | AC4: ='Topic 3 Calculator'!$D$30*SUMIFS(EnergyCalc!$AXQ$3:$AZA$3,EnergyCalc!$AXQ$4:$AZA$4,">="&'Topic 3 Calculator'!$D$18,EnergyCalc!$AXQ$4:$AZA$4,"<"&'Topic 3 Calculator'!$D$18+5)+SUMIFS(EnergyCalc!$AXQ$2:$AZA$2,EnergyCalc!$AXQ$4:$AZA$4,">="&'Topic 3 Calculator'!$D$18,EnergyCalc!$AXQ$4:$AZA$4,"<"&'Topic 3 Calculator'!$D$18+5) -> 0
AA6: 30-year Site Energy Savings | AC6: ='Topic 3 Calculator'!$D$30*SUMIFS(EnergyCalc!$AXQ$3:$AZA$3,EnergyCalc!$AXQ$4:$AZA$4,">="&'Topic 3 Calculator'!$D$18,EnergyCalc!$AXQ$4:$AZA$4,"<"&'Topic 3 Calculator'!$D$18+30)+SUMIFS(EnergyCalc!$AXQ$2:$AZA$2,EnergyCalc!$AXQ$4:$AZA$4,">="&'Topic 3 Calculator'!$D$18,EnergyCalc!$AXQ$4:$AZA$4,"<"&'Topic 3 Calculator'!$D$18+30) -> 0
AA8: Impacted Floor Area [M sqft] @ Target Year | AC8: =(INDEX(EnergyCalc!EC3:FN4,1,MATCH('Topic 3 Calculator'!D21,_xlfn.ANCHORARRAY(EnergyCalc!EC4),0))+INDEX(EnergyCalc!UE3:VP4,1,MATCH('Topic 3 Calculator'!D21,_xlfn.ANCHORARRAY(EnergyCalc!UE4),0)))/1000000 -> 

Sheet Topic 3 Instructions

Sheet Topic 3 Calculator
C3: INPUTS | M3: OUTPUTS
D5: Applicant Jurisdiction | H5: Building Sizes | I5: Effective Year
D6: Applicant Jurisdiction | F6: No | H6: 10,000 - 20,000 sqft | I6: =$D$18 -> 2025 | N6: =IF(UI.State="Select One", "---",IF(AND(Lists_BldgTypeUserDefined = FALSE,OR(UserBldgType[User Selection])*OR(UI.BuildingSizeYear[User Selection])=0),"---",IF($D$24 = "Energy",IF(AND($D$30*SUMIFS(EnergyCalc!$AXQ$3:$AZA$3,EnergyCalc!$AXQ$4:$AZA$4,">="&'Topic 3 Calculator'!$D$18,EnergyCalc!$AXQ$4:$AZA$4,"<"&'Topic 3 Calculator'!$D$18+30)+SUMIFS(EnergyCalc!$AXQ$2:$AZA$2,EnergyCalc!$AXQ$4:$AZA$4,">="&'Topic 3 Calculator'!$D$18,EnergyCalc!$AXQ$4:$AZA$4,"<"&'Topic 3 Calculator'!$D$18+30)>=0.99*INDEX(Compare[30-year LMC],MATCH(UI.State,Compare[State],0)),$D$30*SUMIFS(EnergyCalc!$AXQ$3:$AZA$3,EnergyCalc!$AXQ$4:$AZA$4,">="&'Topic 3 Calculator'!$D$18,EnergyCalc!$AXQ$4:$AZA$4,"<"&'Topic 3 Calculator'!$D$18+30)+SUMIFS(EnergyCalc!$AXQ$2:$AZA$2,EnergyCalc!$AXQ$4:$AZA$4,">="&'Topic 3 Calculator'!$D$18,EnergyCalc!$AXQ$4:$AZA$4,"<"&'Topic 3 Calculator'!$D$18+30)>0),"YES","NO"),IF(AND(Emissions_Lookup_andCalc!$G$32>=0.99*INDEX(Compare[30-year LMC],MATCH(UI.State,Compare[State],0)),Emissions_Lookup_andCalc!$G$32>0),"YES","NO")))) -> --- | P6: Equivalent to LMC 30-year site energy savings
F7: No | H7: 20,000 - 50,000 sqft | I7: =$D$18 -> 2025
D8: Applicant State | F8: No | H8: 50,000 - 100,000 sqft | I8: =$D$18 -> 2025 | N8: =IF(UI.State="Select One", "---",IF(AND(Lists_BldgTypeUserDefined = FALSE,OR(UserBldgType[User Selection])*OR(UI.BuildingSizeYear[User Selection])=0),"---",IF($D$24 = "Energy", IF(AND($D$30*SUMIFS(EnergyCalc!$AXQ$3:$AZA$3,EnergyCalc!$AXQ$4:$AZA$4,">="&'Topic 3 Calculator'!$D$18,EnergyCalc!$AXQ$4:$AZA$4,"<"&'Topic 3 Calculator'!$D$18+30)+SUMIFS(EnergyCalc!$AXQ$2:$AZA$2,EnergyCalc!$AXQ$4:$AZA$4,">="&'Topic 3 Calculator'!$D$18,EnergyCalc!$AXQ$4:$AZA$4,"<"&'Topic 3 Calculator'!$D$18+30)>=0.99*INDEX(Compare[30-year ZC],MATCH(UI.State,Compare[State],0)),$D$30*SUMIFS(EnergyCalc!$AXQ$3:$AZA$3,EnergyCalc!$AXQ$4:$AZA$4,">="&'Topic 3 Calculator'!$D$18,EnergyCalc!$AXQ$4:$AZA$4,"<"&'Topic 3 Calculator'!$D$18+30)+SUMIFS(EnergyCalc!$AXQ$2:$AZA$2,EnergyCalc!$AXQ$4:$AZA$4,">="&'Topic 3 Calculator'!$D$18,EnergyCalc!$AXQ$4:$AZA$4,"<"&'Topic 3 Calculator'!$D$18+30)>0),"YES","NO"),IF(AND(Emissions_Lookup_andCalc!$G$32>=0.99*INDEX(Compare[30-year ZC],MATCH(UI.State,Compare[State],0)),Emissions_Lookup_andCalc!$G$32>0),"YES","NO")))) -> --- | P8: Equivalent to ZEC 30-year site energy savings
D9: Select One | F9: No | H9: 100,000 - 200,000 sqft | I9: =$D$18 -> 2025
F10: No | H10: Greater than 200,000 sqft | I10: =$D$18 -> 2025
D11: 2020 Census Population
D12: 1 | H12: Building Types
F13: No | H13: Small, Medium and Large Office
D14: Anticipated Adoption Year | F14: No | H14: Small and Large Hotel
D15: 2024 | F15: No | H15: Primary and Secondary School
F16: No | H16: Standalone Retail
D17: Anticipated Effective Year | F17: No | H17: Strip Mall Retail
D18: 2025 | F18: No | H18: Full-Service Restaurant
F19: No | H19: Quick-Service Restaurant
D20: Anticipated Target Year | F20: No | H20: Non-refrigerated Warehouse
D21: =D18+29 -> 2054 | F21: No | H21: Multifamily (above 3 stories)
F22: No | H22: Hospital
D23: Energy or Emissions Target | F23: No | H23: Outpatient Healthcare
D24: Energy | F24: No | H24: Other/User-Defined
H25: È
D26: =IF($D$24 = "Energy", "Target Site Energy Reduction", "Target Emissions Reduction") -> Target Site Energy Reduction | H26: User Defined: Floor Area
D27: 0.45 | H27: 0
D29: Compliance Rate | H29: User Defined: EUI
D30: 0.7 | H30: 0
D32: Interim Target: Percentage | H32: User Defined: Please Explain
D33: 0 | H33: Please explain what the user defined building is and why you are modeling it
D35: Interim Target: Year
D36: =D18+14 -> 2039

Sheet EnergyCalc (hidden)
A1: Lookups | EC1: Existing Buildings | RG1: New Construction
ARU2: =IF(Lists_BldgTypeUserDefined=TRUE,'Topic 3 Calculator'!$H$27*0.988^(EnergyCalc!ARU4-2023)*'Topic 3 Calculator'!$H$30*Emissions_Lookup_andCalc!$G$28*INDEX(ElecCO2[],7,MATCH(TEXT(AQI4,"0"),ElecCO2[#Headers],0)),0)+(IF(Lists_BldgTypeUserDefined=TRUE,'Topic 3 Calculator'!$H$27*0.988^(EnergyCalc!ARU4-2023)*'Topic 3 Calculator'!$H30*Emissions_Lookup_andCalc!$G$29)*INDEX(GasCO2[],7,MATCH(TEXT(AQI4,"0"),GasCO2[#Headers],0))) -> 0 | ARV2: =IF(Lists_BldgTypeUserDefined=TRUE,'Topic 3 Calculator'!$H$27*0.988^(EnergyCalc!ARV4-2023)*'Topic 3 Calculator'!$H$30*Emissions_Lookup_andCalc!$G$28*INDEX(ElecCO2[],7,MATCH(TEXT(AQJ4,"0"),ElecCO2[#Headers],0)),0)+(IF(Lists_BldgTypeUserDefined=TRUE,'Topic 3 Calculator'!$H$27*0.988^(EnergyCalc!ARV4-2023)*'Topic 3 Calculator'!$H30*Emissions_Lookup_andCalc!$G$29)*INDEX(GasCO2[],7,MATCH(TEXT(AQJ4,"0"),GasCO2[#Headers],0))) -> 0 | ARW2: =IF(Lists_BldgTypeUserDefined=TRUE,'Topic 3 Calculator'!$H$27*0.988^(EnergyCalc!ARW4-2023)*'Topic 3 Calculator'!$H$30*Emissions_Lookup_andCalc!$G$28*INDEX(ElecCO2[],7,MATCH(TEXT(AQK4,"0"),ElecCO2[#Headers],0)),0)+(IF(Lists_BldgTypeUserDefined=TRUE,'Topic 3 Calculator'!$H$27*0.988^(EnergyCalc!ARW4-2023)*'Topic 3 Calculator'!$H30*Emissions_Lookup_andCalc!$G$29)*INDEX(GasCO2[],7,MATCH(TEXT(AQK4,"0"),GasCO2[#Headers],0))) -> 0 | ARX2: =IF(Lists_BldgTypeUserDefined=TRUE,'Topic 3 Calculator'!$H$27*0.988^(EnergyCalc!ARX4-2023)*'Topic 3 Calculator'!$H$30*Emissions_Lookup_andCalc!$G$28*INDEX(ElecCO2[],7,MATCH(TEXT(AQL4,"0"),ElecCO2[#Headers],0)),0)+(IF(Lists_BldgTypeUserDefined=TRUE,'Topic 3 Calculator'!$H$27*0.988^(EnergyCalc!ARX4-2023)*'Topic 3 Calculator'!$H30*Emissions_Lookup_andCalc!$G$29)*INDEX(GasCO2[],7,MATCH(TEXT(AQL4,"0"),GasCO2[#Headers],0))) -> 0 | ARY2: =IF(Lists_BldgTypeUserDefined=TRUE,'Topic 3 Calculator'!$H$27*0.988^(EnergyCalc!ARY4-2023)*'Topic 3 Calculator'!$H$30*Emissions_Lookup_andCalc!$G$28*INDEX(ElecCO2[],7,MATCH(TEXT(AQM4,"0"),ElecCO2[#Headers],0)),0)+(IF(Lists_BldgTypeUserDefined=TRUE,'Topic 3 Calculator'!$H$27*0.988^(EnergyCalc!ARY4-2023)*'Topic 3 Calculator'!$H30*Emissions_Lookup_andCalc!$G$29)*INDEX(GasCO2[],7,MATCH(TEXT(AQM4,"0"),GasCO2[#Headers],0))) -> 0 | ARZ2: =IF(Lists_BldgTypeUserDefined=TRUE,'Topic 3 Calculator'!$H$27*0.988^(EnergyCalc!ARZ4-2023)*'Topic 3 Calculator'!$H$30*Emissions_Lookup_andCalc!$G$28*INDEX(ElecCO2[],7,MATCH(TEXT(AQN4,"0"),ElecCO2[#Headers],0)),0)+(IF(Lists_BldgTypeUserDefined=TRUE,'Topic 3 Calculator'!$H$27*0.988^(EnergyCalc!ARZ4-2023)*'Topic 3 Calculator'!$H30*Emissions_Lookup_andCalc!$G$29)*INDEX(GasCO2[],7,MATCH(TEXT(AQN4,"0"),GasCO2[#Headers],0))) -> 0 | ASA2: =IF(Lists_BldgTypeUserDefined=TRUE,'Topic 3 Calculator'!$H$27*0.988^(EnergyCalc!ASA4-2023)*'Topic 3 Calculator'!$H$30*Emissions_Lookup_andCalc!$G$28*INDEX(ElecCO2[],7,MATCH(TEXT(AQO4,"0"),ElecCO2[#Headers],0)),0)+(IF(Lists_BldgTypeUserDefined=TRUE,'Topic 3 Calculator'!$H$27*0.988^(EnergyCalc!ASA4-2023)*'Topic 3 Calculator'!$H30*Emissions_Lookup_andCalc!$G$29)*INDEX(GasCO2[],7,MATCH(TEXT(AQO4,"0"),GasCO2[#Headers],0))) -> 0 | ASB2: =IF(Lists_BldgTypeUserDefined=TRUE,'Topic 3 Calculator'!$H$27*0.988^(EnergyCalc!ASB4-2023)*'Topic 3 Calculator'!$H$30*Emissions_Lookup_andCalc!$G$28*INDEX(ElecCO2[],7,MATCH(TEXT(AQP4,"0"),ElecCO2[#Headers],0)),0)+(IF(Lists_BldgTypeUserDefined=TRUE,'Topic 3 Calculator'!$H$27*0.988^(EnergyCalc!ASB4-2023)*'Topic 3 Calculator'!$H30*Emissions_Lookup_andCalc!$G$29)*INDEX(GasCO2[],7,MATCH(TEXT(AQP4,"0"),GasCO2[#Headers],0))) -> 0 | ASC2: =IF(Lists_BldgTypeUserDefined=TRUE,'Topic 3 Calculator'!$H$27*0.988^(EnergyCalc!ASC4-2023)*'Topic 3 Calculator'!$H$30*Emissions_Lookup_andCalc!$G$28*INDEX(ElecCO2[],7,MATCH(TEXT(AQQ4,"0"),ElecCO2[#Headers],0)),0)+(IF(Lists_BldgTypeUserDefined=TRUE,'Topic 3 Calculator'!$H$27*0.988^(EnergyCalc!ASC4-2023)*'Topic 3 Calculator'!$H30*Emissions_Lookup_andCalc!$G$29)*INDEX(GasCO2[],7,MATCH(TEXT(AQQ4,"0"),GasCO2[#Headers],0))) -> 0 | ASD2: =IF(Lists_BldgTypeUserDefined=TRUE,'Topic 3 Calculator'!$H$27*0.988^(EnergyCalc!ASD4-2023)*'Topic 3 Calculator'!$H$30*Emissions_Lookup_andCalc!$G$28*INDEX(ElecCO2[],7,MATCH(TEXT(AQR4,"0"),ElecCO2[#Headers],0)),0)+(IF(Lists_BldgTypeUserDefined=TRUE,'Topic 3 Calculator'!$H$27*0.988^(EnergyCalc!ASD4-2023)*'Topic 3 Calculator'!$H30*Emissions_Lookup_andCalc!$G$29)*INDEX(GasCO2[],7,MATCH(TEXT(AQR4,"0"),GasCO2[#Headers],0))) -> 0 | ASE2: =IF(Lists_BldgTypeUserDefined=TRUE,'Topic 3 Calculator'!$H$27*0.988^(EnergyCalc!ASE4-2023)*'Topic 3 Calculator'!$H$30*Emissions_Lookup_andCalc!$G$28*INDEX(ElecCO2[],7,MATCH(TEXT(AQS4,"0"),ElecCO2[#Headers],0)),0)+(IF(Lists_BldgTypeUserDefined=TRUE,'Topic 3 Calculator'!$H$27*0.988^(EnergyCalc!ASE4-2023)*'Topic 3 Calculator'!$H30*Emissions_Lookup_andCalc!$G$29)*INDEX(GasCO2[],7,MATCH(TEXT(AQS4,"0"),GasCO2[#Headers],0))) -> 0 | ASF2: =IF(Lists_BldgTypeUserDefined=TRUE,'Topic 3 Calculator'!$H$27*0.988^(EnergyCalc!ASF4-2023)*'Topic 3 Calculator'!$H$30*Emissions_Lookup_andCalc!$G$28*INDEX(ElecCO2[],7,MATCH(TEXT(AQT4,"0"),ElecCO2[#Headers],0)),0)+(IF(Lists_BldgTypeUserDefined=TRUE,'Topic 3 Calculator'!$H$27*0.988^(EnergyCalc!ASF4-2023)*'Topic 3 Calculator'!$H30*Emissions_Lookup_andCalc!$G$29)*INDEX(GasCO2[],7,MATCH(TEXT(AQT4,"0"),GasCO2[#Headers],0))) -> 0 | ASG2: =IF(Lists_BldgTypeUserDefined=TRUE,'Topic 3 Calculator'!$H$27*0.988^(EnergyCalc!ASG4-2023)*'Topic 3 Calculator'!$H$30*Emissions_Lookup_andCalc!$G$28*INDEX(ElecCO2[],7,MATCH(TEXT(AQU4,"0"),ElecCO2[#Headers],0)),0)+(IF(Lists_BldgTypeUserDefined=TRUE,'Topic 3 Calculator'!$H$27*0.988^(EnergyCalc!ASG4-2023)*'Topic 3 Calculator'!$H30*Emissions_Lookup_andCalc!$G$29)*INDEX(GasCO2[],7,MATCH(TEXT(AQU4,"0"),GasCO2[#Headers],0))) -> 0 | ASH2: =IF(Lists_BldgTypeUserDefined=TRUE,'Topic 3 Calculator'!$H$27*0.988^(EnergyCalc!ASH4-2023)*'Topic 3 Calculator'!$H$30*Emissions_Lookup_andCalc!$G$28*INDEX(ElecCO2[],7,MATCH(TEXT(AQV4,"0"),ElecCO2[#Headers],0)),0)+(IF(Lists_BldgTypeUserDefined=TRUE,'Topic 3 Calculator'!$H$27*0.988^(EnergyCalc!ASH4-2023)*'Topic 3 Calculator'!$H30*Emissions_Lookup_andCalc!$G$29)*INDEX(GasCO2[],7,MATCH(TEXT(AQV4,"0"),GasCO2[#Headers],0))) -> 0 | ASI2: =IF(Lists_BldgTypeUserDefined=TRUE,'Topic 3 Calculator'!$H$27*0.988^(EnergyCalc!ASI4-2023)*'Topic 3 Calculator'!$H$30*Emissions_Lookup_andCalc!$G$28*INDEX(ElecCO2[],7,MATCH(TEXT(AQW4,"0"),ElecCO2[#Headers],0)),0)+(IF(Lists_BldgTypeUserDefined=TRUE,'Topic 3 Calculator'!$H$27*0.988^(EnergyCalc!ASI4-2023)*'Topic 3 Calculator'!$H30*Emissions_Lookup_andCalc!$G$29)*INDEX(GasCO2[],7,MATCH(TEXT(AQW4,"0"),GasCO2[#Headers],0))) -> 0 | ASJ2: =IF(Lists_BldgTypeUserDefined=TRUE,'Topic 3 Calculator'!$H$27*0.988^(EnergyCalc!ASJ4-2023)*'Topic 3 Calculator'!$H$30*Emissions_Lookup_andCalc!$G$28*INDEX(ElecCO2[],7,MATCH(TEXT(AQX4,"0"),ElecCO2[#Headers],0)),0)+(IF(Lists_BldgTypeUserDefined=TRUE,'Topic 3 Calculator'!$H$27*0.988^(EnergyCalc!ASJ4-2023)*'Topic 3 Calculator'!$H30*Emissions_Lookup_andCalc!$G$29)*INDEX(GasCO2[],7,MATCH(TEXT(AQX4,"0"),GasCO2[#Headers],0))) -> 0 | ASK2: =IF(Lists_BldgTypeUserDefined=TRUE,'Topic 3 Calculator'!$H$27*0.988^(EnergyCalc!ASK4-2023)*'Topic 3 Calculator'!$H$30*Emissions_Lookup_andCalc!$G$28*INDEX(ElecCO2[],7,MATCH(TEXT(AQY4,"0"),ElecCO2[#Headers],0)),0)+(IF(Lists_BldgTypeUserDefined=TRUE,'Topic 3 Calculator'!$H$27*0.988^(EnergyCalc!ASK4-2023)*'Topic 3 Calculator'!$H30*Emissions_Lookup_andCalc!$G$29)*INDEX(GasCO2[],7,MATCH(TEXT(AQY4,"0"),GasCO2[#Headers],0))) -> 0 | ASL2: =IF(Lists_BldgTypeUserDefined=TRUE,'Topic 3 Calculator'!$H$27*0.988^(EnergyCalc!ASL4-2023)*'Topic 3 Calculator'!$H$30*Emissions_Lookup_andCalc!$G$28*INDEX(ElecCO2[],7,MATCH(TEXT(AQZ4,"0"),ElecCO2[#Headers],0)),0)+(IF(Lists_BldgTypeUserDefined=TRUE,'Topic 3 Calculator'!$H$27*0.988^(EnergyCalc!ASL4-2023)*'Topic 3 Calculator'!$H30*Emissions_Lookup_andCalc!$G$29)*INDEX(GasCO2[],7,MATCH(TEXT(AQZ4,"0"),GasCO2[#Headers],0))) -> 0 | ASM2: =IF(Lists_BldgTypeUserDefined=TRUE,'Topic 3 Calculator'!$H$27*0.988^(EnergyCalc!ASM4-2023)*'Topic 3 Calculator'!$H$30*Emissions_Lookup_andCalc!$G$28*INDEX(ElecCO2[],7,MATCH(TEXT(ARA4,"0"),ElecCO2[#Headers],0)),0)+(IF(Lists_BldgTypeUserDefined=TRUE,'Topic 3 Calculator'!$H$27*0.988^(EnergyCalc!ASM4-2023)*'Topic 3 Calculator'!$H30*Emissions_Lookup_andCalc!$G$29)*INDEX(GasCO2[],7,MATCH(TEXT(ARA4,"0"),GasCO2[#Headers],0))) -> 0 | ASN2: =IF(Lists_BldgTypeUserDefined=TRUE,'Topic 3 Calculator'!$H$27*0.988^(EnergyCalc!ASN4-2023)*'Topic 3 Calculator'!$H$30*Emissions_Lookup_andCalc!$G$28*INDEX(ElecCO2[],7,MATCH(TEXT(ARB4,"0"),ElecCO2[#Headers],0)),0)+(IF(Lists_BldgTypeUserDefined=TRUE,'Topic 3 Calculator'!$H$27*0.988^(EnergyCalc!ASN4-2023)*'Topic 3 Calculator'!$H30*Emissions_Lookup_andCalc!$G$29)*INDEX(GasCO2[],7,MATCH(TEXT(ARB4,"0"),GasCO2[#Headers],0))) -> 0 | ASO2: =IF(Lists_BldgTypeUserDefined=TRUE,'Topic 3 Calculator'!$H$27*0.988^(EnergyCalc!ASO4-2023)*'Topic 3 Calculator'!$H$30*Emissions_Lookup_andCalc!$G$28*INDEX(ElecCO2[],7,MATCH(TEXT(ARC4,"0"),ElecCO2[#Headers],0)),0)+(IF(Lists_BldgTypeUserDefined=TRUE,'Topic 3 Calculator'!$H$27*0.988^(EnergyCalc!ASO4-2023)*'Topic 3 Calculator'!$H30*Emissions_Lookup_andCalc!$G$29)*INDEX(GasCO2[],7,MATCH(TEXT(ARC4,"0"),GasCO2[#Headers],0))) -> 0 | ASP2: =IF(Lists_BldgTypeUserDefined=TRUE,'Topic 3 Calculator'!$H$27*0.988^(EnergyCalc!ASP4-2023)*'Topic 3 Calculator'!$H$30*Emissions_Lookup_andCalc!$G$28*INDEX(ElecCO2[],7,MATCH(TEXT(ARD4,"0"),ElecCO2[#Headers],0)),0)+(IF(Lists_BldgTypeUserDefined=TRUE,'Topic 3 Calculator'!$H$27*0.988^(EnergyCalc!ASP4-2023)*'Topic 3 Calculator'!$H30*Emissions_Lookup_andCalc!$G$29)*INDEX(GasCO2[],7,MATCH(TEXT(ARD4,"0"),GasCO2[#Headers],0))) -> 0 | ASQ2: =IF(Lists_BldgTypeUserDefined=TRUE,'Topic 3 Calculator'!$H$27*0.988^(EnergyCalc!ASQ4-2023)*'Topic 3 Calculator'!$H$30*Emissions_Lookup_andCalc!$G$28*INDEX(ElecCO2[],7,MATCH(TEXT(ARE4,"0"),ElecCO2[#Headers],0)),0)+(IF(Lists_BldgTypeUserDefined=TRUE,'Topic 3 Calculator'!$H$27*0.988^(EnergyCalc!ASQ4-2023)*'Topic 3 Calculator'!$H30*Emissions_Lookup_andCalc!$G$29)*INDEX(GasCO2[],7,MATCH(TEXT(ARE4,"0"),GasCO2[#Headers],0))) -> 0 | ASR2: =IF(Lists_BldgTypeUserDefined=TRUE,'Topic 3 Calculator'!$H$27*0.988^(EnergyCalc!ASR4-2023)*'Topic 3 Calculator'!$H$30*Emissions_Lookup_andCalc!$G$28*INDEX(ElecCO2[],7,MATCH(TEXT(ARF4,"0"),ElecCO2[#Headers],0)),0)+(IF(Lists_BldgTypeUserDefined=TRUE,'Topic 3 Calculator'!$H$27*0.988^(EnergyCalc!ASR4-2023)*'Topic 3 Calculator'!$H30*Emissions_Lookup_andCalc!$G$29)*INDEX(GasCO2[],7,MATCH(TEXT(ARF4,"0"),GasCO2[#Headers],0))) -> 0 | ASS2: =IF(Lists_BldgTypeUserDefined=TRUE,'Topic 3 Calculator'!$H$27*0.988^(EnergyCalc!ASS4-2023)*'Topic 3 Calculator'!$H$30*Emissions_Lookup_andCalc!$G$28*INDEX(ElecCO2[],7,MATCH(TEXT(ARG4,"0"),ElecCO2[#Headers],0)),0)+(IF(Lists_BldgTypeUserDefined=TRUE,'Topic 3 Calculator'!$H$27*0.988^(EnergyCalc!ASS4-2023)*'Topic 3 Calculator'!$H30*Emissions_Lookup_andCalc!$G$29)*INDEX(GasCO2[],7,MATCH(TEXT(ARG4,"0"),GasCO2[#Headers],0))) -> 0 | AST2: =IF(Lists_BldgTypeUserDefined=TRUE,'Topic 3 Calculator'!$H$27*0.988^(EnergyCalc!AST4-2023)*'Topic 3 Calculator'!$H$30*Emissions_Lookup_andCalc!$G$28*INDEX(ElecCO2[],7,MATCH(TEXT(ARH4,"0"),ElecCO2[#Headers],0)),0)+(IF(Lists_BldgTypeUserDefined=TRUE,'Topic 3 Calculator'!$H$27*0.988^(EnergyCalc!AST4-2023)*'Topic 3 Calculator'!$H30*Emissions_Lookup_andCalc!$G$29)*INDEX(GasCO2[],7,MATCH(TEXT(ARH4,"0"),GasCO2[#Headers],0))) -> 0 | ASU2: =IF(Lists_BldgTypeUserDefined=TRUE,'Topic 3 Calculator'!$H$27*0.988^(EnergyCalc!ASU4-2023)*'Topic 3 Calculator'!$H$30*Emissions_Lookup_andCalc!$G$28*INDEX(ElecCO2[],7,MATCH(TEXT(ARI4,"0"),ElecCO2[#Headers],0)),0)+(IF(Lists_BldgTypeUserDefined=TRUE,'Topic 3 Calculator'!$H$27*0.988^(EnergyCalc!ASU4-2023)*'Topic 3 Calculator'!$H30*Emissions_Lookup_andCalc!$G$29)*INDEX(GasCO2[],7,MATCH(TEXT(ARI4,"0"),GasCO2[#Headers],0))) -> 0 | ASV2: =IF(Lists_BldgTypeUserDefined=TRUE,'Topic 3 Calculator'!$H$27*0.988^(EnergyCalc!ASV4-2023)*'Topic 3 Calculator'!$H$30*Emissions_Lookup_andCalc!$G$28*INDEX(ElecCO2[],7,MATCH(TEXT(ARJ4,"0"),ElecCO2[#Headers],0)),0)+(IF(Lists_BldgTypeUserDefined=TRUE,'Topic 3 Calculator'!$H$27*0.988^(EnergyCalc!ASV4-2023)*'Topic 3 Calculator'!$H30*Emissions_Lookup_andCalc!$G$29)*INDEX(GasCO2[],7,MATCH(TEXT(ARJ4,"0"),GasCO2[#Headers],0))) -> 0 | ASW2: =IF(Lists_BldgTypeUserDefined=TRUE,'Topic 3 Calculator'!$H$27*0.988^(EnergyCalc!ASW4-2023)*'Topic 3 Calculator'!$H$30*Emissions_Lookup_andCalc!$G$28*INDEX(ElecCO2[],7,MATCH(TEXT(ARK4,"0"),ElecCO2[#Headers],0)),0)+(IF(Lists_BldgTypeUserDefined=TRUE,'Topic 3 Calculator'!$H$27*0.988^(EnergyCalc!ASW4-2023)*'Topic 3 Calculator'!$H30*Emissions_Lookup_andCalc!$G$29)*INDEX(GasCO2[],7,MATCH(TEXT(ARK4,"0"),GasCO2[#Headers],0))) -> 0 | ASX2: =IF(Lists_BldgTypeUserDefined=TRUE,'Topic 3 Calculator'!$H$27*0.988^(EnergyCalc!ASX4-2023)*'Topic 3 Calculator'!$H$30*Emissions_Lookup_andCalc!$G$28*INDEX(ElecCO2[],7,MATCH(TEXT(ARL4,"0"),ElecCO2[#Headers],0)),0)+(IF(Lists_BldgTypeUserDefined=TRUE,'Topic 3 Calculator'!$H$27*0.988^(EnergyCalc!ASX4-2023)*'Topic 3 Calculator'!$H30*Emissions_Lookup_andCalc!$G$29)*INDEX(GasCO2[],7,MATCH(TEXT(ARL4,"0"),GasCO2[#Headers],0))) -> 0 | ASY2: =IF(Lists_BldgTypeUserDefined=TRUE,'Topic 3 Calculator'!$H$27*0.988^(EnergyCalc!ASY4-2023)*'Topic 3 Calculator'!$H$30*Emissions_Lookup_andCalc!$G$28*INDEX(ElecCO2[],7,MATCH(TEXT(ARM4,"0"),ElecCO2[#Headers],0)),0)+(IF(Lists_BldgTypeUserDefined=TRUE,'Topic 3 Calculator'!$H$27*0.988^(EnergyCalc!ASY4-2023)*'Topic 3 Calculator'!$H30*Emissions_Lookup_andCalc!$G$29)*INDEX(GasCO2[],7,MATCH(TEXT(ARM4,"0"),GasCO2[#Headers],0))) -> 0 | ASZ2: =IF(Lists_BldgTypeUserDefined=TRUE,'Topic 3 Calculator'!$H$27*0.988^(EnergyCalc!ASZ4-2023)*'Topic 3 Calculator'!$H$30*Emissions_Lookup_andCalc!$G$28*INDEX(ElecCO2[],7,MATCH(TEXT(ARN4,"0"),ElecCO2[#Headers],0)),0)+(IF(Lists_BldgTypeUserDefined=TRUE,'Topic 3 Calculator'!$H$27*0.988^(EnergyCalc!ASZ4-2023)*'Topic 3 Calculator'!$H30*Emissions_Lookup_andCalc!$G$29)*INDEX(GasCO2[],7,MATCH(TEXT(ARN4,"0"),GasCO2[#Headers],0))) -> 0 | ATA2: =IF(Lists_BldgTypeUserDefined=TRUE,'Topic 3 Calculator'!$H$27*0.988^(EnergyCalc!ATA4-2023)*'Topic 3 Calculator'!$H$30*Emissions_Lookup_andCalc!$G$28*INDEX(ElecCO2[],7,MATCH(TEXT(ARO4,"0"),ElecCO2[#Headers],0)),0)+(IF(Lists_BldgTypeUserDefined=TRUE,'Topic 3 Calculator'!$H$27*0.988^(EnergyCalc!ATA4-2023)*'Topic 3 Calculator'!$H30*Emissions_Lookup_andCalc!$G$29)*INDEX(GasCO2[],7,MATCH(TEXT(ARO4,"0"),GasCO2[#Headers],0))) -> 0 | ATB2: =IF(Lists_BldgTypeUserDefined=TRUE,'Topic 3 Calculator'!$H$27*0.988^(EnergyCalc!ATB4-2023)*'Topic 3 Calculator'!$H$30*Emissions_Lookup_andCalc!$G$28*INDEX(ElecCO2[],7,MATCH(TEXT(ARP4,"0"),ElecCO2[#Headers],0)),0)+(IF(Lists_BldgTypeUserDefined=TRUE,'Topic 3 Calculator'!$H$27*0.988^(EnergyCalc!ATB4-2023)*'Topic 3 Calculator'!$H30*Emissions_Lookup_andCalc!$G$29)*INDEX(GasCO2[],7,MATCH(TEXT(ARP4,"0"),GasCO2[#Headers],0))) -> 0 | ATC2: =IF(Lists_BldgTypeUserDefined=TRUE,'Topic 3 Calculator'!$H$27*0.988^(EnergyCalc!ATC4-2023)*'Topic 3 Calculator'!$H$30*Emissions_Lookup_andCalc!$G$28*INDEX(ElecCO2[],7,MATCH(TEXT(ARQ4,"0"),ElecCO2[#Headers],0)),0)+(IF(Lists_BldgTypeUserDefined=TRUE,'Topic 3 Calculator'!$H$27*0.988^(EnergyCalc!ATC4-2023)*'Topic 3 Calculator'!$H30*Emissions_Lookup_andCalc!$G$29)*INDEX(GasCO2[],7,MATCH(TEXT(ARQ4,"0"),GasCO2[#Headers],0))) -> 0 | ATD2: =IF(Lists_BldgTypeUserDefined=TRUE,'Topic 3 Calculator'!$H$27*0.988^(EnergyCalc!ATD4-2023)*'Topic 3 Calculator'!$H$30*Emissions_Lookup_andCalc!$G$28*INDEX(ElecCO2[],7,MATCH(TEXT(ARR4,"0"),ElecCO2[#Headers],0)),0)+(IF(Lists_BldgTypeUserDefined=TRUE,'Topic 3 Calculator'!$H$27*0.988^(EnergyCalc!ATD4-2023)*'Topic 3 Calculator'!$H30*Emissions_Lookup_andCalc!$G$29)*INDEX(GasCO2[],7,MATCH(TEXT(ARR4,"0"),GasCO2[#Headers],0))) -> 0 | ATE2: =IF(Lists_BldgTypeUserDefined=TRUE,'Topic 3 Calculator'!$H$27*0.988^(EnergyCalc!ATE4-2023)*'Topic 3 Calculator'!$H$30*Emissions_Lookup_andCalc!$G$28*INDEX(ElecCO2[],7,MATCH(TEXT(ARS4,"0"),ElecCO2[#Headers],0)),0)+(IF(Lists_BldgTypeUserDefined=TRUE,'Topic 3 Calculator'!$H$27*0.988^(EnergyCalc!ATE4-2023)*'Topic 3 Calculator'!$H30*Emissions_Lookup_andCalc!$G$29)*INDEX(GasCO2[],7,MATCH(TEXT(ARS4,"0"),GasCO2[#Headers],0))) -> 0 | AXP2: user defined | AXQ2: =IF(Lists_BldgTypeUserDefined = TRUE,(1-INDEX(BPS_EUIFactors[],1,MATCH(TEXT(AXQ4,"0"),BPS_EUIFactors[#Headers],0)))*'Topic 3 Calculator'!$H$30*'Topic 3 Calculator'!$H$27*(0.988)^(EnergyCalc!AXQ4-EnergyCalc!$AXP$4)*'Topic 3 Calculator'!$D$30,0)/1000000000 -> 0 | AXR2: =IF(Lists_BldgTypeUserDefined = TRUE,(1-INDEX(BPS_EUIFactors[],1,MATCH(TEXT(AXR4,"0"),BPS_EUIFactors[#Headers],0)))*'Topic 3 Calculator'!$H$30*'Topic 3 Calculator'!$H$27*(0.988)^(EnergyCalc!AXR4-EnergyCalc!$AXP$4)*'Topic 3 Calculator'!$D$30,0)/1000000000 -> 0 | AXS2: =IF(Lists_BldgTypeUserDefined = TRUE,(1-INDEX(BPS_EUIFactors[],1,MATCH(TEXT(AXS4,"0"),BPS_EUIFactors[#Headers],0)))*'Topic 3 Calculator'!$H$30*'Topic 3 Calculator'!$H$27*(0.988)^(EnergyCalc!AXS4-EnergyCalc!$AXP$4)*'Topic 3 Calculator'!$D$30,0)/1000000000 -> 0 | AXT2: =IF(Lists_BldgTypeUserDefined = TRUE,(1-INDEX(BPS_EUIFactors[],1,MATCH(TEXT(AXT4,"0"),BPS_EUIFactors[#Headers],0)))*'Topic 3 Calculator'!$H$30*'Topic 3 Calculator'!$H$27*(0.988)^(EnergyCalc!AXT4-EnergyCalc!$AXP$4)*'Topic 3 Calculator'!$D$30,0)/1000000000 -> 0 | AXU2: =IF(Lists_BldgTypeUserDefined = TRUE,(1-INDEX(BPS_EUIFactors[],1,MATCH(TEXT(AXU4,"0"),BPS_EUIFactors[#Headers],0)))*'Topic 3 Calculator'!$H$30*'Topic 3 Calculator'!$H$27*(0.988)^(EnergyCalc!AXU4-EnergyCalc!$AXP$4)*'Topic 3 Calculator'!$D$30,0)/1000000000 -> 0 | AXV2: =IF(Lists_BldgTypeUserDefined = TRUE,(1-INDEX(BPS_EUIFactors[],1,MATCH(TEXT(AXV4,"0"),BPS_EUIFactors[#Headers],0)))*'Topic 3 Calculator'!$H$30*'Topic 3 Calculator'!$H$27*(0.988)^(EnergyCalc!AXV4-EnergyCalc!$AXP$4)*'Topic 3 Calculator'!$D$30,0)/1000000000 -> 0 | AXW2: =IF(Lists_BldgTypeUserDefined = TRUE,(1-INDEX(BPS_EUIFactors[],1,MATCH(TEXT(AXW4,"0"),BPS_EUIFactors[#Headers],0)))*'Topic 3 Calculator'!$H$30*'Topic 3 Calculator'!$H$27*(0.988)^(EnergyCalc!AXW4-EnergyCalc!$AXP$4)*'Topic 3 Calculator'!$D$30,0)/1000000000 -> 0 | AXX2: =IF(Lists_BldgTypeUserDefined = TRUE,(1-INDEX(BPS_EUIFactors[],1,MATCH(TEXT(AXX4,"0"),BPS_EUIFactors[#Headers],0)))*'Topic 3 Calculator'!$H$30*'Topic 3 Calculator'!$H$27*(0.988)^(EnergyCalc!AXX4-EnergyCalc!$AXP$4)*'Topic 3 Calculator'!$D$30,0)/1000000000 -> 0 | AXY2: =IF(Lists_BldgTypeUserDefined = TRUE,(1-INDEX(BPS_EUIFactors[],1,MATCH(TEXT(AXY4,"0"),BPS_EUIFactors[#Headers],0)))*'Topic 3 Calculator'!$H$30*'Topic 3 Calculator'!$H$27*(0.988)^(EnergyCalc!AXY4-EnergyCalc!$AXP$4)*'Topic 3 Calculator'!$D$30,0)/1000000000 -> 0 | AXZ2: =IF(Lists_BldgTypeUserDefined = TRUE,(1-INDEX(BPS_EUIFactors[],1,MATCH(TEXT(AXZ4,"0"),BPS_EUIFactors[#Headers],0)))*'Topic 3 Calculator'!$H$30*'Topic 3 Calculator'!$H$27*(0.988)^(EnergyCalc!AXZ4-EnergyCalc!$AXP$4)*'Topic 3 Calculator'!$D$30,0)/1000000000 -> 0 | AYA2: =IF(Lists_BldgTypeUserDefined = TRUE,(1-INDEX(BPS_EUIFactors[],1,MATCH(TEXT(AYA4,"0"),BPS_EUIFactors[#Headers],0)))*'Topic 3 Calculator'!$H$30*'Topic 3 Calculator'!$H$27*(0.988)^(EnergyCalc!AYA4-EnergyCalc!$AXP$4)*'Topic 3 Calculator'!$D$30,0)/1000000000 -> 0 | AYB2: =IF(Lists_BldgTypeUserDefined = TRUE,(1-INDEX(BPS_EUIFactors[],1,MATCH(TEXT(AYB4,"0"),BPS_EUIFactors[#Headers],0)))*'Topic 3 Calculator'!$H$30*'Topic 3 Calculator'!$H$27*(0.988)^(EnergyCalc!AYB4-EnergyCalc!$AXP$4)*'Topic 3 Calculator'!$D$30,0)/1000000000 -> 0 | AYC2: =IF(Lists_BldgTypeUserDefined = TRUE,(1-INDEX(BPS_EUIFactors[],1,MATCH(TEXT(AYC4,"0"),BPS_EUIFactors[#Headers],0)))*'Topic 3 Calculator'!$H$30*'Topic 3 Calculator'!$H$27*(0.988)^(EnergyCalc!AYC4-EnergyCalc!$AXP$4)*'Topic 3 Calculator'!$D$30,0)/1000000000 -> 0 | AYD2: =IF(Lists_BldgTypeUserDefined = TRUE,(1-INDEX(BPS_EUIFactors[],1,MATCH(TEXT(AYD4,"0"),BPS_EUIFactors[#Headers],0)))*'Topic 3 Calculator'!$H$30*'Topic 3 Calculator'!$H$27*(0.988)^(EnergyCalc!AYD4-EnergyCalc!$AXP$4)*'Topic 3 Calculator'!$D$30,0)/1000000000 -> 0 | AYE2: =IF(Lists_BldgTypeUserDefined = TRUE,(1-INDEX(BPS_EUIFactors[],1,MATCH(TEXT(AYE4,"0"),BPS_EUIFactors[#Headers],0)))*'Topic 3 Calculator'!$H$30*'Topic 3 Calculator'!$H$27*(0.988)^(EnergyCalc!AYE4-EnergyCalc!$AXP$4)*'Topic 3 Calculator'!$D$30,0)/1000000000 -> 0 | AYF2: =IF(Lists_BldgTypeUserDefined = TRUE,(1-INDEX(BPS_EUIFactors[],1,MATCH(TEXT(AYF4,"0"),BPS_EUIFactors[#Headers],0)))*'Topic 3 Calculator'!$H$30*'Topic 3 Calculator'!$H$27*(0.988)^(EnergyCalc!AYF4-EnergyCalc!$AXP$4)*'Topic 3 Calculator'!$D$30,0)/1000000000 -> 0 | AYG2: =IF(Lists_BldgTypeUserDefined = TRUE,(1-INDEX(BPS_EUIFactors[],1,MATCH(TEXT(AYG4,"0"),BPS_EUIFactors[#Headers],0)))*'Topic 3 Calculator'!$H$30*'Topic 3 Calculator'!$H$27*(0.988)^(EnergyCalc!AYG4-EnergyCalc!$AXP$4)*'Topic 3 Calculator'!$D$30,0)/1000000000 -> 0 | AYH2: =IF(Lists_BldgTypeUserDefined = TRUE,(1-INDEX(BPS_EUIFactors[],1,MATCH(TEXT(AYH4,"0"),BPS_EUIFactors[#Headers],0)))*'Topic 3 Calculator'!$H$30*'Topic 3 Calculator'!$H$27*(0.988)^(EnergyCalc!AYH4-EnergyCalc!$AXP$4)*'Topic 3 Calculator'!$D$30,0)/1000000000 -> 0 | AYI2: =IF(Lists_BldgTypeUserDefined = TRUE,(1-INDEX(BPS_EUIFactors[],1,MATCH(TEXT(AYI4,"0"),BPS_EUIFactors[#Headers],0)))*'Topic 3 Calculator'!$H$30*'Topic 3 Calculator'!$H$27*(0.988)^(EnergyCalc!AYI4-EnergyCalc!$AXP$4)*'Topic 3 Calculator'!$D$30,0)/1000000000 -> 0 | AYJ2: =IF(Lists_BldgTypeUserDefined = TRUE,(1-INDEX(BPS_EUIFactors[],1,MATCH(TEXT(AYJ4,"0"),BPS_EUIFactors[#Headers],0)))*'Topic 3 Calculator'!$H$30*'Topic 3 Calculator'!$H$27*(0.988)^(EnergyCalc!AYJ4-EnergyCalc!$AXP$4)*'Topic 3 Calculator'!$D$30,0)/1000000000 -> 0 | AYK2: =IF(Lists_BldgTypeUserDefined = TRUE,(1-INDEX(BPS_EUIFactors[],1,MATCH(TEXT(AYK4,"0"),BPS_EUIFactors[#Headers],0)))*'Topic 3 Calculator'!$H$30*'Topic 3 Calculator'!$H$27*(0.988)^(EnergyCalc!AYK4-EnergyCalc!$AXP$4)*'Topic 3 Calculator'!$D$30,0)/1000000000 -> 0 | AYL2: =IF(Lists_BldgTypeUserDefined = TRUE,(1-INDEX(BPS_EUIFactors[],1,MATCH(TEXT(AYL4,"0"),BPS_EUIFactors[#Headers],0)))*'Topic 3 Calculator'!$H$30*'Topic 3 Calculator'!$H$27*(0.988)^(EnergyCalc!AYL4-EnergyCalc!$AXP$4)*'Topic 3 Calculator'!$D$30,0)/1000000000 -> 0 | AYM2: =IF(Lists_BldgTypeUserDefined = TRUE,(1-INDEX(BPS_EUIFactors[],1,MATCH(TEXT(AYM4,"0"),BPS_EUIFactors[#Headers],0)))*'Topic 3 Calculator'!$H$30*'Topic 3 Calculator'!$H$27*(0.988)^(EnergyCalc!AYM4-EnergyCalc!$AXP$4)*'Topic 3 Calculator'!$D$30,0)/1000000000 -> 0 | AYN2: =IF(Lists_BldgTypeUserDefined = TRUE,(1-INDEX(BPS_EUIFactors[],1,MATCH(TEXT(AYN4,"0"),BPS_EUIFactors[#Headers],0)))*'Topic 3 Calculator'!$H$30*'Topic 3 Calculator'!$H$27*(0.988)^(EnergyCalc!AYN4-EnergyCalc!$AXP$4)*'Topic 3 Calculator'!$D$30,0)/1000000000 -> 0 | AYO2: =IF(Lists_BldgTypeUserDefined = TRUE,(1-INDEX(BPS_EUIFactors[],1,MATCH(TEXT(AYO4,"0"),BPS_EUIFactors[#Headers],0)))*'Topic 3 Calculator'!$H$30*'Topic 3 Calculator'!$H$27*(0.988)^(EnergyCalc!AYO4-EnergyCalc!$AXP$4)*'Topic 3 Calculator'!$D$30,0)/1000000000 -> 0 | AYP2: =IF(Lists_BldgTypeUserDefined = TRUE,(1-INDEX(BPS_EUIFactors[],1,MATCH(TEXT(AYP4,"0"),BPS_EUIFactors[#Headers],0)))*'Topic 3 Calculator'!$H$30*'Topic 3 Calculator'!$H$27*(0.988)^(EnergyCalc!AYP4-EnergyCalc!$AXP$4)*'Topic 3 Calculator'!$D$30,0)/1000000000 -> 0 | AYQ2: =IF(Lists_BldgTypeUserDefined = TRUE,(1-INDEX(BPS_EUIFactors[],1,MATCH(TEXT(AYQ4,"0"),BPS_EUIFactors[#Headers],0)))*'Topic 3 Calculator'!$H$30*'Topic 3 Calculator'!$H$27*(0.988)^(EnergyCalc!AYQ4-EnergyCalc!$AXP$4)*'Topic 3 Calculator'!$D$30,0)/1000000000 -> 0 | AYR2: =IF(Lists_BldgTypeUserDefined = TRUE,(1-INDEX(BPS_EUIFactors[],1,MATCH(TEXT(AYR4,"0"),BPS_EUIFactors[#Headers],0)))*'Topic 3 Calculator'!$H$30*'Topic 3 Calculator'!$H$27*(0.988)^(EnergyCalc!AYR4-EnergyCalc!$AXP$4)*'Topic 3 Calculator'!$D$30,0)/1000000000 -> 0 | AYS2: =IF(Lists_BldgTypeUserDefined = TRUE,(1-INDEX(BPS_EUIFactors[],1,MATCH(TEXT(AYS4,"0"),BPS_EUIFactors[#Headers],0)))*'Topic 3 Calculator'!$H$30*'Topic 3 Calculator'!$H$27*(0.988)^(EnergyCalc!AYS4-EnergyCalc!$AXP$4)*'Topic 3 Calculator'!$D$30,0)/1000000000 -> 0 | AYT2: =IF(Lists_BldgTypeUserDefined = TRUE,(1-INDEX(BPS_EUIFactors[],1,MATCH(TEXT(AYT4,"0"),BPS_EUIFactors[#Headers],0)))*'Topic 3 Calculator'!$H$30*'Topic 3 Calculator'!$H$27*(0.988)^(EnergyCalc!AYT4-EnergyCalc!$AXP$4)*'Topic 3 Calculator'!$D$30,0)/1000000000 -> 0 | AYU2: =IF(Lists_BldgTypeUserDefined = TRUE,(1-INDEX(BPS_EUIFactors[],1,MATCH(TEXT(AYU4,"0"),BPS_EUIFactors[#Headers],0)))*'Topic 3 Calculator'!$H$30*'Topic 3 Calculator'!$H$27*(0.988)^(EnergyCalc!AYU4-EnergyCalc!$AXP$4)*'Topic 3 Calculator'!$D$30,0)/1000000000 -> 0 | AYV2: =IF(Lists_BldgTypeUserDefined = TRUE,(1-INDEX(BPS_EUIFactors[],1,MATCH(TEXT(AYV4,"0"),BPS_EUIFactors[#Headers],0)))*'Topic 3 Calculator'!$H$30*'Topic 3 Calculator'!$H$27*(0.988)^(EnergyCalc!AYV4-EnergyCalc!$AXP$4)*'Topic 3 Calculator'!$D$30,0)/1000000000 -> 0 | AYW2: =IF(Lists_BldgTypeUserDefined = TRUE,(1-INDEX(BPS_EUIFactors[],1,MATCH(TEXT(AYW4,"0"),BPS_EUIFactors[#Headers],0)))*'Topic 3 Calculator'!$H$30*'Topic 3 Calculator'!$H$27*(0.988)^(EnergyCalc!AYW4-EnergyCalc!$AXP$4)*'Topic 3 Calculator'!$D$30,0)/1000000000 -> 0 | AYX2: =IF(Lists_BldgTypeUserDefined = TRUE,(1-INDEX(BPS_EUIFactors[],1,MATCH(TEXT(AYX4,"0"),BPS_EUIFactors[#Headers],0)))*'Topic 3 Calculator'!$H$30*'Topic 3 Calculator'!$H$27*(0.988)^(EnergyCalc!AYX4-EnergyCalc!$AXP$4)*'Topic 3 Calculator'!$D$30,0)/1000000000 -> 0 | AYY2: =IF(Lists_BldgTypeUserDefined = TRUE,(1-INDEX(BPS_EUIFactors[],1,MATCH(TEXT(AYY4,"0"),BPS_EUIFactors[#Headers],0)))*'Topic 3 Calculator'!$H$30*'Topic 3 Calculator'!$H$27*(0.988)^(EnergyCalc!AYY4-EnergyCalc!$AXP$4)*'Topic 3 Calculator'!$D$30,0)/1000000000 -> 0 | AYZ2: =IF(Lists_BldgTypeUserDefined = TRUE,(1-INDEX(BPS_EUIFactors[],1,MATCH(TEXT(AYZ4,"0"),BPS_EUIFactors[#Headers],0)))*'Topic 3 Calculator'!$H$30*'Topic 3 Calculator'!$H$27*(0.988)^(EnergyCalc!AYZ4-EnergyCalc!$AXP$4)*'Topic 3 Calculator'!$D$30,0)/1000000000 -> 0 | AZA2: =IF(Lists_BldgTypeUserDefined = TRUE,(1-INDEX(BPS_EUIFactors[],1,MATCH(TEXT(AZA4,"0"),BPS_EUIFactors[#Headers],0)))*'Topic 3 Calculator'!$H$30*'Topic 3 Calculator'!$H$27*(0.988)^(EnergyCalc!AZA4-EnergyCalc!$AXP$4)*'Topic 3 Calculator'!$D$30,0)/1000000000 -> 0
Q3: NoBPS Weighted EUI | R3: Effective Year Lag | S3: Annual Survival Rate | BE3: BPS EUI Factor | CQ3: Is BPS Electric Target Less than EUI for NC in that Year | EC3: FloorArea | ED3: =SUM(_xlfn.ANCHORARRAY(ED5)) ->  | EE3: =SUM(_xlfn.ANCHORARRAY(EE5)) ->  | FO3: Electric Consumption | FP3: =SUM(_xlfn.ANCHORARRAY(FP5)) ->  | FQ3: =SUM(_xlfn.ANCHORARRAY(FQ5)) ->  | HA3: Electric CO2 Emissions [MMT CO2] | HB3: =SUM(_xlfn.ANCHORARRAY(HB$5)) ->  | HC3: =SUM(_xlfn.ANCHORARRAY(HC$5)) ->  | IM3: Electric CO2 Emissions - Effective Year Emission Factors [MMT CO2] | IN3: =SUM(_xlfn.ANCHORARRAY(IN$5))-HB3 ->  | IO3: =SUM(_xlfn.ANCHORARRAY(IO$5))-HC3 ->  | JY3: Gas Consumption | JZ3: =SUM(_xlfn.ANCHORARRAY(JZ5)) ->  | KA3: =SUM(_xlfn.ANCHORARRAY(KA5)) ->  | LK3: Gas CO2 Emissions [MMT CO2] | LL3: =SUM(_xlfn.ANCHORARRAY(LL5)) ->  | LM3: =SUM(_xlfn.ANCHORARRAY(LM5)) ->  | MV3: =SUM(_xlfn.ANCHORARRAY(MV5)) ->  | MW3: Gas CO2 Effective Year Emissions [MMT CO2] | MX3: =SUM(_xlfn.ANCHORARRAY(MX5))-LL3 ->  | MY3: =SUM(_xlfn.ANCHORARRAY(MY5))-LM3 ->  | OI3: BPS Electric Consumption | PU3: BPS Gas Consumption | RG3: Annual New Floorspace (Statewide, Square Feet) | SS3: Annual New Floorspace (by Building Type, Square Feet) | UE3: Cumulative New Floorspace (by Building Type, Square Feet) | UF3: =SUM(_xlfn.ANCHORARRAY(UF5)) ->  | UG3: =SUM(_xlfn.ANCHORARRAY(UG5)) ->  | VQ3: Future Code EUI Factor | XC3: Future Code EUI Factor 5 year shift | YO3: Electric Consumption of Annual Floorspace Addition | AAA3: Electric Consumption of Cumulative Floorspace | AAB3: =SUM(_xlfn.ANCHORARRAY(AAB5)) ->  | AAC3: =SUM(_xlfn.ANCHORARRAY(AAC5)) ->  | ABM3: Gas Consumption of Annual Floorspace Addition | ACY3: Gas Consumption of Cumulative Floorspace | AEK3: BPS Impacted Area - Annual so just a 5 year lag to NC annual numbers | AFW3: Zeros because I may need them | AGB3: BPS Electric Consumption Impacted Annual | AHN3: BPS Electric Consumption Impacted Cumulative | AIZ3: BPS Electric Consumption Cumulative | AKL3: BPS Gas Consumption Impacted Annual | ALX3: BPS Gas Consumption Impacted Cumulative | ANJ3: BPS Gas Consumption Cumulative | AOV3: Elec Savings [Tbtu] | AOW3: =SUM(_xlfn.ANCHORARRAY(AOW5)) -> 0 | AOX3: =SUM(_xlfn.ANCHORARRAY(AOX5)) -> 0 | AOY3: 0 | AOZ3: 0 | APA3: 0 | APB3: 0 | APC3: 0 | APD3: 0 | APE3: 0 | APF3: 0 | APG3: 0 | APH3: 0 | API3: 0 | APJ3: 0 | APK3: 0 | APL3: 0 | APM3: 0 | APN3: 0 | APO3: 0 | APP3: 0 | APQ3: 0 | APR3: 0 | APS3: 0 | APT3: 0 | APU3: 0 | APV3: 0 | APW3: 0 | APX3: 0 | APY3: 0 | APZ3: 0 | AQA3: 0 | AQB3: 0 | AQC3: 0 | AQD3: 0 | AQE3: 0 | AQF3: 0 | AQG3: 0 | AQH3: No BPS CO2 Emissions with Effective Year Emission Factors [MMT] | AQI3: =IFERROR(SUM(_xlfn.ANCHORARRAY(AQI5)),0) -> 0 | AQJ3: =IFERROR(SUM(_xlfn.ANCHORARRAY(AQJ5)),0) -> 0 | AQK3: 0 | AQL3: 0 | AQM3: 0 | AQN3: 0 | AQO3: 0 | AQP3: 0 | AQQ3: 0 | AQR3: 0 | AQS3: 0 | AQT3: 0 | AQU3: 0 | AQV3: 0 | AQW3: 0 | AQX3: 0 | AQY3: 0 | AQZ3: 0 | ARA3: 0 | ARB3: 0 | ARC3: 0 | ARD3: 0 | ARE3: 0 | ARF3: 0 | ARG3: 0 | ARH3: 0 | ARI3: 0 | ARJ3: 0 | ARK3: 0 | ARL3: 0 | ARM3: 0 | ARN3: 0 | ARO3: 0 | ARP3: 0 | ARQ3: 0 | ARR3: 0 | ARS3: 0 | ART3: No BPS CO2 Emissions with Year over Year Emission Factors [MMT] | ARU3: =IFERROR(SUM(_xlfn.ANCHORARRAY(ARU5)),0)+ARU2 -> 0 | ARV3: =IFERROR(SUM(_xlfn.ANCHORARRAY(ARV5)),0)+ARV2 -> 0 | ARW3: 0 | ARX3: 0 | ARY3: 0 | ARZ3: 0 | ASA3: 0 | ASB3: 0 | ASC3: 0 | ASD3: 0 | ASE3: 0 | ASF3: 0 | ASG3: 0 | ASH3: 0 | ASI3: 0 | ASJ3: 0 | ASK3: 0 | ASL3: 0 | ASM3: 0 | ASN3: 0 | ASO3: 0 | ASP3: 0 | ASQ3: 0 | ASR3: 0 | ASS3: 0 | AST3: 0 | ASU3: 0 | ASV3: 0 | ASW3: 0 | ASX3: 0 | ASY3: 0 | ASZ3: 0 | ATA3: 0 | ATB3: 0 | ATC3: 0 | ATD3: 0 | ATE3: 0 | ATF3: BPS CO2 Emissions with Year over Year Emission Factors [MMT] | ATG3: =IFERROR(SUM(_xlfn.ANCHORARRAY(ATG5)),0)+ARU2*INDEX(BPS_EUIFactors[],2,MATCH(TEXT(ATG4,"0"),BPS_EUIFactors[#Headers],0)) -> 0 | ATH3: =IFERROR(SUM(_xlfn.ANCHORARRAY(ATH5)),0)+ARV2*INDEX(BPS_EUIFactors[],2,MATCH(TEXT(ATH4,"0"),BPS_EUIFactors[#Headers],0)) -> 0 | ATI3: =IFERROR(SUM(_xlfn.ANCHORARRAY(ATI5)),0)+ARW2*INDEX(BPS_EUIFactors[],2,MATCH(TEXT(ATI4,"0"),BPS_EUIFactors[#Headers],0)) -> 0 | ATJ3: =IFERROR(SUM(_xlfn.ANCHORARRAY(ATJ5)),0)+ARX2*INDEX(BPS_EUIFactors[],2,MATCH(TEXT(ATJ4,"0"),BPS_EUIFactors[#Headers],0)) -> 0 | ATK3: =IFERROR(SUM(_xlfn.ANCHORARRAY(ATK5)),0)+ARY2*INDEX(BPS_EUIFactors[],2,MATCH(TEXT(ATK4,"0"),BPS_EUIFactors[#Headers],0)) -> 0 | ATL3: =IFERROR(SUM(_xlfn.ANCHORARRAY(ATL5)),0)+ARZ2*INDEX(BPS_EUIFactors[],2,MATCH(TEXT(ATL4,"0"),BPS_EUIFactors[#Headers],0)) -> 0 | ATM3: =IFERROR(SUM(_xlfn.ANCHORARRAY(ATM5)),0)+ASA2*INDEX(BPS_EUIFactors[],2,MATCH(TEXT(ATM4,"0"),BPS_EUIFactors[#Headers],0)) -> 0 | ATN3: =IFERROR(SUM(_xlfn.ANCHORARRAY(ATN5)),0)+ASB2*INDEX(BPS_EUIFactors[],2,MATCH(TEXT(ATN4,"0"),BPS_EUIFactors[#Headers],0)) -> 0 | ATO3: =IFERROR(SUM(_xlfn.ANCHORARRAY(ATO5)),0)+ASC2*INDEX(BPS_EUIFactors[],2,MATCH(TEXT(ATO4,"0"),BPS_EUIFactors[#Headers],0)) -> 0 | ATP3: =IFERROR(SUM(_xlfn.ANCHORARRAY(ATP5)),0)+ASD2*INDEX(BPS_EUIFactors[],2,MATCH(TEXT(ATP4,"0"),BPS_EUIFactors[#Headers],0)) -> 0 | ATQ3: =IFERROR(SUM(_xlfn.ANCHORARRAY(ATQ5)),0)+ASE2*INDEX(BPS_EUIFactors[],2,MATCH(TEXT(ATQ4,"0"),BPS_EUIFactors[#Headers],0)) -> 0 | ATR3: =IFERROR(SUM(_xlfn.ANCHORARRAY(ATR5)),0)+ASF2*INDEX(BPS_EUIFactors[],2,MATCH(TEXT(ATR4,"0"),BPS_EUIFactors[#Headers],0)) -> 0 | ATS3: =IFERROR(SUM(_xlfn.ANCHORARRAY(ATS5)),0)+ASG2*INDEX(BPS_EUIFactors[],2,MATCH(TEXT(ATS4,"0"),BPS_EUIFactors[#Headers],0)) -> 0 | ATT3: =IFERROR(SUM(_xlfn.ANCHORARRAY(ATT5)),0)+ASH2*INDEX(BPS_EUIFactors[],2,MATCH(TEXT(ATT4,"0"),BPS_EUIFactors[#Headers],0)) -> 0 | ATU3: =IFERROR(SUM(_xlfn.ANCHORARRAY(ATU5)),0)+ASI2*INDEX(BPS_EUIFactors[],2,MATCH(TEXT(ATU4,"0"),BPS_EUIFactors[#Headers],0)) -> 0 | ATV3: =IFERROR(SUM(_xlfn.ANCHORARRAY(ATV5)),0)+ASJ2*INDEX(BPS_EUIFactors[],2,MATCH(TEXT(ATV4,"0"),BPS_EUIFactors[#Headers],0)) -> 0 | ATW3: =IFERROR(SUM(_xlfn.ANCHORARRAY(ATW5)),0)+ASK2*INDEX(BPS_EUIFactors[],2,MATCH(TEXT(ATW4,"0"),BPS_EUIFactors[#Headers],0)) -> 0 | ATX3: =IFERROR(SUM(_xlfn.ANCHORARRAY(ATX5)),0)+ASL2*INDEX(BPS_EUIFactors[],2,MATCH(TEXT(ATX4,"0"),BPS_EUIFactors[#Headers],0)) -> 0 | ATY3: =IFERROR(SUM(_xlfn.ANCHORARRAY(ATY5)),0)+ASM2*INDEX(BPS_EUIFactors[],2,MATCH(TEXT(ATY4,"0"),BPS_EUIFactors[#Headers],0)) -> 0 | ATZ3: =IFERROR(SUM(_xlfn.ANCHORARRAY(ATZ5)),0)+ASN2*INDEX(BPS_EUIFactors[],2,MATCH(TEXT(ATZ4,"0"),BPS_EUIFactors[#Headers],0)) -> 0 | AUA3: =IFERROR(SUM(_xlfn.ANCHORARRAY(AUA5)),0)+ASO2*INDEX(BPS_EUIFactors[],2,MATCH(TEXT(AUA4,"0"),BPS_EUIFactors[#Headers],0)) -> 0 | AUB3: =IFERROR(SUM(_xlfn.ANCHORARRAY(AUB5)),0)+ASP2*INDEX(BPS_EUIFactors[],2,MATCH(TEXT(AUB4,"0"),BPS_EUIFactors[#Headers],0)) -> 0 | AUC3: =IFERROR(SUM(_xlfn.ANCHORARRAY(AUC5)),0)+ASQ2*INDEX(BPS_EUIFactors[],2,MATCH(TEXT(AUC4,"0"),BPS_EUIFactors[#Headers],0)) -> 0 | AUD3: =IFERROR(SUM(_xlfn.ANCHORARRAY(AUD5)),0)+ASR2*INDEX(BPS_EUIFactors[],2,MATCH(TEXT(AUD4,"0"),BPS_EUIFactors[#Headers],0)) -> 0 | AUE3: =IFERROR(SUM(_xlfn.ANCHORARRAY(AUE5)),0)+ASS2*INDEX(BPS_EUIFactors[],2,MATCH(TEXT(AUE4,"0"),BPS_EUIFactors[#Headers],0)) -> 0 | AUF3: =IFERROR(SUM(_xlfn.ANCHORARRAY(AUF5)),0)+AST2*INDEX(BPS_EUIFactors[],2,MATCH(TEXT(AUF4,"0"),BPS_EUIFactors[#Headers],0)) -> 0 | AUG3: =IFERROR(SUM(_xlfn.ANCHORARRAY(AUG5)),0)+ASU2*INDEX(BPS_EUIFactors[],2,MATCH(TEXT(AUG4,"0"),BPS_EUIFactors[#Headers],0)) -> 0 | AUH3: =IFERROR(SUM(_xlfn.ANCHORARRAY(AUH5)),0)+ASV2*INDEX(BPS_EUIFactors[],2,MATCH(TEXT(AUH4,"0"),BPS_EUIFactors[#Headers],0)) -> 0 | AUI3: =IFERROR(SUM(_xlfn.ANCHORARRAY(AUI5)),0)+ASW2*INDEX(BPS_EUIFactors[],2,MATCH(TEXT(AUI4,"0"),BPS_EUIFactors[#Headers],0)) -> 0 | AUJ3: =IFERROR(SUM(_xlfn.ANCHORARRAY(AUJ5)),0)+ASX2*INDEX(BPS_EUIFactors[],2,MATCH(TEXT(AUJ4,"0"),BPS_EUIFactors[#Headers],0)) -> 0 | AUK3: =IFERROR(SUM(_xlfn.ANCHORARRAY(AUK5)),0)+ASY2*INDEX(BPS_EUIFactors[],2,MATCH(TEXT(AUK4,"0"),BPS_EUIFactors[#Headers],0)) -> 0 | AUL3: =IFERROR(SUM(_xlfn.ANCHORARRAY(AUL5)),0)+ASZ2*INDEX(BPS_EUIFactors[],2,MATCH(TEXT(AUL4,"0"),BPS_EUIFactors[#Headers],0)) -> 0 | AUM3: =IFERROR(SUM(_xlfn.ANCHORARRAY(AUM5)),0)+ATA2*INDEX(BPS_EUIFactors[],2,MATCH(TEXT(AUM4,"0"),BPS_EUIFactors[#Headers],0)) -> 0 | AUN3: =IFERROR(SUM(_xlfn.ANCHORARRAY(AUN5)),0)+ATB2*INDEX(BPS_EUIFactors[],2,MATCH(TEXT(AUN4,"0"),BPS_EUIFactors[#Headers],0)) -> 0 | AUO3: =IFERROR(SUM(_xlfn.ANCHORARRAY(AUO5)),0)+ATC2*INDEX(BPS_EUIFactors[],2,MATCH(TEXT(AUO4,"0"),BPS_EUIFactors[#Headers],0)) -> 0 | AUP3: =IFERROR(SUM(_xlfn.ANCHORARRAY(AUP5)),0)+ATD2*INDEX(BPS_EUIFactors[],2,MATCH(TEXT(AUP4,"0"),BPS_EUIFactors[#Headers],0)) -> 0 | AUQ3: =IFERROR(SUM(_xlfn.ANCHORARRAY(AUQ5)),0)+ATE2*INDEX(BPS_EUIFactors[],2,MATCH(TEXT(AUQ4,"0"),BPS_EUIFactors[#Headers],0)) -> 0 | AUR3: EE Savings Based on Emissions Calculations | AUS3: =IFERROR((ARU3-ATG3)/(Emissions_Lookup_andCalc!$A$28*INDEX(ElecCO2[],7,MATCH(TEXT(EnergyCalc!AUS4,"0"),ElecCO2[#Headers],0))+Emissions_Lookup_andCalc!$A$29*INDEX(GasCO2[],7,MATCH(TEXT(EnergyCalc!AUS4,"0"),GasCO2[#Headers],0))),0) -> 0 | AUT3: =IFERROR((ARV3-ATH3)/(Emissions_Lookup_andCalc!$A$28*INDEX(ElecCO2[],7,MATCH(TEXT(EnergyCalc!AUT4,"0"),ElecCO2[#Headers],0))+Emissions_Lookup_andCalc!$A$29*INDEX(GasCO2[],7,MATCH(TEXT(EnergyCalc!AUT4,"0"),GasCO2[#Headers],0))),0) -> 0 | AUU3: =IFERROR((ARW3-ATI3)/(Emissions_Lookup_andCalc!$A$28*INDEX(ElecCO2[],7,MATCH(TEXT(EnergyCalc!AUU4,"0"),ElecCO2[#Headers],0))+Emissions_Lookup_andCalc!$A$29*INDEX(GasCO2[],7,MATCH(TEXT(EnergyCalc!AUU4,"0"),GasCO2[#Headers],0))),0) -> 0 | AUV3: =IFERROR((ARX3-ATJ3)/(Emissions_Lookup_andCalc!$A$28*INDEX(ElecCO2[],7,MATCH(TEXT(EnergyCalc!AUV4,"0"),ElecCO2[#Headers],0))+Emissions_Lookup_andCalc!$A$29*INDEX(GasCO2[],7,MATCH(TEXT(EnergyCalc!AUV4,"0"),GasCO2[#Headers],0))),0) -> 0 | AUW3: =IFERROR((ARY3-ATK3)/(Emissions_Lookup_andCalc!$A$28*INDEX(ElecCO2[],7,MATCH(TEXT(EnergyCalc!AUW4,"0"),ElecCO2[#Headers],0))+Emissions_Lookup_andCalc!$A$29*INDEX(GasCO2[],7,MATCH(TEXT(EnergyCalc!AUW4,"0"),GasCO2[#Headers],0))),0) -> 0 | AUX3: =IFERROR((ARZ3-ATL3)/(Emissions_Lookup_andCalc!$A$28*INDEX(ElecCO2[],7,MATCH(TEXT(EnergyCalc!AUX4,"0"),ElecCO2[#Headers],0))+Emissions_Lookup_andCalc!$A$29*INDEX(GasCO2[],7,MATCH(TEXT(EnergyCalc!AUX4,"0"),GasCO2[#Headers],0))),0) -> 0 | AUY3: =IFERROR((ASA3-ATM3)/(Emissions_Lookup_andCalc!$A$28*INDEX(ElecCO2[],7,MATCH(TEXT(EnergyCalc!AUY4,"0"),ElecCO2[#Headers],0))+Emissions_Lookup_andCalc!$A$29*INDEX(GasCO2[],7,MATCH(TEXT(EnergyCalc!AUY4,"0"),GasCO2[#Headers],0))),0) -> 0 | AUZ3: =IFERROR((ASB3-ATN3)/(Emissions_Lookup_andCalc!$A$28*INDEX(ElecCO2[],7,MATCH(TEXT(EnergyCalc!AUZ4,"0"),ElecCO2[#Headers],0))+Emissions_Lookup_andCalc!$A$29*INDEX(GasCO2[],7,MATCH(TEXT(EnergyCalc!AUZ4,"0"),GasCO2[#Headers],0))),0) -> 0 | AVA3: =IFERROR((ASC3-ATO3)/(Emissions_Lookup_andCalc!$A$28*INDEX(ElecCO2[],7,MATCH(TEXT(EnergyCalc!AVA4,"0"),ElecCO2[#Headers],0))+Emissions_Lookup_andCalc!$A$29*INDEX(GasCO2[],7,MATCH(TEXT(EnergyCalc!AVA4,"0"),GasCO2[#Headers],0))),0) -> 0 | AVB3: =IFERROR((ASD3-ATP3)/(Emissions_Lookup_andCalc!$A$28*INDEX(ElecCO2[],7,MATCH(TEXT(EnergyCalc!AVB4,"0"),ElecCO2[#Headers],0))+Emissions_Lookup_andCalc!$A$29*INDEX(GasCO2[],7,MATCH(TEXT(EnergyCalc!AVB4,"0"),GasCO2[#Headers],0))),0) -> 0 | AVC3: =IFERROR((ASE3-ATQ3)/(Emissions_Lookup_andCalc!$A$28*INDEX(ElecCO2[],7,MATCH(TEXT(EnergyCalc!AVC4,"0"),ElecCO2[#Headers],0))+Emissions_Lookup_andCalc!$A$29*INDEX(GasCO2[],7,MATCH(TEXT(EnergyCalc!AVC4,"0"),GasCO2[#Headers],0))),0) -> 0 | AVD3: =IFERROR((ASF3-ATR3)/(Emissions_Lookup_andCalc!$A$28*INDEX(ElecCO2[],7,MATCH(TEXT(EnergyCalc!AVD4,"0"),ElecCO2[#Headers],0))+Emissions_Lookup_andCalc!$A$29*INDEX(GasCO2[],7,MATCH(TEXT(EnergyCalc!AVD4,"0"),GasCO2[#Headers],0))),0) -> 0 | AVE3: =IFERROR((ASG3-ATS3)/(Emissions_Lookup_andCalc!$A$28*INDEX(ElecCO2[],7,MATCH(TEXT(EnergyCalc!AVE4,"0"),ElecCO2[#Headers],0))+Emissions_Lookup_andCalc!$A$29*INDEX(GasCO2[],7,MATCH(TEXT(EnergyCalc!AVE4,"0"),GasCO2[#Headers],0))),0) -> 0 | AVF3: =IFERROR((ASH3-ATT3)/(Emissions_Lookup_andCalc!$A$28*INDEX(ElecCO2[],7,MATCH(TEXT(EnergyCalc!AVF4,"0"),ElecCO2[#Headers],0))+Emissions_Lookup_andCalc!$A$29*INDEX(GasCO2[],7,MATCH(TEXT(EnergyCalc!AVF4,"0"),GasCO2[#Headers],0))),0) -> 0 | AVG3: =IFERROR((ASI3-ATU3)/(Emissions_Lookup_andCalc!$A$28*INDEX(ElecCO2[],7,MATCH(TEXT(EnergyCalc!AVG4,"0"),ElecCO2[#Headers],0))+Emissions_Lookup_andCalc!$A$29*INDEX(GasCO2[],7,MATCH(TEXT(EnergyCalc!AVG4,"0"),GasCO2[#Headers],0))),0) -> 0 | AVH3: =IFERROR((ASJ3-ATV3)/(Emissions_Lookup_andCalc!$A$28*INDEX(ElecCO2[],7,MATCH(TEXT(EnergyCalc!AVH4,"0"),ElecCO2[#Headers],0))+Emissions_Lookup_andCalc!$A$29*INDEX(GasCO2[],7,MATCH(TEXT(EnergyCalc!AVH4,"0"),GasCO2[#Headers],0))),0) -> 0 | AVI3: =IFERROR((ASK3-ATW3)/(Emissions_Lookup_andCalc!$A$28*INDEX(ElecCO2[],7,MATCH(TEXT(EnergyCalc!AVI4,"0"),ElecCO2[#Headers],0))+Emissions_Lookup_andCalc!$A$29*INDEX(GasCO2[],7,MATCH(TEXT(EnergyCalc!AVI4,"0"),GasCO2[#Headers],0))),0) -> 0 | AVJ3: =IFERROR((ASL3-ATX3)/(Emissions_Lookup_andCalc!$A$28*INDEX(ElecCO2[],7,MATCH(TEXT(EnergyCalc!AVJ4,"0"),ElecCO2[#Headers],0))+Emissions_Lookup_andCalc!$A$29*INDEX(GasCO2[],7,MATCH(TEXT(EnergyCalc!AVJ4,"0"),GasCO2[#Headers],0))),0) -> 0 | AVK3: =IFERROR((ASM3-ATY3)/(Emissions_Lookup_andCalc!$A$28*INDEX(ElecCO2[],7,MATCH(TEXT(EnergyCalc!AVK4,"0"),ElecCO2[#Headers],0))+Emissions_Lookup_andCalc!$A$29*INDEX(GasCO2[],7,MATCH(TEXT(EnergyCalc!AVK4,"0"),GasCO2[#Headers],0))),0) -> 0 | AVL3: =IFERROR((ASN3-ATZ3)/(Emissions_Lookup_andCalc!$A$28*INDEX(ElecCO2[],7,MATCH(TEXT(EnergyCalc!AVL4,"0"),ElecCO2[#Headers],0))+Emissions_Lookup_andCalc!$A$29*INDEX(GasCO2[],7,MATCH(TEXT(EnergyCalc!AVL4,"0"),GasCO2[#Headers],0))),0) -> 0 | AVM3: =IFERROR((ASO3-AUA3)/(Emissions_Lookup_andCalc!$A$28*INDEX(ElecCO2[],7,MATCH(TEXT(EnergyCalc!AVM4,"0"),ElecCO2[#Headers],0))+Emissions_Lookup_andCalc!$A$29*INDEX(GasCO2[],7,MATCH(TEXT(EnergyCalc!AVM4,"0"),GasCO2[#Headers],0))),0) -> 0 | AVN3: =IFERROR((ASP3-AUB3)/(Emissions_Lookup_andCalc!$A$28*INDEX(ElecCO2[],7,MATCH(TEXT(EnergyCalc!AVN4,"0"),ElecCO2[#Headers],0))+Emissions_Lookup_andCalc!$A$29*INDEX(GasCO2[],7,MATCH(TEXT(EnergyCalc!AVN4,"0"),GasCO2[#Headers],0))),0) -> 0 | AVO3: =IFERROR((ASQ3-AUC3)/(Emissions_Lookup_andCalc!$A$28*INDEX(ElecCO2[],7,MATCH(TEXT(EnergyCalc!AVO4,"0"),ElecCO2[#Headers],0))+Emissions_Lookup_andCalc!$A$29*INDEX(GasCO2[],7,MATCH(TEXT(EnergyCalc!AVO4,"0"),GasCO2[#Headers],0))),0) -> 0 | AVP3: =IFERROR((ASR3-AUD3)/(Emissions_Lookup_andCalc!$A$28*INDEX(ElecCO2[],7,MATCH(TEXT(EnergyCalc!AVP4,"0"),ElecCO2[#Headers],0))+Emissions_Lookup_andCalc!$A$29*INDEX(GasCO2[],7,MATCH(TEXT(EnergyCalc!AVP4,"0"),GasCO2[#Headers],0))),0) -> 0 | AVQ3: =IFERROR((ASS3-AUE3)/(Emissions_Lookup_andCalc!$A$28*INDEX(ElecCO2[],7,MATCH(TEXT(EnergyCalc!AVQ4,"0"),ElecCO2[#Headers],0))+Emissions_Lookup_andCalc!$A$29*INDEX(GasCO2[],7,MATCH(TEXT(EnergyCalc!AVQ4,"0"),GasCO2[#Headers],0))),0) -> 0 | AVR3: =IFERROR((AST3-AUF3)/(Emissions_Lookup_andCalc!$A$28*INDEX(ElecCO2[],7,MATCH(TEXT(EnergyCalc!AVR4,"0"),ElecCO2[#Headers],0))+Emissions_Lookup_andCalc!$A$29*INDEX(GasCO2[],7,MATCH(TEXT(EnergyCalc!AVR4,"0"),GasCO2[#Headers],0))),0) -> 0 | AVS3: =IFERROR((ASU3-AUG3)/(Emissions_Lookup_andCalc!$A$28*INDEX(ElecCO2[],7,MATCH(TEXT(EnergyCalc!AVS4,"0"),ElecCO2[#Headers],0))+Emissions_Lookup_andCalc!$A$29*INDEX(GasCO2[],7,MATCH(TEXT(EnergyCalc!AVS4,"0"),GasCO2[#Headers],0))),0) -> 0 | AVT3: =IFERROR((ASV3-AUH3)/(Emissions_Lookup_andCalc!$A$28*INDEX(ElecCO2[],7,MATCH(TEXT(EnergyCalc!AVT4,"0"),ElecCO2[#Headers],0))+Emissions_Lookup_andCalc!$A$29*INDEX(GasCO2[],7,MATCH(TEXT(EnergyCalc!AVT4,"0"),GasCO2[#Headers],0))),0) -> 0 | AVU3: =IFERROR((ASW3-AUI3)/(Emissions_Lookup_andCalc!$A$28*INDEX(ElecCO2[],7,MATCH(TEXT(EnergyCalc!AVU4,"0"),ElecCO2[#Headers],0))+Emissions_Lookup_andCalc!$A$29*INDEX(GasCO2[],7,MATCH(TEXT(EnergyCalc!AVU4,"0"),GasCO2[#Headers],0))),0) -> 0 | AVV3: =IFERROR((ASX3-AUJ3)/(Emissions_Lookup_andCalc!$A$28*INDEX(ElecCO2[],7,MATCH(TEXT(EnergyCalc!AVV4,"0"),ElecCO2[#Headers],0))+Emissions_Lookup_andCalc!$A$29*INDEX(GasCO2[],7,MATCH(TEXT(EnergyCalc!AVV4,"0"),GasCO2[#Headers],0))),0) -> 0 | AVW3: =IFERROR((ASY3-AUK3)/(Emissions_Lookup_andCalc!$A$28*INDEX(ElecCO2[],7,MATCH(TEXT(EnergyCalc!AVW4,"0"),ElecCO2[#Headers],0))+Emissions_Lookup_andCalc!$A$29*INDEX(GasCO2[],7,MATCH(TEXT(EnergyCalc!AVW4,"0"),GasCO2[#Headers],0))),0) -> 0 | AVX3: =IFERROR((ASZ3-AUL3)/(Emissions_Lookup_andCalc!$A$28*INDEX(ElecCO2[],7,MATCH(TEXT(EnergyCalc!AVX4,"0"),ElecCO2[#Headers],0))+Emissions_Lookup_andCalc!$A$29*INDEX(GasCO2[],7,MATCH(TEXT(EnergyCalc!AVX4,"0"),GasCO2[#Headers],0))),0) -> 0 | AVY3: =IFERROR((ATA3-AUM3)/(Emissions_Lookup_andCalc!$A$28*INDEX(ElecCO2[],7,MATCH(TEXT(EnergyCalc!AVY4,"0"),ElecCO2[#Headers],0))+Emissions_Lookup_andCalc!$A$29*INDEX(GasCO2[],7,MATCH(TEXT(EnergyCalc!AVY4,"0"),GasCO2[#Headers],0))),0) -> 0 | AVZ3: =IFERROR((ATB3-AUN3)/(Emissions_Lookup_andCalc!$A$28*INDEX(ElecCO2[],7,MATCH(TEXT(EnergyCalc!AVZ4,"0"),ElecCO2[#Headers],0))+Emissions_Lookup_andCalc!$A$29*INDEX(GasCO2[],7,MATCH(TEXT(EnergyCalc!AVZ4,"0"),GasCO2[#Headers],0))),0) -> 0 | AWA3: =IFERROR((ATC3-AUO3)/(Emissions_Lookup_andCalc!$A$28*INDEX(ElecCO2[],7,MATCH(TEXT(EnergyCalc!AWA4,"0"),ElecCO2[#Headers],0))+Emissions_Lookup_andCalc!$A$29*INDEX(GasCO2[],7,MATCH(TEXT(EnergyCalc!AWA4,"0"),GasCO2[#Headers],0))),0) -> 0 | AWB3: =IFERROR((ATD3-AUP3)/(Emissions_Lookup_andCalc!$A$28*INDEX(ElecCO2[],7,MATCH(TEXT(EnergyCalc!AWB4,"0"),ElecCO2[#Headers],0))+Emissions_Lookup_andCalc!$A$29*INDEX(GasCO2[],7,MATCH(TEXT(EnergyCalc!AWB4,"0"),GasCO2[#Headers],0))),0) -> 0 | AWC3: =IFERROR((ATE3-AUQ3)/(Emissions_Lookup_andCalc!$A$28*INDEX(ElecCO2[],7,MATCH(TEXT(EnergyCalc!AWC4,"0"),ElecCO2[#Headers],0))+Emissions_Lookup_andCalc!$A$29*INDEX(GasCO2[],7,MATCH(TEXT(EnergyCalc!AWC4,"0"),GasCO2[#Headers],0))),0) -> 0 | AWD3: Gas Savings | AWE3: =SUM(_xlfn.ANCHORARRAY(AWE5)) -> 0 | AWF3: =SUM(_xlfn.ANCHORARRAY(AWF5)) -> 0 | AWG3: 0 | AWH3: 0 | AWI3: 0 | AWJ3: 0 | AWK3: 0 | AWL3: 0 | AWM3: 0 | AWN3: 0 | AWO3: 0 | AWP3: 0 | AWQ3: 0 | AWR3: 0 | AWS3: 0 | AWT3: 0 | AWU3: 0 | AWV3: 0 | AWW3: 0 | AWX3: 0 | AWY3: 0 | AWZ3: 0 | AXA3: 0 | AXB3: 0 | AXC3: 0 | AXD3: 0 | AXE3: 0 | AXF3: 0 | AXG3: 0 | AXH3: 0 | AXI3: 0 | AXJ3: 0 | AXK3: 0 | AXL3: 0 | AXM3: 0 | AXN3: 0 | AXO3: 0 | AXP3: Total Savings [Tbtu] | AXQ3: =SUM(_xlfn.ANCHORARRAY(AXQ$5)) -> 0 | AXR3: =SUM(_xlfn.ANCHORARRAY(AXR$5)) -> 0 | AXS3: 0 | AXT3: 0 | AXU3: 0 | AXV3: 0 | AXW3: 0 | AXX3: 0 | AXY3: 0 | AXZ3: 0 | AYA3: 0 | AYB3: 0 | AYC3: 0 | AYD3: 0 | AYE3: 0 | AYF3: 0 | AYG3: 0 | AYH3: 0 | AYI3: 0 | AYJ3: 0 | AYK3: 0 | AYL3: 0 | AYM3: 0 | AYN3: 0 | AYO3: 0 | AYP3: 0 | AYQ3: 0 | AYR3: 0 | AYS3: 0 | AYT3: 0 | AYU3: 0 | AYV3: 0 | AYW3: 0 | AYX3: 0 | AYY3: 0 | AYZ3: 0 | AZA3: 0 | AZB3: Energy Savings from Existing Buildings | AZC3: =SUM(_xlfn.ANCHORARRAY(AZC5)) ->  | AZD3: =SUM(_xlfn.ANCHORARRAY(AZD5)) ->  | BAN3: Energy Savings from New Construction Buildings | BAO3: =SUM(_xlfn.ANCHORARRAY(BAO5)) ->  | BAP3: =SUM(_xlfn.ANCHORARRAY(BAP5)) ->  | BBZ3: Electricity | BCA3: =SUM(_xlfn.ANCHORARRAY(BCA5)) ->  | BCB3: =SUM(_xlfn.ANCHORARRAY(BCB5)) ->  | BDL3: Energy Savings from New Construction Buildings | BDM3: =SUM(_xlfn.ANCHORARRAY(BDM5)) ->  | BDN3: =SUM(_xlfn.ANCHORARRAY(BDN5)) -> 
A4: =Data1!A1 -> State | B4: =Data1!B1 -> Building Type | C4: =Data1!D1 -> Square Feet | D4: =Data1!E1 -> Electric Consumption | E4: =Data1!F1 -> Gas Consumption | F4: =Data1!G1 -> Weighted Electric EUI | G4: =Data1!H1 -> Weighted Gas EUI | H4: =Data1!I1 -> PercentSQFTBySizeRange | I4: =Data1!L1 -> UI Size Index | J4: =Data1!M1 -> NC_Multiplier | K4: =Data1!N1 -> NC_Fraction | L4: =Data1!O1 -> NC_ElecEUI | M4: =Data1!P1 -> NC_GasEUI | N4: Elec EUI NoBPS or 2023 | O4: Gas EUI NoBPS or 2023 | P4: Standard 100 EUI | S4: =TRANSPOSE(INDEX(AnalysisYears[Year],,)) -> 2023 | T4: 2024 | U4: 2025 | V4: 2026 | W4: 2027 | X4: 2028 | Y4: 2029 | Z4: 2030 | AA4: 2031 | AB4: 2032 | AC4: 2033 | AD4: 2034 | AE4: 2035 | AF4: 2036 | AG4: 2037 | AH4: 2038 | AI4: 2039 | AJ4: 2040 | AK4: 2041 | AL4: 2042 | AM4: 2043 | AN4: 2044 | AO4: 2045 | AP4: 2046 | AQ4: 2047 | AR4: 2048 | AS4: 2049 | AT4: 2050 | AU4: 2051 | AV4: 2052 | AW4: 2053 | AX4: 2054 | AY4: 2055 | AZ4: 2056 | BA4: 2057 | BB4: 2058 | BC4: 2059 | BD4: 2060 | BE4: =_xlfn.ANCHORARRAY($S$4) -> 2023 | BF4: 2024 | BG4: 2025 | BH4: 2026 | BI4: 2027 | BJ4: 2028 | BK4: 2029 | BL4: 2030 | BM4: 2031 | BN4: 2032 | BO4: 2033 | BP4: 2034 | BQ4: 2035 | BR4: 2036 | BS4: 2037 | BT4: 2038 | BU4: 2039 | BV4: 2040 | BW4: 2041 | BX4: 2042 | BY4: 2043 | BZ4: 2044 | CA4: 2045 | CB4: 2046 | CC4: 2047 | CD4: 2048 | CE4: 2049 | CF4: 2050 | CG4: 2051 | CH4: 2052 | CI4: 2053 | CJ4: 2054 | CK4: 2055 | CL4: 2056 | CM4: 2057 | CN4: 2058 | CO4: 2059 | CP4: 2060 | CQ4: =_xlfn.ANCHORARRAY($S$4) -> 2023 | CR4: 2024 | CS4: 2025 | CT4: 2026 | CU4: 2027 | CV4: 2028 | CW4: 2029 | CX4: 2030 | CY4: 2031 | CZ4: 2032 | DA4: 2033 | DB4: 2034 | DC4: 2035 | DD4: 2036 | DE4: 2037 | DF4: 2038 | DG4: 2039 | DH4: 2040 | DI4: 2041 | DJ4: 2042 | DK4: 2043 | DL4: 2044 | DM4: 2045 | DN4: 2046 | DO4: 2047 | DP4: 2048 | DQ4: 2049 | DR4: 2050 | DS4: 2051 | DT4: 2052 | DU4: 2053 | DV4: 2054 | DW4: 2055 | DX4: 2056 | DY4: 2057 | DZ4: 2058 | EA4: 2059 | EB4: 2060 | EC4: =_xlfn.ANCHORARRAY($S$4) -> 2023 | ED4: 2024 | EE4: 2025 | EF4: 2026 | EG4: 2027 | EH4: 2028 | EI4: 2029 | EJ4: 2030 | EK4: 2031 | EL4: 2032 | EM4: 2033 | EN4: 2034 | EO4: 2035 | EP4: 2036 | EQ4: 2037 | ER4: 2038 | ES4: 2039 | ET4: 2040 | EU4: 2041 | EV4: 2042 | EW4: 2043 | EX4: 2044 | EY4: 2045 | EZ4: 2046 | FA4: 2047 | FB4: 2048 | FC4: 2049 | FD4: 2050 | FE4: 2051 | FF4: 2052 | FG4: 2053 | FH4: 2054 | FI4: 2055 | FJ4: 2056 | FK4: 2057 | FL4: 2058 | FM4: 2059 | FN4: 2060 | FO4: =_xlfn.ANCHORARRAY($S$4) -> 2023 | FP4: 2024 | FQ4: 2025 | FR4: 2026 | FS4: 2027 | FT4: 2028 | FU4: 2029 | FV4: 2030 | FW4: 2031 | FX4: 2032 | FY4: 2033 | FZ4: 2034 | GA4: 2035 | GB4: 2036 | GC4: 2037 | GD4: 2038 | GE4: 2039 | GF4: 2040 | GG4: 2041 | GH4: 2042 | GI4: 2043 | GJ4: 2044 | GK4: 2045 | GL4: 2046 | GM4: 2047 | GN4: 2048 | GO4: 2049 | GP4: 2050 | GQ4: 2051 | GR4: 2052 | GS4: 2053 | GT4: 2054 | GU4: 2055 | GV4: 2056 | GW4: 2057 | GX4: 2058 | GY4: 2059 | GZ4: 2060 | HA4: =_xlfn.ANCHORARRAY($S$4) -> 2023 | HB4: 2024 | HC4: 2025 | HD4: 2026 | HE4: 2027 | HF4: 2028 | HG4: 2029 | HH4: 2030 | HI4: 2031 | HJ4: 2032 | HK4: 2033 | HL4: 2034 | HM4: 2035 | HN4: 2036 | HO4: 2037 | HP4: 2038 | HQ4: 2039 | HR4: 2040 | HS4: 2041 | HT4: 2042 | HU4: 2043 | HV4: 2044 | HW4: 2045 | HX4: 2046 | HY4: 2047 | HZ4: 2048 | IA4: 2049 | IB4: 2050 | IC4: 2051 | ID4: 2052 | IE4: 2053 | IF4: 2054 | IG4: 2055 | IH4: 2056 | II4: 2057 | IJ4: 2058 | IK4: 2059 | IL4: 2060 | IM4: =_xlfn.ANCHORARRAY($S$4) -> 2023 | IN4: 2024 | IO4: 2025 | IP4: 2026 | IQ4: 2027 | IR4: 2028 | IS4: 2029 | IT4: 2030 | IU4: 2031 | IV4: 2032 | IW4: 2033 | IX4: 2034 | IY4: 2035 | IZ4: 2036 | JA4: 2037 | JB4: 2038 | JC4: 2039 | JD4: 2040 | JE4: 2041 | JF4: 2042 | JG4: 2043 | JH4: 2044 | JI4: 2045 | JJ4: 2046 | JK4: 2047 | JL4: 2048 | JM4: 2049 | JN4: 2050 | JO4: 2051 | JP4: 2052 | JQ4: 2053 | JR4: 2054 | JS4: 2055 | JT4: 2056 | JU4: 2057 | JV4: 2058 | JW4: 2059 | JX4: 2060 | JY4: =_xlfn.ANCHORARRAY($S$4) -> 2023 | JZ4: 2024 | KA4: 2025 | KB4: 2026 | KC4: 2027 | KD4: 2028 | KE4: 2029 | KF4: 2030 | KG4: 2031 | KH4: 2032 | KI4: 2033 | KJ4: 2034 | KK4: 2035 | KL4: 2036 | KM4: 2037 | KN4: 2038 | KO4: 2039 | KP4: 2040 | KQ4: 2041 | KR4: 2042 | KS4: 2043 | KT4: 2044 | KU4: 2045 | KV4: 2046 | KW4: 2047 | KX4: 2048 | KY4: 2049 | KZ4: 2050 | LA4: 2051 | LB4: 2052 | LC4: 2053 | LD4: 2054 | LE4: 2055 | LF4: 2056 | LG4: 2057 | LH4: 2058 | LI4: 2059 | LJ4: 2060 | LK4: =_xlfn.ANCHORARRAY($S$4) -> 2023 | LL4: 2024 | LM4: 2025 | LN4: 2026 | LO4: 2027 | LP4: 2028 | LQ4: 2029 | LR4: 2030 | LS4: 2031 | LT4: 2032 | LU4: 2033 | LV4: 2034 | LW4: 2035 | LX4: 2036 | LY4: 2037 | LZ4: 2038 | MA4: 2039 | MB4: 2040 | MC4: 2041 | MD4: 2042 | ME4: 2043 | MF4: 2044 | MG4: 2045 | MH4: 2046 | MI4: 2047 | MJ4: 2048 | MK4: 2049 | ML4: 2050 | MM4: 2051 | MN4: 2052 | MO4: 2053 | MP4: 2054 | MQ4: 2055 | MR4: 2056 | MS4: 2057 | MT4: 2058 | MU4: 2059 | MV4: 2060 | MW4: =_xlfn.ANCHORARRAY($S$4) -> 2023 | MX4: 2024 | MY4: 2025 | MZ4: 2026 | NA4: 2027 | NB4: 2028 | NC4: 2029 | ND4: 2030 | NE4: 2031 | NF4: 2032 | NG4: 2033 | NH4: 2034 | NI4: 2035 | NJ4: 2036 | NK4: 2037 | NL4: 2038 | NM4: 2039 | NN4: 2040 | NO4: 2041 | NP4: 2042 | NQ4: 2043 | NR4: 2044 | NS4: 2045 | NT4: 2046 | NU4: 2047 | NV4: 2048 | NW4: 2049 | NX4: 2050 | NY4: 2051 | NZ4: 2052 | OA4: 2053 | OB4: 2054 | OC4: 2055 | OD4: 2056 | OE4: 2057 | OF4: 2058 | OG4: 2059 | OH4: 2060 | OI4: =_xlfn.ANCHORARRAY($S$4) -> 2023 | OJ4: 2024 | OK4: 2025 | OL4: 2026 | OM4: 2027 | ON4: 2028 | OO4: 2029 | OP4: 2030 | OQ4: 2031 | OR4: 2032 | OS4: 2033 | OT4: 2034 | OU4: 2035 | OV4: 2036 | OW4: 2037 | OX4: 2038 | OY4: 2039 | OZ4: 2040 | PA4: 2041 | PB4: 2042 | PC4: 2043 | PD4: 2044 | PE4: 2045 | PF4: 2046 | PG4: 2047 | PH4: 2048 | PI4: 2049 | PJ4: 2050 | PK4: 2051 | PL4: 2052 | PM4: 2053 | PN4: 2054 | PO4: 2055 | PP4: 2056 | PQ4: 2057 | PR4: 2058 | PS4: 2059 | PT4: 2060 | PU4: =_xlfn.ANCHORARRAY($S$4) -> 2023 | PV4: 2024 | PW4: 2025 | PX4: 2026 | PY4: 2027 | PZ4: 2028 | QA4: 2029 | QB4: 2030 | QC4: 2031 | QD4: 2032 | QE4: 2033 | QF4: 2034 | QG4: 2035 | QH4: 2036 | QI4: 2037 | QJ4: 2038 | QK4: 2039 | QL4: 2040 | QM4: 2041 | QN4: 2042 | QO4: 2043 | QP4: 2044 | QQ4: 2045 | QR4: 2046 | QS4: 2047 | QT4: 2048 | QU4: 2049 | QV4: 2050 | QW4: 2051 | QX4: 2052 | QY4: 2053 | QZ4: 2054 | RA4: 2055 | RB4: 2056 | RC4: 2057 | RD4: 2058 | RE4: 2059 | RF4: 2060 | RG4: =_xlfn.ANCHORARRAY($S$4) -> 2023 | RH4: 2024 | RI4: 2025 | RJ4: 2026 | RK4: 2027 | RL4: 2028 | RM4: 2029 | RN4: 2030 | RO4: 2031 | RP4: 2032 | RQ4: 2033 | RR4: 2034 | RS4: 2035 | RT4: 2036 | RU4: 2037 | RV4: 2038 | RW4: 2039 | RX4: 2040 | RY4: 2041 | RZ4: 2042 | SA4: 2043 | SB4: 2044 | SC4: 2045 | SD4: 2046 | SE4: 2047 | SF4: 2048 | SG4: 2049 | SH4: 2050 | SI4: 2051 | SJ4: 2052 | SK4: 2053 | SL4: 2054 | SM4: 2055 | SN4: 2056 | SO4: 2057 | SP4: 2058 | SQ4: 2059 | SR4: 2060 | SS4: =_xlfn.ANCHORARRAY($S$4) -> 2023 | ST4: 2024 | SU4: 2025 | SV4: 2026 | SW4: 2027 | SX4: 2028 | SY4: 2029 | SZ4: 2030 | TA4: 2031 | TB4: 2032 | TC4: 2033 | TD4: 2034 | TE4: 2035 | TF4: 2036 | TG4: 2037 | TH4: 2038 | TI4: 2039 | TJ4: 2040 | TK4: 2041 | TL4: 2042 | TM4: 2043 | TN4: 2044 | TO4: 2045 | TP4: 2046 | TQ4: 2047 | TR4: 2048 | TS4: 2049 | TT4: 2050 | TU4: 2051 | TV4: 2052 | TW4: 2053 | TX4: 2054 | TY4: 2055 | TZ4: 2056 | UA4: 2057 | UB4: 2058 | UC4: 2059 | UD4: 2060 | UE4: =_xlfn.ANCHORARRAY($S$4) -> 2023 | UF4: 2024 | UG4: 2025 | UH4: 2026 | UI4: 2027 | UJ4: 2028 | UK4: 2029 | UL4: 2030 | UM4: 2031 | UN4: 2032 | UO4: 2033 | UP4: 2034 | UQ4: 2035 | UR4: 2036 | US4: 2037 | UT4: 2038 | UU4: 2039 | UV4: 2040 | UW4: 2041 | UX4: 2042 | UY4: 2043 | UZ4: 2044 | VA4: 2045 | VB4: 2046 | VC4: 2047 | VD4: 2048 | VE4: 2049 | VF4: 2050 | VG4: 2051 | VH4: 2052 | VI4: 2053 | VJ4: 2054 | VK4: 2055 | VL4: 2056 | VM4: 2057 | VN4: 2058 | VO4: 2059 | VP4: 2060 | VQ4: =_xlfn.ANCHORARRAY($S$4) -> 2023 | VR4: 2024 | VS4: 2025 | VT4: 2026 | VU4: 2027 | VV4: 2028 | VW4: 2029 | VX4: 2030 | VY4: 2031 | VZ4: 2032 | WA4: 2033 | WB4: 2034 | WC4: 2035 | WD4: 2036 | WE4: 2037 | WF4: 2038 | WG4: 2039 | WH4: 2040 | WI4: 2041 | WJ4: 2042 | WK4: 2043 | WL4: 2044 | WM4: 2045 | WN4: 2046 | WO4: 2047 | WP4: 2048 | WQ4: 2049 | WR4: 2050 | WS4: 2051 | WT4: 2052 | WU4: 2053 | WV4: 2054 | WW4: 2055 | WX4: 2056 | WY4: 2057 | WZ4: 2058 | XA4: 2059 | XB4: 2060 | XC4: =_xlfn.ANCHORARRAY($S$4) -> 2023 | XD4: 2024 | XE4: 2025 | XF4: 2026 | XG4: 2027 | XH4: 2028 | XI4: 2029 | XJ4: 2030 | XK4: 2031 | XL4: 2032 | XM4: 2033 | XN4: 2034 | XO4: 2035 | XP4: 2036 | XQ4: 2037 | XR4: 2038 | XS4: 2039 | XT4: 2040 | XU4: 2041 | XV4: 2042 | XW4: 2043 | XX4: 2044 | XY4: 2045 | XZ4: 2046 | YA4: 2047 | YB4: 2048 | YC4: 2049 | YD4: 2050 | YE4: 2051 | YF4: 2052 | YG4: 2053 | YH4: 2054 | YI4: 2055 | YJ4: 2056 | YK4: 2057 | YL4: 2058 | YM4: 2059 | YN4: 2060 | YO4: =_xlfn.ANCHORARRAY($S$4) -> 2023 | YP4: 2024 | YQ4: 2025 | YR4: 2026 | YS4: 2027 | YT4: 2028 | YU4: 2029 | YV4: 2030 | YW4: 2031 | YX4: 2032 | YY4: 2033 | YZ4: 2034 | ZA4: 2035 | ZB4: 2036 | ZC4: 2037 | ZD4: 2038 | ZE4: 2039 | ZF4: 2040 | ZG4: 2041 | ZH4: 2042 | ZI4: 2043 | ZJ4: 2044 | ZK4: 2045 | ZL4: 2046 | ZM4: 2047 | ZN4: 2048 | ZO4: 2049 | ZP4: 2050 | ZQ4: 2051 | ZR4: 2052 | ZS4: 2053 | ZT4: 2054 | ZU4: 2055 | ZV4: 2056 | ZW4: 2057 | ZX4: 2058 | ZY4: 2059 | ZZ4: 2060 | AAA4: =_xlfn.ANCHORARRAY($S$4) -> 2023 | AAB4: 2024 | AAC4: 2025 | AAD4: 2026 | AAE4: 2027 | AAF4: 2028 | AAG4: 2029 | AAH4: 2030 | AAI4: 2031 | AAJ4: 2032 | AAK4: 2033 | AAL4: 2034 | AAM4: 2035 | AAN4: 2036 | AAO4: 2037 | AAP4: 2038 | AAQ4: 2039 | AAR4: 2040 | AAS4: 2041 | AAT4: 2042 | AAU4: 2043 | AAV4: 2044 | AAW4: 2045 | AAX4: 2046 | AAY4: 2047 | AAZ4: 2048 | ABA4: 2049 | ABB4: 2050 | ABC4: 2051 | ABD4: 2052 | ABE4: 2053 | ABF4: 2054 | ABG4: 2055 | ABH4: 2056 | ABI4: 2057 | ABJ4: 2058 | ABK4: 2059 | ABL4: 2060 | ABM4: =_xlfn.ANCHORARRAY($S$4) -> 2023 | ABN4: 2024 | ABO4: 2025 | ABP4: 2026 | ABQ4: 2027 | ABR4: 2028 | ABS4: 2029 | ABT4: 2030 | ABU4: 2031 | ABV4: 2032 | ABW4: 2033 | ABX4: 2034 | ABY4: 2035 | ABZ4: 2036 | ACA4: 2037 | ACB4: 2038 | ACC4: 2039 | ACD4: 2040 | ACE4: 2041 | ACF4: 2042 | ACG4: 2043 | ACH4: 2044 | ACI4: 2045 | ACJ4: 2046 | ACK4: 2047 | ACL4: 2048 | ACM4: 2049 | ACN4: 2050 | ACO4: 2051 | ACP4: 2052 | ACQ4: 2053 | ACR4: 2054 | ACS4: 2055 | ACT4: 2056 | ACU4: 2057 | ACV4: 2058 | ACW4: 2059 | ACX4: 2060 | ACY4: =_xlfn.ANCHORARRAY($S$4) -> 2023 | ACZ4: 2024 | ADA4: 2025 | ADB4: 2026 | ADC4: 2027 | ADD4: 2028 | ADE4: 2029 | ADF4: 2030 | ADG4: 2031 | ADH4: 2032 | ADI4: 2033 | ADJ4: 2034 | ADK4: 2035 | ADL4: 2036 | ADM4: 2037 | ADN4: 2038 | ADO4: 2039 | ADP4: 2040 | ADQ4: 2041 | ADR4: 2042 | ADS4: 2043 | ADT4: 2044 | ADU4: 2045 | ADV4: 2046 | ADW4: 2047 | ADX4: 2048 | ADY4: 2049 | ADZ4: 2050 | AEA4: 2051 | AEB4: 2052 | AEC4: 2053 | AED4: 2054 | AEE4: 2055 | AEF4: 2056 | AEG4: 2057 | AEH4: 2058 | AEI4: 2059 | AEJ4: 2060 | AEK4: =_xlfn.ANCHORARRAY($S$4) -> 2023 | AEL4: 2024 | AEM4: 2025 | AEN4: 2026 | AEO4: 2027 | AEP4: 2028 | AEQ4: 2029 | AER4: 2030 | AES4: 2031 | AET4: 2032 | AEU4: 2033 | AEV4: 2034 | AEW4: 2035 | AEX4: 2036 | AEY4: 2037 | AEZ4: 2038 | AFA4: 2039 | AFB4: 2040 | AFC4: 2041 | AFD4: 2042 | AFE4: 2043 | AFF4: 2044 | AFG4: 2045 | AFH4: 2046 | AFI4: 2047 | AFJ4: 2048 | AFK4: 2049 | AFL4: 2050 | AFM4: 2051 | AFN4: 2052 | AFO4: 2053 | AFP4: 2054 | AFQ4: 2055 | AFR4: 2056 | AFS4: 2057 | AFT4: 2058 | AFU4: 2059 | AFV4: 2060 | AFW4: =_xlfn.ANCHORARRAY($S$4) ->  | AGB4: =_xlfn.ANCHORARRAY($S$4) -> 2023 | AGC4: 2024 | AGD4: 2025 | AGE4: 2026 | AGF4: 2027 | AGG4: 2028 | AGH4: 2029 | AGI4: 2030 | AGJ4: 2031 | AGK4: 2032 | AGL4: 2033 | AGM4: 2034 | AGN4: 2035 | AGO4: 2036 | AGP4: 2037 | AGQ4: 2038 | AGR4: 2039 | AGS4: 2040 | AGT4: 2041 | AGU4: 2042 | AGV4: 2043 | AGW4: 2044 | AGX4: 2045 | AGY4: 2046 | AGZ4: 2047 | AHA4: 2048 | AHB4: 2049 | AHC4: 2050 | AHD4: 2051 | AHE4: 2052 | AHF4: 2053 | AHG4: 2054 | AHH4: 2055 | AHI4: 2056 | AHJ4: 2057 | AHK4: 2058 | AHL4: 2059 | AHM4: 2060 | AHN4: =_xlfn.ANCHORARRAY($S$4) -> 2023 | AHO4: 2024 | AHP4: 2025 | AHQ4: 2026 | AHR4: 2027 | AHS4: 2028 | AHT4: 2029 | AHU4: 2030 | AHV4: 2031 | AHW4: 2032 | AHX4: 2033 | AHY4: 2034 | AHZ4: 2035 | AIA4: 2036 | AIB4: 2037 | AIC4: 2038 | AID4: 2039 | AIE4: 2040 | AIF4: 2041 | AIG4: 2042 | AIH4: 2043 | AII4: 2044 | AIJ4: 2045 | AIK4: 2046 | AIL4: 2047 | AIM4: 2048 | AIN4: 2049 | AIO4: 2050 | AIP4: 2051 | AIQ4: 2052 | AIR4: 2053 | AIS4: 2054 | AIT4: 2055 | AIU4: 2056 | AIV4: 2057 | AIW4: 2058 | AIX4: 2059 | AIY4: 2060 | AIZ4: =_xlfn.ANCHORARRAY($S$4) -> 2023 | AJA4: 2024 | AJB4: 2025 | AJC4: 2026 | AJD4: 2027 | AJE4: 2028 | AJF4: 2029 | AJG4: 2030 | AJH4: 2031 | AJI4: 2032 | AJJ4: 2033 | AJK4: 2034 | AJL4: 2035 | AJM4: 2036 | AJN4: 2037 | AJO4: 2038 | AJP4: 2039 | AJQ4: 2040 | AJR4: 2041 | AJS4: 2042 | AJT4: 2043 | AJU4: 2044 | AJV4: 2045 | AJW4: 2046 | AJX4: 2047 | AJY4: 2048 | AJZ4: 2049 | AKA4: 2050 | AKB4: 2051 | AKC4: 2052 | AKD4: 2053 | AKE4: 2054 | AKF4: 2055 | AKG4: 2056 | AKH4: 2057 | AKI4: 2058 | AKJ4: 2059 | AKK4: 2060 | AKL4: =_xlfn.ANCHORARRAY($S$4) -> 2023 | AKM4: 2024 | AKN4: 2025 | AKO4: 2026 | AKP4: 2027 | AKQ4: 2028 | AKR4: 2029 | AKS4: 2030 | AKT4: 2031 | AKU4: 2032 | AKV4: 2033 | AKW4: 2034 | AKX4: 2035 | AKY4: 2036 | AKZ4: 2037 | ALA4: 2038 | ALB4: 2039 | ALC4: 2040 | ALD4: 2041 | ALE4: 2042 | ALF4: 2043 | ALG4: 2044 | ALH4: 2045 | ALI4: 2046 | ALJ4: 2047 | ALK4: 2048 | ALL4: 2049 | ALM4: 2050 | ALN4: 2051 | ALO4: 2052 | ALP4: 2053 | ALQ4: 2054 | ALR4: 2055 | ALS4: 2056 | ALT4: 2057 | ALU4: 2058 | ALV4: 2059 | ALW4: 2060 | ALX4: =_xlfn.ANCHORARRAY($S$4) -> 2023 | ALY4: 2024 | ALZ4: 2025 | AMA4: 2026 | AMB4: 2027 | AMC4: 2028 | AMD4: 2029 | AME4: 2030 | AMF4: 2031 | AMG4: 2032 | AMH4: 2033 | AMI4: 2034 | AMJ4: 2035 | AMK4: 2036 | AML4: 2037 | AMM4: 2038 | AMN4: 2039 | AMO4: 2040 | AMP4: 2041 | AMQ4: 2042 | AMR4: 2043 | AMS4: 2044 | AMT4: 2045 | AMU4: 2046 | AMV4: 2047 | AMW4: 2048 | AMX4: 2049 | AMY4: 2050 | AMZ4: 2051 | ANA4: 2052 | ANB4: 2053 | ANC4: 2054 | AND4: 2055 | ANE4: 2056 | ANF4: 2057 | ANG4: 2058 | ANH4: 2059 | ANI4: 2060 | ANJ4: =_xlfn.ANCHORARRAY($S$4) -> 2023 | ANK4: 2024 | ANL4: 2025 | ANM4: 2026 | ANN4: 2027 | ANO4: 2028 | ANP4: 2029 | ANQ4: 2030 | ANR4: 2031 | ANS4: 2032 | ANT4: 2033 | ANU4: 2034 | ANV4: 2035 | ANW4: 2036 | ANX4: 2037 | ANY4: 2038 | ANZ4: 2039 | AOA4: 2040 | AOB4: 2041 | AOC4: 2042 | AOD4: 2043 | AOE4: 2044 | AOF4: 2045 | AOG4: 2046 | AOH4: 2047 | AOI4: 2048 | AOJ4: 2049 | AOK4: 2050 | AOL4: 2051 | AOM4: 2052 | AON4: 2053 | AOO4: 2054 | AOP4: 2055 | AOQ4: 2056 | AOR4: 2057 | AOS4: 2058 | AOT4: 2059 | AOU4: 2060 | AOV4: =_xlfn.ANCHORARRAY($S$4) -> 2023 | AOW4: 2024 | AOX4: 2025 | AOY4: 2026 | AOZ4: 2027 | APA4: 2028 | APB4: 2029 | APC4: 2030 | APD4: 2031 | APE4: 2032 | APF4: 2033 | APG4: 2034 | APH4: 2035 | API4: 2036 | APJ4: 2037 | APK4: 2038 | APL4: 2039 | APM4: 2040 | APN4: 2041 | APO4: 2042 | APP4: 2043 | APQ4: 2044 | APR4: 2045 | APS4: 2046 | APT4: 2047 | APU4: 2048 | APV4: 2049 | APW4: 2050 | APX4: 2051 | APY4: 2052 | APZ4: 2053 | AQA4: 2054 | AQB4: 2055 | AQC4: 2056 | AQD4: 2057 | AQE4: 2058 | AQF4: 2059 | AQG4: 2060 | AQH4: =_xlfn.ANCHORARRAY($S$4) -> 2023 | AQI4: 2024 | AQJ4: 2025 | AQK4: 2026 | AQL4: 2027 | AQM4: 2028 | AQN4: 2029 | AQO4: 2030 | AQP4: 2031 | AQQ4: 2032 | AQR4: 2033 | AQS4: 2034 | AQT4: 2035 | AQU4: 2036 | AQV4: 2037 | AQW4: 2038 | AQX4: 2039 | AQY4: 2040 | AQZ4: 2041 | ARA4: 2042 | ARB4: 2043 | ARC4: 2044 | ARD4: 2045 | ARE4: 2046 | ARF4: 2047 | ARG4: 2048 | ARH4: 2049 | ARI4: 2050 | ARJ4: 2051 | ARK4: 2052 | ARL4: 2053 | ARM4: 2054 | ARN4: 2055 | ARO4: 2056 | ARP4: 2057 | ARQ4: 2058 | ARR4: 2059 | ARS4: 2060 | ART4: =_xlfn.ANCHORARRAY($S$4) -> 2023 | ARU4: 2024 | ARV4: 2025 | ARW4: 2026 | ARX4: 2027 | ARY4: 2028 | ARZ4: 2029 | ASA4: 2030 | ASB4: 2031 | ASC4: 2032 | ASD4: 2033 | ASE4: 2034 | ASF4: 2035 | ASG4: 2036 | ASH4: 2037 | ASI4: 2038 | ASJ4: 2039 | ASK4: 2040 | ASL4: 2041 | ASM4: 2042 | ASN4: 2043 | ASO4: 2044 | ASP4: 2045 | ASQ4: 2046 | ASR4: 2047 | ASS4: 2048 | AST4: 2049 | ASU4: 2050 | ASV4: 2051 | ASW4: 2052 | ASX4: 2053 | ASY4: 2054 | ASZ4: 2055 | ATA4: 2056 | ATB4: 2057 | ATC4: 2058 | ATD4: 2059 | ATE4: 2060 | ATF4: =_xlfn.ANCHORARRAY($S$4) -> 2023 | ATG4: 2024 | ATH4: 2025 | ATI4: 2026 | ATJ4: 2027 | ATK4: 2028 | ATL4: 2029 | ATM4: 2030 | ATN4: 2031 | ATO4: 2032 | ATP4: 2033 | ATQ4: 2034 | ATR4: 2035 | ATS4: 2036 | ATT4: 2037 | ATU4: 2038 | ATV4: 2039 | ATW4: 2040 | ATX4: 2041 | ATY4: 2042 | ATZ4: 2043 | AUA4: 2044 | AUB4: 2045 | AUC4: 2046 | AUD4: 2047 | AUE4: 2048 | AUF4: 2049 | AUG4: 2050 | AUH4: 2051 | AUI4: 2052 | AUJ4: 2053 | AUK4: 2054 | AUL4: 2055 | AUM4: 2056 | AUN4: 2057 | AUO4: 2058 | AUP4: 2059 | AUQ4: 2060 | AUR4: =_xlfn.ANCHORARRAY($S$4) -> 2023 | AUS4: 2024 | AUT4: 2025 | AUU4: 2026 | AUV4: 2027 | AUW4: 2028 | AUX4: 2029 | AUY4: 2030 | AUZ4: 2031 | AVA4: 2032 | AVB4: 2033 | AVC4: 2034 | AVD4: 2035 | AVE4: 2036 | AVF4: 2037 | AVG4: 2038 | AVH4: 2039 | AVI4: 2040 | AVJ4: 2041 | AVK4: 2042 | AVL4: 2043 | AVM4: 2044 | AVN4: 2045 | AVO4: 2046 | AVP4: 2047 | AVQ4: 2048 | AVR4: 2049 | AVS4: 2050 | AVT4: 2051 | AVU4: 2052 | AVV4: 2053 | AVW4: 2054 | AVX4: 2055 | AVY4: 2056 | AVZ4: 2057 | AWA4: 2058 | AWB4: 2059 | AWC4: 2060 | AWD4: =_xlfn.ANCHORARRAY($S$4) -> 2023 | AWE4: 2024 | AWF4: 2025 | AWG4: 2026 | AWH4: 2027 | AWI4: 2028 | AWJ4: 2029 | AWK4: 2030 | AWL4: 2031 | AWM4: 2032 | AWN4: 2033 | AWO4: 2034 | AWP4: 2035 | AWQ4: 2036 | AWR4: 2037 | AWS4: 2038 | AWT4: 2039 | AWU4: 2040 | AWV4: 2041 | AWW4: 2042 | AWX4: 2043 | AWY4: 2044 | AWZ4: 2045 | AXA4: 2046 | AXB4: 2047 | AXC4: 2048 | AXD4: 2049 | AXE4: 2050 | AXF4: 2051 | AXG4: 2052 | AXH4: 2053 | AXI4: 2054 | AXJ4: 2055 | AXK4: 2056 | AXL4: 2057 | AXM4: 2058 | AXN4: 2059 | AXO4: 2060 | AXP4: =_xlfn.ANCHORARRAY($S$4) -> 2023 | AXQ4: 2024 | AXR4: 2025 | AXS4: 2026 | AXT4: 2027 | AXU4: 2028 | AXV4: 2029 | AXW4: 2030 | AXX4: 2031 | AXY4: 2032 | AXZ4: 2033 | AYA4: 2034 | AYB4: 2035 | AYC4: 2036 | AYD4: 2037 | AYE4: 2038 | AYF4: 2039 | AYG4: 2040 | AYH4: 2041 | AYI4: 2042 | AYJ4: 2043 | AYK4: 2044 | AYL4: 2045 | AYM4: 2046 | AYN4: 2047 | AYO4: 2048 | AYP4: 2049 | AYQ4: 2050 | AYR4: 2051 | AYS4: 2052 | AYT4: 2053 | AYU4: 2054 | AYV4: 2055 | AYW4: 2056 | AYX4: 2057 | AYY4: 2058 | AYZ4: 2059 | AZA4: 2060 | AZB4: =_xlfn.ANCHORARRAY($S$4) -> 2023 | AZC4: 2024 | AZD4: 2025 | AZE4: 2026 | AZF4: 2027 | AZG4: 2028 | AZH4: 2029 | AZI4: 2030 | AZJ4: 2031 | AZK4: 2032 | AZL4: 2033 | AZM4: 2034 | AZN4: 2035 | AZO4: 2036 | AZP4: 2037 | AZQ4: 2038 | AZR4: 2039 | AZS4: 2040 | AZT4: 2041 | AZU4: 2042 | AZV4: 2043 | AZW4: 2044 | AZX4: 2045 | AZY4: 2046 | AZZ4: 2047 | BAA4: 2048 | BAB4: 2049 | BAC4: 2050 | BAD4: 2051 | BAE4: 2052 | BAF4: 2053 | BAG4: 2054 | BAH4: 2055 | BAI4: 2056 | BAJ4: 2057 | BAK4: 2058 | BAL4: 2059 | BAM4: 2060 | BAN4: =_xlfn.ANCHORARRAY($S$4) -> 2023 | BAO4: 2024 | BAP4: 2025 | BAQ4: 2026 | BAR4: 2027 | BAS4: 2028 | BAT4: 2029 | BAU4: 2030 | BAV4: 2031 | BAW4: 2032 | BAX4: 2033 | BAY4: 2034 | BAZ4: 2035 | BBA4: 2036 | BBB4: 2037 | BBC4: 2038 | BBD4: 2039 | BBE4: 2040 | BBF4: 2041 | BBG4: 2042 | BBH4: 2043 | BBI4: 2044 | BBJ4: 2045 | BBK4: 2046 | BBL4: 2047 | BBM4: 2048 | BBN4: 2049 | BBO4: 2050 | BBP4: 2051 | BBQ4: 2052 | BBR4: 2053 | BBS4: 2054 | BBT4: 2055 | BBU4: 2056 | BBV4: 2057 | BBW4: 2058 | BBX4: 2059 | BBY4: 2060 | BBZ4: =_xlfn.ANCHORARRAY($S$4) -> 2023 | BCA4: 2024 | BCB4: 2025 | BCC4: 2026 | BCD4: 2027 | BCE4: 2028 | BCF4: 2029 | BCG4: 2030 | BCH4: 2031 | BCI4: 2032 | BCJ4: 2033 | BCK4: 2034 | BCL4: 2035 | BCM4: 2036 | BCN4: 2037 | BCO4: 2038 | BCP4: 2039 | BCQ4: 2040 | BCR4: 2041 | BCS4: 2042 | BCT4: 2043 | BCU4: 2044 | BCV4: 2045 | BCW4: 2046 | BCX4: 2047 | BCY4: 2048 | BCZ4: 2049 | BDA4: 2050 | BDB4: 2051 | BDC4: 2052 | BDD4: 2053 | BDE4: 2054 | BDF4: 2055 | BDG4: 2056 | BDH4: 2057 | BDI4: 2058 | BDJ4: 2059 | BDK4: 2060 | BDL4: =_xlfn.ANCHORARRAY($S$4) -> 2023 | BDM4: 2024 | BDN4: 2025 | BDO4: 2026 | BDP4: 2027 | BDQ4: 2028 | BDR4: 2029 | BDS4: 2030 | BDT4: 2031 | BDU4: 2032 | BDV4: 2033 | BDW4: 2034 | BDX4: 2035 | BDY4: 2036 | BDZ4: 2037 | BEA4: 2038 | BEB4: 2039 | BEC4: 2040 | BED4: 2041 | BEE4: 2042 | BEF4: 2043 | BEG4: 2044 | BEH4: 2045 | BEI4: 2046 | BEJ4: 2047 | BEK4: 2048 | BEL4: 2049 | BEM4: 2050 | BEN4: 2051 | BEO4: 2052 | BEP4: 2053 | BEQ4: 2054 | BER4: 2055 | BES4: 2056 | BET4: 2057 | BEU4: 2058 | BEV4: 2059 | BEW4: 2060
A5: =_xlfn._xlws.FILTER(INDEX(Data1[],,MATCH(A$4,Data1[#Headers],0)),Data1[[UserSelected]:[UserSelected]]=TRUE) ->  | B5: =_xlfn._xlws.FILTER(INDEX(Data1[],,MATCH(B$4,Data1[#Headers],0)),Data1[[UserSelected]:[UserSelected]]=TRUE) ->  | C5: =_xlfn._xlws.FILTER(INDEX(Data1[],,MATCH(C$4,Data1[#Headers],0)),Data1[[UserSelected]:[UserSelected]]=TRUE) ->  | D5: =_xlfn._xlws.FILTER(INDEX(Data1[],,MATCH(D$4,Data1[#Headers],0)),Data1[[UserSelected]:[UserSelected]]=TRUE) ->  | E5: =_xlfn._xlws.FILTER(INDEX(Data1[],,MATCH(E$4,Data1[#Headers],0)),Data1[[UserSelected]:[UserSelected]]=TRUE) ->  | F5: =_xlfn._xlws.FILTER(INDEX(Data1[],,MATCH(F$4,Data1[#Headers],0)),Data1[[UserSelected]:[UserSelected]]=TRUE) ->  | G5: =_xlfn._xlws.FILTER(INDEX(Data1[],,MATCH(G$4,Data1[#Headers],0)),Data1[[UserSelected]:[UserSelected]]=TRUE) ->  | H5: =_xlfn._xlws.FILTER(INDEX(Data1[],,MATCH(H$4,Data1[#Headers],0)),Data1[[UserSelected]:[UserSelected]]=TRUE) ->  | I5: =_xlfn._xlws.FILTER(INDEX(Data1[],,MATCH(I$4,Data1[#Headers],0)),Data1[[UserSelected]:[UserSelected]]=TRUE) ->  | J5: =_xlfn._xlws.FILTER(INDEX(Data1[],,MATCH(J$4,Data1[#Headers],0)),Data1[[UserSelected]:[UserSelected]]=TRUE) ->  | K5: =_xlfn._xlws.FILTER(INDEX(Data1[],,MATCH(K$4,Data1[#Headers],0)),Data1[[UserSelected]:[UserSelected]]=TRUE) ->  | L5: =_xlfn._xlws.FILTER(INDEX(Data1[],,MATCH(L$4,Data1[#Headers],0)),Data1[[UserSelected]:[UserSelected]]=TRUE) ->  | M5: =_xlfn._xlws.FILTER(INDEX(Data1[],,MATCH(M$4,Data1[#Headers],0)),Data1[[UserSelected]:[UserSelected]]=TRUE) ->  | N5: =_xlfn._xlws.FILTER(INDEX(Data1[],,MATCH(N$4,Data1[#Headers],0)),Data1[[UserSelected]:[UserSelected]]=TRUE) ->  | O5: =_xlfn._xlws.FILTER(INDEX(Data1[],,MATCH(O$4,Data1[#Headers],0)),Data1[[UserSelected]:[UserSelected]]=TRUE) ->  | P5: =_xlfn._xlws.FILTER(INDEX(Data1[],,MATCH(P$4,Data1[#Headers],0)),Data1[[UserSelected]:[UserSelected]]=TRUE) ->  | Q5: =_xlfn.ANCHORARRAY(F5)+_xlfn.ANCHORARRAY(G5) ->  | R5: =_xlfn.XLOOKUP(_xlfn.ANCHORARRAY(I5),UI.BuildingSizeYear[[Building sizes included in policy ]],UI.BuildingSizeYear[Year],,0)-'Topic 3 Calculator'!$D$18 ->  | S5: =1-INDEX(Demo!$A:$AM,MATCH(_xlfn.ANCHORARRAY($B5),Demo!$A:$A,0),MATCH(S$4,Demo!$2:$2,0)) ->  | T5: =1-INDEX(Demo!$A:$AM,MATCH(_xlfn.ANCHORARRAY($B5),Demo!$A:$A,0),MATCH(T$4,Demo!$2:$2,0)) ->  | U5: =1-INDEX(Demo!$A:$AM,MATCH(_xlfn.ANCHORARRAY($B5),Demo!$A:$A,0),MATCH(U$4,Demo!$2:$2,0)) ->  | V5: =1-INDEX(Demo!$A:$AM,MATCH(_xlfn.ANCHORARRAY($B5),Demo!$A:$A,0),MATCH(V$4,Demo!$2:$2,0)) ->  | W5: =1-INDEX(Demo!$A:$AM,MATCH(_xlfn.ANCHORARRAY($B5),Demo!$A:$A,0),MATCH(W$4,Demo!$2:$2,0)) ->  | X5: =1-INDEX(Demo!$A:$AM,MATCH(_xlfn.ANCHORARRAY($B5),Demo!$A:$A,0),MATCH(X$4,Demo!$2:$2,0)) ->  | Y5: =1-INDEX(Demo!$A:$AM,MATCH(_xlfn.ANCHORARRAY($B5),Demo!$A:$A,0),MATCH(Y$4,Demo!$2:$2,0)) ->  | Z5: =1-INDEX(Demo!$A:$AM,MATCH(_xlfn.ANCHORARRAY($B5),Demo!$A:$A,0),MATCH(Z$4,Demo!$2:$2,0)) ->  | AA5: =1-INDEX(Demo!$A:$AM,MATCH(_xlfn.ANCHORARRAY($B5),Demo!$A:$A,0),MATCH(AA$4,Demo!$2:$2,0)) ->  | AB5: =1-INDEX(Demo!$A:$AM,MATCH(_xlfn.ANCHORARRAY($B5),Demo!$A:$A,0),MATCH(AB$4,Demo!$2:$2,0)) ->  | AC5: =1-INDEX(Demo!$A:$AM,MATCH(_xlfn.ANCHORARRAY($B5),Demo!$A:$A,0),MATCH(AC$4,Demo!$2:$2,0)) ->  | AD5: =1-INDEX(Demo!$A:$AM,MATCH(_xlfn.ANCHORARRAY($B5),Demo!$A:$A,0),MATCH(AD$4,Demo!$2:$2,0)) ->  | AE5: =1-INDEX(Demo!$A:$AM,MATCH(_xlfn.ANCHORARRAY($B5),Demo!$A:$A,0),MATCH(AE$4,Demo!$2:$2,0)) ->  | AF5: =1-INDEX(Demo!$A:$AM,MATCH(_xlfn.ANCHORARRAY($B5),Demo!$A:$A,0),MATCH(AF$4,Demo!$2:$2,0)) ->  | AG5: =1-INDEX(Demo!$A:$AM,MATCH(_xlfn.ANCHORARRAY($B5),Demo!$A:$A,0),MATCH(AG$4,Demo!$2:$2,0)) ->  | AH5: =1-INDEX(Demo!$A:$AM,MATCH(_xlfn.ANCHORARRAY($B5),Demo!$A:$A,0),MATCH(AH$4,Demo!$2:$2,0)) ->  | AI5: =1-INDEX(Demo!$A:$AM,MATCH(_xlfn.ANCHORARRAY($B5),Demo!$A:$A,0),MATCH(AI$4,Demo!$2:$2,0)) ->  | AJ5: =1-INDEX(Demo!$A:$AM,MATCH(_xlfn.ANCHORARRAY($B5),Demo!$A:$A,0),MATCH(AJ$4,Demo!$2:$2,0)) ->  | AK5: =1-INDEX(Demo!$A:$AM,MATCH(_xlfn.ANCHORARRAY($B5),Demo!$A:$A,0),MATCH(AK$4,Demo!$2:$2,0)) ->  | AL5: =1-INDEX(Demo!$A:$AM,MATCH(_xlfn.ANCHORARRAY($B5),Demo!$A:$A,0),MATCH(AL$4,Demo!$2:$2,0)) ->  | AM5: =1-INDEX(Demo!$A:$AM,MATCH(_xlfn.ANCHORARRAY($B5),Demo!$A:$A,0),MATCH(AM$4,Demo!$2:$2,0)) ->  | AN5: =1-INDEX(Demo!$A:$AM,MATCH(_xlfn.ANCHORARRAY($B5),Demo!$A:$A,0),MATCH(AN$4,Demo!$2:$2,0)) ->  | AO5: =1-INDEX(Demo!$A:$AM,MATCH(_xlfn.ANCHORARRAY($B5),Demo!$A:$A,0),MATCH(AO$4,Demo!$2:$2,0)) ->  | AP5: =1-INDEX(Demo!$A:$AM,MATCH(_xlfn.ANCHORARRAY($B5),Demo!$A:$A,0),MATCH(AP$4,Demo!$2:$2,0)) ->  | AQ5: =1-INDEX(Demo!$A:$AM,MATCH(_xlfn.ANCHORARRAY($B5),Demo!$A:$A,0),MATCH(AQ$4,Demo!$2:$2,0)) ->  | AR5: =1-INDEX(Demo!$A:$AM,MATCH(_xlfn.ANCHORARRAY($B5),Demo!$A:$A,0),MATCH(AR$4,Demo!$2:$2,0)) ->  | AS5: =1-INDEX(Demo!$A:$AM,MATCH(_xlfn.ANCHORARRAY($B5),Demo!$A:$A,0),MATCH(AS$4,Demo!$2:$2,0)) ->  | AT5: =1-INDEX(Demo!$A:$AM,MATCH(_xlfn.ANCHORARRAY($B5),Demo!$A:$A,0),MATCH(AT$4,Demo!$2:$2,0)) ->  | AU5: =1-INDEX(Demo!$A:$AM,MATCH(_xlfn.ANCHORARRAY($B5),Demo!$A:$A,0),MATCH(AU$4,Demo!$2:$2,0)) ->  | AV5: =1-INDEX(Demo!$A:$AM,MATCH(_xlfn.ANCHORARRAY($B5),Demo!$A:$A,0),MATCH(AV$4,Demo!$2:$2,0)) ->  | AW5: =1-INDEX(Demo!$A:$AM,MATCH(_xlfn.ANCHORARRAY($B5),Demo!$A:$A,0),MATCH(AW$4,Demo!$2:$2,0)) ->  | AX5: =1-INDEX(Demo!$A:$AM,MATCH(_xlfn.ANCHORARRAY($B5),Demo!$A:$A,0),MATCH(AX$4,Demo!$2:$2,0)) ->  | AY5: =1-INDEX(Demo!$A:$AM,MATCH(_xlfn.ANCHORARRAY($B5),Demo!$A:$A,0),MATCH(AY$4,Demo!$2:$2,0)) ->  | AZ5: =1-INDEX(Demo!$A:$AM,MATCH(_xlfn.ANCHORARRAY($B5),Demo!$A:$A,0),MATCH(AZ$4,Demo!$2:$2,0)) ->  | BA5: =1-INDEX(Demo!$A:$AM,MATCH(_xlfn.ANCHORARRAY($B5),Demo!$A:$A,0),MATCH(BA$4,Demo!$2:$2,0)) ->  | BB5: =1-INDEX(Demo!$A:$AM,MATCH(_xlfn.ANCHORARRAY($B5),Demo!$A:$A,0),MATCH(BB$4,Demo!$2:$2,0)) ->  | BC5: =1-INDEX(Demo!$A:$AM,MATCH(_xlfn.ANCHORARRAY($B5),Demo!$A:$A,0),MATCH(BC$4,Demo!$2:$2,0)) ->  | BD5: =1-INDEX(Demo!$A:$AM,MATCH(_xlfn.ANCHORARRAY($B5),Demo!$A:$A,0),MATCH(BD$4,Demo!$2:$2,0)) ->  | BE5: =INDEX(_xlfn._xlws.FILTER(BPS_EUIFactors[[2023]:[2060]],COUNTIF(_xlfn.ANCHORARRAY($B5),BPS_EUIFactors[[Prototype]:[Prototype]])),,IF(BE$4-_xlfn.ANCHORARRAY($R5)-2023<0,1,BE$4-_xlfn.ANCHORARRAY($R5)-2023+1)) ->  | BF5: =INDEX(_xlfn._xlws.FILTER(BPS_EUIFactors[[2023]:[2060]],COUNTIF(_xlfn.ANCHORARRAY($B5),BPS_EUIFactors[[Prototype]:[Prototype]])),,IF(BF$4-_xlfn.ANCHORARRAY($R5)-2023<0,1,BF$4-_xlfn.ANCHORARRAY($R5)-2023+1)) ->  | BG5: =INDEX(_xlfn._xlws.FILTER(BPS_EUIFactors[[2023]:[2060]],COUNTIF(_xlfn.ANCHORARRAY($B5),BPS_EUIFactors[[Prototype]:[Prototype]])),,IF(BG$4-_xlfn.ANCHORARRAY($R5)-2023<0,1,BG$4-_xlfn.ANCHORARRAY($R5)-2023+1)) ->  | BH5: =INDEX(_xlfn._xlws.FILTER(BPS_EUIFactors[[2023]:[2060]],COUNTIF(_xlfn.ANCHORARRAY($B5),BPS_EUIFactors[[Prototype]:[Prototype]])),,IF(BH$4-_xlfn.ANCHORARRAY($R5)-2023<0,1,BH$4-_xlfn.ANCHORARRAY($R5)-2023+1)) ->  | BI5: =INDEX(_xlfn._xlws.FILTER(BPS_EUIFactors[[2023]:[2060]],COUNTIF(_xlfn.ANCHORARRAY($B5),BPS_EUIFactors[[Prototype]:[Prototype]])),,IF(BI$4-_xlfn.ANCHORARRAY($R5)-2023<0,1,BI$4-_xlfn.ANCHORARRAY($R5)-2023+1)) ->  | BJ5: =INDEX(_xlfn._xlws.FILTER(BPS_EUIFactors[[2023]:[2060]],COUNTIF(_xlfn.ANCHORARRAY($B5),BPS_EUIFactors[[Prototype]:[Prototype]])),,IF(BJ$4-_xlfn.ANCHORARRAY($R5)-2023<0,1,BJ$4-_xlfn.ANCHORARRAY($R5)-2023+1)) ->  | BK5: =INDEX(_xlfn._xlws.FILTER(BPS_EUIFactors[[2023]:[2060]],COUNTIF(_xlfn.ANCHORARRAY($B5),BPS_EUIFactors[[Prototype]:[Prototype]])),,IF(BK$4-_xlfn.ANCHORARRAY($R5)-2023<0,1,BK$4-_xlfn.ANCHORARRAY($R5)-2023+1)) ->  | BL5: =INDEX(_xlfn._xlws.FILTER(BPS_EUIFactors[[2023]:[2060]],COUNTIF(_xlfn.ANCHORARRAY($B5),BPS_EUIFactors[[Prototype]:[Prototype]])),,IF(BL$4-_xlfn.ANCHORARRAY($R5)-2023<0,1,BL$4-_xlfn.ANCHORARRAY($R5)-2023+1)) ->  | BM5: =INDEX(_xlfn._xlws.FILTER(BPS_EUIFactors[[2023]:[2060]],COUNTIF(_xlfn.ANCHORARRAY($B5),BPS_EUIFactors[[Prototype]:[Prototype]])),,IF(BM$4-_xlfn.ANCHORARRAY($R5)-2023<0,1,BM$4-_xlfn.ANCHORARRAY($R5)-2023+1)) ->  | BN5: =INDEX(_xlfn._xlws.FILTER(BPS_EUIFactors[[2023]:[2060]],COUNTIF(_xlfn.ANCHORARRAY($B5),BPS_EUIFactors[[Prototype]:[Prototype]])),,IF(BN$4-_xlfn.ANCHORARRAY($R5)-2023<0,1,BN$4-_xlfn.ANCHORARRAY($R5)-2023+1)) ->  | BO5: =INDEX(_xlfn._xlws.FILTER(BPS_EUIFactors[[2023]:[2060]],COUNTIF(_xlfn.ANCHORARRAY($B5),BPS_EUIFactors[[Prototype]:[Prototype]])),,IF(BO$4-_xlfn.ANCHORARRAY($R5)-2023<0,1,BO$4-_xlfn.ANCHORARRAY($R5)-2023+1)) ->  | BP5: =INDEX(_xlfn._xlws.FILTER(BPS_EUIFactors[[2023]:[2060]],COUNTIF(_xlfn.ANCHORARRAY($B5),BPS_EUIFactors[[Prototype]:[Prototype]])),,IF(BP$4-_xlfn.ANCHORARRAY($R5)-2023<0,1,BP$4-_xlfn.ANCHORARRAY($R5)-2023+1)) ->  | BQ5: =INDEX(_xlfn._xlws.FILTER(BPS_EUIFactors[[2023]:[2060]],COUNTIF(_xlfn.ANCHORARRAY($B5),BPS_EUIFactors[[Prototype]:[Prototype]])),,IF(BQ$4-_xlfn.ANCHORARRAY($R5)-2023<0,1,BQ$4-_xlfn.ANCHORARRAY($R5)-2023+1)) ->  | BR5: =INDEX(_xlfn._xlws.FILTER(BPS_EUIFactors[[2023]:[2060]],COUNTIF(_xlfn.ANCHORARRAY($B5),BPS_EUIFactors[[Prototype]:[Prototype]])),,IF(BR$4-_xlfn.ANCHORARRAY($R5)-2023<0,1,BR$4-_xlfn.ANCHORARRAY($R5)-2023+1)) ->  | BS5: =INDEX(_xlfn._xlws.FILTER(BPS_EUIFactors[[2023]:[2060]],COUNTIF(_xlfn.ANCHORARRAY($B5),BPS_EUIFactors[[Prototype]:[Prototype]])),,IF(BS$4-_xlfn.ANCHORARRAY($R5)-2023<0,1,BS$4-_xlfn.ANCHORARRAY($R5)-2023+1)) ->  | BT5: =INDEX(_xlfn._xlws.FILTER(BPS_EUIFactors[[2023]:[2060]],COUNTIF(_xlfn.ANCHORARRAY($B5),BPS_EUIFactors[[Prototype]:[Prototype]])),,IF(BT$4-_xlfn.ANCHORARRAY($R5)-2023<0,1,BT$4-_xlfn.ANCHORARRAY($R5)-2023+1)) ->  | BU5: =INDEX(_xlfn._xlws.FILTER(BPS_EUIFactors[[2023]:[2060]],COUNTIF(_xlfn.ANCHORARRAY($B5),BPS_EUIFactors[[Prototype]:[Prototype]])),,IF(BU$4-_xlfn.ANCHORARRAY($R5)-2023<0,1,BU$4-_xlfn.ANCHORARRAY($R5)-2023+1)) ->  | BV5: =INDEX(_xlfn._xlws.FILTER(BPS_EUIFactors[[2023]:[2060]],COUNTIF(_xlfn.ANCHORARRAY($B5),BPS_EUIFactors[[Prototype]:[Prototype]])),,IF(BV$4-_xlfn.ANCHORARRAY($R5)-2023<0,1,BV$4-_xlfn.ANCHORARRAY($R5)-2023+1)) ->  | BW5: =INDEX(_xlfn._xlws.FILTER(BPS_EUIFactors[[2023]:[2060]],COUNTIF(_xlfn.ANCHORARRAY($B5),BPS_EUIFactors[[Prototype]:[Prototype]])),,IF(BW$4-_xlfn.ANCHORARRAY($R5)-2023<0,1,BW$4-_xlfn.ANCHORARRAY($R5)-2023+1)) ->  | BX5: =INDEX(_xlfn._xlws.FILTER(BPS_EUIFactors[[2023]:[2060]],COUNTIF(_xlfn.ANCHORARRAY($B5),BPS_EUIFactors[[Prototype]:[Prototype]])),,IF(BX$4-_xlfn.ANCHORARRAY($R5)-2023<0,1,BX$4-_xlfn.ANCHORARRAY($R5)-2023+1)) ->  | BY5: =INDEX(_xlfn._xlws.FILTER(BPS_EUIFactors[[2023]:[2060]],COUNTIF(_xlfn.ANCHORARRAY($B5),BPS_EUIFactors[[Prototype]:[Prototype]])),,IF(BY$4-_xlfn.ANCHORARRAY($R5)-2023<0,1,BY$4-_xlfn.ANCHORARRAY($R5)-2023+1)) ->  | BZ5: =INDEX(_xlfn._xlws.FILTER(BPS_EUIFactors[[2023]:[2060]],COUNTIF(_xlfn.ANCHORARRAY($B5),BPS_EUIFactors[[Prototype]:[Prototype]])),,IF(BZ$4-_xlfn.ANCHORARRAY($R5)-2023<0,1,BZ$4-_xlfn.ANCHORARRAY($R5)-2023+1)) ->  | CA5: =INDEX(_xlfn._xlws.FILTER(BPS_EUIFactors[[2023]:[2060]],COUNTIF(_xlfn.ANCHORARRAY($B5),BPS_EUIFactors[[Prototype]:[Prototype]])),,IF(CA$4-_xlfn.ANCHORARRAY($R5)-2023<0,1,CA$4-_xlfn.ANCHORARRAY($R5)-2023+1)) ->  | CB5: =INDEX(_xlfn._xlws.FILTER(BPS_EUIFactors[[2023]:[2060]],COUNTIF(_xlfn.ANCHORARRAY($B5),BPS_EUIFactors[[Prototype]:[Prototype]])),,IF(CB$4-_xlfn.ANCHORARRAY($R5)-2023<0,1,CB$4-_xlfn.ANCHORARRAY($R5)-2023+1)) ->  | CC5: =INDEX(_xlfn._xlws.FILTER(BPS_EUIFactors[[2023]:[2060]],COUNTIF(_xlfn.ANCHORARRAY($B5),BPS_EUIFactors[[Prototype]:[Prototype]])),,IF(CC$4-_xlfn.ANCHORARRAY($R5)-2023<0,1,CC$4-_xlfn.ANCHORARRAY($R5)-2023+1)) ->  | CD5: =INDEX(_xlfn._xlws.FILTER(BPS_EUIFactors[[2023]:[2060]],COUNTIF(_xlfn.ANCHORARRAY($B5),BPS_EUIFactors[[Prototype]:[Prototype]])),,IF(CD$4-_xlfn.ANCHORARRAY($R5)-2023<0,1,CD$4-_xlfn.ANCHORARRAY($R5)-2023+1)) ->  | CE5: =INDEX(_xlfn._xlws.FILTER(BPS_EUIFactors[[2023]:[2060]],COUNTIF(_xlfn.ANCHORARRAY($B5),BPS_EUIFactors[[Prototype]:[Prototype]])),,IF(CE$4-_xlfn.ANCHORARRAY($R5)-2023<0,1,CE$4-_xlfn.ANCHORARRAY($R5)-2023+1)) ->  | CF5: =INDEX(_xlfn._xlws.FILTER(BPS_EUIFactors[[2023]:[2060]],COUNTIF(_xlfn.ANCHORARRAY($B5),BPS_EUIFactors[[Prototype]:[Prototype]])),,IF(CF$4-_xlfn.ANCHORARRAY($R5)-2023<0,1,CF$4-_xlfn.ANCHORARRAY($R5)-2023+1)) ->  | CG5: =INDEX(_xlfn._xlws.FILTER(BPS_EUIFactors[[2023]:[2060]],COUNTIF(_xlfn.ANCHORARRAY($B5),BPS_EUIFactors[[Prototype]:[Prototype]])),,IF(CG$4-_xlfn.ANCHORARRAY($R5)-2023<0,1,CG$4-_xlfn.ANCHORARRAY($R5)-2023+1)) ->  | CH5: =INDEX(_xlfn._xlws.FILTER(BPS_EUIFactors[[2023]:[2060]],COUNTIF(_xlfn.ANCHORARRAY($B5),BPS_EUIFactors[[Prototype]:[Prototype]])),,IF(CH$4-_xlfn.ANCHORARRAY($R5)-2023<0,1,CH$4-_xlfn.ANCHORARRAY($R5)-2023+1)) ->  | CI5: =INDEX(_xlfn._xlws.FILTER(BPS_EUIFactors[[2023]:[2060]],COUNTIF(_xlfn.ANCHORARRAY($B5),BPS_EUIFactors[[Prototype]:[Prototype]])),,IF(CI$4-_xlfn.ANCHORARRAY($R5)-2023<0,1,CI$4-_xlfn.ANCHORARRAY($R5)-2023+1)) ->  | CJ5: =INDEX(_xlfn._xlws.FILTER(BPS_EUIFactors[[2023]:[2060]],COUNTIF(_xlfn.ANCHORARRAY($B5),BPS_EUIFactors[[Prototype]:[Prototype]])),,IF(CJ$4-_xlfn.ANCHORARRAY($R5)-2023<0,1,CJ$4-_xlfn.ANCHORARRAY($R5)-2023+1)) ->  | CK5: =INDEX(_xlfn._xlws.FILTER(BPS_EUIFactors[[2023]:[2060]],COUNTIF(_xlfn.ANCHORARRAY($B5),BPS_EUIFactors[[Prototype]:[Prototype]])),,IF(CK$4-_xlfn.ANCHORARRAY($R5)-2023<0,1,CK$4-_xlfn.ANCHORARRAY($R5)-2023+1)) ->  | CL5: =INDEX(_xlfn._xlws.FILTER(BPS_EUIFactors[[2023]:[2060]],COUNTIF(_xlfn.ANCHORARRAY($B5),BPS_EUIFactors[[Prototype]:[Prototype]])),,IF(CL$4-_xlfn.ANCHORARRAY($R5)-2023<0,1,CL$4-_xlfn.ANCHORARRAY($R5)-2023+1)) ->  | CM5: =INDEX(_xlfn._xlws.FILTER(BPS_EUIFactors[[2023]:[2060]],COUNTIF(_xlfn.ANCHORARRAY($B5),BPS_EUIFactors[[Prototype]:[Prototype]])),,IF(CM$4-_xlfn.ANCHORARRAY($R5)-2023<0,1,CM$4-_xlfn.ANCHORARRAY($R5)-2023+1)) ->  | CN5: =INDEX(_xlfn._xlws.FILTER(BPS_EUIFactors[[2023]:[2060]],COUNTIF(_xlfn.ANCHORARRAY($B5),BPS_EUIFactors[[Prototype]:[Prototype]])),,IF(CN$4-_xlfn.ANCHORARRAY($R5)-2023<0,1,CN$4-_xlfn.ANCHORARRAY($R5)-2023+1)) ->  | CO5: =INDEX(_xlfn._xlws.FILTER(BPS_EUIFactors[[2023]:[2060]],COUNTIF(_xlfn.ANCHORARRAY($B5),BPS_EUIFactors[[Prototype]:[Prototype]])),,IF(CO$4-_xlfn.ANCHORARRAY($R5)-2023<0,1,CO$4-_xlfn.ANCHORARRAY($R5)-2023+1)) ->  | CP5: =INDEX(_xlfn._xlws.FILTER(BPS_EUIFactors[[2023]:[2060]],COUNTIF(_xlfn.ANCHORARRAY($B5),BPS_EUIFactors[[Prototype]:[Prototype]])),,IF(CP$4-_xlfn.ANCHORARRAY($R5)-2023<0,1,CP$4-_xlfn.ANCHORARRAY($R5)-2023+1)) ->  | CQ5: =IF(_xlfn.ANCHORARRAY($N5)*_xlfn.ANCHORARRAY(BE5)<_xlfn.ANCHORARRAY($L5)*_xlfn.ANCHORARRAY(VQ5),(_xlfn.ANCHORARRAY($L5)*_xlfn.ANCHORARRAY(VQ5) -_xlfn.ANCHORARRAY( $N5)*_xlfn.ANCHORARRAY(BE5)),0) ->  | CR5: =IF(_xlfn.ANCHORARRAY($N5)*_xlfn.ANCHORARRAY(BF5)<_xlfn.ANCHORARRAY($L5)*_xlfn.ANCHORARRAY(VR5),(_xlfn.ANCHORARRAY($L5)*_xlfn.ANCHORARRAY(VR5) -_xlfn.ANCHORARRAY( $N5)*_xlfn.ANCHORARRAY(BF5)),0) ->  | CS5: =IF(_xlfn.ANCHORARRAY($N5)*_xlfn.ANCHORARRAY(BG5)<_xlfn.ANCHORARRAY($L5)*_xlfn.ANCHORARRAY(VS5),(_xlfn.ANCHORARRAY($L5)*_xlfn.ANCHORARRAY(VS5) -_xlfn.ANCHORARRAY( $N5)*_xlfn.ANCHORARRAY(BG5)),0) ->  | CT5: =IF(_xlfn.ANCHORARRAY($N5)*_xlfn.ANCHORARRAY(BH5)<_xlfn.ANCHORARRAY($L5)*_xlfn.ANCHORARRAY(VT5),(_xlfn.ANCHORARRAY($L5)*_xlfn.ANCHORARRAY(VT5) -_xlfn.ANCHORARRAY( $N5)*_xlfn.ANCHORARRAY(BH5)),0) ->  | CU5: =IF(_xlfn.ANCHORARRAY($N5)*_xlfn.ANCHORARRAY(BI5)<_xlfn.ANCHORARRAY($L5)*_xlfn.ANCHORARRAY(VU5),(_xlfn.ANCHORARRAY($L5)*_xlfn.ANCHORARRAY(VU5) -_xlfn.ANCHORARRAY( $N5)*_xlfn.ANCHORARRAY(BI5)),0) ->  | CV5: =IF(_xlfn.ANCHORARRAY($N5)*_xlfn.ANCHORARRAY(BJ5)<_xlfn.ANCHORARRAY($L5)*_xlfn.ANCHORARRAY(VV5),(_xlfn.ANCHORARRAY($L5)*_xlfn.ANCHORARRAY(VV5) -_xlfn.ANCHORARRAY( $N5)*_xlfn.ANCHORARRAY(BJ5)),0) ->  | CW5: =IF(_xlfn.ANCHORARRAY($N5)*_xlfn.ANCHORARRAY(BK5)<_xlfn.ANCHORARRAY($L5)*_xlfn.ANCHORARRAY(VW5),(_xlfn.ANCHORARRAY($L5)*_xlfn.ANCHORARRAY(VW5) -_xlfn.ANCHORARRAY( $N5)*_xlfn.ANCHORARRAY(BK5)),0) ->  | CX5: =IF(_xlfn.ANCHORARRAY($N5)*_xlfn.ANCHORARRAY(BL5)<_xlfn.ANCHORARRAY($L5)*_xlfn.ANCHORARRAY(VX5),(_xlfn.ANCHORARRAY($L5)*_xlfn.ANCHORARRAY(VX5) -_xlfn.ANCHORARRAY( $N5)*_xlfn.ANCHORARRAY(BL5)),0) ->  | CY5: =IF(_xlfn.ANCHORARRAY($N5)*_xlfn.ANCHORARRAY(BM5)<_xlfn.ANCHORARRAY($L5)*_xlfn.ANCHORARRAY(VY5),(_xlfn.ANCHORARRAY($L5)*_xlfn.ANCHORARRAY(VY5) -_xlfn.ANCHORARRAY( $N5)*_xlfn.ANCHORARRAY(BM5)),0) ->  | CZ5: =IF(_xlfn.ANCHORARRAY($N5)*_xlfn.ANCHORARRAY(BN5)<_xlfn.ANCHORARRAY($L5)*_xlfn.ANCHORARRAY(VZ5),(_xlfn.ANCHORARRAY($L5)*_xlfn.ANCHORARRAY(VZ5) -_xlfn.ANCHORARRAY( $N5)*_xlfn.ANCHORARRAY(BN5)),0) ->  | DA5: =IF(_xlfn.ANCHORARRAY($N5)*_xlfn.ANCHORARRAY(BO5)<_xlfn.ANCHORARRAY($L5)*_xlfn.ANCHORARRAY(WA5),(_xlfn.ANCHORARRAY($L5)*_xlfn.ANCHORARRAY(WA5) -_xlfn.ANCHORARRAY( $N5)*_xlfn.ANCHORARRAY(BO5)),0) ->  | DB5: =IF(_xlfn.ANCHORARRAY($N5)*_xlfn.ANCHORARRAY(BP5)<_xlfn.ANCHORARRAY($L5)*_xlfn.ANCHORARRAY(WB5),(_xlfn.ANCHORARRAY($L5)*_xlfn.ANCHORARRAY(WB5) -_xlfn.ANCHORARRAY( $N5)*_xlfn.ANCHORARRAY(BP5)),0) ->  | DC5: =IF(_xlfn.ANCHORARRAY($N5)*_xlfn.ANCHORARRAY(BQ5)<_xlfn.ANCHORARRAY($L5)*_xlfn.ANCHORARRAY(WC5),(_xlfn.ANCHORARRAY($L5)*_xlfn.ANCHORARRAY(WC5) -_xlfn.ANCHORARRAY( $N5)*_xlfn.ANCHORARRAY(BQ5)),0) ->  | DD5: =IF(_xlfn.ANCHORARRAY($N5)*_xlfn.ANCHORARRAY(BR5)<_xlfn.ANCHORARRAY($L5)*_xlfn.ANCHORARRAY(WD5),(_xlfn.ANCHORARRAY($L5)*_xlfn.ANCHORARRAY(WD5) -_xlfn.ANCHORARRAY( $N5)*_xlfn.ANCHORARRAY(BR5)),0) ->  | DE5: =IF(_xlfn.ANCHORARRAY($N5)*_xlfn.ANCHORARRAY(BS5)<_xlfn.ANCHORARRAY($L5)*_xlfn.ANCHORARRAY(WE5),(_xlfn.ANCHORARRAY($L5)*_xlfn.ANCHORARRAY(WE5) -_xlfn.ANCHORARRAY( $N5)*_xlfn.ANCHORARRAY(BS5)),0) ->  | DF5: =IF(_xlfn.ANCHORARRAY($N5)*_xlfn.ANCHORARRAY(BT5)<_xlfn.ANCHORARRAY($L5)*_xlfn.ANCHORARRAY(WF5),(_xlfn.ANCHORARRAY($L5)*_xlfn.ANCHORARRAY(WF5) -_xlfn.ANCHORARRAY( $N5)*_xlfn.ANCHORARRAY(BT5)),0) ->  | DG5: =IF(_xlfn.ANCHORARRAY($N5)*_xlfn.ANCHORARRAY(BU5)<_xlfn.ANCHORARRAY($L5)*_xlfn.ANCHORARRAY(WG5),(_xlfn.ANCHORARRAY($L5)*_xlfn.ANCHORARRAY(WG5) -_xlfn.ANCHORARRAY( $N5)*_xlfn.ANCHORARRAY(BU5)),0) ->  | DH5: =IF(_xlfn.ANCHORARRAY($N5)*_xlfn.ANCHORARRAY(BV5)<_xlfn.ANCHORARRAY($L5)*_xlfn.ANCHORARRAY(WH5),(_xlfn.ANCHORARRAY($L5)*_xlfn.ANCHORARRAY(WH5) -_xlfn.ANCHORARRAY( $N5)*_xlfn.ANCHORARRAY(BV5)),0) ->  | DI5: =IF(_xlfn.ANCHORARRAY($N5)*_xlfn.ANCHORARRAY(BW5)<_xlfn.ANCHORARRAY($L5)*_xlfn.ANCHORARRAY(WI5),(_xlfn.ANCHORARRAY($L5)*_xlfn.ANCHORARRAY(WI5) -_xlfn.ANCHORARRAY( $N5)*_xlfn.ANCHORARRAY(BW5)),0) ->  | DJ5: =IF(_xlfn.ANCHORARRAY($N5)*_xlfn.ANCHORARRAY(BX5)<_xlfn.ANCHORARRAY($L5)*_xlfn.ANCHORARRAY(WJ5),(_xlfn.ANCHORARRAY($L5)*_xlfn.ANCHORARRAY(WJ5) -_xlfn.ANCHORARRAY( $N5)*_xlfn.ANCHORARRAY(BX5)),0) ->  | DK5: =IF(_xlfn.ANCHORARRAY($N5)*_xlfn.ANCHORARRAY(BY5)<_xlfn.ANCHORARRAY($L5)*_xlfn.ANCHORARRAY(WK5),(_xlfn.ANCHORARRAY($L5)*_xlfn.ANCHORARRAY(WK5) -_xlfn.ANCHORARRAY( $N5)*_xlfn.ANCHORARRAY(BY5)),0) ->  | DL5: =IF(_xlfn.ANCHORARRAY($N5)*_xlfn.ANCHORARRAY(BZ5)<_xlfn.ANCHORARRAY($L5)*_xlfn.ANCHORARRAY(WL5),(_xlfn.ANCHORARRAY($L5)*_xlfn.ANCHORARRAY(WL5) -_xlfn.ANCHORARRAY( $N5)*_xlfn.ANCHORARRAY(BZ5)),0) ->  | DM5: =IF(_xlfn.ANCHORARRAY($N5)*_xlfn.ANCHORARRAY(CA5)<_xlfn.ANCHORARRAY($L5)*_xlfn.ANCHORARRAY(WM5),(_xlfn.ANCHORARRAY($L5)*_xlfn.ANCHORARRAY(WM5) -_xlfn.ANCHORARRAY( $N5)*_xlfn.ANCHORARRAY(CA5)),0) ->  | DN5: =IF(_xlfn.ANCHORARRAY($N5)*_xlfn.ANCHORARRAY(CB5)<_xlfn.ANCHORARRAY($L5)*_xlfn.ANCHORARRAY(WN5),(_xlfn.ANCHORARRAY($L5)*_xlfn.ANCHORARRAY(WN5) -_xlfn.ANCHORARRAY( $N5)*_xlfn.ANCHORARRAY(CB5)),0) ->  | DO5: =IF(_xlfn.ANCHORARRAY($N5)*_xlfn.ANCHORARRAY(CC5)<_xlfn.ANCHORARRAY($L5)*_xlfn.ANCHORARRAY(WO5),(_xlfn.ANCHORARRAY($L5)*_xlfn.ANCHORARRAY(WO5) -_xlfn.ANCHORARRAY( $N5)*_xlfn.ANCHORARRAY(CC5)),0) ->  | DP5: =IF(_xlfn.ANCHORARRAY($N5)*_xlfn.ANCHORARRAY(CD5)<_xlfn.ANCHORARRAY($L5)*_xlfn.ANCHORARRAY(WP5),(_xlfn.ANCHORARRAY($L5)*_xlfn.ANCHORARRAY(WP5) -_xlfn.ANCHORARRAY( $N5)*_xlfn.ANCHORARRAY(CD5)),0) ->  | DQ5: =IF(_xlfn.ANCHORARRAY($N5)*_xlfn.ANCHORARRAY(CE5)<_xlfn.ANCHORARRAY($L5)*_xlfn.ANCHORARRAY(WQ5),(_xlfn.ANCHORARRAY($L5)*_xlfn.ANCHORARRAY(WQ5) -_xlfn.ANCHORARRAY( $N5)*_xlfn.ANCHORARRAY(CE5)),0) ->  | DR5: =IF(_xlfn.ANCHORARRAY($N5)*_xlfn.ANCHORARRAY(CF5)<_xlfn.ANCHORARRAY($L5)*_xlfn.ANCHORARRAY(WR5),(_xlfn.ANCHORARRAY($L5)*_xlfn.ANCHORARRAY(WR5) -_xlfn.ANCHORARRAY( $N5)*_xlfn.ANCHORARRAY(CF5)),0) ->  | DS5: =IF(_xlfn.ANCHORARRAY($N5)*_xlfn.ANCHORARRAY(CG5)<_xlfn.ANCHORARRAY($L5)*_xlfn.ANCHORARRAY(WS5),(_xlfn.ANCHORARRAY($L5)*_xlfn.ANCHORARRAY(WS5) -_xlfn.ANCHORARRAY( $N5)*_xlfn.ANCHORARRAY(CG5)),0) ->  | DT5: =IF(_xlfn.ANCHORARRAY($N5)*_xlfn.ANCHORARRAY(CH5)<_xlfn.ANCHORARRAY($L5)*_xlfn.ANCHORARRAY(WT5),(_xlfn.ANCHORARRAY($L5)*_xlfn.ANCHORARRAY(WT5) -_xlfn.ANCHORARRAY( $N5)*_xlfn.ANCHORARRAY(CH5)),0) ->  | DU5: =IF(_xlfn.ANCHORARRAY($N5)*_xlfn.ANCHORARRAY(CI5)<_xlfn.ANCHORARRAY($L5)*_xlfn.ANCHORARRAY(WU5),(_xlfn.ANCHORARRAY($L5)*_xlfn.ANCHORARRAY(WU5) -_xlfn.ANCHORARRAY( $N5)*_xlfn.ANCHORARRAY(CI5)),0) ->  | DV5: =IF(_xlfn.ANCHORARRAY($N5)*_xlfn.ANCHORARRAY(CJ5)<_xlfn.ANCHORARRAY($L5)*_xlfn.ANCHORARRAY(WV5),(_xlfn.ANCHORARRAY($L5)*_xlfn.ANCHORARRAY(WV5) -_xlfn.ANCHORARRAY( $N5)*_xlfn.ANCHORARRAY(CJ5)),0) ->  | DW5: =IF(_xlfn.ANCHORARRAY($N5)*_xlfn.ANCHORARRAY(CK5)<_xlfn.ANCHORARRAY($L5)*_xlfn.ANCHORARRAY(WW5),(_xlfn.ANCHORARRAY($L5)*_xlfn.ANCHORARRAY(WW5) -_xlfn.ANCHORARRAY( $N5)*_xlfn.ANCHORARRAY(CK5)),0) ->  | DX5: =IF(_xlfn.ANCHORARRAY($N5)*_xlfn.ANCHORARRAY(CL5)<_xlfn.ANCHORARRAY($L5)*_xlfn.ANCHORARRAY(WX5),(_xlfn.ANCHORARRAY($L5)*_xlfn.ANCHORARRAY(WX5) -_xlfn.ANCHORARRAY( $N5)*_xlfn.ANCHORARRAY(CL5)),0) ->  | DY5: =IF(_xlfn.ANCHORARRAY($N5)*_xlfn.ANCHORARRAY(CM5)<_xlfn.ANCHORARRAY($L5)*_xlfn.ANCHORARRAY(WY5),(_xlfn.ANCHORARRAY($L5)*_xlfn.ANCHORARRAY(WY5) -_xlfn.ANCHORARRAY( $N5)*_xlfn.ANCHORARRAY(CM5)),0) ->  | DZ5: =IF(_xlfn.ANCHORARRAY($N5)*_xlfn.ANCHORARRAY(CN5)<_xlfn.ANCHORARRAY($L5)*_xlfn.ANCHORARRAY(WZ5),(_xlfn.ANCHORARRAY($L5)*_xlfn.ANCHORARRAY(WZ5) -_xlfn.ANCHORARRAY( $N5)*_xlfn.ANCHORARRAY(CN5)),0) ->  | EA5: =IF(_xlfn.ANCHORARRAY($N5)*_xlfn.ANCHORARRAY(CO5)<_xlfn.ANCHORARRAY($L5)*_xlfn.ANCHORARRAY(XA5),(_xlfn.ANCHORARRAY($L5)*_xlfn.ANCHORARRAY(XA5) -_xlfn.ANCHORARRAY( $N5)*_xlfn.ANCHORARRAY(CO5)),0) ->  | EB5: =IF(_xlfn.ANCHORARRAY($N5)*_xlfn.ANCHORARRAY(CP5)<_xlfn.ANCHORARRAY($L5)*_xlfn.ANCHORARRAY(XB5),(_xlfn.ANCHORARRAY($L5)*_xlfn.ANCHORARRAY(XB5) -_xlfn.ANCHORARRAY( $N5)*_xlfn.ANCHORARRAY(CP5)),0) ->  | EC5: =_xlfn.ANCHORARRAY($C5)*_xlfn.ANCHORARRAY(S5)^(EC$4-ComResCircaDate)*(1+(0.11/6)*(EC$4-ComResCircaDate)) ->  | ED5: =_xlfn.ANCHORARRAY($EC5)*_xlfn.ANCHORARRAY(T5)^(ED$4-$EC$4) ->  | EE5: =_xlfn.ANCHORARRAY($EC5)*_xlfn.ANCHORARRAY(U5)^(EE$4-$EC$4) ->  | EF5: =_xlfn.ANCHORARRAY($EC5)*_xlfn.ANCHORARRAY(V5)^(EF$4-$EC$4) ->  | EG5: =_xlfn.ANCHORARRAY($EC5)*_xlfn.ANCHORARRAY(W5)^(EG$4-$EC$4) ->  | EH5: =_xlfn.ANCHORARRAY($EC5)*_xlfn.ANCHORARRAY(X5)^(EH$4-$EC$4) ->  | EI5: =_xlfn.ANCHORARRAY($EC5)*_xlfn.ANCHORARRAY(Y5)^(EI$4-$EC$4) ->  | EJ5: =_xlfn.ANCHORARRAY($EC5)*_xlfn.ANCHORARRAY(Z5)^(EJ$4-$EC$4) ->  | EK5: =_xlfn.ANCHORARRAY($EC5)*_xlfn.ANCHORARRAY(AA5)^(EK$4-$EC$4) ->  | EL5: =_xlfn.ANCHORARRAY($EC5)*_xlfn.ANCHORARRAY(AB5)^(EL$4-$EC$4) ->  | EM5: =_xlfn.ANCHORARRAY($EC5)*_xlfn.ANCHORARRAY(AC5)^(EM$4-$EC$4) ->  | EN5: =_xlfn.ANCHORARRAY($EC5)*_xlfn.ANCHORARRAY(AD5)^(EN$4-$EC$4) ->  | EO5: =_xlfn.ANCHORARRAY($EC5)*_xlfn.ANCHORARRAY(AE5)^(EO$4-$EC$4) ->  | EP5: =_xlfn.ANCHORARRAY($EC5)*_xlfn.ANCHORARRAY(AF5)^(EP$4-$EC$4) ->  | EQ5: =_xlfn.ANCHORARRAY($EC5)*_xlfn.ANCHORARRAY(AG5)^(EQ$4-$EC$4) ->  | ER5: =_xlfn.ANCHORARRAY($EC5)*_xlfn.ANCHORARRAY(AH5)^(ER$4-$EC$4) ->  | ES5: =_xlfn.ANCHORARRAY($EC5)*_xlfn.ANCHORARRAY(AI5)^(ES$4-$EC$4) ->  | ET5: =_xlfn.ANCHORARRAY($EC5)*_xlfn.ANCHORARRAY(AJ5)^(ET$4-$EC$4) ->  | EU5: =_xlfn.ANCHORARRAY($EC5)*_xlfn.ANCHORARRAY(AK5)^(EU$4-$EC$4) ->  | EV5: =_xlfn.ANCHORARRAY($EC5)*_xlfn.ANCHORARRAY(AL5)^(EV$4-$EC$4) ->  | EW5: =_xlfn.ANCHORARRAY($EC5)*_xlfn.ANCHORARRAY(AM5)^(EW$4-$EC$4) ->  | EX5: =_xlfn.ANCHORARRAY($EC5)*_xlfn.ANCHORARRAY(AN5)^(EX$4-$EC$4) ->  | EY5: =_xlfn.ANCHORARRAY($EC5)*_xlfn.ANCHORARRAY(AO5)^(EY$4-$EC$4) ->  | EZ5: =_xlfn.ANCHORARRAY($EC5)*_xlfn.ANCHORARRAY(AP5)^(EZ$4-$EC$4) ->  | FA5: =_xlfn.ANCHORARRAY($EC5)*_xlfn.ANCHORARRAY(AQ5)^(FA$4-$EC$4) ->  | FB5: =_xlfn.ANCHORARRAY($EC5)*_xlfn.ANCHORARRAY(AR5)^(FB$4-$EC$4) ->  | FC5: =_xlfn.ANCHORARRAY($EC5)*_xlfn.ANCHORARRAY(AS5)^(FC$4-$EC$4) ->  | FD5: =_xlfn.ANCHORARRAY($EC5)*_xlfn.ANCHORARRAY(AT5)^(FD$4-$EC$4) ->  | FE5: =_xlfn.ANCHORARRAY($EC5)*_xlfn.ANCHORARRAY(AU5)^(FE$4-$EC$4) ->  | FF5: =_xlfn.ANCHORARRAY($EC5)*_xlfn.ANCHORARRAY(AV5)^(FF$4-$EC$4) ->  | FG5: =_xlfn.ANCHORARRAY($EC5)*_xlfn.ANCHORARRAY(AW5)^(FG$4-$EC$4) ->  | FH5: =_xlfn.ANCHORARRAY($EC5)*_xlfn.ANCHORARRAY(AX5)^(FH$4-$EC$4) ->  | FI5: =_xlfn.ANCHORARRAY($EC5)*_xlfn.ANCHORARRAY(AY5)^(FI$4-$EC$4) ->  | FJ5: =_xlfn.ANCHORARRAY($EC5)*_xlfn.ANCHORARRAY(AZ5)^(FJ$4-$EC$4) ->  | FK5: =_xlfn.ANCHORARRAY($EC5)*_xlfn.ANCHORARRAY(BA5)^(FK$4-$EC$4) ->  | FL5: =_xlfn.ANCHORARRAY($EC5)*_xlfn.ANCHORARRAY(BB5)^(FL$4-$EC$4) ->  | FM5: =_xlfn.ANCHORARRAY($EC5)*_xlfn.ANCHORARRAY(BC5)^(FM$4-$EC$4) ->  | FN5: =_xlfn.ANCHORARRAY($EC5)*_xlfn.ANCHORARRAY(BD5)^(FN$4-$EC$4) ->  | FO5: =_xlfn.ANCHORARRAY(EC5)*_xlfn.ANCHORARRAY($F5) ->  | FP5: =_xlfn.ANCHORARRAY(ED5)*_xlfn.ANCHORARRAY($F5) ->  | FQ5: =_xlfn.ANCHORARRAY(EE5)*_xlfn.ANCHORARRAY($F5) ->  | FR5: =_xlfn.ANCHORARRAY(EF5)*_xlfn.ANCHORARRAY($F5) ->  | FS5: =_xlfn.ANCHORARRAY(EG5)*_xlfn.ANCHORARRAY($F5) ->  | FT5: =_xlfn.ANCHORARRAY(EH5)*_xlfn.ANCHORARRAY($F5) ->  | FU5: =_xlfn.ANCHORARRAY(EI5)*_xlfn.ANCHORARRAY($F5) ->  | FV5: =_xlfn.ANCHORARRAY(EJ5)*_xlfn.ANCHORARRAY($F5) ->  | FW5: =_xlfn.ANCHORARRAY(EK5)*_xlfn.ANCHORARRAY($F5) ->  | FX5: =_xlfn.ANCHORARRAY(EL5)*_xlfn.ANCHORARRAY($F5) ->  | FY5: =_xlfn.ANCHORARRAY(EM5)*_xlfn.ANCHORARRAY($F5) ->  | FZ5: =_xlfn.ANCHORARRAY(EN5)*_xlfn.ANCHORARRAY($F5) ->  | GA5: =_xlfn.ANCHORARRAY(EO5)*_xlfn.ANCHORARRAY($F5) ->  | GB5: =_xlfn.ANCHORARRAY(EP5)*_xlfn.ANCHORARRAY($F5) ->  | GC5: =_xlfn.ANCHORARRAY(EQ5)*_xlfn.ANCHORARRAY($F5) ->  | GD5: =_xlfn.ANCHORARRAY(ER5)*_xlfn.ANCHORARRAY($F5) ->  | GE5: =_xlfn.ANCHORARRAY(ES5)*_xlfn.ANCHORARRAY($F5) ->  | GF5: =_xlfn.ANCHORARRAY(ET5)*_xlfn.ANCHORARRAY($F5) ->  | GG5: =_xlfn.ANCHORARRAY(EU5)*_xlfn.ANCHORARRAY($F5) ->  | GH5: =_xlfn.ANCHORARRAY(EV5)*_xlfn.ANCHORARRAY($F5) ->  | GI5: =_xlfn.ANCHORARRAY(EW5)*_xlfn.ANCHORARRAY($F5) ->  | GJ5: =_xlfn.ANCHORARRAY(EX5)*_xlfn.ANCHORARRAY($F5) ->  | GK5: =_xlfn.ANCHORARRAY(EY5)*_xlfn.ANCHORARRAY($F5) ->  | GL5: =_xlfn.ANCHORARRAY(EZ5)*_xlfn.ANCHORARRAY($F5) ->  | GM5: =_xlfn.ANCHORARRAY(FA5)*_xlfn.ANCHORARRAY($F5) ->  | GN5: =_xlfn.ANCHORARRAY(FB5)*_xlfn.ANCHORARRAY($F5) ->  | GO5: =_xlfn.ANCHORARRAY(FC5)*_xlfn.ANCHORARRAY($F5) ->  | GP5: =_xlfn.ANCHORARRAY(FD5)*_xlfn.ANCHORARRAY($F5) ->  | GQ5: =_xlfn.ANCHORARRAY(FE5)*_xlfn.ANCHORARRAY($F5) ->  | GR5: =_xlfn.ANCHORARRAY(FF5)*_xlfn.ANCHORARRAY($F5) ->  | GS5: =_xlfn.ANCHORARRAY(FG5)*_xlfn.ANCHORARRAY($F5) ->  | GT5: =_xlfn.ANCHORARRAY(FH5)*_xlfn.ANCHORARRAY($F5) ->  | GU5: =_xlfn.ANCHORARRAY(FI5)*_xlfn.ANCHORARRAY($F5) ->  | GV5: =_xlfn.ANCHORARRAY(FJ5)*_xlfn.ANCHORARRAY($F5) ->  | GW5: =_xlfn.ANCHORARRAY(FK5)*_xlfn.ANCHORARRAY($F5) ->  | GX5: =_xlfn.ANCHORARRAY(FL5)*_xlfn.ANCHORARRAY($F5) ->  | GY5: =_xlfn.ANCHORARRAY(FM5)*_xlfn.ANCHORARRAY($F5) ->  | GZ5: =_xlfn.ANCHORARRAY(FN5)*_xlfn.ANCHORARRAY($F5) ->  | HA5: =_xlfn.ANCHORARRAY(FO5)*INDEX(ElecCO2[],7,MATCH(TEXT(EnergyCalc!HA$4,"0"),ElecCO2[#Headers],0)) ->  | HB5: =_xlfn.ANCHORARRAY(FP5)*INDEX(ElecCO2[],7,MATCH(TEXT(EnergyCalc!HB$4,"0"),ElecCO2[#Headers],0)) ->  | HC5: =_xlfn.ANCHORARRAY(FQ5)*INDEX(ElecCO2[],7,MATCH(TEXT(EnergyCalc!HC$4,"0"),ElecCO2[#Headers],0)) ->  | HD5: =_xlfn.ANCHORARRAY(FR5)*INDEX(ElecCO2[],7,MATCH(TEXT(EnergyCalc!HD$4,"0"),ElecCO2[#Headers],0)) ->  | HE5: =_xlfn.ANCHORARRAY(FS5)*INDEX(ElecCO2[],7,MATCH(TEXT(EnergyCalc!HE$4,"0"),ElecCO2[#Headers],0)) ->  | HF5: =_xlfn.ANCHORARRAY(FT5)*INDEX(ElecCO2[],7,MATCH(TEXT(EnergyCalc!HF$4,"0"),ElecCO2[#Headers],0)) ->  | HG5: =_xlfn.ANCHORARRAY(FU5)*INDEX(ElecCO2[],7,MATCH(TEXT(EnergyCalc!HG$4,"0"),ElecCO2[#Headers],0)) ->  | HH5: =_xlfn.ANCHORARRAY(FV5)*INDEX(ElecCO2[],7,MATCH(TEXT(EnergyCalc!HH$4,"0"),ElecCO2[#Headers],0)) ->  | HI5: =_xlfn.ANCHORARRAY(FW5)*INDEX(ElecCO2[],7,MATCH(TEXT(EnergyCalc!HI$4,"0"),ElecCO2[#Headers],0)) ->  | HJ5: =_xlfn.ANCHORARRAY(FX5)*INDEX(ElecCO2[],7,MATCH(TEXT(EnergyCalc!HJ$4,"0"),ElecCO2[#Headers],0)) ->  | HK5: =_xlfn.ANCHORARRAY(FY5)*INDEX(ElecCO2[],7,MATCH(TEXT(EnergyCalc!HK$4,"0"),ElecCO2[#Headers],0)) ->  | HL5: =_xlfn.ANCHORARRAY(FZ5)*INDEX(ElecCO2[],7,MATCH(TEXT(EnergyCalc!HL$4,"0"),ElecCO2[#Headers],0)) ->  | HM5: =_xlfn.ANCHORARRAY(GA5)*INDEX(ElecCO2[],7,MATCH(TEXT(EnergyCalc!HM$4,"0"),ElecCO2[#Headers],0)) ->  | HN5: =_xlfn.ANCHORARRAY(GB5)*INDEX(ElecCO2[],7,MATCH(TEXT(EnergyCalc!HN$4,"0"),ElecCO2[#Headers],0)) ->  | HO5: =_xlfn.ANCHORARRAY(GC5)*INDEX(ElecCO2[],7,MATCH(TEXT(EnergyCalc!HO$4,"0"),ElecCO2[#Headers],0)) ->  | HP5: =_xlfn.ANCHORARRAY(GD5)*INDEX(ElecCO2[],7,MATCH(TEXT(EnergyCalc!HP$4,"0"),ElecCO2[#Headers],0)) ->  | HQ5: =_xlfn.ANCHORARRAY(GE5)*INDEX(ElecCO2[],7,MATCH(TEXT(EnergyCalc!HQ$4,"0"),ElecCO2[#Headers],0)) ->  | HR5: =_xlfn.ANCHORARRAY(GF5)*INDEX(ElecCO2[],7,MATCH(TEXT(EnergyCalc!HR$4,"0"),ElecCO2[#Headers],0)) ->  | HS5: =_xlfn.ANCHORARRAY(GG5)*INDEX(ElecCO2[],7,MATCH(TEXT(EnergyCalc!HS$4,"0"),ElecCO2[#Headers],0)) ->  | HT5: =_xlfn.ANCHORARRAY(GH5)*INDEX(ElecCO2[],7,MATCH(TEXT(EnergyCalc!HT$4,"0"),ElecCO2[#Headers],0)) ->  | HU5: =_xlfn.ANCHORARRAY(GI5)*INDEX(ElecCO2[],7,MATCH(TEXT(EnergyCalc!HU$4,"0"),ElecCO2[#Headers],0)) ->  | HV5: =_xlfn.ANCHORARRAY(GJ5)*INDEX(ElecCO2[],7,MATCH(TEXT(EnergyCalc!HV$4,"0"),ElecCO2[#Headers],0)) ->  | HW5: =_xlfn.ANCHORARRAY(GK5)*INDEX(ElecCO2[],7,MATCH(TEXT(EnergyCalc!HW$4,"0"),ElecCO2[#Headers],0)) ->  | HX5: =_xlfn.ANCHORARRAY(GL5)*INDEX(ElecCO2[],7,MATCH(TEXT(EnergyCalc!HX$4,"0"),ElecCO2[#Headers],0)) ->  | HY5: =_xlfn.ANCHORARRAY(GM5)*INDEX(ElecCO2[],7,MATCH(TEXT(EnergyCalc!HY$4,"0"),ElecCO2[#Headers],0)) ->  | HZ5: =_xlfn.ANCHORARRAY(GN5)*INDEX(ElecCO2[],7,MATCH(TEXT(EnergyCalc!HZ$4,"0"),ElecCO2[#Headers],0)) ->  | IA5: =_xlfn.ANCHORARRAY(GO5)*INDEX(ElecCO2[],7,MATCH(TEXT(EnergyCalc!IA$4,"0"),ElecCO2[#Headers],0)) ->  | IB5: =_xlfn.ANCHORARRAY(GP5)*INDEX(ElecCO2[],7,MATCH(TEXT(EnergyCalc!IB$4,"0"),ElecCO2[#Headers],0)) ->  | IC5: =_xlfn.ANCHORARRAY(GQ5)*INDEX(ElecCO2[],7,MATCH(TEXT(EnergyCalc!IC$4,"0"),ElecCO2[#Headers],0)) ->  | ID5: =_xlfn.ANCHORARRAY(GR5)*INDEX(ElecCO2[],7,MATCH(TEXT(EnergyCalc!ID$4,"0"),ElecCO2[#Headers],0)) ->  | IE5: =_xlfn.ANCHORARRAY(GS5)*INDEX(ElecCO2[],7,MATCH(TEXT(EnergyCalc!IE$4,"0"),ElecCO2[#Headers],0)) ->  | IF5: =_xlfn.ANCHORARRAY(GT5)*INDEX(ElecCO2[],7,MATCH(TEXT(EnergyCalc!IF$4,"0"),ElecCO2[#Headers],0)) ->  | IG5: =_xlfn.ANCHORARRAY(GU5)*INDEX(ElecCO2[],7,MATCH(TEXT(EnergyCalc!IG$4,"0"),ElecCO2[#Headers],0)) ->  | IH5: =_xlfn.ANCHORARRAY(GV5)*INDEX(ElecCO2[],7,MATCH(TEXT(EnergyCalc!IH$4,"0"),ElecCO2[#Headers],0)) ->  | II5: =_xlfn.ANCHORARRAY(GW5)*INDEX(ElecCO2[],7,MATCH(TEXT(EnergyCalc!II$4,"0"),ElecCO2[#Headers],0)) ->  | IJ5: =_xlfn.ANCHORARRAY(GX5)*INDEX(ElecCO2[],7,MATCH(TEXT(EnergyCalc!IJ$4,"0"),ElecCO2[#Headers],0)) ->  | IK5: =_xlfn.ANCHORARRAY(GY5)*INDEX(ElecCO2[],7,MATCH(TEXT(EnergyCalc!IK$4,"0"),ElecCO2[#Headers],0)) ->  | IL5: =_xlfn.ANCHORARRAY(GZ5)*INDEX(ElecCO2[],7,MATCH(TEXT(EnergyCalc!IL$4,"0"),ElecCO2[#Headers],0)) ->  | IM5: =_xlfn.ANCHORARRAY(FO5)*INDEX(ElecCO2[],7,MATCH(TEXT('Topic 3 Calculator'!$D$18,"0"),ElecCO2[#Headers],0)) ->  | IN5: =_xlfn.ANCHORARRAY(FP5)*INDEX(ElecCO2[],7,MATCH(TEXT('Topic 3 Calculator'!$D$18,"0"),ElecCO2[#Headers],0)) ->  | IO5: =_xlfn.ANCHORARRAY(FQ5)*INDEX(ElecCO2[],7,MATCH(TEXT('Topic 3 Calculator'!$D$18,"0"),ElecCO2[#Headers],0)) ->  | IP5: =_xlfn.ANCHORARRAY(FR5)*INDEX(ElecCO2[],7,MATCH(TEXT('Topic 3 Calculator'!$D$18,"0"),ElecCO2[#Headers],0)) ->  | IQ5: =_xlfn.ANCHORARRAY(FS5)*INDEX(ElecCO2[],7,MATCH(TEXT('Topic 3 Calculator'!$D$18,"0"),ElecCO2[#Headers],0)) ->  | IR5: =_xlfn.ANCHORARRAY(FT5)*INDEX(ElecCO2[],7,MATCH(TEXT('Topic 3 Calculator'!$D$18,"0"),ElecCO2[#Headers],0)) ->  | IS5: =_xlfn.ANCHORARRAY(FU5)*INDEX(ElecCO2[],7,MATCH(TEXT('Topic 3 Calculator'!$D$18,"0"),ElecCO2[#Headers],0)) ->  | IT5: =_xlfn.ANCHORARRAY(FV5)*INDEX(ElecCO2[],7,MATCH(TEXT('Topic 3 Calculator'!$D$18,"0"),ElecCO2[#Headers],0)) ->  | IU5: =_xlfn.ANCHORARRAY(FW5)*INDEX(ElecCO2[],7,MATCH(TEXT('Topic 3 Calculator'!$D$18,"0"),ElecCO2[#Headers],0)) ->  | IV5: =_xlfn.ANCHORARRAY(FX5)*INDEX(ElecCO2[],7,MATCH(TEXT('Topic 3 Calculator'!$D$18,"0"),ElecCO2[#Headers],0)) ->  | IW5: =_xlfn.ANCHORARRAY(FY5)*INDEX(ElecCO2[],7,MATCH(TEXT('Topic 3 Calculator'!$D$18,"0"),ElecCO2[#Headers],0)) ->  | IX5: =_xlfn.ANCHORARRAY(FZ5)*INDEX(ElecCO2[],7,MATCH(TEXT('Topic 3 Calculator'!$D$18,"0"),ElecCO2[#Headers],0)) ->  | IY5: =_xlfn.ANCHORARRAY(GA5)*INDEX(ElecCO2[],7,MATCH(TEXT('Topic 3 Calculator'!$D$18,"0"),ElecCO2[#Headers],0)) ->  | IZ5: =_xlfn.ANCHORARRAY(GB5)*INDEX(ElecCO2[],7,MATCH(TEXT('Topic 3 Calculator'!$D$18,"0"),ElecCO2[#Headers],0)) ->  | JA5: =_xlfn.ANCHORARRAY(GC5)*INDEX(ElecCO2[],7,MATCH(TEXT('Topic 3 Calculator'!$D$18,"0"),ElecCO2[#Headers],0)) ->  | JB5: =_xlfn.ANCHORARRAY(GD5)*INDEX(ElecCO2[],7,MATCH(TEXT('Topic 3 Calculator'!$D$18,"0"),ElecCO2[#Headers],0)) ->  | JC5: =_xlfn.ANCHORARRAY(GE5)*INDEX(ElecCO2[],7,MATCH(TEXT('Topic 3 Calculator'!$D$18,"0"),ElecCO2[#Headers],0)) ->  | JD5: =_xlfn.ANCHORARRAY(GF5)*INDEX(ElecCO2[],7,MATCH(TEXT('Topic 3 Calculator'!$D$18,"0"),ElecCO2[#Headers],0)) ->  | JE5: =_xlfn.ANCHORARRAY(GG5)*INDEX(ElecCO2[],7,MATCH(TEXT('Topic 3 Calculator'!$D$18,"0"),ElecCO2[#Headers],0)) ->  | JF5: =_xlfn.ANCHORARRAY(GH5)*INDEX(ElecCO2[],7,MATCH(TEXT('Topic 3 Calculator'!$D$18,"0"),ElecCO2[#Headers],0)) ->  | JG5: =_xlfn.ANCHORARRAY(GI5)*INDEX(ElecCO2[],7,MATCH(TEXT('Topic 3 Calculator'!$D$18,"0"),ElecCO2[#Headers],0)) ->  | JH5: =_xlfn.ANCHORARRAY(GJ5)*INDEX(ElecCO2[],7,MATCH(TEXT('Topic 3 Calculator'!$D$18,"0"),ElecCO2[#Headers],0)) ->  | JI5: =_xlfn.ANCHORARRAY(GK5)*INDEX(ElecCO2[],7,MATCH(TEXT('Topic 3 Calculator'!$D$18,"0"),ElecCO2[#Headers],0)) ->  | JJ5: =_xlfn.ANCHORARRAY(GL5)*INDEX(ElecCO2[],7,MATCH(TEXT('Topic 3 Calculator'!$D$18,"0"),ElecCO2[#Headers],0)) ->  | JK5: =_xlfn.ANCHORARRAY(GM5)*INDEX(ElecCO2[],7,MATCH(TEXT('Topic 3 Calculator'!$D$18,"0"),ElecCO2[#Headers],0)) ->  | JL5: =_xlfn.ANCHORARRAY(GN5)*INDEX(ElecCO2[],7,MATCH(TEXT('Topic 3 Calculator'!$D$18,"0"),ElecCO2[#Headers],0)) ->  | JM5: =_xlfn.ANCHORARRAY(GO5)*INDEX(ElecCO2[],7,MATCH(TEXT('Topic 3 Calculator'!$D$18,"0"),ElecCO2[#Headers],0)) ->  | JN5: =_xlfn.ANCHORARRAY(GP5)*INDEX(ElecCO2[],7,MATCH(TEXT('Topic 3 Calculator'!$D$18,"0"),ElecCO2[#Headers],0)) ->  | JO5: =_xlfn.ANCHORARRAY(GQ5)*INDEX(ElecCO2[],7,MATCH(TEXT('Topic 3 Calculator'!$D$18,"0"),ElecCO2[#Headers],0)) ->  | JP5: =_xlfn.ANCHORARRAY(GR5)*INDEX(ElecCO2[],7,MATCH(TEXT('Topic 3 Calculator'!$D$18,"0"),ElecCO2[#Headers],0)) ->  | JQ5: =_xlfn.ANCHORARRAY(GS5)*INDEX(ElecCO2[],7,MATCH(TEXT('Topic 3 Calculator'!$D$18,"0"),ElecCO2[#Headers],0)) ->  | JR5: =_xlfn.ANCHORARRAY(GT5)*INDEX(ElecCO2[],7,MATCH(TEXT('Topic 3 Calculator'!$D$18,"0"),ElecCO2[#Headers],0)) ->  | JS5: =_xlfn.ANCHORARRAY(GU5)*INDEX(ElecCO2[],7,MATCH(TEXT('Topic 3 Calculator'!$D$18,"0"),ElecCO2[#Headers],0)) ->  | JT5: =_xlfn.ANCHORARRAY(GV5)*INDEX(ElecCO2[],7,MATCH(TEXT('Topic 3 Calculator'!$D$18,"0"),ElecCO2[#Headers],0)) ->  | JU5: =_xlfn.ANCHORARRAY(GW5)*INDEX(ElecCO2[],7,MATCH(TEXT('Topic 3 Calculator'!$D$18,"0"),ElecCO2[#Headers],0)) ->  | JV5: =_xlfn.ANCHORARRAY(GX5)*INDEX(ElecCO2[],7,MATCH(TEXT('Topic 3 Calculator'!$D$18,"0"),ElecCO2[#Headers],0)) ->  | JW5: =_xlfn.ANCHORARRAY(GY5)*INDEX(ElecCO2[],7,MATCH(TEXT('Topic 3 Calculator'!$D$18,"0"),ElecCO2[#Headers],0)) ->  | JX5: =_xlfn.ANCHORARRAY(GZ5)*INDEX(ElecCO2[],7,MATCH(TEXT('Topic 3 Calculator'!$D$18,"0"),ElecCO2[#Headers],0)) ->  | JY5: =_xlfn.ANCHORARRAY(EC5)*_xlfn.ANCHORARRAY($G5) ->  | JZ5: =_xlfn.ANCHORARRAY(ED5)*_xlfn.ANCHORARRAY($G5) ->  | KA5: =_xlfn.ANCHORARRAY(EE5)*_xlfn.ANCHORARRAY($G5) ->  | KB5: =_xlfn.ANCHORARRAY(EF5)*_xlfn.ANCHORARRAY($G5) ->  | KC5: =_xlfn.ANCHORARRAY(EG5)*_xlfn.ANCHORARRAY($G5) ->  | KD5: =_xlfn.ANCHORARRAY(EH5)*_xlfn.ANCHORARRAY($G5) ->  | KE5: =_xlfn.ANCHORARRAY(EI5)*_xlfn.ANCHORARRAY($G5) ->  | KF5: =_xlfn.ANCHORARRAY(EJ5)*_xlfn.ANCHORARRAY($G5) ->  | KG5: =_xlfn.ANCHORARRAY(EK5)*_xlfn.ANCHORARRAY($G5) ->  | KH5: =_xlfn.ANCHORARRAY(EL5)*_xlfn.ANCHORARRAY($G5) ->  | KI5: =_xlfn.ANCHORARRAY(EM5)*_xlfn.ANCHORARRAY($G5) ->  | KJ5: =_xlfn.ANCHORARRAY(EN5)*_xlfn.ANCHORARRAY($G5) ->  | KK5: =_xlfn.ANCHORARRAY(EO5)*_xlfn.ANCHORARRAY($G5) ->  | KL5: =_xlfn.ANCHORARRAY(EP5)*_xlfn.ANCHORARRAY($G5) ->  | KM5: =_xlfn.ANCHORARRAY(EQ5)*_xlfn.ANCHORARRAY($G5) ->  | KN5: =_xlfn.ANCHORARRAY(ER5)*_xlfn.ANCHORARRAY($G5) ->  | KO5: =_xlfn.ANCHORARRAY(ES5)*_xlfn.ANCHORARRAY($G5) ->  | KP5: =_xlfn.ANCHORARRAY(ET5)*_xlfn.ANCHORARRAY($G5) ->  | KQ5: =_xlfn.ANCHORARRAY(EU5)*_xlfn.ANCHORARRAY($G5) ->  | KR5: =_xlfn.ANCHORARRAY(EV5)*_xlfn.ANCHORARRAY($G5) ->  | KS5: =_xlfn.ANCHORARRAY(EW5)*_xlfn.ANCHORARRAY($G5) ->  | KT5: =_xlfn.ANCHORARRAY(EX5)*_xlfn.ANCHORARRAY($G5) ->  | KU5: =_xlfn.ANCHORARRAY(EY5)*_xlfn.ANCHORARRAY($G5) ->  | KV5: =_xlfn.ANCHORARRAY(EZ5)*_xlfn.ANCHORARRAY($G5) ->  | KW5: =_xlfn.ANCHORARRAY(FA5)*_xlfn.ANCHORARRAY($G5) ->  | KX5: =_xlfn.ANCHORARRAY(FB5)*_xlfn.ANCHORARRAY($G5) ->  | KY5: =_xlfn.ANCHORARRAY(FC5)*_xlfn.ANCHORARRAY($G5) ->  | KZ5: =_xlfn.ANCHORARRAY(FD5)*_xlfn.ANCHORARRAY($G5) ->  | LA5: =_xlfn.ANCHORARRAY(FE5)*_xlfn.ANCHORARRAY($G5) ->  | LB5: =_xlfn.ANCHORARRAY(FF5)*_xlfn.ANCHORARRAY($G5) ->  | LC5: =_xlfn.ANCHORARRAY(FG5)*_xlfn.ANCHORARRAY($G5) ->  | LD5: =_xlfn.ANCHORARRAY(FH5)*_xlfn.ANCHORARRAY($G5) ->  | LE5: =_xlfn.ANCHORARRAY(FI5)*_xlfn.ANCHORARRAY($G5) ->  | LF5: =_xlfn.ANCHORARRAY(FJ5)*_xlfn.ANCHORARRAY($G5) ->  | LG5: =_xlfn.ANCHORARRAY(FK5)*_xlfn.ANCHORARRAY($G5) ->  | LH5: =_xlfn.ANCHORARRAY(FL5)*_xlfn.ANCHORARRAY($G5) ->  | LI5: =_xlfn.ANCHORARRAY(FM5)*_xlfn.ANCHORARRAY($G5) ->  | LJ5: =_xlfn.ANCHORARRAY(FN5)*_xlfn.ANCHORARRAY($G5) ->  | LK5: =_xlfn.ANCHORARRAY(JY5)*INDEX(GasCO2[],7,MATCH(TEXT(LK$4,"0"),GasCO2[#Headers],0)) ->  | LL5: =_xlfn.ANCHORARRAY(JZ5)*INDEX(GasCO2[],7,MATCH(TEXT(LL$4,"0"),GasCO2[#Headers],0)) ->  | LM5: =_xlfn.ANCHORARRAY(KA5)*INDEX(GasCO2[],7,MATCH(TEXT(LM$4,"0"),GasCO2[#Headers],0)) ->  | LN5: =_xlfn.ANCHORARRAY(KB5)*INDEX(GasCO2[],7,MATCH(TEXT(LN$4,"0"),GasCO2[#Headers],0)) ->  | LO5: =_xlfn.ANCHORARRAY(KC5)*INDEX(GasCO2[],7,MATCH(TEXT(LO$4,"0"),GasCO2[#Headers],0)) ->  | LP5: =_xlfn.ANCHORARRAY(KD5)*INDEX(GasCO2[],7,MATCH(TEXT(LP$4,"0"),GasCO2[#Headers],0)) ->  | LQ5: =_xlfn.ANCHORARRAY(KE5)*INDEX(GasCO2[],7,MATCH(TEXT(LQ$4,"0"),GasCO2[#Headers],0)) ->  | LR5: =_xlfn.ANCHORARRAY(KF5)*INDEX(GasCO2[],7,MATCH(TEXT(LR$4,"0"),GasCO2[#Headers],0)) ->  | LS5: =_xlfn.ANCHORARRAY(KG5)*INDEX(GasCO2[],7,MATCH(TEXT(LS$4,"0"),GasCO2[#Headers],0)) ->  | LT5: =_xlfn.ANCHORARRAY(KH5)*INDEX(GasCO2[],7,MATCH(TEXT(LT$4,"0"),GasCO2[#Headers],0)) ->  | LU5: =_xlfn.ANCHORARRAY(KI5)*INDEX(GasCO2[],7,MATCH(TEXT(LU$4,"0"),GasCO2[#Headers],0)) ->  | LV5: =_xlfn.ANCHORARRAY(KJ5)*INDEX(GasCO2[],7,MATCH(TEXT(LV$4,"0"),GasCO2[#Headers],0)) ->  | LW5: =_xlfn.ANCHORARRAY(KK5)*INDEX(GasCO2[],7,MATCH(TEXT(LW$4,"0"),GasCO2[#Headers],0)) ->  | LX5: =_xlfn.ANCHORARRAY(KL5)*INDEX(GasCO2[],7,MATCH(TEXT(LX$4,"0"),GasCO2[#Headers],0)) ->  | LY5: =_xlfn.ANCHORARRAY(KM5)*INDEX(GasCO2[],7,MATCH(TEXT(LY$4,"0"),GasCO2[#Headers],0)) ->  | LZ5: =_xlfn.ANCHORARRAY(KN5)*INDEX(GasCO2[],7,MATCH(TEXT(LZ$4,"0"),GasCO2[#Headers],0)) ->  | MA5: =_xlfn.ANCHORARRAY(KO5)*INDEX(GasCO2[],7,MATCH(TEXT(MA$4,"0"),GasCO2[#Headers],0)) ->  | MB5: =_xlfn.ANCHORARRAY(KP5)*INDEX(GasCO2[],7,MATCH(TEXT(MB$4,"0"),GasCO2[#Headers],0)) ->  | MC5: =_xlfn.ANCHORARRAY(KQ5)*INDEX(GasCO2[],7,MATCH(TEXT(MC$4,"0"),GasCO2[#Headers],0)) ->  | MD5: =_xlfn.ANCHORARRAY(KR5)*INDEX(GasCO2[],7,MATCH(TEXT(MD$4,"0"),GasCO2[#Headers],0)) ->  | ME5: =_xlfn.ANCHORARRAY(KS5)*INDEX(GasCO2[],7,MATCH(TEXT(ME$4,"0"),GasCO2[#Headers],0)) ->  | MF5: =_xlfn.ANCHORARRAY(KT5)*INDEX(GasCO2[],7,MATCH(TEXT(MF$4,"0"),GasCO2[#Headers],0)) ->  | MG5: =_xlfn.ANCHORARRAY(KU5)*INDEX(GasCO2[],7,MATCH(TEXT(MG$4,"0"),GasCO2[#Headers],0)) ->  | MH5: =_xlfn.ANCHORARRAY(KV5)*INDEX(GasCO2[],7,MATCH(TEXT(MH$4,"0"),GasCO2[#Headers],0)) ->  | MI5: =_xlfn.ANCHORARRAY(KW5)*INDEX(GasCO2[],7,MATCH(TEXT(MI$4,"0"),GasCO2[#Headers],0)) ->  | MJ5: =_xlfn.ANCHORARRAY(KX5)*INDEX(GasCO2[],7,MATCH(TEXT(MJ$4,"0"),GasCO2[#Headers],0)) ->  | MK5: =_xlfn.ANCHORARRAY(KY5)*INDEX(GasCO2[],7,MATCH(TEXT(MK$4,"0"),GasCO2[#Headers],0)) ->  | ML5: =_xlfn.ANCHORARRAY(KZ5)*INDEX(GasCO2[],7,MATCH(TEXT(ML$4,"0"),GasCO2[#Headers],0)) ->  | MM5: =_xlfn.ANCHORARRAY(LA5)*INDEX(GasCO2[],7,MATCH(TEXT(MM$4,"0"),GasCO2[#Headers],0)) ->  | MN5: =_xlfn.ANCHORARRAY(LB5)*INDEX(GasCO2[],7,MATCH(TEXT(MN$4,"0"),GasCO2[#Headers],0)) ->  | MO5: =_xlfn.ANCHORARRAY(LC5)*INDEX(GasCO2[],7,MATCH(TEXT(MO$4,"0"),GasCO2[#Headers],0)) ->  | MP5: =_xlfn.ANCHORARRAY(LD5)*INDEX(GasCO2[],7,MATCH(TEXT(MP$4,"0"),GasCO2[#Headers],0)) ->  | MQ5: =_xlfn.ANCHORARRAY(LE5)*INDEX(GasCO2[],7,MATCH(TEXT(MQ$4,"0"),GasCO2[#Headers],0)) ->  | MR5: =_xlfn.ANCHORARRAY(LF5)*INDEX(GasCO2[],7,MATCH(TEXT(MR$4,"0"),GasCO2[#Headers],0)) ->  | MS5: =_xlfn.ANCHORARRAY(LG5)*INDEX(GasCO2[],7,MATCH(TEXT(MS$4,"0"),GasCO2[#Headers],0)) ->  | MT5: =_xlfn.ANCHORARRAY(LH5)*INDEX(GasCO2[],7,MATCH(TEXT(MT$4,"0"),GasCO2[#Headers],0)) ->  | MU5: =_xlfn.ANCHORARRAY(LI5)*INDEX(GasCO2[],7,MATCH(TEXT(MU$4,"0"),GasCO2[#Headers],0)) ->  | MV5: =_xlfn.ANCHORARRAY(LJ5)*INDEX(GasCO2[],7,MATCH(TEXT(MV$4,"0"),GasCO2[#Headers],0)) ->  | MW5: =_xlfn.ANCHORARRAY(JY5)*INDEX(GasCO2[],7,MATCH(TEXT('Topic 3 Calculator'!$D$18,"0"),GasCO2[#Headers],0)) ->  | MX5: =_xlfn.ANCHORARRAY(JZ5)*INDEX(GasCO2[],7,MATCH(TEXT('Topic 3 Calculator'!$D$18,"0"),GasCO2[#Headers],0)) ->  | MY5: =_xlfn.ANCHORARRAY(KA5)*INDEX(GasCO2[],7,MATCH(TEXT('Topic 3 Calculator'!$D$18,"0"),GasCO2[#Headers],0)) ->  | MZ5: =_xlfn.ANCHORARRAY(KB5)*INDEX(GasCO2[],7,MATCH(TEXT('Topic 3 Calculator'!$D$18,"0"),GasCO2[#Headers],0)) ->  | NA5: =_xlfn.ANCHORARRAY(KC5)*INDEX(GasCO2[],7,MATCH(TEXT('Topic 3 Calculator'!$D$18,"0"),GasCO2[#Headers],0)) ->  | NB5: =_xlfn.ANCHORARRAY(KD5)*INDEX(GasCO2[],7,MATCH(TEXT('Topic 3 Calculator'!$D$18,"0"),GasCO2[#Headers],0)) ->  | NC5: =_xlfn.ANCHORARRAY(KE5)*INDEX(GasCO2[],7,MATCH(TEXT('Topic 3 Calculator'!$D$18,"0"),GasCO2[#Headers],0)) ->  | ND5: =_xlfn.ANCHORARRAY(KF5)*INDEX(GasCO2[],7,MATCH(TEXT('Topic 3 Calculator'!$D$18,"0"),GasCO2[#Headers],0)) ->  | NE5: =_xlfn.ANCHORARRAY(KG5)*INDEX(GasCO2[],7,MATCH(TEXT('Topic 3 Calculator'!$D$18,"0"),GasCO2[#Headers],0)) ->  | NF5: =_xlfn.ANCHORARRAY(KH5)*INDEX(GasCO2[],7,MATCH(TEXT('Topic 3 Calculator'!$D$18,"0"),GasCO2[#Headers],0)) ->  | NG5: =_xlfn.ANCHORARRAY(KI5)*INDEX(GasCO2[],7,MATCH(TEXT('Topic 3 Calculator'!$D$18,"0"),GasCO2[#Headers],0)) ->  | NH5: =_xlfn.ANCHORARRAY(KJ5)*INDEX(GasCO2[],7,MATCH(TEXT('Topic 3 Calculator'!$D$18,"0"),GasCO2[#Headers],0)) ->  | NI5: =_xlfn.ANCHORARRAY(KK5)*INDEX(GasCO2[],7,MATCH(TEXT('Topic 3 Calculator'!$D$18,"0"),GasCO2[#Headers],0)) ->  | NJ5: =_xlfn.ANCHORARRAY(KL5)*INDEX(GasCO2[],7,MATCH(TEXT('Topic 3 Calculator'!$D$18,"0"),GasCO2[#Headers],0)) ->  | NK5: =_xlfn.ANCHORARRAY(KM5)*INDEX(GasCO2[],7,MATCH(TEXT('Topic 3 Calculator'!$D$18,"0"),GasCO2[#Headers],0)) ->  | NL5: =_xlfn.ANCHORARRAY(KN5)*INDEX(GasCO2[],7,MATCH(TEXT('Topic 3 Calculator'!$D$18,"0"),GasCO2[#Headers],0)) ->  | NM5: =_xlfn.ANCHORARRAY(KO5)*INDEX(GasCO2[],7,MATCH(TEXT('Topic 3 Calculator'!$D$18,"0"),GasCO2[#Headers],0)) ->  | NN5: =_xlfn.ANCHORARRAY(KP5)*INDEX(GasCO2[],7,MATCH(TEXT('Topic 3 Calculator'!$D$18,"0"),GasCO2[#Headers],0)) ->  | NO5: =_xlfn.ANCHORARRAY(KQ5)*INDEX(GasCO2[],7,MATCH(TEXT('Topic 3 Calculator'!$D$18,"0"),GasCO2[#Headers],0)) ->  | NP5: =_xlfn.ANCHORARRAY(KR5)*INDEX(GasCO2[],7,MATCH(TEXT('Topic 3 Calculator'!$D$18,"0"),GasCO2[#Headers],0)) ->  | NQ5: =_xlfn.ANCHORARRAY(KS5)*INDEX(GasCO2[],7,MATCH(TEXT('Topic 3 Calculator'!$D$18,"0"),GasCO2[#Headers],0)) ->  | NR5: =_xlfn.ANCHORARRAY(KT5)*INDEX(GasCO2[],7,MATCH(TEXT('Topic 3 Calculator'!$D$18,"0"),GasCO2[#Headers],0)) ->  | NS5: =_xlfn.ANCHORARRAY(KU5)*INDEX(GasCO2[],7,MATCH(TEXT('Topic 3 Calculator'!$D$18,"0"),GasCO2[#Headers],0)) ->  | NT5: =_xlfn.ANCHORARRAY(KV5)*INDEX(GasCO2[],7,MATCH(TEXT('Topic 3 Calculator'!$D$18,"0"),GasCO2[#Headers],0)) ->  | NU5: =_xlfn.ANCHORARRAY(KW5)*INDEX(GasCO2[],7,MATCH(TEXT('Topic 3 Calculator'!$D$18,"0"),GasCO2[#Headers],0)) ->  | NV5: =_xlfn.ANCHORARRAY(KX5)*INDEX(GasCO2[],7,MATCH(TEXT('Topic 3 Calculator'!$D$18,"0"),GasCO2[#Headers],0)) ->  | NW5: =_xlfn.ANCHORARRAY(KY5)*INDEX(GasCO2[],7,MATCH(TEXT('Topic 3 Calculator'!$D$18,"0"),GasCO2[#Headers],0)) ->  | NX5: =_xlfn.ANCHORARRAY(KZ5)*INDEX(GasCO2[],7,MATCH(TEXT('Topic 3 Calculator'!$D$18,"0"),GasCO2[#Headers],0)) ->  | NY5: =_xlfn.ANCHORARRAY(LA5)*INDEX(GasCO2[],7,MATCH(TEXT('Topic 3 Calculator'!$D$18,"0"),GasCO2[#Headers],0)) ->  | NZ5: =_xlfn.ANCHORARRAY(LB5)*INDEX(GasCO2[],7,MATCH(TEXT('Topic 3 Calculator'!$D$18,"0"),GasCO2[#Headers],0)) ->  | OA5: =_xlfn.ANCHORARRAY(LC5)*INDEX(GasCO2[],7,MATCH(TEXT('Topic 3 Calculator'!$D$18,"0"),GasCO2[#Headers],0)) ->  | OB5: =_xlfn.ANCHORARRAY(LD5)*INDEX(GasCO2[],7,MATCH(TEXT('Topic 3 Calculator'!$D$18,"0"),GasCO2[#Headers],0)) ->  | OC5: =_xlfn.ANCHORARRAY(LE5)*INDEX(GasCO2[],7,MATCH(TEXT('Topic 3 Calculator'!$D$18,"0"),GasCO2[#Headers],0)) ->  | OD5: =_xlfn.ANCHORARRAY(LF5)*INDEX(GasCO2[],7,MATCH(TEXT('Topic 3 Calculator'!$D$18,"0"),GasCO2[#Headers],0)) ->  | OE5: =_xlfn.ANCHORARRAY(LG5)*INDEX(GasCO2[],7,MATCH(TEXT('Topic 3 Calculator'!$D$18,"0"),GasCO2[#Headers],0)) ->  | OF5: =_xlfn.ANCHORARRAY(LH5)*INDEX(GasCO2[],7,MATCH(TEXT('Topic 3 Calculator'!$D$18,"0"),GasCO2[#Headers],0)) ->  | OG5: =_xlfn.ANCHORARRAY(LI5)*INDEX(GasCO2[],7,MATCH(TEXT('Topic 3 Calculator'!$D$18,"0"),GasCO2[#Headers],0)) ->  | OH5: =_xlfn.ANCHORARRAY(LJ5)*INDEX(GasCO2[],7,MATCH(TEXT('Topic 3 Calculator'!$D$18,"0"),GasCO2[#Headers],0)) ->  | OI5: =_xlfn.ANCHORARRAY(FO5)-(1-_xlfn.ANCHORARRAY(BE5))*_xlfn.ANCHORARRAY(FO5) ->  | OJ5: =IF(_xlfn.ANCHORARRAY($Q5)*_xlfn.ANCHORARRAY(BF5)<_xlfn.ANCHORARRAY($P5)*_xlfn.ANCHORARRAY(VR5),IFERROR(_xlfn.ANCHORARRAY(OI5)/_xlfn.ANCHORARRAY(EC5)*_xlfn.ANCHORARRAY(ED5),0),_xlfn.ANCHORARRAY(BF5)*_xlfn.ANCHORARRAY(FP5)) ->  | OK5: =IF(_xlfn.ANCHORARRAY($Q5)*_xlfn.ANCHORARRAY(BG5)<_xlfn.ANCHORARRAY($P5)*_xlfn.ANCHORARRAY(VS5),IFERROR(_xlfn.ANCHORARRAY(OJ5)/_xlfn.ANCHORARRAY(ED5)*_xlfn.ANCHORARRAY(EE5),0),_xlfn.ANCHORARRAY(BG5)*_xlfn.ANCHORARRAY(FQ5)) ->  | OL5: =IF(_xlfn.ANCHORARRAY($Q5)*_xlfn.ANCHORARRAY(BH5)<_xlfn.ANCHORARRAY($P5)*_xlfn.ANCHORARRAY(VT5),IFERROR(_xlfn.ANCHORARRAY(OK5)/_xlfn.ANCHORARRAY(EE5)*_xlfn.ANCHORARRAY(EF5),0),_xlfn.ANCHORARRAY(BH5)*_xlfn.ANCHORARRAY(FR5)) ->  | OM5: =IF(_xlfn.ANCHORARRAY($Q5)*_xlfn.ANCHORARRAY(BI5)<_xlfn.ANCHORARRAY($P5)*_xlfn.ANCHORARRAY(VU5),IFERROR(_xlfn.ANCHORARRAY(OL5)/_xlfn.ANCHORARRAY(EF5)*_xlfn.ANCHORARRAY(EG5),0),_xlfn.ANCHORARRAY(BI5)*_xlfn.ANCHORARRAY(FS5)) ->  | ON5: =IF(_xlfn.ANCHORARRAY($Q5)*_xlfn.ANCHORARRAY(BJ5)<_xlfn.ANCHORARRAY($P5)*_xlfn.ANCHORARRAY(VV5),IFERROR(_xlfn.ANCHORARRAY(OM5)/_xlfn.ANCHORARRAY(EG5)*_xlfn.ANCHORARRAY(EH5),0),_xlfn.ANCHORARRAY(BJ5)*_xlfn.ANCHORARRAY(FT5)) ->  | OO5: =IF(_xlfn.ANCHORARRAY($Q5)*_xlfn.ANCHORARRAY(BK5)<_xlfn.ANCHORARRAY($P5)*_xlfn.ANCHORARRAY(VW5),IFERROR(_xlfn.ANCHORARRAY(ON5)/_xlfn.ANCHORARRAY(EH5)*_xlfn.ANCHORARRAY(EI5),0),_xlfn.ANCHORARRAY(BK5)*_xlfn.ANCHORARRAY(FU5)) ->  | OP5: =IF(_xlfn.ANCHORARRAY($Q5)*_xlfn.ANCHORARRAY(BL5)<_xlfn.ANCHORARRAY($P5)*_xlfn.ANCHORARRAY(VX5),IFERROR(_xlfn.ANCHORARRAY(OO5)/_xlfn.ANCHORARRAY(EI5)*_xlfn.ANCHORARRAY(EJ5),0),_xlfn.ANCHORARRAY(BL5)*_xlfn.ANCHORARRAY(FV5)) ->  | OQ5: =IF(_xlfn.ANCHORARRAY($Q5)*_xlfn.ANCHORARRAY(BM5)<_xlfn.ANCHORARRAY($P5)*_xlfn.ANCHORARRAY(VY5),IFERROR(_xlfn.ANCHORARRAY(OP5)/_xlfn.ANCHORARRAY(EJ5)*_xlfn.ANCHORARRAY(EK5),0),_xlfn.ANCHORARRAY(BM5)*_xlfn.ANCHORARRAY(FW5)) ->  | OR5: =IF(_xlfn.ANCHORARRAY($Q5)*_xlfn.ANCHORARRAY(BN5)<_xlfn.ANCHORARRAY($P5)*_xlfn.ANCHORARRAY(VZ5),IFERROR(_xlfn.ANCHORARRAY(OQ5)/_xlfn.ANCHORARRAY(EK5)*_xlfn.ANCHORARRAY(EL5),0),_xlfn.ANCHORARRAY(BN5)*_xlfn.ANCHORARRAY(FX5)) ->  | OS5: =IF(_xlfn.ANCHORARRAY($Q5)*_xlfn.ANCHORARRAY(BO5)<_xlfn.ANCHORARRAY($P5)*_xlfn.ANCHORARRAY(WA5),IFERROR(_xlfn.ANCHORARRAY(OR5)/_xlfn.ANCHORARRAY(EL5)*_xlfn.ANCHORARRAY(EM5),0),_xlfn.ANCHORARRAY(BO5)*_xlfn.ANCHORARRAY(FY5)) ->  | OT5: =IF(_xlfn.ANCHORARRAY($Q5)*_xlfn.ANCHORARRAY(BP5)<_xlfn.ANCHORARRAY($P5)*_xlfn.ANCHORARRAY(WB5),IFERROR(_xlfn.ANCHORARRAY(OS5)/_xlfn.ANCHORARRAY(EM5)*_xlfn.ANCHORARRAY(EN5),0),_xlfn.ANCHORARRAY(BP5)*_xlfn.ANCHORARRAY(FZ5)) ->  | OU5: =IF(_xlfn.ANCHORARRAY($Q5)*_xlfn.ANCHORARRAY(BQ5)<_xlfn.ANCHORARRAY($P5)*_xlfn.ANCHORARRAY(WC5),IFERROR(_xlfn.ANCHORARRAY(OT5)/_xlfn.ANCHORARRAY(EN5)*_xlfn.ANCHORARRAY(EO5),0),_xlfn.ANCHORARRAY(BQ5)*_xlfn.ANCHORARRAY(GA5)) ->  | OV5: =IF(_xlfn.ANCHORARRAY($Q5)*_xlfn.ANCHORARRAY(BR5)<_xlfn.ANCHORARRAY($P5)*_xlfn.ANCHORARRAY(WD5),IFERROR(_xlfn.ANCHORARRAY(OU5)/_xlfn.ANCHORARRAY(EO5)*_xlfn.ANCHORARRAY(EP5),0),_xlfn.ANCHORARRAY(BR5)*_xlfn.ANCHORARRAY(GB5)) ->  | OW5: =IF(_xlfn.ANCHORARRAY($Q5)*_xlfn.ANCHORARRAY(BS5)<_xlfn.ANCHORARRAY($P5)*_xlfn.ANCHORARRAY(WE5),IFERROR(_xlfn.ANCHORARRAY(OV5)/_xlfn.ANCHORARRAY(EP5)*_xlfn.ANCHORARRAY(EQ5),0),_xlfn.ANCHORARRAY(BS5)*_xlfn.ANCHORARRAY(GC5)) ->  | OX5: =IF(_xlfn.ANCHORARRAY($Q5)*_xlfn.ANCHORARRAY(BT5)<_xlfn.ANCHORARRAY($P5)*_xlfn.ANCHORARRAY(WF5),IFERROR(_xlfn.ANCHORARRAY(OW5)/_xlfn.ANCHORARRAY(EQ5)*_xlfn.ANCHORARRAY(ER5),0),_xlfn.ANCHORARRAY(BT5)*_xlfn.ANCHORARRAY(GD5)) ->  | OY5: =IF(_xlfn.ANCHORARRAY($Q5)*_xlfn.ANCHORARRAY(BU5)<_xlfn.ANCHORARRAY($P5)*_xlfn.ANCHORARRAY(WG5),IFERROR(_xlfn.ANCHORARRAY(OX5)/_xlfn.ANCHORARRAY(ER5)*_xlfn.ANCHORARRAY(ES5),0),_xlfn.ANCHORARRAY(BU5)*_xlfn.ANCHORARRAY(GE5)) ->  | OZ5: =IF(_xlfn.ANCHORARRAY($Q5)*_xlfn.ANCHORARRAY(BV5)<_xlfn.ANCHORARRAY($P5)*_xlfn.ANCHORARRAY(WH5),IFERROR(_xlfn.ANCHORARRAY(OY5)/_xlfn.ANCHORARRAY(ES5)*_xlfn.ANCHORARRAY(ET5),0),_xlfn.ANCHORARRAY(BV5)*_xlfn.ANCHORARRAY(GF5)) ->  | PA5: =IF(_xlfn.ANCHORARRAY($Q5)*_xlfn.ANCHORARRAY(BW5)<_xlfn.ANCHORARRAY($P5)*_xlfn.ANCHORARRAY(WI5),IFERROR(_xlfn.ANCHORARRAY(OZ5)/_xlfn.ANCHORARRAY(ET5)*_xlfn.ANCHORARRAY(EU5),0),_xlfn.ANCHORARRAY(BW5)*_xlfn.ANCHORARRAY(GG5)) ->  | PB5: =IF(_xlfn.ANCHORARRAY($Q5)*_xlfn.ANCHORARRAY(BX5)<_xlfn.ANCHORARRAY($P5)*_xlfn.ANCHORARRAY(WJ5),IFERROR(_xlfn.ANCHORARRAY(PA5)/_xlfn.ANCHORARRAY(EU5)*_xlfn.ANCHORARRAY(EV5),0),_xlfn.ANCHORARRAY(BX5)*_xlfn.ANCHORARRAY(GH5)) ->  | PC5: =IF(_xlfn.ANCHORARRAY($Q5)*_xlfn.ANCHORARRAY(BY5)<_xlfn.ANCHORARRAY($P5)*_xlfn.ANCHORARRAY(WK5),IFERROR(_xlfn.ANCHORARRAY(PB5)/_xlfn.ANCHORARRAY(EV5)*_xlfn.ANCHORARRAY(EW5),0),_xlfn.ANCHORARRAY(BY5)*_xlfn.ANCHORARRAY(GI5)) ->  | PD5: =IF(_xlfn.ANCHORARRAY($Q5)*_xlfn.ANCHORARRAY(BZ5)<_xlfn.ANCHORARRAY($P5)*_xlfn.ANCHORARRAY(WL5),IFERROR(_xlfn.ANCHORARRAY(PC5)/_xlfn.ANCHORARRAY(EW5)*_xlfn.ANCHORARRAY(EX5),0),_xlfn.ANCHORARRAY(BZ5)*_xlfn.ANCHORARRAY(GJ5)) ->  | PE5: =IF(_xlfn.ANCHORARRAY($Q5)*_xlfn.ANCHORARRAY(CA5)<_xlfn.ANCHORARRAY($P5)*_xlfn.ANCHORARRAY(WM5),IFERROR(_xlfn.ANCHORARRAY(PD5)/_xlfn.ANCHORARRAY(EX5)*_xlfn.ANCHORARRAY(EY5),0),_xlfn.ANCHORARRAY(CA5)*_xlfn.ANCHORARRAY(GK5)) ->  | PF5: =IF(_xlfn.ANCHORARRAY($Q5)*_xlfn.ANCHORARRAY(CB5)<_xlfn.ANCHORARRAY($P5)*_xlfn.ANCHORARRAY(WN5),IFERROR(_xlfn.ANCHORARRAY(PE5)/_xlfn.ANCHORARRAY(EY5)*_xlfn.ANCHORARRAY(EZ5),0),_xlfn.ANCHORARRAY(CB5)*_xlfn.ANCHORARRAY(GL5)) ->  | PG5: =IF(_xlfn.ANCHORARRAY($Q5)*_xlfn.ANCHORARRAY(CC5)<_xlfn.ANCHORARRAY($P5)*_xlfn.ANCHORARRAY(WO5),IFERROR(_xlfn.ANCHORARRAY(PF5)/_xlfn.ANCHORARRAY(EZ5)*_xlfn.ANCHORARRAY(FA5),0),_xlfn.ANCHORARRAY(CC5)*_xlfn.ANCHORARRAY(GM5)) ->  | PH5: =IF(_xlfn.ANCHORARRAY($Q5)*_xlfn.ANCHORARRAY(CD5)<_xlfn.ANCHORARRAY($P5)*_xlfn.ANCHORARRAY(WP5),IFERROR(_xlfn.ANCHORARRAY(PG5)/_xlfn.ANCHORARRAY(FA5)*_xlfn.ANCHORARRAY(FB5),0),_xlfn.ANCHORARRAY(CD5)*_xlfn.ANCHORARRAY(GN5)) ->  | PI5: =IF(_xlfn.ANCHORARRAY($Q5)*_xlfn.ANCHORARRAY(CE5)<_xlfn.ANCHORARRAY($P5)*_xlfn.ANCHORARRAY(WQ5),IFERROR(_xlfn.ANCHORARRAY(PH5)/_xlfn.ANCHORARRAY(FB5)*_xlfn.ANCHORARRAY(FC5),0),_xlfn.ANCHORARRAY(CE5)*_xlfn.ANCHORARRAY(GO5)) ->  | PJ5: =IF(_xlfn.ANCHORARRAY($Q5)*_xlfn.ANCHORARRAY(CF5)<_xlfn.ANCHORARRAY($P5)*_xlfn.ANCHORARRAY(WR5),IFERROR(_xlfn.ANCHORARRAY(PI5)/_xlfn.ANCHORARRAY(FC5)*_xlfn.ANCHORARRAY(FD5),0),_xlfn.ANCHORARRAY(CF5)*_xlfn.ANCHORARRAY(GP5)) ->  | PK5: =IF(_xlfn.ANCHORARRAY($Q5)*_xlfn.ANCHORARRAY(CG5)<_xlfn.ANCHORARRAY($P5)*_xlfn.ANCHORARRAY(WS5),IFERROR(_xlfn.ANCHORARRAY(PJ5)/_xlfn.ANCHORARRAY(FD5)*_xlfn.ANCHORARRAY(FE5),0),_xlfn.ANCHORARRAY(CG5)*_xlfn.ANCHORARRAY(GQ5)) ->  | PL5: =IF(_xlfn.ANCHORARRAY($Q5)*_xlfn.ANCHORARRAY(CH5)<_xlfn.ANCHORARRAY($P5)*_xlfn.ANCHORARRAY(WT5),IFERROR(_xlfn.ANCHORARRAY(PK5)/_xlfn.ANCHORARRAY(FE5)*_xlfn.ANCHORARRAY(FF5),0),_xlfn.ANCHORARRAY(CH5)*_xlfn.ANCHORARRAY(GR5)) ->  | PM5: =IF(_xlfn.ANCHORARRAY($Q5)*_xlfn.ANCHORARRAY(CI5)<_xlfn.ANCHORARRAY($P5)*_xlfn.ANCHORARRAY(WU5),IFERROR(_xlfn.ANCHORARRAY(PL5)/_xlfn.ANCHORARRAY(FF5)*_xlfn.ANCHORARRAY(FG5),0),_xlfn.ANCHORARRAY(CI5)*_xlfn.ANCHORARRAY(GS5)) ->  | PN5: =IF(_xlfn.ANCHORARRAY($Q5)*_xlfn.ANCHORARRAY(CJ5)<_xlfn.ANCHORARRAY($P5)*_xlfn.ANCHORARRAY(WV5),IFERROR(_xlfn.ANCHORARRAY(PM5)/_xlfn.ANCHORARRAY(FG5)*_xlfn.ANCHORARRAY(FH5),0),_xlfn.ANCHORARRAY(CJ5)*_xlfn.ANCHORARRAY(GT5)) ->  | PO5: =IF(_xlfn.ANCHORARRAY($Q5)*_xlfn.ANCHORARRAY(CK5)<_xlfn.ANCHORARRAY($P5)*_xlfn.ANCHORARRAY(WW5),IFERROR(_xlfn.ANCHORARRAY(PN5)/_xlfn.ANCHORARRAY(FH5)*_xlfn.ANCHORARRAY(FI5),0),_xlfn.ANCHORARRAY(CK5)*_xlfn.ANCHORARRAY(GU5)) ->  | PP5: =IF(_xlfn.ANCHORARRAY($Q5)*_xlfn.ANCHORARRAY(CL5)<_xlfn.ANCHORARRAY($P5)*_xlfn.ANCHORARRAY(WX5),IFERROR(_xlfn.ANCHORARRAY(PO5)/_xlfn.ANCHORARRAY(FI5)*_xlfn.ANCHORARRAY(FJ5),0),_xlfn.ANCHORARRAY(CL5)*_xlfn.ANCHORARRAY(GV5)) ->  | PQ5: =IF(_xlfn.ANCHORARRAY($Q5)*_xlfn.ANCHORARRAY(CM5)<_xlfn.ANCHORARRAY($P5)*_xlfn.ANCHORARRAY(WY5),IFERROR(_xlfn.ANCHORARRAY(PP5)/_xlfn.ANCHORARRAY(FJ5)*_xlfn.ANCHORARRAY(FK5),0),_xlfn.ANCHORARRAY(CM5)*_xlfn.ANCHORARRAY(GW5)) ->  | PR5: =IF(_xlfn.ANCHORARRAY($Q5)*_xlfn.ANCHORARRAY(CN5)<_xlfn.ANCHORARRAY($P5)*_xlfn.ANCHORARRAY(WZ5),IFERROR(_xlfn.ANCHORARRAY(PQ5)/_xlfn.ANCHORARRAY(FK5)*_xlfn.ANCHORARRAY(FL5),0),_xlfn.ANCHORARRAY(CN5)*_xlfn.ANCHORARRAY(GX5)) ->  | PS5: =IF(_xlfn.ANCHORARRAY($Q5)*_xlfn.ANCHORARRAY(CO5)<_xlfn.ANCHORARRAY($P5)*_xlfn.ANCHORARRAY(XA5),IFERROR(_xlfn.ANCHORARRAY(PR5)/_xlfn.ANCHORARRAY(FL5)*_xlfn.ANCHORARRAY(FM5),0),_xlfn.ANCHORARRAY(CO5)*_xlfn.ANCHORARRAY(GY5)) ->  | PT5: =IF(_xlfn.ANCHORARRAY($Q5)*_xlfn.ANCHORARRAY(CP5)<_xlfn.ANCHORARRAY($P5)*_xlfn.ANCHORARRAY(XB5),IFERROR(_xlfn.ANCHORARRAY(PS5)/_xlfn.ANCHORARRAY(FM5)*_xlfn.ANCHORARRAY(FN5),0),_xlfn.ANCHORARRAY(CP5)*_xlfn.ANCHORARRAY(GZ5)) ->  | PU5: =_xlfn.ANCHORARRAY(JY5)-(1-_xlfn.ANCHORARRAY(BE5))*_xlfn.ANCHORARRAY(JY5) ->  | PV5: =IF(_xlfn.ANCHORARRAY($Q5)*_xlfn.ANCHORARRAY(BF5)<_xlfn.ANCHORARRAY($P5)*_xlfn.ANCHORARRAY(VR5),IFERROR(_xlfn.ANCHORARRAY(PU5)/_xlfn.ANCHORARRAY(EC5)*_xlfn.ANCHORARRAY(ED5),0),_xlfn.ANCHORARRAY(BF5)*_xlfn.ANCHORARRAY(JZ5)) ->  | PW5: =IF(_xlfn.ANCHORARRAY($Q5)*_xlfn.ANCHORARRAY(BG5)<_xlfn.ANCHORARRAY($P5)*_xlfn.ANCHORARRAY(VS5),IFERROR(_xlfn.ANCHORARRAY(PV5)/_xlfn.ANCHORARRAY(ED5)*_xlfn.ANCHORARRAY(EE5),0),_xlfn.ANCHORARRAY(BG5)*_xlfn.ANCHORARRAY(KA5)) ->  | PX5: =IF(_xlfn.ANCHORARRAY($Q5)*_xlfn.ANCHORARRAY(BH5)<_xlfn.ANCHORARRAY($P5)*_xlfn.ANCHORARRAY(VT5),IFERROR(_xlfn.ANCHORARRAY(PW5)/_xlfn.ANCHORARRAY(EE5)*_xlfn.ANCHORARRAY(EF5),0),_xlfn.ANCHORARRAY(BH5)*_xlfn.ANCHORARRAY(KB5)) ->  | PY5: =IF(_xlfn.ANCHORARRAY($Q5)*_xlfn.ANCHORARRAY(BI5)<_xlfn.ANCHORARRAY($P5)*_xlfn.ANCHORARRAY(VU5),IFERROR(_xlfn.ANCHORARRAY(PX5)/_xlfn.ANCHORARRAY(EF5)*_xlfn.ANCHORARRAY(EG5),0),_xlfn.ANCHORARRAY(BI5)*_xlfn.ANCHORARRAY(KC5)) ->  | PZ5: =IF(_xlfn.ANCHORARRAY($Q5)*_xlfn.ANCHORARRAY(BJ5)<_xlfn.ANCHORARRAY($P5)*_xlfn.ANCHORARRAY(VV5),IFERROR(_xlfn.ANCHORARRAY(PY5)/_xlfn.ANCHORARRAY(EG5)*_xlfn.ANCHORARRAY(EH5),0),_xlfn.ANCHORARRAY(BJ5)*_xlfn.ANCHORARRAY(KD5)) ->  | QA5: =IF(_xlfn.ANCHORARRAY($Q5)*_xlfn.ANCHORARRAY(BK5)<_xlfn.ANCHORARRAY($P5)*_xlfn.ANCHORARRAY(VW5),IFERROR(_xlfn.ANCHORARRAY(PZ5)/_xlfn.ANCHORARRAY(EH5)*_xlfn.ANCHORARRAY(EI5),0),_xlfn.ANCHORARRAY(BK5)*_xlfn.ANCHORARRAY(KE5)) ->  | QB5: =IF(_xlfn.ANCHORARRAY($Q5)*_xlfn.ANCHORARRAY(BL5)<_xlfn.ANCHORARRAY($P5)*_xlfn.ANCHORARRAY(VX5),IFERROR(_xlfn.ANCHORARRAY(QA5)/_xlfn.ANCHORARRAY(EI5)*_xlfn.ANCHORARRAY(EJ5),0),_xlfn.ANCHORARRAY(BL5)*_xlfn.ANCHORARRAY(KF5)) ->  | QC5: =IF(_xlfn.ANCHORARRAY($Q5)*_xlfn.ANCHORARRAY(BM5)<_xlfn.ANCHORARRAY($P5)*_xlfn.ANCHORARRAY(VY5),IFERROR(_xlfn.ANCHORARRAY(QB5)/_xlfn.ANCHORARRAY(EJ5)*_xlfn.ANCHORARRAY(EK5),0),_xlfn.ANCHORARRAY(BM5)*_xlfn.ANCHORARRAY(KG5)) ->  | QD5: =IF(_xlfn.ANCHORARRAY($Q5)*_xlfn.ANCHORARRAY(BN5)<_xlfn.ANCHORARRAY($P5)*_xlfn.ANCHORARRAY(VZ5),IFERROR(_xlfn.ANCHORARRAY(QC5)/_xlfn.ANCHORARRAY(EK5)*_xlfn.ANCHORARRAY(EL5),0),_xlfn.ANCHORARRAY(BN5)*_xlfn.ANCHORARRAY(KH5)) ->  | QE5: =IF(_xlfn.ANCHORARRAY($Q5)*_xlfn.ANCHORARRAY(BO5)<_xlfn.ANCHORARRAY($P5)*_xlfn.ANCHORARRAY(WA5),IFERROR(_xlfn.ANCHORARRAY(QD5)/_xlfn.ANCHORARRAY(EL5)*_xlfn.ANCHORARRAY(EM5),0),_xlfn.ANCHORARRAY(BO5)*_xlfn.ANCHORARRAY(KI5)) ->  | QF5: =IF(_xlfn.ANCHORARRAY($Q5)*_xlfn.ANCHORARRAY(BP5)<_xlfn.ANCHORARRAY($P5)*_xlfn.ANCHORARRAY(WB5),IFERROR(_xlfn.ANCHORARRAY(QE5)/_xlfn.ANCHORARRAY(EM5)*_xlfn.ANCHORARRAY(EN5),0),_xlfn.ANCHORARRAY(BP5)*_xlfn.ANCHORARRAY(KJ5)) ->  | QG5: =IF(_xlfn.ANCHORARRAY($Q5)*_xlfn.ANCHORARRAY(BQ5)<_xlfn.ANCHORARRAY($P5)*_xlfn.ANCHORARRAY(WC5),IFERROR(_xlfn.ANCHORARRAY(QF5)/_xlfn.ANCHORARRAY(EN5)*_xlfn.ANCHORARRAY(EO5),0),_xlfn.ANCHORARRAY(BQ5)*_xlfn.ANCHORARRAY(KK5)) ->  | QH5: =IF(_xlfn.ANCHORARRAY($Q5)*_xlfn.ANCHORARRAY(BR5)<_xlfn.ANCHORARRAY($P5)*_xlfn.ANCHORARRAY(WD5),IFERROR(_xlfn.ANCHORARRAY(QG5)/_xlfn.ANCHORARRAY(EO5)*_xlfn.ANCHORARRAY(EP5),0),_xlfn.ANCHORARRAY(BR5)*_xlfn.ANCHORARRAY(KL5)) ->  | QI5: =IF(_xlfn.ANCHORARRAY($Q5)*_xlfn.ANCHORARRAY(BS5)<_xlfn.ANCHORARRAY($P5)*_xlfn.ANCHORARRAY(WE5),IFERROR(_xlfn.ANCHORARRAY(QH5)/_xlfn.ANCHORARRAY(EP5)*_xlfn.ANCHORARRAY(EQ5),0),_xlfn.ANCHORARRAY(BS5)*_xlfn.ANCHORARRAY(KM5)) ->  | QJ5: =IF(_xlfn.ANCHORARRAY($Q5)*_xlfn.ANCHORARRAY(BT5)<_xlfn.ANCHORARRAY($P5)*_xlfn.ANCHORARRAY(WF5),IFERROR(_xlfn.ANCHORARRAY(QI5)/_xlfn.ANCHORARRAY(EQ5)*_xlfn.ANCHORARRAY(ER5),0),_xlfn.ANCHORARRAY(BT5)*_xlfn.ANCHORARRAY(KN5)) ->  | QK5: =IF(_xlfn.ANCHORARRAY($Q5)*_xlfn.ANCHORARRAY(BU5)<_xlfn.ANCHORARRAY($P5)*_xlfn.ANCHORARRAY(WG5),IFERROR(_xlfn.ANCHORARRAY(QJ5)/_xlfn.ANCHORARRAY(ER5)*_xlfn.ANCHORARRAY(ES5),0),_xlfn.ANCHORARRAY(BU5)*_xlfn.ANCHORARRAY(KO5)) ->  | QL5: =IF(_xlfn.ANCHORARRAY($Q5)*_xlfn.ANCHORARRAY(BV5)<_xlfn.ANCHORARRAY($P5)*_xlfn.ANCHORARRAY(WH5),IFERROR(_xlfn.ANCHORARRAY(QK5)/_xlfn.ANCHORARRAY(ES5)*_xlfn.ANCHORARRAY(ET5),0),_xlfn.ANCHORARRAY(BV5)*_xlfn.ANCHORARRAY(KP5)) ->  | QM5: =IF(_xlfn.ANCHORARRAY($Q5)*_xlfn.ANCHORARRAY(BW5)<_xlfn.ANCHORARRAY($P5)*_xlfn.ANCHORARRAY(WI5),IFERROR(_xlfn.ANCHORARRAY(QL5)/_xlfn.ANCHORARRAY(ET5)*_xlfn.ANCHORARRAY(EU5),0),_xlfn.ANCHORARRAY(BW5)*_xlfn.ANCHORARRAY(KQ5)) ->  | QN5: =IF(_xlfn.ANCHORARRAY($Q5)*_xlfn.ANCHORARRAY(BX5)<_xlfn.ANCHORARRAY($P5)*_xlfn.ANCHORARRAY(WJ5),IFERROR(_xlfn.ANCHORARRAY(QM5)/_xlfn.ANCHORARRAY(EU5)*_xlfn.ANCHORARRAY(EV5),0),_xlfn.ANCHORARRAY(BX5)*_xlfn.ANCHORARRAY(KR5)) ->  | QO5: =IF(_xlfn.ANCHORARRAY($Q5)*_xlfn.ANCHORARRAY(BY5)<_xlfn.ANCHORARRAY($P5)*_xlfn.ANCHORARRAY(WK5),IFERROR(_xlfn.ANCHORARRAY(QN5)/_xlfn.ANCHORARRAY(EV5)*_xlfn.ANCHORARRAY(EW5),0),_xlfn.ANCHORARRAY(BY5)*_xlfn.ANCHORARRAY(KS5)) ->  | QP5: =IF(_xlfn.ANCHORARRAY($Q5)*_xlfn.ANCHORARRAY(BZ5)<_xlfn.ANCHORARRAY($P5)*_xlfn.ANCHORARRAY(WL5),IFERROR(_xlfn.ANCHORARRAY(QO5)/_xlfn.ANCHORARRAY(EW5)*_xlfn.ANCHORARRAY(EX5),0),_xlfn.ANCHORARRAY(BZ5)*_xlfn.ANCHORARRAY(KT5)) ->  | QQ5: =IF(_xlfn.ANCHORARRAY($Q5)*_xlfn.ANCHORARRAY(CA5)<_xlfn.ANCHORARRAY($P5)*_xlfn.ANCHORARRAY(WM5),IFERROR(_xlfn.ANCHORARRAY(QP5)/_xlfn.ANCHORARRAY(EX5)*_xlfn.ANCHORARRAY(EY5),0),_xlfn.ANCHORARRAY(CA5)*_xlfn.ANCHORARRAY(KU5)) ->  | QR5: =IF(_xlfn.ANCHORARRAY($Q5)*_xlfn.ANCHORARRAY(CB5)<_xlfn.ANCHORARRAY($P5)*_xlfn.ANCHORARRAY(WN5),IFERROR(_xlfn.ANCHORARRAY(QQ5)/_xlfn.ANCHORARRAY(EY5)*_xlfn.ANCHORARRAY(EZ5),0),_xlfn.ANCHORARRAY(CB5)*_xlfn.ANCHORARRAY(KV5)) ->  | QS5: =IF(_xlfn.ANCHORARRAY($Q5)*_xlfn.ANCHORARRAY(CC5)<_xlfn.ANCHORARRAY($P5)*_xlfn.ANCHORARRAY(WO5),IFERROR(_xlfn.ANCHORARRAY(QR5)/_xlfn.ANCHORARRAY(EZ5)*_xlfn.ANCHORARRAY(FA5),0),_xlfn.ANCHORARRAY(CC5)*_xlfn.ANCHORARRAY(KW5)) ->  | QT5: =IF(_xlfn.ANCHORARRAY($Q5)*_xlfn.ANCHORARRAY(CD5)<_xlfn.ANCHORARRAY($P5)*_xlfn.ANCHORARRAY(WP5),IFERROR(_xlfn.ANCHORARRAY(QS5)/_xlfn.ANCHORARRAY(FA5)*_xlfn.ANCHORARRAY(FB5),0),_xlfn.ANCHORARRAY(CD5)*_xlfn.ANCHORARRAY(KX5)) ->  | QU5: =IF(_xlfn.ANCHORARRAY($Q5)*_xlfn.ANCHORARRAY(CE5)<_xlfn.ANCHORARRAY($P5)*_xlfn.ANCHORARRAY(WQ5),IFERROR(_xlfn.ANCHORARRAY(QT5)/_xlfn.ANCHORARRAY(FB5)*_xlfn.ANCHORARRAY(FC5),0),_xlfn.ANCHORARRAY(CE5)*_xlfn.ANCHORARRAY(KY5)) ->  | QV5: =IF(_xlfn.ANCHORARRAY($Q5)*_xlfn.ANCHORARRAY(CF5)<_xlfn.ANCHORARRAY($P5)*_xlfn.ANCHORARRAY(WR5),IFERROR(_xlfn.ANCHORARRAY(QU5)/_xlfn.ANCHORARRAY(FC5)*_xlfn.ANCHORARRAY(FD5),0),_xlfn.ANCHORARRAY(CF5)*_xlfn.ANCHORARRAY(KZ5)) ->  | QW5: =IF(_xlfn.ANCHORARRAY($Q5)*_xlfn.ANCHORARRAY(CG5)<_xlfn.ANCHORARRAY($P5)*_xlfn.ANCHORARRAY(WS5),IFERROR(_xlfn.ANCHORARRAY(QV5)/_xlfn.ANCHORARRAY(FD5)*_xlfn.ANCHORARRAY(FE5),0),_xlfn.ANCHORARRAY(CG5)*_xlfn.ANCHORARRAY(LA5)) ->  | QX5: =IF(_xlfn.ANCHORARRAY($Q5)*_xlfn.ANCHORARRAY(CH5)<_xlfn.ANCHORARRAY($P5)*_xlfn.ANCHORARRAY(WT5),IFERROR(_xlfn.ANCHORARRAY(QW5)/_xlfn.ANCHORARRAY(FE5)*_xlfn.ANCHORARRAY(FF5),0),_xlfn.ANCHORARRAY(CH5)*_xlfn.ANCHORARRAY(LB5)) ->  | QY5: =IF(_xlfn.ANCHORARRAY($Q5)*_xlfn.ANCHORARRAY(CI5)<_xlfn.ANCHORARRAY($P5)*_xlfn.ANCHORARRAY(WU5),IFERROR(_xlfn.ANCHORARRAY(QX5)/_xlfn.ANCHORARRAY(FF5)*_xlfn.ANCHORARRAY(FG5),0),_xlfn.ANCHORARRAY(CI5)*_xlfn.ANCHORARRAY(LC5)) ->  | QZ5: =IF(_xlfn.ANCHORARRAY($Q5)*_xlfn.ANCHORARRAY(CJ5)<_xlfn.ANCHORARRAY($P5)*_xlfn.ANCHORARRAY(WV5),IFERROR(_xlfn.ANCHORARRAY(QY5)/_xlfn.ANCHORARRAY(FG5)*_xlfn.ANCHORARRAY(FH5),0),_xlfn.ANCHORARRAY(CJ5)*_xlfn.ANCHORARRAY(LD5)) ->  | RA5: =IF(_xlfn.ANCHORARRAY($Q5)*_xlfn.ANCHORARRAY(CK5)<_xlfn.ANCHORARRAY($P5)*_xlfn.ANCHORARRAY(WW5),IFERROR(_xlfn.ANCHORARRAY(QZ5)/_xlfn.ANCHORARRAY(FH5)*_xlfn.ANCHORARRAY(FI5),0),_xlfn.ANCHORARRAY(CK5)*_xlfn.ANCHORARRAY(LE5)) ->  | RB5: =IF(_xlfn.ANCHORARRAY($Q5)*_xlfn.ANCHORARRAY(CL5)<_xlfn.ANCHORARRAY($P5)*_xlfn.ANCHORARRAY(WX5),IFERROR(_xlfn.ANCHORARRAY(RA5)/_xlfn.ANCHORARRAY(FI5)*_xlfn.ANCHORARRAY(FJ5),0),_xlfn.ANCHORARRAY(CL5)*_xlfn.ANCHORARRAY(LF5)) ->  | RC5: =IF(_xlfn.ANCHORARRAY($Q5)*_xlfn.ANCHORARRAY(CM5)<_xlfn.ANCHORARRAY($P5)*_xlfn.ANCHORARRAY(WY5),IFERROR(_xlfn.ANCHORARRAY(RB5)/_xlfn.ANCHORARRAY(FJ5)*_xlfn.ANCHORARRAY(FK5),0),_xlfn.ANCHORARRAY(CM5)*_xlfn.ANCHORARRAY(LG5)) ->  | RD5: =IF(_xlfn.ANCHORARRAY($Q5)*_xlfn.ANCHORARRAY(CN5)<_xlfn.ANCHORARRAY($P5)*_xlfn.ANCHORARRAY(WZ5),IFERROR(_xlfn.ANCHORARRAY(RC5)/_xlfn.ANCHORARRAY(FK5)*_xlfn.ANCHORARRAY(FL5),0),_xlfn.ANCHORARRAY(CN5)*_xlfn.ANCHORARRAY(LH5)) ->  | RE5: =IF(_xlfn.ANCHORARRAY($Q5)*_xlfn.ANCHORARRAY(CO5)<_xlfn.ANCHORARRAY($P5)*_xlfn.ANCHORARRAY(XA5),IFERROR(_xlfn.ANCHORARRAY(RD5)/_xlfn.ANCHORARRAY(FL5)*_xlfn.ANCHORARRAY(FM5),0),_xlfn.ANCHORARRAY(CO5)*_xlfn.ANCHORARRAY(LI5)) ->  | RF5: =IF(_xlfn.ANCHORARRAY($Q5)*_xlfn.ANCHORARRAY(CP5)<_xlfn.ANCHORARRAY($P5)*_xlfn.ANCHORARRAY(XB5),IFERROR(_xlfn.ANCHORARRAY(RE5)/_xlfn.ANCHORARRAY(FM5)*_xlfn.ANCHORARRAY(FN5),0),_xlfn.ANCHORARRAY(CP5)*_xlfn.ANCHORARRAY(LJ5)) ->  | RG5: =INDEX(NC.Commercial!$A:$AQ,MATCH(_xlfn.ANCHORARRAY($A5),NC.Commercial!$A:$A,0),MATCH(RG$4,NC.Commercial!$2:$2,0))*10^6 ->  | RH5: =INDEX(NC.Commercial!$A:$AQ,MATCH(_xlfn.ANCHORARRAY($A5),NC.Commercial!$A:$A,0),MATCH(RH$4,NC.Commercial!$2:$2,0))*10^6 ->  | RI5: =INDEX(NC.Commercial!$A:$AQ,MATCH(_xlfn.ANCHORARRAY($A5),NC.Commercial!$A:$A,0),MATCH(RI$4,NC.Commercial!$2:$2,0))*10^6 ->  | RJ5: =INDEX(NC.Commercial!$A:$AQ,MATCH(_xlfn.ANCHORARRAY($A5),NC.Commercial!$A:$A,0),MATCH(RJ$4,NC.Commercial!$2:$2,0))*10^6 ->  | RK5: =INDEX(NC.Commercial!$A:$AQ,MATCH(_xlfn.ANCHORARRAY($A5),NC.Commercial!$A:$A,0),MATCH(RK$4,NC.Commercial!$2:$2,0))*10^6 ->  | RL5: =INDEX(NC.Commercial!$A:$AQ,MATCH(_xlfn.ANCHORARRAY($A5),NC.Commercial!$A:$A,0),MATCH(RL$4,NC.Commercial!$2:$2,0))*10^6 ->  | RM5: =INDEX(NC.Commercial!$A:$AQ,MATCH(_xlfn.ANCHORARRAY($A5),NC.Commercial!$A:$A,0),MATCH(RM$4,NC.Commercial!$2:$2,0))*10^6 ->  | RN5: =INDEX(NC.Commercial!$A:$AQ,MATCH(_xlfn.ANCHORARRAY($A5),NC.Commercial!$A:$A,0),MATCH(RN$4,NC.Commercial!$2:$2,0))*10^6 ->  | RO5: =INDEX(NC.Commercial!$A:$AQ,MATCH(_xlfn.ANCHORARRAY($A5),NC.Commercial!$A:$A,0),MATCH(RO$4,NC.Commercial!$2:$2,0))*10^6 ->  | RP5: =INDEX(NC.Commercial!$A:$AQ,MATCH(_xlfn.ANCHORARRAY($A5),NC.Commercial!$A:$A,0),MATCH(RP$4,NC.Commercial!$2:$2,0))*10^6 ->  | RQ5: =INDEX(NC.Commercial!$A:$AQ,MATCH(_xlfn.ANCHORARRAY($A5),NC.Commercial!$A:$A,0),MATCH(RQ$4,NC.Commercial!$2:$2,0))*10^6 ->  | RR5: =INDEX(NC.Commercial!$A:$AQ,MATCH(_xlfn.ANCHORARRAY($A5),NC.Commercial!$A:$A,0),MATCH(RR$4,NC.Commercial!$2:$2,0))*10^6 ->  | RS5: =INDEX(NC.Commercial!$A:$AQ,MATCH(_xlfn.ANCHORARRAY($A5),NC.Commercial!$A:$A,0),MATCH(RS$4,NC.Commercial!$2:$2,0))*10^6 ->  | RT5: =INDEX(NC.Commercial!$A:$AQ,MATCH(_xlfn.ANCHORARRAY($A5),NC.Commercial!$A:$A,0),MATCH(RT$4,NC.Commercial!$2:$2,0))*10^6 ->  | RU5: =INDEX(NC.Commercial!$A:$AQ,MATCH(_xlfn.ANCHORARRAY($A5),NC.Commercial!$A:$A,0),MATCH(RU$4,NC.Commercial!$2:$2,0))*10^6 ->  | RV5: =INDEX(NC.Commercial!$A:$AQ,MATCH(_xlfn.ANCHORARRAY($A5),NC.Commercial!$A:$A,0),MATCH(RV$4,NC.Commercial!$2:$2,0))*10^6 ->  | RW5: =INDEX(NC.Commercial!$A:$AQ,MATCH(_xlfn.ANCHORARRAY($A5),NC.Commercial!$A:$A,0),MATCH(RW$4,NC.Commercial!$2:$2,0))*10^6 ->  | RX5: =INDEX(NC.Commercial!$A:$AQ,MATCH(_xlfn.ANCHORARRAY($A5),NC.Commercial!$A:$A,0),MATCH(RX$4,NC.Commercial!$2:$2,0))*10^6 ->  | RY5: =INDEX(NC.Commercial!$A:$AQ,MATCH(_xlfn.ANCHORARRAY($A5),NC.Commercial!$A:$A,0),MATCH(RY$4,NC.Commercial!$2:$2,0))*10^6 ->  | RZ5: =INDEX(NC.Commercial!$A:$AQ,MATCH(_xlfn.ANCHORARRAY($A5),NC.Commercial!$A:$A,0),MATCH(RZ$4,NC.Commercial!$2:$2,0))*10^6 ->  | SA5: =INDEX(NC.Commercial!$A:$AQ,MATCH(_xlfn.ANCHORARRAY($A5),NC.Commercial!$A:$A,0),MATCH(SA$4,NC.Commercial!$2:$2,0))*10^6 ->  | SB5: =INDEX(NC.Commercial!$A:$AQ,MATCH(_xlfn.ANCHORARRAY($A5),NC.Commercial!$A:$A,0),MATCH(SB$4,NC.Commercial!$2:$2,0))*10^6 ->  | SC5: =INDEX(NC.Commercial!$A:$AQ,MATCH(_xlfn.ANCHORARRAY($A5),NC.Commercial!$A:$A,0),MATCH(SC$4,NC.Commercial!$2:$2,0))*10^6 ->  | SD5: =INDEX(NC.Commercial!$A:$AQ,MATCH(_xlfn.ANCHORARRAY($A5),NC.Commercial!$A:$A,0),MATCH(SD$4,NC.Commercial!$2:$2,0))*10^6 ->  | SE5: =INDEX(NC.Commercial!$A:$AQ,MATCH(_xlfn.ANCHORARRAY($A5),NC.Commercial!$A:$A,0),MATCH(SE$4,NC.Commercial!$2:$2,0))*10^6 ->  | SF5: =INDEX(NC.Commercial!$A:$AQ,MATCH(_xlfn.ANCHORARRAY($A5),NC.Commercial!$A:$A,0),MATCH(SF$4,NC.Commercial!$2:$2,0))*10^6 ->  | SG5: =INDEX(NC.Commercial!$A:$AQ,MATCH(_xlfn.ANCHORARRAY($A5),NC.Commercial!$A:$A,0),MATCH(SG$4,NC.Commercial!$2:$2,0))*10^6 ->  | SH5: =INDEX(NC.Commercial!$A:$AQ,MATCH(_xlfn.ANCHORARRAY($A5),NC.Commercial!$A:$A,0),MATCH(SH$4,NC.Commercial!$2:$2,0))*10^6 ->  | SI5: =INDEX(NC.Commercial!$A:$AQ,MATCH(_xlfn.ANCHORARRAY($A5),NC.Commercial!$A:$A,0),MATCH(SI$4,NC.Commercial!$2:$2,0))*10^6 ->  | SJ5: =INDEX(NC.Commercial!$A:$AQ,MATCH(_xlfn.ANCHORARRAY($A5),NC.Commercial!$A:$A,0),MATCH(SJ$4,NC.Commercial!$2:$2,0))*10^6 ->  | SK5: =INDEX(NC.Commercial!$A:$AQ,MATCH(_xlfn.ANCHORARRAY($A5),NC.Commercial!$A:$A,0),MATCH(SK$4,NC.Commercial!$2:$2,0))*10^6 ->  | SL5: =INDEX(NC.Commercial!$A:$AQ,MATCH(_xlfn.ANCHORARRAY($A5),NC.Commercial!$A:$A,0),MATCH(SL$4,NC.Commercial!$2:$2,0))*10^6 ->  | SM5: =INDEX(NC.Commercial!$A:$AQ,MATCH(_xlfn.ANCHORARRAY($A5),NC.Commercial!$A:$A,0),MATCH(SM$4,NC.Commercial!$2:$2,0))*10^6 ->  | SN5: =INDEX(NC.Commercial!$A:$AQ,MATCH(_xlfn.ANCHORARRAY($A5),NC.Commercial!$A:$A,0),MATCH(SN$4,NC.Commercial!$2:$2,0))*10^6 ->  | SO5: =INDEX(NC.Commercial!$A:$AQ,MATCH(_xlfn.ANCHORARRAY($A5),NC.Commercial!$A:$A,0),MATCH(SO$4,NC.Commercial!$2:$2,0))*10^6 ->  | SP5: =INDEX(NC.Commercial!$A:$AQ,MATCH(_xlfn.ANCHORARRAY($A5),NC.Commercial!$A:$A,0),MATCH(SP$4,NC.Commercial!$2:$2,0))*10^6 ->  | SQ5: =INDEX(NC.Commercial!$A:$AQ,MATCH(_xlfn.ANCHORARRAY($A5),NC.Commercial!$A:$A,0),MATCH(SQ$4,NC.Commercial!$2:$2,0))*10^6 ->  | SR5: =INDEX(NC.Commercial!$A:$AQ,MATCH(_xlfn.ANCHORARRAY($A5),NC.Commercial!$A:$A,0),MATCH(SR$4,NC.Commercial!$2:$2,0))*10^6 ->  | SS5: =_xlfn.ANCHORARRAY(RG5)*_xlfn.ANCHORARRAY($J5)*_xlfn.ANCHORARRAY($K5)*_xlfn.ANCHORARRAY($H5) ->  | ST5: =_xlfn.ANCHORARRAY(RH5)*_xlfn.ANCHORARRAY($J5)*_xlfn.ANCHORARRAY($K5)*_xlfn.ANCHORARRAY($H5) ->  | SU5: =_xlfn.ANCHORARRAY(RI5)*_xlfn.ANCHORARRAY($J5)*_xlfn.ANCHORARRAY($K5)*_xlfn.ANCHORARRAY($H5) ->  | SV5: =_xlfn.ANCHORARRAY(RJ5)*_xlfn.ANCHORARRAY($J5)*_xlfn.ANCHORARRAY($K5)*_xlfn.ANCHORARRAY($H5) ->  | SW5: =_xlfn.ANCHORARRAY(RK5)*_xlfn.ANCHORARRAY($J5)*_xlfn.ANCHORARRAY($K5)*_xlfn.ANCHORARRAY($H5) ->  | SX5: =_xlfn.ANCHORARRAY(RL5)*_xlfn.ANCHORARRAY($J5)*_xlfn.ANCHORARRAY($K5)*_xlfn.ANCHORARRAY($H5) ->  | SY5: =_xlfn.ANCHORARRAY(RM5)*_xlfn.ANCHORARRAY($J5)*_xlfn.ANCHORARRAY($K5)*_xlfn.ANCHORARRAY($H5) ->  | SZ5: =_xlfn.ANCHORARRAY(RN5)*_xlfn.ANCHORARRAY($J5)*_xlfn.ANCHORARRAY($K5)*_xlfn.ANCHORARRAY($H5) ->  | TA5: =_xlfn.ANCHORARRAY(RO5)*_xlfn.ANCHORARRAY($J5)*_xlfn.ANCHORARRAY($K5)*_xlfn.ANCHORARRAY($H5) ->  | TB5: =_xlfn.ANCHORARRAY(RP5)*_xlfn.ANCHORARRAY($J5)*_xlfn.ANCHORARRAY($K5)*_xlfn.ANCHORARRAY($H5) ->  | TC5: =_xlfn.ANCHORARRAY(RQ5)*_xlfn.ANCHORARRAY($J5)*_xlfn.ANCHORARRAY($K5)*_xlfn.ANCHORARRAY($H5) ->  | TD5: =_xlfn.ANCHORARRAY(RR5)*_xlfn.ANCHORARRAY($J5)*_xlfn.ANCHORARRAY($K5)*_xlfn.ANCHORARRAY($H5) ->  | TE5: =_xlfn.ANCHORARRAY(RS5)*_xlfn.ANCHORARRAY($J5)*_xlfn.ANCHORARRAY($K5)*_xlfn.ANCHORARRAY($H5) ->  | TF5: =_xlfn.ANCHORARRAY(RT5)*_xlfn.ANCHORARRAY($J5)*_xlfn.ANCHORARRAY($K5)*_xlfn.ANCHORARRAY($H5) ->  | TG5: =_xlfn.ANCHORARRAY(RU5)*_xlfn.ANCHORARRAY($J5)*_xlfn.ANCHORARRAY($K5)*_xlfn.ANCHORARRAY($H5) ->  | TH5: =_xlfn.ANCHORARRAY(RV5)*_xlfn.ANCHORARRAY($J5)*_xlfn.ANCHORARRAY($K5)*_xlfn.ANCHORARRAY($H5) ->  | TI5: =_xlfn.ANCHORARRAY(RW5)*_xlfn.ANCHORARRAY($J5)*_xlfn.ANCHORARRAY($K5)*_xlfn.ANCHORARRAY($H5) ->  | TJ5: =_xlfn.ANCHORARRAY(RX5)*_xlfn.ANCHORARRAY($J5)*_xlfn.ANCHORARRAY($K5)*_xlfn.ANCHORARRAY($H5) ->  | TK5: =_xlfn.ANCHORARRAY(RY5)*_xlfn.ANCHORARRAY($J5)*_xlfn.ANCHORARRAY($K5)*_xlfn.ANCHORARRAY($H5) ->  | TL5: =_xlfn.ANCHORARRAY(RZ5)*_xlfn.ANCHORARRAY($J5)*_xlfn.ANCHORARRAY($K5)*_xlfn.ANCHORARRAY($H5) ->  | TM5: =_xlfn.ANCHORARRAY(SA5)*_xlfn.ANCHORARRAY($J5)*_xlfn.ANCHORARRAY($K5)*_xlfn.ANCHORARRAY($H5) ->  | TN5: =_xlfn.ANCHORARRAY(SB5)*_xlfn.ANCHORARRAY($J5)*_xlfn.ANCHORARRAY($K5)*_xlfn.ANCHORARRAY($H5) ->  | TO5: =_xlfn.ANCHORARRAY(SC5)*_xlfn.ANCHORARRAY($J5)*_xlfn.ANCHORARRAY($K5)*_xlfn.ANCHORARRAY($H5) ->  | TP5: =_xlfn.ANCHORARRAY(SD5)*_xlfn.ANCHORARRAY($J5)*_xlfn.ANCHORARRAY($K5)*_xlfn.ANCHORARRAY($H5) ->  | TQ5: =_xlfn.ANCHORARRAY(SE5)*_xlfn.ANCHORARRAY($J5)*_xlfn.ANCHORARRAY($K5)*_xlfn.ANCHORARRAY($H5) ->  | TR5: =_xlfn.ANCHORARRAY(SF5)*_xlfn.ANCHORARRAY($J5)*_xlfn.ANCHORARRAY($K5)*_xlfn.ANCHORARRAY($H5) ->  | TS5: =_xlfn.ANCHORARRAY(SG5)*_xlfn.ANCHORARRAY($J5)*_xlfn.ANCHORARRAY($K5)*_xlfn.ANCHORARRAY($H5) ->  | TT5: =_xlfn.ANCHORARRAY(SH5)*_xlfn.ANCHORARRAY($J5)*_xlfn.ANCHORARRAY($K5)*_xlfn.ANCHORARRAY($H5) ->  | TU5: =_xlfn.ANCHORARRAY(SI5)*_xlfn.ANCHORARRAY($J5)*_xlfn.ANCHORARRAY($K5)*_xlfn.ANCHORARRAY($H5) ->  | TV5: =_xlfn.ANCHORARRAY(SJ5)*_xlfn.ANCHORARRAY($J5)*_xlfn.ANCHORARRAY($K5)*_xlfn.ANCHORARRAY($H5) ->  | TW5: =_xlfn.ANCHORARRAY(SK5)*_xlfn.ANCHORARRAY($J5)*_xlfn.ANCHORARRAY($K5)*_xlfn.ANCHORARRAY($H5) ->  | TX5: =_xlfn.ANCHORARRAY(SL5)*_xlfn.ANCHORARRAY($J5)*_xlfn.ANCHORARRAY($K5)*_xlfn.ANCHORARRAY($H5) ->  | TY5: =_xlfn.ANCHORARRAY(SM5)*_xlfn.ANCHORARRAY($J5)*_xlfn.ANCHORARRAY($K5)*_xlfn.ANCHORARRAY($H5) ->  | TZ5: =_xlfn.ANCHORARRAY(SN5)*_xlfn.ANCHORARRAY($J5)*_xlfn.ANCHORARRAY($K5)*_xlfn.ANCHORARRAY($H5) ->  | UA5: =_xlfn.ANCHORARRAY(SO5)*_xlfn.ANCHORARRAY($J5)*_xlfn.ANCHORARRAY($K5)*_xlfn.ANCHORARRAY($H5) ->  | UB5: =_xlfn.ANCHORARRAY(SP5)*_xlfn.ANCHORARRAY($J5)*_xlfn.ANCHORARRAY($K5)*_xlfn.ANCHORARRAY($H5) ->  | UC5: =_xlfn.ANCHORARRAY(SQ5)*_xlfn.ANCHORARRAY($J5)*_xlfn.ANCHORARRAY($K5)*_xlfn.ANCHORARRAY($H5) ->  | UD5: =_xlfn.ANCHORARRAY(SR5)*_xlfn.ANCHORARRAY($J5)*_xlfn.ANCHORARRAY($K5)*_xlfn.ANCHORARRAY($H5) ->  | UE5: =_xlfn.ANCHORARRAY(SS5) ->  | UF5: =_xlfn.ANCHORARRAY(ST5)+_xlfn.ANCHORARRAY(UE5) ->  | UG5: =_xlfn.ANCHORARRAY(SU5)+_xlfn.ANCHORARRAY(UF5) ->  | UH5: =_xlfn.ANCHORARRAY(SV5)+_xlfn.ANCHORARRAY(UG5) ->  | UI5: =_xlfn.ANCHORARRAY(SW5)+_xlfn.ANCHORARRAY(UH5) ->  | UJ5: =_xlfn.ANCHORARRAY(SX5)+_xlfn.ANCHORARRAY(UI5) ->  | UK5: =_xlfn.ANCHORARRAY(SY5)+_xlfn.ANCHORARRAY(UJ5) ->  | UL5: =_xlfn.ANCHORARRAY(SZ5)+_xlfn.ANCHORARRAY(UK5) ->  | UM5: =_xlfn.ANCHORARRAY(TA5)+_xlfn.ANCHORARRAY(UL5) ->  | UN5: =_xlfn.ANCHORARRAY(TB5)+_xlfn.ANCHORARRAY(UM5) ->  | UO5: =_xlfn.ANCHORARRAY(TC5)+_xlfn.ANCHORARRAY(UN5) ->  | UP5: =_xlfn.ANCHORARRAY(TD5)+_xlfn.ANCHORARRAY(UO5) ->  | UQ5: =_xlfn.ANCHORARRAY(TE5)+_xlfn.ANCHORARRAY(UP5) ->  | UR5: =_xlfn.ANCHORARRAY(TF5)+_xlfn.ANCHORARRAY(UQ5) ->  | US5: =_xlfn.ANCHORARRAY(TG5)+_xlfn.ANCHORARRAY(UR5) ->  | UT5: =_xlfn.ANCHORARRAY(TH5)+_xlfn.ANCHORARRAY(US5) ->  | UU5: =_xlfn.ANCHORARRAY(TI5)+_xlfn.ANCHORARRAY(UT5) ->  | UV5: =_xlfn.ANCHORARRAY(TJ5)+_xlfn.ANCHORARRAY(UU5) ->  | UW5: =_xlfn.ANCHORARRAY(TK5)+_xlfn.ANCHORARRAY(UV5) ->  | UX5: =_xlfn.ANCHORARRAY(TL5)+_xlfn.ANCHORARRAY(UW5) ->  | UY5: =_xlfn.ANCHORARRAY(TM5)+_xlfn.ANCHORARRAY(UX5) ->  | UZ5: =_xlfn.ANCHORARRAY(TN5)+_xlfn.ANCHORARRAY(UY5) ->  | VA5: =_xlfn.ANCHORARRAY(TO5)+_xlfn.ANCHORARRAY(UZ5) ->  | VB5: =_xlfn.ANCHORARRAY(TP5)+_xlfn.ANCHORARRAY(VA5) ->  | VC5: =_xlfn.ANCHORARRAY(TQ5)+_xlfn.ANCHORARRAY(VB5) ->  | VD5: =_xlfn.ANCHORARRAY(TR5)+_xlfn.ANCHORARRAY(VC5) ->  | VE5: =_xlfn.ANCHORARRAY(TS5)+_xlfn.ANCHORARRAY(VD5) ->  | VF5: =_xlfn.ANCHORARRAY(TT5)+_xlfn.ANCHORARRAY(VE5) ->  | VG5: =_xlfn.ANCHORARRAY(TU5)+_xlfn.ANCHORARRAY(VF5) ->  | VH5: =_xlfn.ANCHORARRAY(TV5)+_xlfn.ANCHORARRAY(VG5) ->  | VI5: =_xlfn.ANCHORARRAY(TW5)+_xlfn.ANCHORARRAY(VH5) ->  | VJ5: =_xlfn.ANCHORARRAY(TX5)+_xlfn.ANCHORARRAY(VI5) ->  | VK5: =_xlfn.ANCHORARRAY(TY5)+_xlfn.ANCHORARRAY(VJ5) ->  | VL5: =_xlfn.ANCHORARRAY(TZ5)+_xlfn.ANCHORARRAY(VK5) ->  | VM5: =_xlfn.ANCHORARRAY(UA5)+_xlfn.ANCHORARRAY(VL5) ->  | VN5: =_xlfn.ANCHORARRAY(UB5)+_xlfn.ANCHORARRAY(VM5) ->  | VO5: =_xlfn.ANCHORARRAY(UC5)+_xlfn.ANCHORARRAY(VN5) ->  | VP5: =_xlfn.ANCHORARRAY(UD5)+_xlfn.ANCHORARRAY(VO5) ->  | VQ5: =_xlfn.XLOOKUP(_xlfn.ANCHORARRAY($A5),FutureCodes[[State]:[State]],FutureCodes[2023],,0) ->  | VR5: =_xlfn.XLOOKUP(_xlfn.ANCHORARRAY($A5),FutureCodes[[State]:[State]],FutureCodes[2024],,0) ->  | VS5: =_xlfn.XLOOKUP(_xlfn.ANCHORARRAY($A5),FutureCodes[[State]:[State]],FutureCodes[2025],,0) ->  | VT5: =_xlfn.XLOOKUP(_xlfn.ANCHORARRAY($A5),FutureCodes[[State]:[State]],FutureCodes[2026],,0) ->  | VU5: =_xlfn.XLOOKUP(_xlfn.ANCHORARRAY($A5),FutureCodes[[State]:[State]],FutureCodes[2027],,0) ->  | VV5: =_xlfn.XLOOKUP(_xlfn.ANCHORARRAY($A5),FutureCodes[[State]:[State]],FutureCodes[2028],,0) ->  | VW5: =_xlfn.XLOOKUP(_xlfn.ANCHORARRAY($A5),FutureCodes[[State]:[State]],FutureCodes[2029],,0) ->  | VX5: =_xlfn.XLOOKUP(_xlfn.ANCHORARRAY($A5),FutureCodes[[State]:[State]],FutureCodes[2030],,0) ->  | VY5: =_xlfn.XLOOKUP(_xlfn.ANCHORARRAY($A5),FutureCodes[[State]:[State]],FutureCodes[2031],,0) ->  | VZ5: =_xlfn.XLOOKUP(_xlfn.ANCHORARRAY($A5),FutureCodes[[State]:[State]],FutureCodes[2032],,0) ->  | WA5: =_xlfn.XLOOKUP(_xlfn.ANCHORARRAY($A5),FutureCodes[[State]:[State]],FutureCodes[2033],,0) ->  | WB5: =_xlfn.XLOOKUP(_xlfn.ANCHORARRAY($A5),FutureCodes[[State]:[State]],FutureCodes[2034],,0) ->  | WC5: =_xlfn.XLOOKUP(_xlfn.ANCHORARRAY($A5),FutureCodes[[State]:[State]],FutureCodes[2035],,0) ->  | WD5: =_xlfn.XLOOKUP(_xlfn.ANCHORARRAY($A5),FutureCodes[[State]:[State]],FutureCodes[2036],,0) ->  | WE5: =_xlfn.XLOOKUP(_xlfn.ANCHORARRAY($A5),FutureCodes[[State]:[State]],FutureCodes[2037],,0) ->  | WF5: =_xlfn.XLOOKUP(_xlfn.ANCHORARRAY($A5),FutureCodes[[State]:[State]],FutureCodes[2038],,0) ->  | WG5: =_xlfn.XLOOKUP(_xlfn.ANCHORARRAY($A5),FutureCodes[[State]:[State]],FutureCodes[2039],,0) ->  | WH5: =_xlfn.XLOOKUP(_xlfn.ANCHORARRAY($A5),FutureCodes[[State]:[State]],FutureCodes[2040],,0) ->  | WI5: =_xlfn.XLOOKUP(_xlfn.ANCHORARRAY($A5),FutureCodes[[State]:[State]],FutureCodes[2041],,0) ->  | WJ5: =_xlfn.XLOOKUP(_xlfn.ANCHORARRAY($A5),FutureCodes[[State]:[State]],FutureCodes[2042],,0) ->  | WK5: =_xlfn.XLOOKUP(_xlfn.ANCHORARRAY($A5),FutureCodes[[State]:[State]],FutureCodes[2043],,0) ->  | WL5: =_xlfn.XLOOKUP(_xlfn.ANCHORARRAY($A5),FutureCodes[[State]:[State]],FutureCodes[2044],,0) ->  | WM5: =_xlfn.XLOOKUP(_xlfn.ANCHORARRAY($A5),FutureCodes[[State]:[State]],FutureCodes[2045],,0) ->  | WN5: =_xlfn.XLOOKUP(_xlfn.ANCHORARRAY($A5),FutureCodes[[State]:[State]],FutureCodes[2046],,0) ->  | WO5: =_xlfn.XLOOKUP(_xlfn.ANCHORARRAY($A5),FutureCodes[[State]:[State]],FutureCodes[2047],,0) ->  | WP5: =_xlfn.XLOOKUP(_xlfn.ANCHORARRAY($A5),FutureCodes[[State]:[State]],FutureCodes[2048],,0) ->  | WQ5: =_xlfn.XLOOKUP(_xlfn.ANCHORARRAY($A5),FutureCodes[[State]:[State]],FutureCodes[2049],,0) ->  | WR5: =_xlfn.XLOOKUP(_xlfn.ANCHORARRAY($A5),FutureCodes[[State]:[State]],FutureCodes[2050],,0) ->  | WS5: =_xlfn.XLOOKUP(_xlfn.ANCHORARRAY($A5),FutureCodes[[State]:[State]],FutureCodes[2051],,0) ->  | WT5: =_xlfn.XLOOKUP(_xlfn.ANCHORARRAY($A5),FutureCodes[[State]:[State]],FutureCodes[2052],,0) ->  | WU5: =_xlfn.XLOOKUP(_xlfn.ANCHORARRAY($A5),FutureCodes[[State]:[State]],FutureCodes[2053],,0) ->  | WV5: =_xlfn.XLOOKUP(_xlfn.ANCHORARRAY($A5),FutureCodes[[State]:[State]],FutureCodes[2054],,0) ->  | WW5: =_xlfn.XLOOKUP(_xlfn.ANCHORARRAY($A5),FutureCodes[[State]:[State]],FutureCodes[2055],,0) ->  | WX5: =_xlfn.XLOOKUP(_xlfn.ANCHORARRAY($A5),FutureCodes[[State]:[State]],FutureCodes[2056],,0) ->  | WY5: =_xlfn.XLOOKUP(_xlfn.ANCHORARRAY($A5),FutureCodes[[State]:[State]],FutureCodes[2057],,0) ->  | WZ5: =_xlfn.XLOOKUP(_xlfn.ANCHORARRAY($A5),FutureCodes[[State]:[State]],FutureCodes[2058],,0) ->  | XA5: =_xlfn.XLOOKUP(_xlfn.ANCHORARRAY($A5),FutureCodes[[State]:[State]],FutureCodes[2059],,0) ->  | XB5: =_xlfn.XLOOKUP(_xlfn.ANCHORARRAY($A5),FutureCodes[[State]:[State]],FutureCodes[2060],,0) ->  | XC5: =_xlfn.XLOOKUP(_xlfn.ANCHORARRAY($A5),FutureCodes[[State]:[State]],FutureCodes[2023],,0) ->  | XD5: =_xlfn.XLOOKUP(_xlfn.ANCHORARRAY($A5),FutureCodes[[State]:[State]],FutureCodes[2023],,0) ->  | XE5: =_xlfn.XLOOKUP(_xlfn.ANCHORARRAY($A5),FutureCodes[[State]:[State]],FutureCodes[2023],,0) ->  | XF5: =_xlfn.XLOOKUP(_xlfn.ANCHORARRAY($A5),FutureCodes[[State]:[State]],FutureCodes[2023],,0) ->  | XG5: =_xlfn.XLOOKUP(_xlfn.ANCHORARRAY($A5),FutureCodes[[State]:[State]],FutureCodes[2023],,0) ->  | XH5: =_xlfn.XLOOKUP(_xlfn.ANCHORARRAY($A5),FutureCodes[[State]:[State]],FutureCodes[2024],,0) ->  | XI5: =_xlfn.XLOOKUP(_xlfn.ANCHORARRAY($A5),FutureCodes[[State]:[State]],FutureCodes[2025],,0) ->  | XJ5: =_xlfn.XLOOKUP(_xlfn.ANCHORARRAY($A5),FutureCodes[[State]:[State]],FutureCodes[2026],,0) ->  | XK5: =_xlfn.XLOOKUP(_xlfn.ANCHORARRAY($A5),FutureCodes[[State]:[State]],FutureCodes[2027],,0) ->  | XL5: =_xlfn.XLOOKUP(_xlfn.ANCHORARRAY($A5),FutureCodes[[State]:[State]],FutureCodes[2028],,0) ->  | XM5: =_xlfn.XLOOKUP(_xlfn.ANCHORARRAY($A5),FutureCodes[[State]:[State]],FutureCodes[2029],,0) ->  | XN5: =_xlfn.XLOOKUP(_xlfn.ANCHORARRAY($A5),FutureCodes[[State]:[State]],FutureCodes[2030],,0) ->  | XO5: =_xlfn.XLOOKUP(_xlfn.ANCHORARRAY($A5),FutureCodes[[State]:[State]],FutureCodes[2031],,0) ->  | XP5: =_xlfn.XLOOKUP(_xlfn.ANCHORARRAY($A5),FutureCodes[[State]:[State]],FutureCodes[2032],,0) ->  | XQ5: =_xlfn.XLOOKUP(_xlfn.ANCHORARRAY($A5),FutureCodes[[State]:[State]],FutureCodes[2033],,0) ->  | XR5: =_xlfn.XLOOKUP(_xlfn.ANCHORARRAY($A5),FutureCodes[[State]:[State]],FutureCodes[2034],,0) ->  | XS5: =_xlfn.XLOOKUP(_xlfn.ANCHORARRAY($A5),FutureCodes[[State]:[State]],FutureCodes[2035],,0) ->  | XT5: =_xlfn.XLOOKUP(_xlfn.ANCHORARRAY($A5),FutureCodes[[State]:[State]],FutureCodes[2036],,0) ->  | XU5: =_xlfn.XLOOKUP(_xlfn.ANCHORARRAY($A5),FutureCodes[[State]:[State]],FutureCodes[2037],,0) ->  | XV5: =_xlfn.XLOOKUP(_xlfn.ANCHORARRAY($A5),FutureCodes[[State]:[State]],FutureCodes[2038],,0) ->  | XW5: =_xlfn.XLOOKUP(_xlfn.ANCHORARRAY($A5),FutureCodes[[State]:[State]],FutureCodes[2039],,0) ->  | XX5: =_xlfn.XLOOKUP(_xlfn.ANCHORARRAY($A5),FutureCodes[[State]:[State]],FutureCodes[2040],,0) ->  | XY5: =_xlfn.XLOOKUP(_xlfn.ANCHORARRAY($A5),FutureCodes[[State]:[State]],FutureCodes[2041],,0) ->  | XZ5: =_xlfn.XLOOKUP(_xlfn.ANCHORARRAY($A5),FutureCodes[[State]:[State]],FutureCodes[2042],,0) ->  | YA5: =_xlfn.XLOOKUP(_xlfn.ANCHORARRAY($A5),FutureCodes[[State]:[State]],FutureCodes[2043],,0) ->  | YB5: =_xlfn.XLOOKUP(_xlfn.ANCHORARRAY($A5),FutureCodes[[State]:[State]],FutureCodes[2044],,0) ->  | YC5: =_xlfn.XLOOKUP(_xlfn.ANCHORARRAY($A5),FutureCodes[[State]:[State]],FutureCodes[2045],,0) ->  | YD5: =_xlfn.XLOOKUP(_xlfn.ANCHORARRAY($A5),FutureCodes[[State]:[State]],FutureCodes[2046],,0) ->  | YE5: =_xlfn.XLOOKUP(_xlfn.ANCHORARRAY($A5),FutureCodes[[State]:[State]],FutureCodes[2047],,0) ->  | YF5: =_xlfn.XLOOKUP(_xlfn.ANCHORARRAY($A5),FutureCodes[[State]:[State]],FutureCodes[2048],,0) ->  | YG5: =_xlfn.XLOOKUP(_xlfn.ANCHORARRAY($A5),FutureCodes[[State]:[State]],FutureCodes[2049],,0) ->  | YH5: =_xlfn.XLOOKUP(_xlfn.ANCHORARRAY($A5),FutureCodes[[State]:[State]],FutureCodes[2050],,0) ->  | YI5: =_xlfn.XLOOKUP(_xlfn.ANCHORARRAY($A5),FutureCodes[[State]:[State]],FutureCodes[2051],,0) ->  | YJ5: =_xlfn.XLOOKUP(_xlfn.ANCHORARRAY($A5),FutureCodes[[State]:[State]],FutureCodes[2052],,0) ->  | YK5: =_xlfn.XLOOKUP(_xlfn.ANCHORARRAY($A5),FutureCodes[[State]:[State]],FutureCodes[2053],,0) ->  | YL5: =_xlfn.XLOOKUP(_xlfn.ANCHORARRAY($A5),FutureCodes[[State]:[State]],FutureCodes[2054],,0) ->  | YM5: =_xlfn.XLOOKUP(_xlfn.ANCHORARRAY($A5),FutureCodes[[State]:[State]],FutureCodes[2055],,0) ->  | YN5: =_xlfn.XLOOKUP(_xlfn.ANCHORARRAY($A5),FutureCodes[[State]:[State]],FutureCodes[2056],,0) ->  | YO5: =_xlfn.ANCHORARRAY(SS5)*_xlfn.ANCHORARRAY($L5)*_xlfn.ANCHORARRAY(VQ5) ->  | YP5: =_xlfn.ANCHORARRAY(ST5)*_xlfn.ANCHORARRAY($L5)*_xlfn.ANCHORARRAY(VR5) ->  | YQ5: =_xlfn.ANCHORARRAY(SU5)*_xlfn.ANCHORARRAY($L5)*_xlfn.ANCHORARRAY(VS5) ->  | YR5: =_xlfn.ANCHORARRAY(SV5)*_xlfn.ANCHORARRAY($L5)*_xlfn.ANCHORARRAY(VT5) ->  | YS5: =_xlfn.ANCHORARRAY(SW5)*_xlfn.ANCHORARRAY($L5)*_xlfn.ANCHORARRAY(VU5) ->  | YT5: =_xlfn.ANCHORARRAY(SX5)*_xlfn.ANCHORARRAY($L5)*_xlfn.ANCHORARRAY(VV5) ->  | YU5: =_xlfn.ANCHORARRAY(SY5)*_xlfn.ANCHORARRAY($L5)*_xlfn.ANCHORARRAY(VW5) ->  | YV5: =_xlfn.ANCHORARRAY(SZ5)*_xlfn.ANCHORARRAY($L5)*_xlfn.ANCHORARRAY(VX5) ->  | YW5: =_xlfn.ANCHORARRAY(TA5)*_xlfn.ANCHORARRAY($L5)*_xlfn.ANCHORARRAY(VY5) ->  | YX5: =_xlfn.ANCHORARRAY(TB5)*_xlfn.ANCHORARRAY($L5)*_xlfn.ANCHORARRAY(VZ5) ->  | YY5: =_xlfn.ANCHORARRAY(TC5)*_xlfn.ANCHORARRAY($L5)*_xlfn.ANCHORARRAY(WA5) ->  | YZ5: =_xlfn.ANCHORARRAY(TD5)*_xlfn.ANCHORARRAY($L5)*_xlfn.ANCHORARRAY(WB5) ->  | ZA5: =_xlfn.ANCHORARRAY(TE5)*_xlfn.ANCHORARRAY($L5)*_xlfn.ANCHORARRAY(WC5) ->  | ZB5: =_xlfn.ANCHORARRAY(TF5)*_xlfn.ANCHORARRAY($L5)*_xlfn.ANCHORARRAY(WD5) ->  | ZC5: =_xlfn.ANCHORARRAY(TG5)*_xlfn.ANCHORARRAY($L5)*_xlfn.ANCHORARRAY(WE5) ->  | ZD5: =_xlfn.ANCHORARRAY(TH5)*_xlfn.ANCHORARRAY($L5)*_xlfn.ANCHORARRAY(WF5) ->  | ZE5: =_xlfn.ANCHORARRAY(TI5)*_xlfn.ANCHORARRAY($L5)*_xlfn.ANCHORARRAY(WG5) ->  | ZF5: =_xlfn.ANCHORARRAY(TJ5)*_xlfn.ANCHORARRAY($L5)*_xlfn.ANCHORARRAY(WH5) ->  | ZG5: =_xlfn.ANCHORARRAY(TK5)*_xlfn.ANCHORARRAY($L5)*_xlfn.ANCHORARRAY(WI5) ->  | ZH5: =_xlfn.ANCHORARRAY(TL5)*_xlfn.ANCHORARRAY($L5)*_xlfn.ANCHORARRAY(WJ5) ->  | ZI5: =_xlfn.ANCHORARRAY(TM5)*_xlfn.ANCHORARRAY($L5)*_xlfn.ANCHORARRAY(WK5) ->  | ZJ5: =_xlfn.ANCHORARRAY(TN5)*_xlfn.ANCHORARRAY($L5)*_xlfn.ANCHORARRAY(WL5) ->  | ZK5: =_xlfn.ANCHORARRAY(TO5)*_xlfn.ANCHORARRAY($L5)*_xlfn.ANCHORARRAY(WM5) ->  | ZL5: =_xlfn.ANCHORARRAY(TP5)*_xlfn.ANCHORARRAY($L5)*_xlfn.ANCHORARRAY(WN5) ->  | ZM5: =_xlfn.ANCHORARRAY(TQ5)*_xlfn.ANCHORARRAY($L5)*_xlfn.ANCHORARRAY(WO5) ->  | ZN5: =_xlfn.ANCHORARRAY(TR5)*_xlfn.ANCHORARRAY($L5)*_xlfn.ANCHORARRAY(WP5) ->  | ZO5: =_xlfn.ANCHORARRAY(TS5)*_xlfn.ANCHORARRAY($L5)*_xlfn.ANCHORARRAY(WQ5) ->  | ZP5: =_xlfn.ANCHORARRAY(TT5)*_xlfn.ANCHORARRAY($L5)*_xlfn.ANCHORARRAY(WR5) ->  | ZQ5: =_xlfn.ANCHORARRAY(TU5)*_xlfn.ANCHORARRAY($L5)*_xlfn.ANCHORARRAY(WS5) ->  | ZR5: =_xlfn.ANCHORARRAY(TV5)*_xlfn.ANCHORARRAY($L5)*_xlfn.ANCHORARRAY(WT5) ->  | ZS5: =_xlfn.ANCHORARRAY(TW5)*_xlfn.ANCHORARRAY($L5)*_xlfn.ANCHORARRAY(WU5) ->  | ZT5: =_xlfn.ANCHORARRAY(TX5)*_xlfn.ANCHORARRAY($L5)*_xlfn.ANCHORARRAY(WV5) ->  | ZU5: =_xlfn.ANCHORARRAY(TY5)*_xlfn.ANCHORARRAY($L5)*_xlfn.ANCHORARRAY(WW5) ->  | ZV5: =_xlfn.ANCHORARRAY(TZ5)*_xlfn.ANCHORARRAY($L5)*_xlfn.ANCHORARRAY(WX5) ->  | ZW5: =_xlfn.ANCHORARRAY(UA5)*_xlfn.ANCHORARRAY($L5)*_xlfn.ANCHORARRAY(WY5) ->  | ZX5: =_xlfn.ANCHORARRAY(UB5)*_xlfn.ANCHORARRAY($L5)*_xlfn.ANCHORARRAY(WZ5) ->  | ZY5: =_xlfn.ANCHORARRAY(UC5)*_xlfn.ANCHORARRAY($L5)*_xlfn.ANCHORARRAY(XA5) ->  | ZZ5: =_xlfn.ANCHORARRAY(UD5)*_xlfn.ANCHORARRAY($L5)*_xlfn.ANCHORARRAY(XB5) ->  | AAA5: =_xlfn.ANCHORARRAY(YO5) ->  | AAB5: =_xlfn.ANCHORARRAY(AAA5)+_xlfn.ANCHORARRAY(YP5) ->  | AAC5: =_xlfn.ANCHORARRAY(AAB5)+_xlfn.ANCHORARRAY(YQ5) ->  | AAD5: =_xlfn.ANCHORARRAY(AAC5)+_xlfn.ANCHORARRAY(YR5) ->  | AAE5: =_xlfn.ANCHORARRAY(AAD5)+_xlfn.ANCHORARRAY(YS5) ->  | AAF5: =_xlfn.ANCHORARRAY(AAE5)+_xlfn.ANCHORARRAY(YT5) ->  | AAG5: =_xlfn.ANCHORARRAY(AAF5)+_xlfn.ANCHORARRAY(YU5) ->  | AAH5: =_xlfn.ANCHORARRAY(AAG5)+_xlfn.ANCHORARRAY(YV5) ->  | AAI5: =_xlfn.ANCHORARRAY(AAH5)+_xlfn.ANCHORARRAY(YW5) ->  | AAJ5: =_xlfn.ANCHORARRAY(AAI5)+_xlfn.ANCHORARRAY(YX5) ->  | AAK5: =_xlfn.ANCHORARRAY(AAJ5)+_xlfn.ANCHORARRAY(YY5) ->  | AAL5: =_xlfn.ANCHORARRAY(AAK5)+_xlfn.ANCHORARRAY(YZ5) ->  | AAM5: =_xlfn.ANCHORARRAY(AAL5)+_xlfn.ANCHORARRAY(ZA5) ->  | AAN5: =_xlfn.ANCHORARRAY(AAM5)+_xlfn.ANCHORARRAY(ZB5) ->  | AAO5: =_xlfn.ANCHORARRAY(AAN5)+_xlfn.ANCHORARRAY(ZC5) ->  | AAP5: =_xlfn.ANCHORARRAY(AAO5)+_xlfn.ANCHORARRAY(ZD5) ->  | AAQ5: =_xlfn.ANCHORARRAY(AAP5)+_xlfn.ANCHORARRAY(ZE5) ->  | AAR5: =_xlfn.ANCHORARRAY(AAQ5)+_xlfn.ANCHORARRAY(ZF5) ->  | AAS5: =_xlfn.ANCHORARRAY(AAR5)+_xlfn.ANCHORARRAY(ZG5) ->  | AAT5: =_xlfn.ANCHORARRAY(AAS5)+_xlfn.ANCHORARRAY(ZH5) ->  | AAU5: =_xlfn.ANCHORARRAY(AAT5)+_xlfn.ANCHORARRAY(ZI5) ->  | AAV5: =_xlfn.ANCHORARRAY(AAU5)+_xlfn.ANCHORARRAY(ZJ5) ->  | AAW5: =_xlfn.ANCHORARRAY(AAV5)+_xlfn.ANCHORARRAY(ZK5) ->  | AAX5: =_xlfn.ANCHORARRAY(AAW5)+_xlfn.ANCHORARRAY(ZL5) ->  | AAY5: =_xlfn.ANCHORARRAY(AAX5)+_xlfn.ANCHORARRAY(ZM5) ->  | AAZ5: =_xlfn.ANCHORARRAY(AAY5)+_xlfn.ANCHORARRAY(ZN5) ->  | ABA5: =_xlfn.ANCHORARRAY(AAZ5)+_xlfn.ANCHORARRAY(ZO5) ->  | ABB5: =_xlfn.ANCHORARRAY(ABA5)+_xlfn.ANCHORARRAY(ZP5) ->  | ABC5: =_xlfn.ANCHORARRAY(ABB5)+_xlfn.ANCHORARRAY(ZQ5) ->  | ABD5: =_xlfn.ANCHORARRAY(ABC5)+_xlfn.ANCHORARRAY(ZR5) ->  | ABE5: =_xlfn.ANCHORARRAY(ABD5)+_xlfn.ANCHORARRAY(ZS5) ->  | ABF5: =_xlfn.ANCHORARRAY(ABE5)+_xlfn.ANCHORARRAY(ZT5) ->  | ABG5: =_xlfn.ANCHORARRAY(ABF5)+_xlfn.ANCHORARRAY(ZU5) ->  | ABH5: =_xlfn.ANCHORARRAY(ABG5)+_xlfn.ANCHORARRAY(ZV5) ->  | ABI5: =_xlfn.ANCHORARRAY(ABH5)+_xlfn.ANCHORARRAY(ZW5) ->  | ABJ5: =_xlfn.ANCHORARRAY(ABI5)+_xlfn.ANCHORARRAY(ZX5) ->  | ABK5: =_xlfn.ANCHORARRAY(ABJ5)+_xlfn.ANCHORARRAY(ZY5) ->  | ABL5: =_xlfn.ANCHORARRAY(ABK5)+_xlfn.ANCHORARRAY(ZZ5) ->  | ABM5: =_xlfn.ANCHORARRAY(SS5)*_xlfn.ANCHORARRAY($M5)*_xlfn.ANCHORARRAY(VQ5) ->  | ABN5: =_xlfn.ANCHORARRAY(ST5)*_xlfn.ANCHORARRAY($M5)*_xlfn.ANCHORARRAY(VR5) ->  | ABO5: =_xlfn.ANCHORARRAY(SU5)*_xlfn.ANCHORARRAY($M5)*_xlfn.ANCHORARRAY(VS5) ->  | ABP5: =_xlfn.ANCHORARRAY(SV5)*_xlfn.ANCHORARRAY($M5)*_xlfn.ANCHORARRAY(VT5) ->  | ABQ5: =_xlfn.ANCHORARRAY(SW5)*_xlfn.ANCHORARRAY($M5)*_xlfn.ANCHORARRAY(VU5) ->  | ABR5: =_xlfn.ANCHORARRAY(SX5)*_xlfn.ANCHORARRAY($M5)*_xlfn.ANCHORARRAY(VV5) ->  | ABS5: =_xlfn.ANCHORARRAY(SY5)*_xlfn.ANCHORARRAY($M5)*_xlfn.ANCHORARRAY(VW5) ->  | ABT5: =_xlfn.ANCHORARRAY(SZ5)*_xlfn.ANCHORARRAY($M5)*_xlfn.ANCHORARRAY(VX5) ->  | ABU5: =_xlfn.ANCHORARRAY(TA5)*_xlfn.ANCHORARRAY($M5)*_xlfn.ANCHORARRAY(VY5) ->  | ABV5: =_xlfn.ANCHORARRAY(TB5)*_xlfn.ANCHORARRAY($M5)*_xlfn.ANCHORARRAY(VZ5) ->  | ABW5: =_xlfn.ANCHORARRAY(TC5)*_xlfn.ANCHORARRAY($M5)*_xlfn.ANCHORARRAY(WA5) ->  | ABX5: =_xlfn.ANCHORARRAY(TD5)*_xlfn.ANCHORARRAY($M5)*_xlfn.ANCHORARRAY(WB5) ->  | ABY5: =_xlfn.ANCHORARRAY(TE5)*_xlfn.ANCHORARRAY($M5)*_xlfn.ANCHORARRAY(WC5) ->  | ABZ5: =_xlfn.ANCHORARRAY(TF5)*_xlfn.ANCHORARRAY($M5)*_xlfn.ANCHORARRAY(WD5) ->  | ACA5: =_xlfn.ANCHORARRAY(TG5)*_xlfn.ANCHORARRAY($M5)*_xlfn.ANCHORARRAY(WE5) ->  | ACB5: =_xlfn.ANCHORARRAY(TH5)*_xlfn.ANCHORARRAY($M5)*_xlfn.ANCHORARRAY(WF5) ->  | ACC5: =_xlfn.ANCHORARRAY(TI5)*_xlfn.ANCHORARRAY($M5)*_xlfn.ANCHORARRAY(WG5) ->  | ACD5: =_xlfn.ANCHORARRAY(TJ5)*_xlfn.ANCHORARRAY($M5)*_xlfn.ANCHORARRAY(WH5) ->  | ACE5: =_xlfn.ANCHORARRAY(TK5)*_xlfn.ANCHORARRAY($M5)*_xlfn.ANCHORARRAY(WI5) ->  | ACF5: =_xlfn.ANCHORARRAY(TL5)*_xlfn.ANCHORARRAY($M5)*_xlfn.ANCHORARRAY(WJ5) ->  | ACG5: =_xlfn.ANCHORARRAY(TM5)*_xlfn.ANCHORARRAY($M5)*_xlfn.ANCHORARRAY(WK5) ->  | ACH5: =_xlfn.ANCHORARRAY(TN5)*_xlfn.ANCHORARRAY($M5)*_xlfn.ANCHORARRAY(WL5) ->  | ACI5: =_xlfn.ANCHORARRAY(TO5)*_xlfn.ANCHORARRAY($M5)*_xlfn.ANCHORARRAY(WM5) ->  | ACJ5: =_xlfn.ANCHORARRAY(TP5)*_xlfn.ANCHORARRAY($M5)*_xlfn.ANCHORARRAY(WN5) ->  | ACK5: =_xlfn.ANCHORARRAY(TQ5)*_xlfn.ANCHORARRAY($M5)*_xlfn.ANCHORARRAY(WO5) ->  | ACL5: =_xlfn.ANCHORARRAY(TR5)*_xlfn.ANCHORARRAY($M5)*_xlfn.ANCHORARRAY(WP5) ->  | ACM5: =_xlfn.ANCHORARRAY(TS5)*_xlfn.ANCHORARRAY($M5)*_xlfn.ANCHORARRAY(WQ5) ->  | ACN5: =_xlfn.ANCHORARRAY(TT5)*_xlfn.ANCHORARRAY($M5)*_xlfn.ANCHORARRAY(WR5) ->  | ACO5: =_xlfn.ANCHORARRAY(TU5)*_xlfn.ANCHORARRAY($M5)*_xlfn.ANCHORARRAY(WS5) ->  | ACP5: =_xlfn.ANCHORARRAY(TV5)*_xlfn.ANCHORARRAY($M5)*_xlfn.ANCHORARRAY(WT5) ->  | ACQ5: =_xlfn.ANCHORARRAY(TW5)*_xlfn.ANCHORARRAY($M5)*_xlfn.ANCHORARRAY(WU5) ->  | ACR5: =_xlfn.ANCHORARRAY(TX5)*_xlfn.ANCHORARRAY($M5)*_xlfn.ANCHORARRAY(WV5) ->  | ACS5: =_xlfn.ANCHORARRAY(TY5)*_xlfn.ANCHORARRAY($M5)*_xlfn.ANCHORARRAY(WW5) ->  | ACT5: =_xlfn.ANCHORARRAY(TZ5)*_xlfn.ANCHORARRAY($M5)*_xlfn.ANCHORARRAY(WX5) ->  | ACU5: =_xlfn.ANCHORARRAY(UA5)*_xlfn.ANCHORARRAY($M5)*_xlfn.ANCHORARRAY(WY5) ->  | ACV5: =_xlfn.ANCHORARRAY(UB5)*_xlfn.ANCHORARRAY($M5)*_xlfn.ANCHORARRAY(WZ5) ->  | ACW5: =_xlfn.ANCHORARRAY(UC5)*_xlfn.ANCHORARRAY($M5)*_xlfn.ANCHORARRAY(XA5) ->  | ACX5: =_xlfn.ANCHORARRAY(UD5)*_xlfn.ANCHORARRAY($M5)*_xlfn.ANCHORARRAY(XB5) ->  | ACY5: =_xlfn.ANCHORARRAY(ABM5) ->  | ACZ5: =_xlfn.ANCHORARRAY(ACY5)+_xlfn.ANCHORARRAY(ABN5) ->  | ADA5: =_xlfn.ANCHORARRAY(ACZ5)+_xlfn.ANCHORARRAY(ABO5) ->  | ADB5: =_xlfn.ANCHORARRAY(ADA5)+_xlfn.ANCHORARRAY(ABP5) ->  | ADC5: =_xlfn.ANCHORARRAY(ADB5)+_xlfn.ANCHORARRAY(ABQ5) ->  | ADD5: =_xlfn.ANCHORARRAY(ADC5)+_xlfn.ANCHORARRAY(ABR5) ->  | ADE5: =_xlfn.ANCHORARRAY(ADD5)+_xlfn.ANCHORARRAY(ABS5) ->  | ADF5: =_xlfn.ANCHORARRAY(ADE5)+_xlfn.ANCHORARRAY(ABT5) ->  | ADG5: =_xlfn.ANCHORARRAY(ADF5)+_xlfn.ANCHORARRAY(ABU5) ->  | ADH5: =_xlfn.ANCHORARRAY(ADG5)+_xlfn.ANCHORARRAY(ABV5) ->  | ADI5: =_xlfn.ANCHORARRAY(ADH5)+_xlfn.ANCHORARRAY(ABW5) ->  | ADJ5: =_xlfn.ANCHORARRAY(ADI5)+_xlfn.ANCHORARRAY(ABX5) ->  | ADK5: =_xlfn.ANCHORARRAY(ADJ5)+_xlfn.ANCHORARRAY(ABY5) ->  | ADL5: =_xlfn.ANCHORARRAY(ADK5)+_xlfn.ANCHORARRAY(ABZ5) ->  | ADM5: =_xlfn.ANCHORARRAY(ADL5)+_xlfn.ANCHORARRAY(ACA5) ->  | ADN5: =_xlfn.ANCHORARRAY(ADM5)+_xlfn.ANCHORARRAY(ACB5) ->  | ADO5: =_xlfn.ANCHORARRAY(ADN5)+_xlfn.ANCHORARRAY(ACC5) ->  | ADP5: =_xlfn.ANCHORARRAY(ADO5)+_xlfn.ANCHORARRAY(ACD5) ->  | ADQ5: =_xlfn.ANCHORARRAY(ADP5)+_xlfn.ANCHORARRAY(ACE5) ->  | ADR5: =_xlfn.ANCHORARRAY(ADQ5)+_xlfn.ANCHORARRAY(ACF5) ->  | ADS5: =_xlfn.ANCHORARRAY(ADR5)+_xlfn.ANCHORARRAY(ACG5) ->  | ADT5: =_xlfn.ANCHORARRAY(ADS5)+_xlfn.ANCHORARRAY(ACH5) ->  | ADU5: =_xlfn.ANCHORARRAY(ADT5)+_xlfn.ANCHORARRAY(ACI5) ->  | ADV5: =_xlfn.ANCHORARRAY(ADU5)+_xlfn.ANCHORARRAY(ACJ5) ->  | ADW5: =_xlfn.ANCHORARRAY(ADV5)+_xlfn.ANCHORARRAY(ACK5) ->  | ADX5: =_xlfn.ANCHORARRAY(ADW5)+_xlfn.ANCHORARRAY(ACL5) ->  | ADY5: =_xlfn.ANCHORARRAY(ADX5)+_xlfn.ANCHORARRAY(ACM5) ->  | ADZ5: =_xlfn.ANCHORARRAY(ADY5)+_xlfn.ANCHORARRAY(ACN5) ->  | AEA5: =_xlfn.ANCHORARRAY(ADZ5)+_xlfn.ANCHORARRAY(ACO5) ->  | AEB5: =_xlfn.ANCHORARRAY(AEA5)+_xlfn.ANCHORARRAY(ACP5) ->  | AEC5: =_xlfn.ANCHORARRAY(AEB5)+_xlfn.ANCHORARRAY(ACQ5) ->  | AED5: =_xlfn.ANCHORARRAY(AEC5)+_xlfn.ANCHORARRAY(ACR5) ->  | AEE5: =_xlfn.ANCHORARRAY(AED5)+_xlfn.ANCHORARRAY(ACS5) ->  | AEF5: =_xlfn.ANCHORARRAY(AEE5)+_xlfn.ANCHORARRAY(ACT5) ->  | AEG5: =_xlfn.ANCHORARRAY(AEF5)+_xlfn.ANCHORARRAY(ACU5) ->  | AEH5: =_xlfn.ANCHORARRAY(AEG5)+_xlfn.ANCHORARRAY(ACV5) ->  | AEI5: =_xlfn.ANCHORARRAY(AEH5)+_xlfn.ANCHORARRAY(ACW5) ->  | AEJ5: =_xlfn.ANCHORARRAY(AEI5)+_xlfn.ANCHORARRAY(ACX5) ->  | AEK5: =(_xlfn.ANCHORARRAY(RG5)*_xlfn.ANCHORARRAY($J5)*_xlfn.ANCHORARRAY($K5)*_xlfn.ANCHORARRAY($H5))*('Topic 3 Calculator'!$D$18+DelayBPS<AEK$4) ->  | AEL5: =(_xlfn.ANCHORARRAY(RH5)*_xlfn.ANCHORARRAY($J5)*_xlfn.ANCHORARRAY($K5)*_xlfn.ANCHORARRAY($H5))*('Topic 3 Calculator'!$D$18+DelayBPS<AEL$4)+('Topic 3 Calculator'!$D$18+DelayBPS=AEL$4)*_xlfn.ANCHORARRAY(UA5) ->  | AEM5: =(_xlfn.ANCHORARRAY(RI5)*_xlfn.ANCHORARRAY($J5)*_xlfn.ANCHORARRAY($K5)*_xlfn.ANCHORARRAY($H5))*('Topic 3 Calculator'!$D$18+DelayBPS<AEM$4)+('Topic 3 Calculator'!$D$18+DelayBPS=AEM$4)*_xlfn.ANCHORARRAY(UB5)+_xlfn.ANCHORARRAY(AEL5) ->  | AEN5: =(_xlfn.ANCHORARRAY(RJ5)*_xlfn.ANCHORARRAY($J5)*_xlfn.ANCHORARRAY($K5)*_xlfn.ANCHORARRAY($H5))*('Topic 3 Calculator'!$D$18+DelayBPS<AEN$4)+('Topic 3 Calculator'!$D$18+DelayBPS=AEN$4)*_xlfn.ANCHORARRAY(UC5)+_xlfn.ANCHORARRAY(AEM5) ->  | AEO5: =(_xlfn.ANCHORARRAY(RK5)*_xlfn.ANCHORARRAY($J5)*_xlfn.ANCHORARRAY($K5)*_xlfn.ANCHORARRAY($H5))*('Topic 3 Calculator'!$D$18+DelayBPS<AEO$4)+('Topic 3 Calculator'!$D$18+DelayBPS=AEO$4)*_xlfn.ANCHORARRAY(UD5)+_xlfn.ANCHORARRAY(AEN5) ->  | AEP5: =(_xlfn.ANCHORARRAY(RL5)*_xlfn.ANCHORARRAY($J5)*_xlfn.ANCHORARRAY($K5)*_xlfn.ANCHORARRAY($H5))*('Topic 3 Calculator'!$D$18+DelayBPS<AEP$4)+('Topic 3 Calculator'!$D$18+DelayBPS=AEP$4)*_xlfn.ANCHORARRAY(UE5)+_xlfn.ANCHORARRAY(AEO5) ->  | AEQ5: =(_xlfn.ANCHORARRAY(RM5)*_xlfn.ANCHORARRAY($J5)*_xlfn.ANCHORARRAY($K5)*_xlfn.ANCHORARRAY($H5))*('Topic 3 Calculator'!$D$18+DelayBPS<AEQ$4)+('Topic 3 Calculator'!$D$18+DelayBPS=AEQ$4)*_xlfn.ANCHORARRAY(UF5) ->  | AER5: =(_xlfn.ANCHORARRAY(RN5)*_xlfn.ANCHORARRAY($J5)*_xlfn.ANCHORARRAY($K5)*_xlfn.ANCHORARRAY($H5))*('Topic 3 Calculator'!$D$18+DelayBPS<AER$4)+('Topic 3 Calculator'!$D$18+DelayBPS=AER$4)*_xlfn.ANCHORARRAY(UG5) ->  | AES5: =(_xlfn.ANCHORARRAY(RO5)*_xlfn.ANCHORARRAY($J5)*_xlfn.ANCHORARRAY($K5)*_xlfn.ANCHORARRAY($H5))*('Topic 3 Calculator'!$D$18+DelayBPS<AES$4)+('Topic 3 Calculator'!$D$18+DelayBPS=AES$4)*_xlfn.ANCHORARRAY(UH5) ->  | AET5: =(_xlfn.ANCHORARRAY(RP5)*_xlfn.ANCHORARRAY($J5)*_xlfn.ANCHORARRAY($K5)*_xlfn.ANCHORARRAY($H5))*('Topic 3 Calculator'!$D$18+DelayBPS<AET$4)+('Topic 3 Calculator'!$D$18+DelayBPS=AET$4)*_xlfn.ANCHORARRAY(UI5) ->  | AEU5: =(_xlfn.ANCHORARRAY(RQ5)*_xlfn.ANCHORARRAY($J5)*_xlfn.ANCHORARRAY($K5)*_xlfn.ANCHORARRAY($H5))*('Topic 3 Calculator'!$D$18+DelayBPS<AEU$4)+('Topic 3 Calculator'!$D$18+DelayBPS=AEU$4)*_xlfn.ANCHORARRAY(UJ5) ->  | AEV5: =(_xlfn.ANCHORARRAY(RR5)*_xlfn.ANCHORARRAY($J5)*_xlfn.ANCHORARRAY($K5)*_xlfn.ANCHORARRAY($H5))*('Topic 3 Calculator'!$D$18+DelayBPS<AEV$4)+('Topic 3 Calculator'!$D$18+DelayBPS=AEV$4)*_xlfn.ANCHORARRAY(UK5) ->  | AEW5: =(_xlfn.ANCHORARRAY(RS5)*_xlfn.ANCHORARRAY($J5)*_xlfn.ANCHORARRAY($K5)*_xlfn.ANCHORARRAY($H5))*('Topic 3 Calculator'!$D$18+DelayBPS<AEW$4)+('Topic 3 Calculator'!$D$18+DelayBPS=AEW$4)*_xlfn.ANCHORARRAY(UL5) ->  | AEX5: =(_xlfn.ANCHORARRAY(RT5)*_xlfn.ANCHORARRAY($J5)*_xlfn.ANCHORARRAY($K5)*_xlfn.ANCHORARRAY($H5))*('Topic 3 Calculator'!$D$18+DelayBPS<AEX$4)+('Topic 3 Calculator'!$D$18+DelayBPS=AEX$4)*_xlfn.ANCHORARRAY(UM5) ->  | AEY5: =(_xlfn.ANCHORARRAY(RU5)*_xlfn.ANCHORARRAY($J5)*_xlfn.ANCHORARRAY($K5)*_xlfn.ANCHORARRAY($H5))*('Topic 3 Calculator'!$D$18+DelayBPS<AEY$4)+('Topic 3 Calculator'!$D$18+DelayBPS=AEY$4)*_xlfn.ANCHORARRAY(UN5) ->  | AEZ5: =(_xlfn.ANCHORARRAY(RV5)*_xlfn.ANCHORARRAY($J5)*_xlfn.ANCHORARRAY($K5)*_xlfn.ANCHORARRAY($H5))*('Topic 3 Calculator'!$D$18+DelayBPS<AEZ$4)+('Topic 3 Calculator'!$D$18+DelayBPS=AEZ$4)*_xlfn.ANCHORARRAY(UO5) ->  | AFA5: =(_xlfn.ANCHORARRAY(RW5)*_xlfn.ANCHORARRAY($J5)*_xlfn.ANCHORARRAY($K5)*_xlfn.ANCHORARRAY($H5))*('Topic 3 Calculator'!$D$18+DelayBPS<AFA$4)+('Topic 3 Calculator'!$D$18+DelayBPS=AFA$4)*_xlfn.ANCHORARRAY(UP5) ->  | AFB5: =(_xlfn.ANCHORARRAY(RX5)*_xlfn.ANCHORARRAY($J5)*_xlfn.ANCHORARRAY($K5)*_xlfn.ANCHORARRAY($H5))*('Topic 3 Calculator'!$D$18+DelayBPS<AFB$4)+('Topic 3 Calculator'!$D$18+DelayBPS=AFB$4)*_xlfn.ANCHORARRAY(UQ5) ->  | AFC5: =(_xlfn.ANCHORARRAY(RY5)*_xlfn.ANCHORARRAY($J5)*_xlfn.ANCHORARRAY($K5)*_xlfn.ANCHORARRAY($H5))*('Topic 3 Calculator'!$D$18+DelayBPS<AFC$4)+('Topic 3 Calculator'!$D$18+DelayBPS=AFC$4)*_xlfn.ANCHORARRAY(UR5) ->  | AFD5: =(_xlfn.ANCHORARRAY(RZ5)*_xlfn.ANCHORARRAY($J5)*_xlfn.ANCHORARRAY($K5)*_xlfn.ANCHORARRAY($H5))*('Topic 3 Calculator'!$D$18+DelayBPS<AFD$4)+('Topic 3 Calculator'!$D$18+DelayBPS=AFD$4)*_xlfn.ANCHORARRAY(US5) ->  | AFE5: =(_xlfn.ANCHORARRAY(SA5)*_xlfn.ANCHORARRAY($J5)*_xlfn.ANCHORARRAY($K5)*_xlfn.ANCHORARRAY($H5))*('Topic 3 Calculator'!$D$18+DelayBPS<AFE$4)+('Topic 3 Calculator'!$D$18+DelayBPS=AFE$4)*_xlfn.ANCHORARRAY(UT5) ->  | AFF5: =(_xlfn.ANCHORARRAY(SB5)*_xlfn.ANCHORARRAY($J5)*_xlfn.ANCHORARRAY($K5)*_xlfn.ANCHORARRAY($H5))*('Topic 3 Calculator'!$D$18+DelayBPS<AFF$4)+('Topic 3 Calculator'!$D$18+DelayBPS=AFF$4)*_xlfn.ANCHORARRAY(UU5) ->  | AFG5: =(_xlfn.ANCHORARRAY(SC5)*_xlfn.ANCHORARRAY($J5)*_xlfn.ANCHORARRAY($K5)*_xlfn.ANCHORARRAY($H5))*('Topic 3 Calculator'!$D$18+DelayBPS<AFG$4)+('Topic 3 Calculator'!$D$18+DelayBPS=AFG$4)*_xlfn.ANCHORARRAY(UV5) ->  | AFH5: =(_xlfn.ANCHORARRAY(SD5)*_xlfn.ANCHORARRAY($J5)*_xlfn.ANCHORARRAY($K5)*_xlfn.ANCHORARRAY($H5))*('Topic 3 Calculator'!$D$18+DelayBPS<AFH$4)+('Topic 3 Calculator'!$D$18+DelayBPS=AFH$4)*_xlfn.ANCHORARRAY(UW5) ->  | AFI5: =(_xlfn.ANCHORARRAY(SE5)*_xlfn.ANCHORARRAY($J5)*_xlfn.ANCHORARRAY($K5)*_xlfn.ANCHORARRAY($H5))*('Topic 3 Calculator'!$D$18+DelayBPS<AFI$4)+('Topic 3 Calculator'!$D$18+DelayBPS=AFI$4)*_xlfn.ANCHORARRAY(UX5) ->  | AFJ5: =(_xlfn.ANCHORARRAY(SF5)*_xlfn.ANCHORARRAY($J5)*_xlfn.ANCHORARRAY($K5)*_xlfn.ANCHORARRAY($H5))*('Topic 3 Calculator'!$D$18+DelayBPS<AFJ$4)+('Topic 3 Calculator'!$D$18+DelayBPS=AFJ$4)*_xlfn.ANCHORARRAY(UY5) ->  | AFK5: =(_xlfn.ANCHORARRAY(SG5)*_xlfn.ANCHORARRAY($J5)*_xlfn.ANCHORARRAY($K5)*_xlfn.ANCHORARRAY($H5))*('Topic 3 Calculator'!$D$18+DelayBPS<AFK$4)+('Topic 3 Calculator'!$D$18+DelayBPS=AFK$4)*_xlfn.ANCHORARRAY(UZ5) ->  | AFL5: =(_xlfn.ANCHORARRAY(SH5)*_xlfn.ANCHORARRAY($J5)*_xlfn.ANCHORARRAY($K5)*_xlfn.ANCHORARRAY($H5))*('Topic 3 Calculator'!$D$18+DelayBPS<AFL$4)+('Topic 3 Calculator'!$D$18+DelayBPS=AFL$4)*_xlfn.ANCHORARRAY(VA5) ->  | AFM5: =(_xlfn.ANCHORARRAY(SI5)*_xlfn.ANCHORARRAY($J5)*_xlfn.ANCHORARRAY($K5)*_xlfn.ANCHORARRAY($H5))*('Topic 3 Calculator'!$D$18+DelayBPS<AFM$4)+('Topic 3 Calculator'!$D$18+DelayBPS=AFM$4)*_xlfn.ANCHORARRAY(VB5) ->  | AFN5: =(_xlfn.ANCHORARRAY(SJ5)*_xlfn.ANCHORARRAY($J5)*_xlfn.ANCHORARRAY($K5)*_xlfn.ANCHORARRAY($H5))*('Topic 3 Calculator'!$D$18+DelayBPS<AFN$4)+('Topic 3 Calculator'!$D$18+DelayBPS=AFN$4)*_xlfn.ANCHORARRAY(VC5) ->  | AFO5: =(_xlfn.ANCHORARRAY(SK5)*_xlfn.ANCHORARRAY($J5)*_xlfn.ANCHORARRAY($K5)*_xlfn.ANCHORARRAY($H5))*('Topic 3 Calculator'!$D$18+DelayBPS<AFO$4)+('Topic 3 Calculator'!$D$18+DelayBPS=AFO$4)*_xlfn.ANCHORARRAY(VD5) ->  | AFP5: =(_xlfn.ANCHORARRAY(SL5)*_xlfn.ANCHORARRAY($J5)*_xlfn.ANCHORARRAY($K5)*_xlfn.ANCHORARRAY($H5))*('Topic 3 Calculator'!$D$18+DelayBPS<AFP$4)+('Topic 3 Calculator'!$D$18+DelayBPS=AFP$4)*_xlfn.ANCHORARRAY(VE5) ->  | AFQ5: =(_xlfn.ANCHORARRAY(SM5)*_xlfn.ANCHORARRAY($J5)*_xlfn.ANCHORARRAY($K5)*_xlfn.ANCHORARRAY($H5))*('Topic 3 Calculator'!$D$18+DelayBPS<AFQ$4)+('Topic 3 Calculator'!$D$18+DelayBPS=AFQ$4)*_xlfn.ANCHORARRAY(VF5) ->  | AFR5: =(_xlfn.ANCHORARRAY(SN5)*_xlfn.ANCHORARRAY($J5)*_xlfn.ANCHORARRAY($K5)*_xlfn.ANCHORARRAY($H5))*('Topic 3 Calculator'!$D$18+DelayBPS<AFR$4)+('Topic 3 Calculator'!$D$18+DelayBPS=AFR$4)*_xlfn.ANCHORARRAY(VG5) ->  | AFS5: =(_xlfn.ANCHORARRAY(SO5)*_xlfn.ANCHORARRAY($J5)*_xlfn.ANCHORARRAY($K5)*_xlfn.ANCHORARRAY($H5))*('Topic 3 Calculator'!$D$18+DelayBPS<AFS$4)+('Topic 3 Calculator'!$D$18+DelayBPS=AFS$4)*_xlfn.ANCHORARRAY(VH5) ->  | AFT5: =(_xlfn.ANCHORARRAY(SP5)*_xlfn.ANCHORARRAY($J5)*_xlfn.ANCHORARRAY($K5)*_xlfn.ANCHORARRAY($H5))*('Topic 3 Calculator'!$D$18+DelayBPS<AFT$4)+('Topic 3 Calculator'!$D$18+DelayBPS=AFT$4)*_xlfn.ANCHORARRAY(VI5) ->  | AFU5: =(_xlfn.ANCHORARRAY(SQ5)*_xlfn.ANCHORARRAY($J5)*_xlfn.ANCHORARRAY($K5)*_xlfn.ANCHORARRAY($H5))*('Topic 3 Calculator'!$D$18+DelayBPS<AFU$4)+('Topic 3 Calculator'!$D$18+DelayBPS=AFU$4)*_xlfn.ANCHORARRAY(VJ5) ->  | AFV5: =(_xlfn.ANCHORARRAY(SR5)*_xlfn.ANCHORARRAY($J5)*_xlfn.ANCHORARRAY($K5)*_xlfn.ANCHORARRAY($H5))*('Topic 3 Calculator'!$D$18+DelayBPS<AFV$4)+('Topic 3 Calculator'!$D$18+DelayBPS=AFV$4)*_xlfn.ANCHORARRAY(VK5) ->  | AFW5: 0 | AFX5: 0 | AFY5: 0 | AFZ5: 0 | AGA5: 0 | AGB5: =IF(_xlfn.ANCHORARRAY(BE5)<>1,_xlfn.ANCHORARRAY(AEK5)*IF(_xlfn.ANCHORARRAY($L5)*_xlfn.ANCHORARRAY(XC5)<_xlfn.ANCHORARRAY($N5)*_xlfn.ANCHORARRAY(BE5),_xlfn.ANCHORARRAY($L5)*_xlfn.ANCHORARRAY(XC5),_xlfn.ANCHORARRAY($N5)*_xlfn.ANCHORARRAY(BE5)),0) ->  | AGC5: =IF(_xlfn.ANCHORARRAY(BF5)<>1,_xlfn.ANCHORARRAY(AEL5)*IF(_xlfn.ANCHORARRAY($L5)*_xlfn.ANCHORARRAY(XD5)<_xlfn.ANCHORARRAY($N5)*_xlfn.ANCHORARRAY(BF5),_xlfn.ANCHORARRAY($L5)*_xlfn.ANCHORARRAY(XD5),_xlfn.ANCHORARRAY($N5)*_xlfn.ANCHORARRAY(BF5)),0) ->  | AGD5: =IF(_xlfn.ANCHORARRAY(BG5)<>1,_xlfn.ANCHORARRAY(AEM5)*IF(_xlfn.ANCHORARRAY($L5)*_xlfn.ANCHORARRAY(XE5)<_xlfn.ANCHORARRAY($N5)*_xlfn.ANCHORARRAY(BG5),_xlfn.ANCHORARRAY($L5)*_xlfn.ANCHORARRAY(XE5),_xlfn.ANCHORARRAY($N5)*_xlfn.ANCHORARRAY(BG5)),0) ->  | AGE5: =IF(_xlfn.ANCHORARRAY(BH5)<>1,_xlfn.ANCHORARRAY(AEN5)*IF(_xlfn.ANCHORARRAY($L5)*_xlfn.ANCHORARRAY(XF5)<_xlfn.ANCHORARRAY($N5)*_xlfn.ANCHORARRAY(BH5),_xlfn.ANCHORARRAY($L5)*_xlfn.ANCHORARRAY(XF5),_xlfn.ANCHORARRAY($N5)*_xlfn.ANCHORARRAY(BH5)),0) ->  | AGF5: =IF(_xlfn.ANCHORARRAY(BI5)<>1,_xlfn.ANCHORARRAY(AEO5)*IF(_xlfn.ANCHORARRAY($L5)*_xlfn.ANCHORARRAY(XG5)<_xlfn.ANCHORARRAY($N5)*_xlfn.ANCHORARRAY(BI5),_xlfn.ANCHORARRAY($L5)*_xlfn.ANCHORARRAY(XG5),_xlfn.ANCHORARRAY($N5)*_xlfn.ANCHORARRAY(BI5)),0) ->  | AGG5: =IF(_xlfn.ANCHORARRAY(BJ5)<>1,_xlfn.ANCHORARRAY(AEP5)*IF(_xlfn.ANCHORARRAY($L5)*_xlfn.ANCHORARRAY(XH5)<_xlfn.ANCHORARRAY($N5)*_xlfn.ANCHORARRAY(BJ5),_xlfn.ANCHORARRAY($L5)*_xlfn.ANCHORARRAY(XH5),_xlfn.ANCHORARRAY($N5)*_xlfn.ANCHORARRAY(BJ5)),0) ->  | AGH5: =IF(_xlfn.ANCHORARRAY(BK5)<>1,_xlfn.ANCHORARRAY(AEQ5)*IF(_xlfn.ANCHORARRAY($L5)*_xlfn.ANCHORARRAY(XI5)<_xlfn.ANCHORARRAY($N5)*_xlfn.ANCHORARRAY(BK5),_xlfn.ANCHORARRAY($L5)*_xlfn.ANCHORARRAY(XI5),_xlfn.ANCHORARRAY($N5)*_xlfn.ANCHORARRAY(BK5)),0) ->  | AGI5: =IF(_xlfn.ANCHORARRAY(BL5)<>1,_xlfn.ANCHORARRAY(AER5)*IF(_xlfn.ANCHORARRAY($L5)*_xlfn.ANCHORARRAY(XJ5)<_xlfn.ANCHORARRAY($N5)*_xlfn.ANCHORARRAY(BL5),_xlfn.ANCHORARRAY($L5)*_xlfn.ANCHORARRAY(XJ5),_xlfn.ANCHORARRAY($N5)*_xlfn.ANCHORARRAY(BL5)),0) ->  | AGJ5: =IF(_xlfn.ANCHORARRAY(BM5)<>1,_xlfn.ANCHORARRAY(AES5)*IF(_xlfn.ANCHORARRAY($L5)*_xlfn.ANCHORARRAY(XK5)<_xlfn.ANCHORARRAY($N5)*_xlfn.ANCHORARRAY(BM5),_xlfn.ANCHORARRAY($L5)*_xlfn.ANCHORARRAY(XK5),_xlfn.ANCHORARRAY($N5)*_xlfn.ANCHORARRAY(BM5)),0) ->  | AGK5: =IF(_xlfn.ANCHORARRAY(BN5)<>1,_xlfn.ANCHORARRAY(AET5)*IF(_xlfn.ANCHORARRAY($L5)*_xlfn.ANCHORARRAY(XL5)<_xlfn.ANCHORARRAY($N5)*_xlfn.ANCHORARRAY(BN5),_xlfn.ANCHORARRAY($L5)*_xlfn.ANCHORARRAY(XL5),_xlfn.ANCHORARRAY($N5)*_xlfn.ANCHORARRAY(BN5)),0) ->  | AGL5: =IF(_xlfn.ANCHORARRAY(BO5)<>1,_xlfn.ANCHORARRAY(AEU5)*IF(_xlfn.ANCHORARRAY($L5)*_xlfn.ANCHORARRAY(XM5)<_xlfn.ANCHORARRAY($N5)*_xlfn.ANCHORARRAY(BO5),_xlfn.ANCHORARRAY($L5)*_xlfn.ANCHORARRAY(XM5),_xlfn.ANCHORARRAY($N5)*_xlfn.ANCHORARRAY(BO5)),0) ->  | AGM5: =IF(_xlfn.ANCHORARRAY(BP5)<>1,_xlfn.ANCHORARRAY(AEV5)*IF(_xlfn.ANCHORARRAY($L5)*_xlfn.ANCHORARRAY(XN5)<_xlfn.ANCHORARRAY($N5)*_xlfn.ANCHORARRAY(BP5),_xlfn.ANCHORARRAY($L5)*_xlfn.ANCHORARRAY(XN5),_xlfn.ANCHORARRAY($N5)*_xlfn.ANCHORARRAY(BP5)),0) ->  | AGN5: =IF(_xlfn.ANCHORARRAY(BQ5)<>1,_xlfn.ANCHORARRAY(AEW5)*IF(_xlfn.ANCHORARRAY($L5)*_xlfn.ANCHORARRAY(XO5)<_xlfn.ANCHORARRAY($N5)*_xlfn.ANCHORARRAY(BQ5),_xlfn.ANCHORARRAY($L5)*_xlfn.ANCHORARRAY(XO5),_xlfn.ANCHORARRAY($N5)*_xlfn.ANCHORARRAY(BQ5)),0) ->  | AGO5: =IF(_xlfn.ANCHORARRAY(BR5)<>1,_xlfn.ANCHORARRAY(AEX5)*IF(_xlfn.ANCHORARRAY($L5)*_xlfn.ANCHORARRAY(XP5)<_xlfn.ANCHORARRAY($N5)*_xlfn.ANCHORARRAY(BR5),_xlfn.ANCHORARRAY($L5)*_xlfn.ANCHORARRAY(XP5),_xlfn.ANCHORARRAY($N5)*_xlfn.ANCHORARRAY(BR5)),0) ->  | AGP5: =IF(_xlfn.ANCHORARRAY(BS5)<>1,_xlfn.ANCHORARRAY(AEY5)*IF(_xlfn.ANCHORARRAY($L5)*_xlfn.ANCHORARRAY(XQ5)<_xlfn.ANCHORARRAY($N5)*_xlfn.ANCHORARRAY(BS5),_xlfn.ANCHORARRAY($L5)*_xlfn.ANCHORARRAY(XQ5),_xlfn.ANCHORARRAY($N5)*_xlfn.ANCHORARRAY(BS5)),0) ->  | AGQ5: =IF(_xlfn.ANCHORARRAY(BT5)<>1,_xlfn.ANCHORARRAY(AEZ5)*IF(_xlfn.ANCHORARRAY($L5)*_xlfn.ANCHORARRAY(XR5)<_xlfn.ANCHORARRAY($N5)*_xlfn.ANCHORARRAY(BT5),_xlfn.ANCHORARRAY($L5)*_xlfn.ANCHORARRAY(XR5),_xlfn.ANCHORARRAY($N5)*_xlfn.ANCHORARRAY(BT5)),0) ->  | AGR5: =IF(_xlfn.ANCHORARRAY(BU5)<>1,_xlfn.ANCHORARRAY(AFA5)*IF(_xlfn.ANCHORARRAY($L5)*_xlfn.ANCHORARRAY(XS5)<_xlfn.ANCHORARRAY($N5)*_xlfn.ANCHORARRAY(BU5),_xlfn.ANCHORARRAY($L5)*_xlfn.ANCHORARRAY(XS5),_xlfn.ANCHORARRAY($N5)*_xlfn.ANCHORARRAY(BU5)),0) ->  | AGS5: =IF(_xlfn.ANCHORARRAY(BV5)<>1,_xlfn.ANCHORARRAY(AFB5)*IF(_xlfn.ANCHORARRAY($L5)*_xlfn.ANCHORARRAY(XT5)<_xlfn.ANCHORARRAY($N5)*_xlfn.ANCHORARRAY(BV5),_xlfn.ANCHORARRAY($L5)*_xlfn.ANCHORARRAY(XT5),_xlfn.ANCHORARRAY($N5)*_xlfn.ANCHORARRAY(BV5)),0) ->  | AGT5: =IF(_xlfn.ANCHORARRAY(BW5)<>1,_xlfn.ANCHORARRAY(AFC5)*IF(_xlfn.ANCHORARRAY($L5)*_xlfn.ANCHORARRAY(XU5)<_xlfn.ANCHORARRAY($N5)*_xlfn.ANCHORARRAY(BW5),_xlfn.ANCHORARRAY($L5)*_xlfn.ANCHORARRAY(XU5),_xlfn.ANCHORARRAY($N5)*_xlfn.ANCHORARRAY(BW5)),0) ->  | AGU5: =IF(_xlfn.ANCHORARRAY(BX5)<>1,_xlfn.ANCHORARRAY(AFD5)*IF(_xlfn.ANCHORARRAY($L5)*_xlfn.ANCHORARRAY(XV5)<_xlfn.ANCHORARRAY($N5)*_xlfn.ANCHORARRAY(BX5),_xlfn.ANCHORARRAY($L5)*_xlfn.ANCHORARRAY(XV5),_xlfn.ANCHORARRAY($N5)*_xlfn.ANCHORARRAY(BX5)),0) ->  | AGV5: =IF(_xlfn.ANCHORARRAY(BY5)<>1,_xlfn.ANCHORARRAY(AFE5)*IF(_xlfn.ANCHORARRAY($L5)*_xlfn.ANCHORARRAY(XW5)<_xlfn.ANCHORARRAY($N5)*_xlfn.ANCHORARRAY(BY5),_xlfn.ANCHORARRAY($L5)*_xlfn.ANCHORARRAY(XW5),_xlfn.ANCHORARRAY($N5)*_xlfn.ANCHORARRAY(BY5)),0) ->  | AGW5: =IF(_xlfn.ANCHORARRAY(BZ5)<>1,_xlfn.ANCHORARRAY(AFF5)*IF(_xlfn.ANCHORARRAY($L5)*_xlfn.ANCHORARRAY(XX5)<_xlfn.ANCHORARRAY($N5)*_xlfn.ANCHORARRAY(BZ5),_xlfn.ANCHORARRAY($L5)*_xlfn.ANCHORARRAY(XX5),_xlfn.ANCHORARRAY($N5)*_xlfn.ANCHORARRAY(BZ5)),0) ->  | AGX5: =IF(_xlfn.ANCHORARRAY(CA5)<>1,_xlfn.ANCHORARRAY(AFG5)*IF(_xlfn.ANCHORARRAY($L5)*_xlfn.ANCHORARRAY(XY5)<_xlfn.ANCHORARRAY($N5)*_xlfn.ANCHORARRAY(CA5),_xlfn.ANCHORARRAY($L5)*_xlfn.ANCHORARRAY(XY5),_xlfn.ANCHORARRAY($N5)*_xlfn.ANCHORARRAY(CA5)),0) ->  | AGY5: =IF(_xlfn.ANCHORARRAY(CB5)<>1,_xlfn.ANCHORARRAY(AFH5)*IF(_xlfn.ANCHORARRAY($L5)*_xlfn.ANCHORARRAY(XZ5)<_xlfn.ANCHORARRAY($N5)*_xlfn.ANCHORARRAY(CB5),_xlfn.ANCHORARRAY($L5)*_xlfn.ANCHORARRAY(XZ5),_xlfn.ANCHORARRAY($N5)*_xlfn.ANCHORARRAY(CB5)),0) ->  | AGZ5: =IF(_xlfn.ANCHORARRAY(CC5)<>1,_xlfn.ANCHORARRAY(AFI5)*IF(_xlfn.ANCHORARRAY($L5)*_xlfn.ANCHORARRAY(YA5)<_xlfn.ANCHORARRAY($N5)*_xlfn.ANCHORARRAY(CC5),_xlfn.ANCHORARRAY($L5)*_xlfn.ANCHORARRAY(YA5),_xlfn.ANCHORARRAY($N5)*_xlfn.ANCHORARRAY(CC5)),0) ->  | AHA5: =IF(_xlfn.ANCHORARRAY(CD5)<>1,_xlfn.ANCHORARRAY(AFJ5)*IF(_xlfn.ANCHORARRAY($L5)*_xlfn.ANCHORARRAY(YB5)<_xlfn.ANCHORARRAY($N5)*_xlfn.ANCHORARRAY(CD5),_xlfn.ANCHORARRAY($L5)*_xlfn.ANCHORARRAY(YB5),_xlfn.ANCHORARRAY($N5)*_xlfn.ANCHORARRAY(CD5)),0) ->  | AHB5: =IF(_xlfn.ANCHORARRAY(CE5)<>1,_xlfn.ANCHORARRAY(AFK5)*IF(_xlfn.ANCHORARRAY($L5)*_xlfn.ANCHORARRAY(YC5)<_xlfn.ANCHORARRAY($N5)*_xlfn.ANCHORARRAY(CE5),_xlfn.ANCHORARRAY($L5)*_xlfn.ANCHORARRAY(YC5),_xlfn.ANCHORARRAY($N5)*_xlfn.ANCHORARRAY(CE5)),0) ->  | AHC5: =IF(_xlfn.ANCHORARRAY(CF5)<>1,_xlfn.ANCHORARRAY(AFL5)*IF(_xlfn.ANCHORARRAY($L5)*_xlfn.ANCHORARRAY(YD5)<_xlfn.ANCHORARRAY($N5)*_xlfn.ANCHORARRAY(CF5),_xlfn.ANCHORARRAY($L5)*_xlfn.ANCHORARRAY(YD5),_xlfn.ANCHORARRAY($N5)*_xlfn.ANCHORARRAY(CF5)),0) ->  | AHD5: =IF(_xlfn.ANCHORARRAY(CG5)<>1,_xlfn.ANCHORARRAY(AFM5)*IF(_xlfn.ANCHORARRAY($L5)*_xlfn.ANCHORARRAY(YE5)<_xlfn.ANCHORARRAY($N5)*_xlfn.ANCHORARRAY(CG5),_xlfn.ANCHORARRAY($L5)*_xlfn.ANCHORARRAY(YE5),_xlfn.ANCHORARRAY($N5)*_xlfn.ANCHORARRAY(CG5)),0) ->  | AHE5: =IF(_xlfn.ANCHORARRAY(CH5)<>1,_xlfn.ANCHORARRAY(AFN5)*IF(_xlfn.ANCHORARRAY($L5)*_xlfn.ANCHORARRAY(YF5)<_xlfn.ANCHORARRAY($N5)*_xlfn.ANCHORARRAY(CH5),_xlfn.ANCHORARRAY($L5)*_xlfn.ANCHORARRAY(YF5),_xlfn.ANCHORARRAY($N5)*_xlfn.ANCHORARRAY(CH5)),0) ->  | AHF5: =IF(_xlfn.ANCHORARRAY(CI5)<>1,_xlfn.ANCHORARRAY(AFO5)*IF(_xlfn.ANCHORARRAY($L5)*_xlfn.ANCHORARRAY(YG5)<_xlfn.ANCHORARRAY($N5)*_xlfn.ANCHORARRAY(CI5),_xlfn.ANCHORARRAY($L5)*_xlfn.ANCHORARRAY(YG5),_xlfn.ANCHORARRAY($N5)*_xlfn.ANCHORARRAY(CI5)),0) ->  | AHG5: =IF(_xlfn.ANCHORARRAY(CJ5)<>1,_xlfn.ANCHORARRAY(AFP5)*IF(_xlfn.ANCHORARRAY($L5)*_xlfn.ANCHORARRAY(YH5)<_xlfn.ANCHORARRAY($N5)*_xlfn.ANCHORARRAY(CJ5),_xlfn.ANCHORARRAY($L5)*_xlfn.ANCHORARRAY(YH5),_xlfn.ANCHORARRAY($N5)*_xlfn.ANCHORARRAY(CJ5)),0) ->  | AHH5: =IF(_xlfn.ANCHORARRAY(CK5)<>1,_xlfn.ANCHORARRAY(AFQ5)*IF(_xlfn.ANCHORARRAY($L5)*_xlfn.ANCHORARRAY(YI5)<_xlfn.ANCHORARRAY($N5)*_xlfn.ANCHORARRAY(CK5),_xlfn.ANCHORARRAY($L5)*_xlfn.ANCHORARRAY(YI5),_xlfn.ANCHORARRAY($N5)*_xlfn.ANCHORARRAY(CK5)),0) ->  | AHI5: =IF(_xlfn.ANCHORARRAY(CL5)<>1,_xlfn.ANCHORARRAY(AFR5)*IF(_xlfn.ANCHORARRAY($L5)*_xlfn.ANCHORARRAY(YJ5)<_xlfn.ANCHORARRAY($N5)*_xlfn.ANCHORARRAY(CL5),_xlfn.ANCHORARRAY($L5)*_xlfn.ANCHORARRAY(YJ5),_xlfn.ANCHORARRAY($N5)*_xlfn.ANCHORARRAY(CL5)),0) ->  | AHJ5: =IF(_xlfn.ANCHORARRAY(CM5)<>1,_xlfn.ANCHORARRAY(AFS5)*IF(_xlfn.ANCHORARRAY($L5)*_xlfn.ANCHORARRAY(YK5)<_xlfn.ANCHORARRAY($N5)*_xlfn.ANCHORARRAY(CM5),_xlfn.ANCHORARRAY($L5)*_xlfn.ANCHORARRAY(YK5),_xlfn.ANCHORARRAY($N5)*_xlfn.ANCHORARRAY(CM5)),0) ->  | AHK5: =IF(_xlfn.ANCHORARRAY(CN5)<>1,_xlfn.ANCHORARRAY(AFT5)*IF(_xlfn.ANCHORARRAY($L5)*_xlfn.ANCHORARRAY(YL5)<_xlfn.ANCHORARRAY($N5)*_xlfn.ANCHORARRAY(CN5),_xlfn.ANCHORARRAY($L5)*_xlfn.ANCHORARRAY(YL5),_xlfn.ANCHORARRAY($N5)*_xlfn.ANCHORARRAY(CN5)),0) ->  | AHL5: =IF(_xlfn.ANCHORARRAY(CO5)<>1,_xlfn.ANCHORARRAY(AFU5)*IF(_xlfn.ANCHORARRAY($L5)*_xlfn.ANCHORARRAY(YM5)<_xlfn.ANCHORARRAY($N5)*_xlfn.ANCHORARRAY(CO5),_xlfn.ANCHORARRAY($L5)*_xlfn.ANCHORARRAY(YM5),_xlfn.ANCHORARRAY($N5)*_xlfn.ANCHORARRAY(CO5)),0) ->  | AHM5: =IF(_xlfn.ANCHORARRAY(CP5)<>1,_xlfn.ANCHORARRAY(AFV5)*IF(_xlfn.ANCHORARRAY($L5)*_xlfn.ANCHORARRAY(YN5)<_xlfn.ANCHORARRAY($N5)*_xlfn.ANCHORARRAY(CP5),_xlfn.ANCHORARRAY($L5)*_xlfn.ANCHORARRAY(YN5),_xlfn.ANCHORARRAY($N5)*_xlfn.ANCHORARRAY(CP5)),0) ->  | AHN5: =_xlfn.ANCHORARRAY(AGB5) ->  | AHO5: =_xlfn.ANCHORARRAY(AHN5)+_xlfn.ANCHORARRAY(AGC5) ->  | AHP5: =_xlfn.ANCHORARRAY(AHO5)+_xlfn.ANCHORARRAY(AGD5) ->  | AHQ5: =_xlfn.ANCHORARRAY(AHP5)+_xlfn.ANCHORARRAY(AGE5) ->  | AHR5: =_xlfn.ANCHORARRAY(AHQ5)+_xlfn.ANCHORARRAY(AGF5) ->  | AHS5: =_xlfn.ANCHORARRAY(AHR5)+_xlfn.ANCHORARRAY(AGG5) ->  | AHT5: =_xlfn.ANCHORARRAY(AHS5)+_xlfn.ANCHORARRAY(AGH5) ->  | AHU5: =_xlfn.ANCHORARRAY(AHT5)+_xlfn.ANCHORARRAY(AGI5) ->  | AHV5: =_xlfn.ANCHORARRAY(AHU5)+_xlfn.ANCHORARRAY(AGJ5) ->  | AHW5: =_xlfn.ANCHORARRAY(AHV5)+_xlfn.ANCHORARRAY(AGK5) ->  | AHX5: =_xlfn.ANCHORARRAY(AHW5)+_xlfn.ANCHORARRAY(AGL5) ->  | AHY5: =_xlfn.ANCHORARRAY(AHX5)+_xlfn.ANCHORARRAY(AGM5) ->  | AHZ5: =_xlfn.ANCHORARRAY(AHY5)+_xlfn.ANCHORARRAY(AGN5) ->  | AIA5: =_xlfn.ANCHORARRAY(AHZ5)+_xlfn.ANCHORARRAY(AGO5) ->  | AIB5: =_xlfn.ANCHORARRAY(AIA5)+_xlfn.ANCHORARRAY(AGP5) ->  | AIC5: =_xlfn.ANCHORARRAY(AIB5)+_xlfn.ANCHORARRAY(AGQ5) ->  | AID5: =_xlfn.ANCHORARRAY(AIC5)+_xlfn.ANCHORARRAY(AGR5) ->  | AIE5: =_xlfn.ANCHORARRAY(AID5)+_xlfn.ANCHORARRAY(AGS5) ->  | AIF5: =_xlfn.ANCHORARRAY(AIE5)+_xlfn.ANCHORARRAY(AGT5) ->  | AIG5: =_xlfn.ANCHORARRAY(AIF5)+_xlfn.ANCHORARRAY(AGU5) ->  | AIH5: =_xlfn.ANCHORARRAY(AIG5)+_xlfn.ANCHORARRAY(AGV5) ->  | AII5: =_xlfn.ANCHORARRAY(AIH5)+_xlfn.ANCHORARRAY(AGW5) ->  | AIJ5: =_xlfn.ANCHORARRAY(AII5)+_xlfn.ANCHORARRAY(AGX5) ->  | AIK5: =_xlfn.ANCHORARRAY(AIJ5)+_xlfn.ANCHORARRAY(AGY5) ->  | AIL5: =_xlfn.ANCHORARRAY(AIK5)+_xlfn.ANCHORARRAY(AGZ5) ->  | AIM5: =_xlfn.ANCHORARRAY(AIL5)+_xlfn.ANCHORARRAY(AHA5) ->  | AIN5: =_xlfn.ANCHORARRAY(AIM5)+_xlfn.ANCHORARRAY(AHB5) ->  | AIO5: =_xlfn.ANCHORARRAY(AIN5)+_xlfn.ANCHORARRAY(AHC5) ->  | AIP5: =_xlfn.ANCHORARRAY(AIO5)+_xlfn.ANCHORARRAY(AHD5) ->  | AIQ5: =_xlfn.ANCHORARRAY(AIP5)+_xlfn.ANCHORARRAY(AHE5) ->  | AIR5: =_xlfn.ANCHORARRAY(AIQ5)+_xlfn.ANCHORARRAY(AHF5) ->  | AIS5: =_xlfn.ANCHORARRAY(AIR5)+_xlfn.ANCHORARRAY(AHG5) ->  | AIT5: =_xlfn.ANCHORARRAY(AIS5)+_xlfn.ANCHORARRAY(AHH5) ->  | AIU5: =_xlfn.ANCHORARRAY(AIT5)+_xlfn.ANCHORARRAY(AHI5) ->  | AIV5: =_xlfn.ANCHORARRAY(AIU5)+_xlfn.ANCHORARRAY(AHJ5) ->  | AIW5: =_xlfn.ANCHORARRAY(AIV5)+_xlfn.ANCHORARRAY(AHK5) ->  | AIX5: =_xlfn.ANCHORARRAY(AIW5)+_xlfn.ANCHORARRAY(AHL5) ->  | AIY5: =_xlfn.ANCHORARRAY(AIX5)+_xlfn.ANCHORARRAY(AHM5) ->  | AIZ5: =_xlfn.ANCHORARRAY(AAA5) ->  | AJA5: =_xlfn.ANCHORARRAY(AAB5) ->  | AJB5: =_xlfn.ANCHORARRAY(AAC5) ->  | AJC5: =_xlfn.ANCHORARRAY(AAD5) ->  | AJD5: =_xlfn.ANCHORARRAY(AAE5)-IF(_xlfn.ANCHORARRAY(AHR5)<>0,_xlfn.ANCHORARRAY(AAA5),0)+_xlfn.ANCHORARRAY(AHR5) ->  | AJE5: =_xlfn.ANCHORARRAY(AAF5)-IF(_xlfn.ANCHORARRAY(AHS5)<>0,_xlfn.ANCHORARRAY(AAB5),0)+_xlfn.ANCHORARRAY(AHS5) ->  | AJF5: =_xlfn.ANCHORARRAY(AAG5)-IF(_xlfn.ANCHORARRAY(AHT5)<>0,_xlfn.ANCHORARRAY(AAC5),0)+_xlfn.ANCHORARRAY(AHT5) ->  | AJG5: =_xlfn.ANCHORARRAY(AAH5)-IF(_xlfn.ANCHORARRAY(AHU5)<>0,_xlfn.ANCHORARRAY(AAD5),0)+_xlfn.ANCHORARRAY(AHU5) ->  | AJH5: =_xlfn.ANCHORARRAY(AAI5)-IF(_xlfn.ANCHORARRAY(AHV5)<>0,_xlfn.ANCHORARRAY(AAE5),0)+_xlfn.ANCHORARRAY(AHV5) ->  | AJI5: =_xlfn.ANCHORARRAY(AAJ5)-IF(_xlfn.ANCHORARRAY(AHW5)<>0,_xlfn.ANCHORARRAY(AAF5),0)+_xlfn.ANCHORARRAY(AHW5) ->  | AJJ5: =_xlfn.ANCHORARRAY(AAK5)-IF(_xlfn.ANCHORARRAY(AHX5)<>0,_xlfn.ANCHORARRAY(AAG5),0)+_xlfn.ANCHORARRAY(AHX5) ->  | AJK5: =_xlfn.ANCHORARRAY(AAL5)-IF(_xlfn.ANCHORARRAY(AHY5)<>0,_xlfn.ANCHORARRAY(AAH5),0)+_xlfn.ANCHORARRAY(AHY5) ->  | AJL5: =_xlfn.ANCHORARRAY(AAM5)-IF(_xlfn.ANCHORARRAY(AHZ5)<>0,_xlfn.ANCHORARRAY(AAI5),0)+_xlfn.ANCHORARRAY(AHZ5) ->  | AJM5: =_xlfn.ANCHORARRAY(AAN5)-IF(_xlfn.ANCHORARRAY(AIA5)<>0,_xlfn.ANCHORARRAY(AAJ5),0)+_xlfn.ANCHORARRAY(AIA5) ->  | AJN5: =_xlfn.ANCHORARRAY(AAO5)-IF(_xlfn.ANCHORARRAY(AIB5)<>0,_xlfn.ANCHORARRAY(AAK5),0)+_xlfn.ANCHORARRAY(AIB5) ->  | AJO5: =_xlfn.ANCHORARRAY(AAP5)-IF(_xlfn.ANCHORARRAY(AIC5)<>0,_xlfn.ANCHORARRAY(AAL5),0)+_xlfn.ANCHORARRAY(AIC5) ->  | AJP5: =_xlfn.ANCHORARRAY(AAQ5)-IF(_xlfn.ANCHORARRAY(AID5)<>0,_xlfn.ANCHORARRAY(AAM5),0)+_xlfn.ANCHORARRAY(AID5) ->  | AJQ5: =_xlfn.ANCHORARRAY(AAR5)-IF(_xlfn.ANCHORARRAY(AIE5)<>0,_xlfn.ANCHORARRAY(AAN5),0)+_xlfn.ANCHORARRAY(AIE5) ->  | AJR5: =_xlfn.ANCHORARRAY(AAS5)-IF(_xlfn.ANCHORARRAY(AIF5)<>0,_xlfn.ANCHORARRAY(AAO5),0)+_xlfn.ANCHORARRAY(AIF5) ->  | AJS5: =_xlfn.ANCHORARRAY(AAT5)-IF(_xlfn.ANCHORARRAY(AIG5)<>0,_xlfn.ANCHORARRAY(AAP5),0)+_xlfn.ANCHORARRAY(AIG5) ->  | AJT5: =_xlfn.ANCHORARRAY(AAU5)-IF(_xlfn.ANCHORARRAY(AIH5)<>0,_xlfn.ANCHORARRAY(AAQ5),0)+_xlfn.ANCHORARRAY(AIH5) ->  | AJU5: =_xlfn.ANCHORARRAY(AAV5)-IF(_xlfn.ANCHORARRAY(AII5)<>0,_xlfn.ANCHORARRAY(AAR5),0)+_xlfn.ANCHORARRAY(AII5) ->  | AJV5: =_xlfn.ANCHORARRAY(AAW5)-IF(_xlfn.ANCHORARRAY(AIJ5)<>0,_xlfn.ANCHORARRAY(AAS5),0)+_xlfn.ANCHORARRAY(AIJ5) ->  | AJW5: =_xlfn.ANCHORARRAY(AAX5)-IF(_xlfn.ANCHORARRAY(AIK5)<>0,_xlfn.ANCHORARRAY(AAT5),0)+_xlfn.ANCHORARRAY(AIK5) ->  | AJX5: =_xlfn.ANCHORARRAY(AAY5)-IF(_xlfn.ANCHORARRAY(AIL5)<>0,_xlfn.ANCHORARRAY(AAU5),0)+_xlfn.ANCHORARRAY(AIL5) ->  | AJY5: =_xlfn.ANCHORARRAY(AAZ5)-IF(_xlfn.ANCHORARRAY(AIM5)<>0,_xlfn.ANCHORARRAY(AAV5),0)+_xlfn.ANCHORARRAY(AIM5) ->  | AJZ5: =_xlfn.ANCHORARRAY(ABA5)-IF(_xlfn.ANCHORARRAY(AIN5)<>0,_xlfn.ANCHORARRAY(AAW5),0)+_xlfn.ANCHORARRAY(AIN5) ->  | AKA5: =_xlfn.ANCHORARRAY(ABB5)-IF(_xlfn.ANCHORARRAY(AIO5)<>0,_xlfn.ANCHORARRAY(AAX5),0)+_xlfn.ANCHORARRAY(AIO5) ->  | AKB5: =_xlfn.ANCHORARRAY(ABC5)-IF(_xlfn.ANCHORARRAY(AIP5)<>0,_xlfn.ANCHORARRAY(AAY5),0)+_xlfn.ANCHORARRAY(AIP5) ->  | AKC5: =_xlfn.ANCHORARRAY(ABD5)-IF(_xlfn.ANCHORARRAY(AIQ5)<>0,_xlfn.ANCHORARRAY(AAZ5),0)+_xlfn.ANCHORARRAY(AIQ5) ->  | AKD5: =_xlfn.ANCHORARRAY(ABE5)-IF(_xlfn.ANCHORARRAY(AIR5)<>0,_xlfn.ANCHORARRAY(ABA5),0)+_xlfn.ANCHORARRAY(AIR5) ->  | AKE5: =_xlfn.ANCHORARRAY(ABF5)-IF(_xlfn.ANCHORARRAY(AIS5)<>0,_xlfn.ANCHORARRAY(ABB5),0)+_xlfn.ANCHORARRAY(AIS5) ->  | AKF5: =_xlfn.ANCHORARRAY(ABG5)-IF(_xlfn.ANCHORARRAY(AIT5)<>0,_xlfn.ANCHORARRAY(ABC5),0)+_xlfn.ANCHORARRAY(AIT5) ->  | AKG5: =_xlfn.ANCHORARRAY(ABH5)-IF(_xlfn.ANCHORARRAY(AIU5)<>0,_xlfn.ANCHORARRAY(ABD5),0)+_xlfn.ANCHORARRAY(AIU5) ->  | AKH5: =_xlfn.ANCHORARRAY(ABI5)-IF(_xlfn.ANCHORARRAY(AIV5)<>0,_xlfn.ANCHORARRAY(ABE5),0)+_xlfn.ANCHORARRAY(AIV5) ->  | AKI5: =_xlfn.ANCHORARRAY(ABJ5)-IF(_xlfn.ANCHORARRAY(AIW5)<>0,_xlfn.ANCHORARRAY(ABF5),0)+_xlfn.ANCHORARRAY(AIW5) ->  | AKJ5: =_xlfn.ANCHORARRAY(ABK5)-IF(_xlfn.ANCHORARRAY(AIX5)<>0,_xlfn.ANCHORARRAY(ABG5),0)+_xlfn.ANCHORARRAY(AIX5) ->  | AKK5: =_xlfn.ANCHORARRAY(ABL5)-IF(_xlfn.ANCHORARRAY(AIY5)<>0,_xlfn.ANCHORARRAY(ABH5),0)+_xlfn.ANCHORARRAY(AIY5) ->  | AKL5: =IF(_xlfn.ANCHORARRAY(BE5)<>1,_xlfn.ANCHORARRAY(AEK5)*IF(_xlfn.ANCHORARRAY($M5)*_xlfn.ANCHORARRAY(XC5)<_xlfn.ANCHORARRAY($O5)*_xlfn.ANCHORARRAY(BE5),_xlfn.ANCHORARRAY($M5)*_xlfn.ANCHORARRAY(XC5),_xlfn.ANCHORARRAY($O5)*_xlfn.ANCHORARRAY(BE5)),0) ->  | AKM5: =IF(_xlfn.ANCHORARRAY(BF5)<>1,_xlfn.ANCHORARRAY(AEL5)*IF(_xlfn.ANCHORARRAY($M5)*_xlfn.ANCHORARRAY(XD5)<_xlfn.ANCHORARRAY($O5)*_xlfn.ANCHORARRAY(BF5),_xlfn.ANCHORARRAY($M5)*_xlfn.ANCHORARRAY(XD5),_xlfn.ANCHORARRAY($O5)*_xlfn.ANCHORARRAY(BF5)),0) ->  | AKN5: =IF(_xlfn.ANCHORARRAY(BG5)<>1,_xlfn.ANCHORARRAY(AEM5)*IF(_xlfn.ANCHORARRAY($M5)*_xlfn.ANCHORARRAY(XE5)<_xlfn.ANCHORARRAY($O5)*_xlfn.ANCHORARRAY(BG5),_xlfn.ANCHORARRAY($M5)*_xlfn.ANCHORARRAY(XE5),_xlfn.ANCHORARRAY($O5)*_xlfn.ANCHORARRAY(BG5)),0) ->  | AKO5: =IF(_xlfn.ANCHORARRAY(BH5)<>1,_xlfn.ANCHORARRAY(AEN5)*IF(_xlfn.ANCHORARRAY($M5)*_xlfn.ANCHORARRAY(XF5)<_xlfn.ANCHORARRAY($O5)*_xlfn.ANCHORARRAY(BH5),_xlfn.ANCHORARRAY($M5)*_xlfn.ANCHORARRAY(XF5),_xlfn.ANCHORARRAY($O5)*_xlfn.ANCHORARRAY(BH5)),0) ->  | AKP5: =IF(_xlfn.ANCHORARRAY(BI5)<>1,_xlfn.ANCHORARRAY(AEO5)*IF(_xlfn.ANCHORARRAY($M5)*_xlfn.ANCHORARRAY(XG5)<_xlfn.ANCHORARRAY($O5)*_xlfn.ANCHORARRAY(BI5),_xlfn.ANCHORARRAY($M5)*_xlfn.ANCHORARRAY(XG5),_xlfn.ANCHORARRAY($O5)*_xlfn.ANCHORARRAY(BI5)),0) ->  | AKQ5: =IF(_xlfn.ANCHORARRAY(BJ5)<>1,_xlfn.ANCHORARRAY(AEP5)*IF(_xlfn.ANCHORARRAY($M5)*_xlfn.ANCHORARRAY(XH5)<_xlfn.ANCHORARRAY($O5)*_xlfn.ANCHORARRAY(BJ5),_xlfn.ANCHORARRAY($M5)*_xlfn.ANCHORARRAY(XH5),_xlfn.ANCHORARRAY($O5)*_xlfn.ANCHORARRAY(BJ5)),0) ->  | AKR5: =IF(_xlfn.ANCHORARRAY(BK5)<>1,_xlfn.ANCHORARRAY(AEQ5)*IF(_xlfn.ANCHORARRAY($M5)*_xlfn.ANCHORARRAY(XI5)<_xlfn.ANCHORARRAY($O5)*_xlfn.ANCHORARRAY(BK5),_xlfn.ANCHORARRAY($M5)*_xlfn.ANCHORARRAY(XI5),_xlfn.ANCHORARRAY($O5)*_xlfn.ANCHORARRAY(BK5)),0) ->  | AKS5: =IF(_xlfn.ANCHORARRAY(BL5)<>1,_xlfn.ANCHORARRAY(AER5)*IF(_xlfn.ANCHORARRAY($M5)*_xlfn.ANCHORARRAY(XJ5)<_xlfn.ANCHORARRAY($O5)*_xlfn.ANCHORARRAY(BL5),_xlfn.ANCHORARRAY($M5)*_xlfn.ANCHORARRAY(XJ5),_xlfn.ANCHORARRAY($O5)*_xlfn.ANCHORARRAY(BL5)),0) ->  | AKT5: =IF(_xlfn.ANCHORARRAY(BM5)<>1,_xlfn.ANCHORARRAY(AES5)*IF(_xlfn.ANCHORARRAY($M5)*_xlfn.ANCHORARRAY(XK5)<_xlfn.ANCHORARRAY($O5)*_xlfn.ANCHORARRAY(BM5),_xlfn.ANCHORARRAY($M5)*_xlfn.ANCHORARRAY(XK5),_xlfn.ANCHORARRAY($O5)*_xlfn.ANCHORARRAY(BM5)),0) ->  | AKU5: =IF(_xlfn.ANCHORARRAY(BN5)<>1,_xlfn.ANCHORARRAY(AET5)*IF(_xlfn.ANCHORARRAY($M5)*_xlfn.ANCHORARRAY(XL5)<_xlfn.ANCHORARRAY($O5)*_xlfn.ANCHORARRAY(BN5),_xlfn.ANCHORARRAY($M5)*_xlfn.ANCHORARRAY(XL5),_xlfn.ANCHORARRAY($O5)*_xlfn.ANCHORARRAY(BN5)),0) ->  | AKV5: =IF(_xlfn.ANCHORARRAY(BO5)<>1,_xlfn.ANCHORARRAY(AEU5)*IF(_xlfn.ANCHORARRAY($M5)*_xlfn.ANCHORARRAY(XM5)<_xlfn.ANCHORARRAY($O5)*_xlfn.ANCHORARRAY(BO5),_xlfn.ANCHORARRAY($M5)*_xlfn.ANCHORARRAY(XM5),_xlfn.ANCHORARRAY($O5)*_xlfn.ANCHORARRAY(BO5)),0) ->  | AKW5: =IF(_xlfn.ANCHORARRAY(BP5)<>1,_xlfn.ANCHORARRAY(AEV5)*IF(_xlfn.ANCHORARRAY($M5)*_xlfn.ANCHORARRAY(XN5)<_xlfn.ANCHORARRAY($O5)*_xlfn.ANCHORARRAY(BP5),_xlfn.ANCHORARRAY($M5)*_xlfn.ANCHORARRAY(XN5),_xlfn.ANCHORARRAY($O5)*_xlfn.ANCHORARRAY(BP5)),0) ->  | AKX5: =IF(_xlfn.ANCHORARRAY(BQ5)<>1,_xlfn.ANCHORARRAY(AEW5)*IF(_xlfn.ANCHORARRAY($M5)*_xlfn.ANCHORARRAY(XO5)<_xlfn.ANCHORARRAY($O5)*_xlfn.ANCHORARRAY(BQ5),_xlfn.ANCHORARRAY($M5)*_xlfn.ANCHORARRAY(XO5),_xlfn.ANCHORARRAY($O5)*_xlfn.ANCHORARRAY(BQ5)),0) ->  | AKY5: =IF(_xlfn.ANCHORARRAY(BR5)<>1,_xlfn.ANCHORARRAY(AEX5)*IF(_xlfn.ANCHORARRAY($M5)*_xlfn.ANCHORARRAY(XP5)<_xlfn.ANCHORARRAY($O5)*_xlfn.ANCHORARRAY(BR5),_xlfn.ANCHORARRAY($M5)*_xlfn.ANCHORARRAY(XP5),_xlfn.ANCHORARRAY($O5)*_xlfn.ANCHORARRAY(BR5)),0) ->  | AKZ5: =IF(_xlfn.ANCHORARRAY(BS5)<>1,_xlfn.ANCHORARRAY(AEY5)*IF(_xlfn.ANCHORARRAY($M5)*_xlfn.ANCHORARRAY(XQ5)<_xlfn.ANCHORARRAY($O5)*_xlfn.ANCHORARRAY(BS5),_xlfn.ANCHORARRAY($M5)*_xlfn.ANCHORARRAY(XQ5),_xlfn.ANCHORARRAY($O5)*_xlfn.ANCHORARRAY(BS5)),0) ->  | ALA5: =IF(_xlfn.ANCHORARRAY(BT5)<>1,_xlfn.ANCHORARRAY(AEZ5)*IF(_xlfn.ANCHORARRAY($M5)*_xlfn.ANCHORARRAY(XR5)<_xlfn.ANCHORARRAY($O5)*_xlfn.ANCHORARRAY(BT5),_xlfn.ANCHORARRAY($M5)*_xlfn.ANCHORARRAY(XR5),_xlfn.ANCHORARRAY($O5)*_xlfn.ANCHORARRAY(BT5)),0) ->  | ALB5: =IF(_xlfn.ANCHORARRAY(BU5)<>1,_xlfn.ANCHORARRAY(AFA5)*IF(_xlfn.ANCHORARRAY($M5)*_xlfn.ANCHORARRAY(XS5)<_xlfn.ANCHORARRAY($O5)*_xlfn.ANCHORARRAY(BU5),_xlfn.ANCHORARRAY($M5)*_xlfn.ANCHORARRAY(XS5),_xlfn.ANCHORARRAY($O5)*_xlfn.ANCHORARRAY(BU5)),0) ->  | ALC5: =IF(_xlfn.ANCHORARRAY(BV5)<>1,_xlfn.ANCHORARRAY(AFB5)*IF(_xlfn.ANCHORARRAY($M5)*_xlfn.ANCHORARRAY(XT5)<_xlfn.ANCHORARRAY($O5)*_xlfn.ANCHORARRAY(BV5),_xlfn.ANCHORARRAY($M5)*_xlfn.ANCHORARRAY(XT5),_xlfn.ANCHORARRAY($O5)*_xlfn.ANCHORARRAY(BV5)),0) ->  | ALD5: =IF(_xlfn.ANCHORARRAY(BW5)<>1,_xlfn.ANCHORARRAY(AFC5)*IF(_xlfn.ANCHORARRAY($M5)*_xlfn.ANCHORARRAY(XU5)<_xlfn.ANCHORARRAY($O5)*_xlfn.ANCHORARRAY(BW5),_xlfn.ANCHORARRAY($M5)*_xlfn.ANCHORARRAY(XU5),_xlfn.ANCHORARRAY($O5)*_xlfn.ANCHORARRAY(BW5)),0) ->  | ALE5: =IF(_xlfn.ANCHORARRAY(BX5)<>1,_xlfn.ANCHORARRAY(AFD5)*IF(_xlfn.ANCHORARRAY($M5)*_xlfn.ANCHORARRAY(XV5)<_xlfn.ANCHORARRAY($O5)*_xlfn.ANCHORARRAY(BX5),_xlfn.ANCHORARRAY($M5)*_xlfn.ANCHORARRAY(XV5),_xlfn.ANCHORARRAY($O5)*_xlfn.ANCHORARRAY(BX5)),0) ->  | ALF5: =IF(_xlfn.ANCHORARRAY(BY5)<>1,_xlfn.ANCHORARRAY(AFE5)*IF(_xlfn.ANCHORARRAY($M5)*_xlfn.ANCHORARRAY(XW5)<_xlfn.ANCHORARRAY($O5)*_xlfn.ANCHORARRAY(BY5),_xlfn.ANCHORARRAY($M5)*_xlfn.ANCHORARRAY(XW5),_xlfn.ANCHORARRAY($O5)*_xlfn.ANCHORARRAY(BY5)),0) ->  | ALG5: =IF(_xlfn.ANCHORARRAY(BZ5)<>1,_xlfn.ANCHORARRAY(AFF5)*IF(_xlfn.ANCHORARRAY($M5)*_xlfn.ANCHORARRAY(XX5)<_xlfn.ANCHORARRAY($O5)*_xlfn.ANCHORARRAY(BZ5),_xlfn.ANCHORARRAY($M5)*_xlfn.ANCHORARRAY(XX5),_xlfn.ANCHORARRAY($O5)*_xlfn.ANCHORARRAY(BZ5)),0) ->  | ALH5: =IF(_xlfn.ANCHORARRAY(CA5)<>1,_xlfn.ANCHORARRAY(AFG5)*IF(_xlfn.ANCHORARRAY($M5)*_xlfn.ANCHORARRAY(XY5)<_xlfn.ANCHORARRAY($O5)*_xlfn.ANCHORARRAY(CA5),_xlfn.ANCHORARRAY($M5)*_xlfn.ANCHORARRAY(XY5),_xlfn.ANCHORARRAY($O5)*_xlfn.ANCHORARRAY(CA5)),0) ->  | ALI5: =IF(_xlfn.ANCHORARRAY(CB5)<>1,_xlfn.ANCHORARRAY(AFH5)*IF(_xlfn.ANCHORARRAY($M5)*_xlfn.ANCHORARRAY(XZ5)<_xlfn.ANCHORARRAY($O5)*_xlfn.ANCHORARRAY(CB5),_xlfn.ANCHORARRAY($M5)*_xlfn.ANCHORARRAY(XZ5),_xlfn.ANCHORARRAY($O5)*_xlfn.ANCHORARRAY(CB5)),0) ->  | ALJ5: =IF(_xlfn.ANCHORARRAY(CC5)<>1,_xlfn.ANCHORARRAY(AFI5)*IF(_xlfn.ANCHORARRAY($M5)*_xlfn.ANCHORARRAY(YA5)<_xlfn.ANCHORARRAY($O5)*_xlfn.ANCHORARRAY(CC5),_xlfn.ANCHORARRAY($M5)*_xlfn.ANCHORARRAY(YA5),_xlfn.ANCHORARRAY($O5)*_xlfn.ANCHORARRAY(CC5)),0) ->  | ALK5: =IF(_xlfn.ANCHORARRAY(CD5)<>1,_xlfn.ANCHORARRAY(AFJ5)*IF(_xlfn.ANCHORARRAY($M5)*_xlfn.ANCHORARRAY(YB5)<_xlfn.ANCHORARRAY($O5)*_xlfn.ANCHORARRAY(CD5),_xlfn.ANCHORARRAY($M5)*_xlfn.ANCHORARRAY(YB5),_xlfn.ANCHORARRAY($O5)*_xlfn.ANCHORARRAY(CD5)),0) ->  | ALL5: =IF(_xlfn.ANCHORARRAY(CE5)<>1,_xlfn.ANCHORARRAY(AFK5)*IF(_xlfn.ANCHORARRAY($M5)*_xlfn.ANCHORARRAY(YC5)<_xlfn.ANCHORARRAY($O5)*_xlfn.ANCHORARRAY(CE5),_xlfn.ANCHORARRAY($M5)*_xlfn.ANCHORARRAY(YC5),_xlfn.ANCHORARRAY($O5)*_xlfn.ANCHORARRAY(CE5)),0) ->  | ALM5: =IF(_xlfn.ANCHORARRAY(CF5)<>1,_xlfn.ANCHORARRAY(AFL5)*IF(_xlfn.ANCHORARRAY($M5)*_xlfn.ANCHORARRAY(YD5)<_xlfn.ANCHORARRAY($O5)*_xlfn.ANCHORARRAY(CF5),_xlfn.ANCHORARRAY($M5)*_xlfn.ANCHORARRAY(YD5),_xlfn.ANCHORARRAY($O5)*_xlfn.ANCHORARRAY(CF5)),0) ->  | ALN5: =IF(_xlfn.ANCHORARRAY(CG5)<>1,_xlfn.ANCHORARRAY(AFM5)*IF(_xlfn.ANCHORARRAY($M5)*_xlfn.ANCHORARRAY(YE5)<_xlfn.ANCHORARRAY($O5)*_xlfn.ANCHORARRAY(CG5),_xlfn.ANCHORARRAY($M5)*_xlfn.ANCHORARRAY(YE5),_xlfn.ANCHORARRAY($O5)*_xlfn.ANCHORARRAY(CG5)),0) ->  | ALO5: =IF(_xlfn.ANCHORARRAY(CH5)<>1,_xlfn.ANCHORARRAY(AFN5)*IF(_xlfn.ANCHORARRAY($M5)*_xlfn.ANCHORARRAY(YF5)<_xlfn.ANCHORARRAY($O5)*_xlfn.ANCHORARRAY(CH5),_xlfn.ANCHORARRAY($M5)*_xlfn.ANCHORARRAY(YF5),_xlfn.ANCHORARRAY($O5)*_xlfn.ANCHORARRAY(CH5)),0) ->  | ALP5: =IF(_xlfn.ANCHORARRAY(CI5)<>1,_xlfn.ANCHORARRAY(AFO5)*IF(_xlfn.ANCHORARRAY($M5)*_xlfn.ANCHORARRAY(YG5)<_xlfn.ANCHORARRAY($O5)*_xlfn.ANCHORARRAY(CI5),_xlfn.ANCHORARRAY($M5)*_xlfn.ANCHORARRAY(YG5),_xlfn.ANCHORARRAY($O5)*_xlfn.ANCHORARRAY(CI5)),0) ->  | ALQ5: =IF(_xlfn.ANCHORARRAY(CJ5)<>1,_xlfn.ANCHORARRAY(AFP5)*IF(_xlfn.ANCHORARRAY($M5)*_xlfn.ANCHORARRAY(YH5)<_xlfn.ANCHORARRAY($O5)*_xlfn.ANCHORARRAY(CJ5),_xlfn.ANCHORARRAY($M5)*_xlfn.ANCHORARRAY(YH5),_xlfn.ANCHORARRAY($O5)*_xlfn.ANCHORARRAY(CJ5)),0) ->  | ALR5: =IF(_xlfn.ANCHORARRAY(CK5)<>1,_xlfn.ANCHORARRAY(AFQ5)*IF(_xlfn.ANCHORARRAY($M5)*_xlfn.ANCHORARRAY(YI5)<_xlfn.ANCHORARRAY($O5)*_xlfn.ANCHORARRAY(CK5),_xlfn.ANCHORARRAY($M5)*_xlfn.ANCHORARRAY(YI5),_xlfn.ANCHORARRAY($O5)*_xlfn.ANCHORARRAY(CK5)),0) ->  | ALS5: =IF(_xlfn.ANCHORARRAY(CL5)<>1,_xlfn.ANCHORARRAY(AFR5)*IF(_xlfn.ANCHORARRAY($M5)*_xlfn.ANCHORARRAY(YJ5)<_xlfn.ANCHORARRAY($O5)*_xlfn.ANCHORARRAY(CL5),_xlfn.ANCHORARRAY($M5)*_xlfn.ANCHORARRAY(YJ5),_xlfn.ANCHORARRAY($O5)*_xlfn.ANCHORARRAY(CL5)),0) ->  | ALT5: =IF(_xlfn.ANCHORARRAY(CM5)<>1,_xlfn.ANCHORARRAY(AFS5)*IF(_xlfn.ANCHORARRAY($M5)*_xlfn.ANCHORARRAY(YK5)<_xlfn.ANCHORARRAY($O5)*_xlfn.ANCHORARRAY(CM5),_xlfn.ANCHORARRAY($M5)*_xlfn.ANCHORARRAY(YK5),_xlfn.ANCHORARRAY($O5)*_xlfn.ANCHORARRAY(CM5)),0) ->  | ALU5: =IF(_xlfn.ANCHORARRAY(CN5)<>1,_xlfn.ANCHORARRAY(AFT5)*IF(_xlfn.ANCHORARRAY($M5)*_xlfn.ANCHORARRAY(YL5)<_xlfn.ANCHORARRAY($O5)*_xlfn.ANCHORARRAY(CN5),_xlfn.ANCHORARRAY($M5)*_xlfn.ANCHORARRAY(YL5),_xlfn.ANCHORARRAY($O5)*_xlfn.ANCHORARRAY(CN5)),0) ->  | ALV5: =IF(_xlfn.ANCHORARRAY(CO5)<>1,_xlfn.ANCHORARRAY(AFU5)*IF(_xlfn.ANCHORARRAY($M5)*_xlfn.ANCHORARRAY(YM5)<_xlfn.ANCHORARRAY($O5)*_xlfn.ANCHORARRAY(CO5),_xlfn.ANCHORARRAY($M5)*_xlfn.ANCHORARRAY(YM5),_xlfn.ANCHORARRAY($O5)*_xlfn.ANCHORARRAY(CO5)),0) ->  | ALW5: =IF(_xlfn.ANCHORARRAY(CP5)<>1,_xlfn.ANCHORARRAY(AFV5)*IF(_xlfn.ANCHORARRAY($M5)*_xlfn.ANCHORARRAY(YN5)<_xlfn.ANCHORARRAY($O5)*_xlfn.ANCHORARRAY(CP5),_xlfn.ANCHORARRAY($M5)*_xlfn.ANCHORARRAY(YN5),_xlfn.ANCHORARRAY($O5)*_xlfn.ANCHORARRAY(CP5)),0) ->  | ALX5: =_xlfn.ANCHORARRAY(AKL5) ->  | ALY5: =_xlfn.ANCHORARRAY(ALX5)+_xlfn.ANCHORARRAY(AKM5) ->  | ALZ5: =_xlfn.ANCHORARRAY(ALY5)+_xlfn.ANCHORARRAY(AKN5) ->  | AMA5: =_xlfn.ANCHORARRAY(ALZ5)+_xlfn.ANCHORARRAY(AKO5) ->  | AMB5: =_xlfn.ANCHORARRAY(AMA5)+_xlfn.ANCHORARRAY(AKP5) ->  | AMC5: =_xlfn.ANCHORARRAY(AMB5)+_xlfn.ANCHORARRAY(AKQ5) ->  | AMD5: =_xlfn.ANCHORARRAY(AMC5)+_xlfn.ANCHORARRAY(AKR5) ->  | AME5: =_xlfn.ANCHORARRAY(AMD5)+_xlfn.ANCHORARRAY(AKS5) ->  | AMF5: =_xlfn.ANCHORARRAY(AME5)+_xlfn.ANCHORARRAY(AKT5) ->  | AMG5: =_xlfn.ANCHORARRAY(AMF5)+_xlfn.ANCHORARRAY(AKU5) ->  | AMH5: =_xlfn.ANCHORARRAY(AMG5)+_xlfn.ANCHORARRAY(AKV5) ->  | AMI5: =_xlfn.ANCHORARRAY(AMH5)+_xlfn.ANCHORARRAY(AKW5) ->  | AMJ5: =_xlfn.ANCHORARRAY(AMI5)+_xlfn.ANCHORARRAY(AKX5) ->  | AMK5: =_xlfn.ANCHORARRAY(AMJ5)+_xlfn.ANCHORARRAY(AKY5) ->  | AML5: =_xlfn.ANCHORARRAY(AMK5)+_xlfn.ANCHORARRAY(AKZ5) ->  | AMM5: =_xlfn.ANCHORARRAY(AML5)+_xlfn.ANCHORARRAY(ALA5) ->  | AMN5: =_xlfn.ANCHORARRAY(AMM5)+_xlfn.ANCHORARRAY(ALB5) ->  | AMO5: =_xlfn.ANCHORARRAY(AMN5)+_xlfn.ANCHORARRAY(ALC5) ->  | AMP5: =_xlfn.ANCHORARRAY(AMO5)+_xlfn.ANCHORARRAY(ALD5) ->  | AMQ5: =_xlfn.ANCHORARRAY(AMP5)+_xlfn.ANCHORARRAY(ALE5) ->  | AMR5: =_xlfn.ANCHORARRAY(AMQ5)+_xlfn.ANCHORARRAY(ALF5) ->  | AMS5: =_xlfn.ANCHORARRAY(AMR5)+_xlfn.ANCHORARRAY(ALG5) ->  | AMT5: =_xlfn.ANCHORARRAY(AMS5)+_xlfn.ANCHORARRAY(ALH5) ->  | AMU5: =_xlfn.ANCHORARRAY(AMT5)+_xlfn.ANCHORARRAY(ALI5) ->  | AMV5: =_xlfn.ANCHORARRAY(AMU5)+_xlfn.ANCHORARRAY(ALJ5) ->  | AMW5: =_xlfn.ANCHORARRAY(AMV5)+_xlfn.ANCHORARRAY(ALK5) ->  | AMX5: =_xlfn.ANCHORARRAY(AMW5)+_xlfn.ANCHORARRAY(ALL5) ->  | AMY5: =_xlfn.ANCHORARRAY(AMX5)+_xlfn.ANCHORARRAY(ALM5) ->  | AMZ5: =_xlfn.ANCHORARRAY(AMY5)+_xlfn.ANCHORARRAY(ALN5) ->  | ANA5: =_xlfn.ANCHORARRAY(AMZ5)+_xlfn.ANCHORARRAY(ALO5) ->  | ANB5: =_xlfn.ANCHORARRAY(ANA5)+_xlfn.ANCHORARRAY(ALP5) ->  | ANC5: =_xlfn.ANCHORARRAY(ANB5)+_xlfn.ANCHORARRAY(ALQ5) ->  | AND5: =_xlfn.ANCHORARRAY(ANC5)+_xlfn.ANCHORARRAY(ALR5) ->  | ANE5: =_xlfn.ANCHORARRAY(AND5)+_xlfn.ANCHORARRAY(ALS5) ->  | ANF5: =_xlfn.ANCHORARRAY(ANE5)+_xlfn.ANCHORARRAY(ALT5) ->  | ANG5: =_xlfn.ANCHORARRAY(ANF5)+_xlfn.ANCHORARRAY(ALU5) ->  | ANH5: =_xlfn.ANCHORARRAY(ANG5)+_xlfn.ANCHORARRAY(ALV5) ->  | ANI5: =_xlfn.ANCHORARRAY(ANH5)+_xlfn.ANCHORARRAY(ALW5) ->  | ANJ5: =_xlfn.ANCHORARRAY(ACY5) ->  | ANK5: =_xlfn.ANCHORARRAY(ACZ5) ->  | ANL5: =_xlfn.ANCHORARRAY(ADA5) ->  | ANM5: =_xlfn.ANCHORARRAY(ADB5) ->  | ANN5: =_xlfn.ANCHORARRAY(ADC5)-IF(_xlfn.ANCHORARRAY(AMB5)<>0,_xlfn.ANCHORARRAY(ACY5),0)+_xlfn.ANCHORARRAY(AMB5) ->  | ANO5: =_xlfn.ANCHORARRAY(ADD5)-IF(_xlfn.ANCHORARRAY(AMC5)<>0,_xlfn.ANCHORARRAY(ACZ5),0)+_xlfn.ANCHORARRAY(AMC5) ->  | ANP5: =_xlfn.ANCHORARRAY(ADE5)-IF(_xlfn.ANCHORARRAY(AMD5)<>0,_xlfn.ANCHORARRAY(ADA5),0)+_xlfn.ANCHORARRAY(AMD5) ->  | ANQ5: =_xlfn.ANCHORARRAY(ADF5)-IF(_xlfn.ANCHORARRAY(AME5)<>0,_xlfn.ANCHORARRAY(ADB5),0)+_xlfn.ANCHORARRAY(AME5) ->  | ANR5: =_xlfn.ANCHORARRAY(ADG5)-IF(_xlfn.ANCHORARRAY(AMF5)<>0,_xlfn.ANCHORARRAY(ADC5),0)+_xlfn.ANCHORARRAY(AMF5) ->  | ANS5: =_xlfn.ANCHORARRAY(ADH5)-IF(_xlfn.ANCHORARRAY(AMG5)<>0,_xlfn.ANCHORARRAY(ADD5),0)+_xlfn.ANCHORARRAY(AMG5) ->  | ANT5: =_xlfn.ANCHORARRAY(ADI5)-IF(_xlfn.ANCHORARRAY(AMH5)<>0,_xlfn.ANCHORARRAY(ADE5),0)+_xlfn.ANCHORARRAY(AMH5) ->  | ANU5: =_xlfn.ANCHORARRAY(ADJ5)-IF(_xlfn.ANCHORARRAY(AMI5)<>0,_xlfn.ANCHORARRAY(ADF5),0)+_xlfn.ANCHORARRAY(AMI5) ->  | ANV5: =_xlfn.ANCHORARRAY(ADK5)-IF(_xlfn.ANCHORARRAY(AMJ5)<>0,_xlfn.ANCHORARRAY(ADG5),0)+_xlfn.ANCHORARRAY(AMJ5) ->  | ANW5: =_xlfn.ANCHORARRAY(ADL5)-IF(_xlfn.ANCHORARRAY(AMK5)<>0,_xlfn.ANCHORARRAY(ADH5),0)+_xlfn.ANCHORARRAY(AMK5) ->  | ANX5: =_xlfn.ANCHORARRAY(ADM5)-IF(_xlfn.ANCHORARRAY(AML5)<>0,_xlfn.ANCHORARRAY(ADI5),0)+_xlfn.ANCHORARRAY(AML5) ->  | ANY5: =_xlfn.ANCHORARRAY(ADN5)-IF(_xlfn.ANCHORARRAY(AMM5)<>0,_xlfn.ANCHORARRAY(ADJ5),0)+_xlfn.ANCHORARRAY(AMM5) ->  | ANZ5: =_xlfn.ANCHORARRAY(ADO5)-IF(_xlfn.ANCHORARRAY(AMN5)<>0,_xlfn.ANCHORARRAY(ADK5),0)+_xlfn.ANCHORARRAY(AMN5) ->  | AOA5: =_xlfn.ANCHORARRAY(ADP5)-IF(_xlfn.ANCHORARRAY(AMO5)<>0,_xlfn.ANCHORARRAY(ADL5),0)+_xlfn.ANCHORARRAY(AMO5) ->  | AOB5: =_xlfn.ANCHORARRAY(ADQ5)-IF(_xlfn.ANCHORARRAY(AMP5)<>0,_xlfn.ANCHORARRAY(ADM5),0)+_xlfn.ANCHORARRAY(AMP5) ->  | AOC5: =_xlfn.ANCHORARRAY(ADR5)-IF(_xlfn.ANCHORARRAY(AMQ5)<>0,_xlfn.ANCHORARRAY(ADN5),0)+_xlfn.ANCHORARRAY(AMQ5) ->  | AOD5: =_xlfn.ANCHORARRAY(ADS5)-IF(_xlfn.ANCHORARRAY(AMR5)<>0,_xlfn.ANCHORARRAY(ADO5),0)+_xlfn.ANCHORARRAY(AMR5) ->  | AOE5: =_xlfn.ANCHORARRAY(ADT5)-IF(_xlfn.ANCHORARRAY(AMS5)<>0,_xlfn.ANCHORARRAY(ADP5),0)+_xlfn.ANCHORARRAY(AMS5) ->  | AOF5: =_xlfn.ANCHORARRAY(ADU5)-IF(_xlfn.ANCHORARRAY(AMT5)<>0,_xlfn.ANCHORARRAY(ADQ5),0)+_xlfn.ANCHORARRAY(AMT5) ->  | AOG5: =_xlfn.ANCHORARRAY(ADV5)-IF(_xlfn.ANCHORARRAY(AMU5)<>0,_xlfn.ANCHORARRAY(ADR5),0)+_xlfn.ANCHORARRAY(AMU5) ->  | AOH5: =_xlfn.ANCHORARRAY(ADW5)-IF(_xlfn.ANCHORARRAY(AMV5)<>0,_xlfn.ANCHORARRAY(ADS5),0)+_xlfn.ANCHORARRAY(AMV5) ->  | AOI5: =_xlfn.ANCHORARRAY(ADX5)-IF(_xlfn.ANCHORARRAY(AMW5)<>0,_xlfn.ANCHORARRAY(ADT5),0)+_xlfn.ANCHORARRAY(AMW5) ->  | AOJ5: =_xlfn.ANCHORARRAY(ADY5)-IF(_xlfn.ANCHORARRAY(AMX5)<>0,_xlfn.ANCHORARRAY(ADU5),0)+_xlfn.ANCHORARRAY(AMX5) ->  | AOK5: =_xlfn.ANCHORARRAY(ADZ5)-IF(_xlfn.ANCHORARRAY(AMY5)<>0,_xlfn.ANCHORARRAY(ADV5),0)+_xlfn.ANCHORARRAY(AMY5) ->  | AOL5: =_xlfn.ANCHORARRAY(AEA5)-IF(_xlfn.ANCHORARRAY(AMZ5)<>0,_xlfn.ANCHORARRAY(ADW5),0)+_xlfn.ANCHORARRAY(AMZ5) ->  | AOM5: =_xlfn.ANCHORARRAY(AEB5)-IF(_xlfn.ANCHORARRAY(ANA5)<>0,_xlfn.ANCHORARRAY(ADX5),0)+_xlfn.ANCHORARRAY(ANA5) ->  | AON5: =_xlfn.ANCHORARRAY(AEC5)-IF(_xlfn.ANCHORARRAY(ANB5)<>0,_xlfn.ANCHORARRAY(ADY5),0)+_xlfn.ANCHORARRAY(ANB5) ->  | AOO5: =_xlfn.ANCHORARRAY(AED5)-IF(_xlfn.ANCHORARRAY(ANC5)<>0,_xlfn.ANCHORARRAY(ADZ5),0)+_xlfn.ANCHORARRAY(ANC5) ->  | AOP5: =_xlfn.ANCHORARRAY(AEE5)-IF(_xlfn.ANCHORARRAY(AND5)<>0,_xlfn.ANCHORARRAY(AEA5),0)+_xlfn.ANCHORARRAY(AND5) ->  | AOQ5: =_xlfn.ANCHORARRAY(AEF5)-IF(_xlfn.ANCHORARRAY(ANE5)<>0,_xlfn.ANCHORARRAY(AEB5),0)+_xlfn.ANCHORARRAY(ANE5) ->  | AOR5: =_xlfn.ANCHORARRAY(AEG5)-IF(_xlfn.ANCHORARRAY(ANF5)<>0,_xlfn.ANCHORARRAY(AEC5),0)+_xlfn.ANCHORARRAY(ANF5) ->  | AOS5: =_xlfn.ANCHORARRAY(AEH5)-IF(_xlfn.ANCHORARRAY(ANG5)<>0,_xlfn.ANCHORARRAY(AED5),0)+_xlfn.ANCHORARRAY(ANG5) ->  | AOT5: =_xlfn.ANCHORARRAY(AEI5)-IF(_xlfn.ANCHORARRAY(ANH5)<>0,_xlfn.ANCHORARRAY(AEE5),0)+_xlfn.ANCHORARRAY(ANH5) ->  | AOU5: =_xlfn.ANCHORARRAY(AEJ5)-IF(_xlfn.ANCHORARRAY(ANI5)<>0,_xlfn.ANCHORARRAY(AEF5),0)+_xlfn.ANCHORARRAY(ANI5) ->  | AOV5: =IFERROR(((_xlfn.ANCHORARRAY(FO5)+_xlfn.ANCHORARRAY(AAA5))-(_xlfn.ANCHORARRAY(OI5)+_xlfn.ANCHORARRAY(AIZ5)))/10^9,0) -> 0 | AOW5: =IFERROR(((_xlfn.ANCHORARRAY(FP5)+_xlfn.ANCHORARRAY(AAB5))-(_xlfn.ANCHORARRAY(OJ5)+_xlfn.ANCHORARRAY(AJA5)))/10^9,0) -> 0 | AOX5: =IFERROR(((_xlfn.ANCHORARRAY(FQ5)+_xlfn.ANCHORARRAY(AAC5))-(_xlfn.ANCHORARRAY(OK5)+_xlfn.ANCHORARRAY(AJB5)))/10^9,0) -> 0 | AOY5: =IFERROR(((_xlfn.ANCHORARRAY(FR5)+_xlfn.ANCHORARRAY(AAD5))-(_xlfn.ANCHORARRAY(OL5)+_xlfn.ANCHORARRAY(AJC5)))/10^9,0) -> 0 | AOZ5: =IFERROR(((_xlfn.ANCHORARRAY(FS5)+_xlfn.ANCHORARRAY(AAE5))-(_xlfn.ANCHORARRAY(OM5)+_xlfn.ANCHORARRAY(AJD5)))/10^9,0) -> 0 | APA5: =IFERROR(((_xlfn.ANCHORARRAY(FT5)+_xlfn.ANCHORARRAY(AAF5))-(_xlfn.ANCHORARRAY(ON5)+_xlfn.ANCHORARRAY(AJE5)))/10^9,0) -> 0 | APB5: =IFERROR(((_xlfn.ANCHORARRAY(FU5)+_xlfn.ANCHORARRAY(AAG5))-(_xlfn.ANCHORARRAY(OO5)+_xlfn.ANCHORARRAY(AJF5)))/10^9,0) -> 0 | APC5: =IFERROR(((_xlfn.ANCHORARRAY(FV5)+_xlfn.ANCHORARRAY(AAH5))-(_xlfn.ANCHORARRAY(OP5)+_xlfn.ANCHORARRAY(AJG5)))/10^9,0) -> 0 | APD5: =IFERROR(((_xlfn.ANCHORARRAY(FW5)+_xlfn.ANCHORARRAY(AAI5))-(_xlfn.ANCHORARRAY(OQ5)+_xlfn.ANCHORARRAY(AJH5)))/10^9,0) -> 0 | APE5: =IFERROR(((_xlfn.ANCHORARRAY(FX5)+_xlfn.ANCHORARRAY(AAJ5))-(_xlfn.ANCHORARRAY(OR5)+_xlfn.ANCHORARRAY(AJI5)))/10^9,0) -> 0 | APF5: =IFERROR(((_xlfn.ANCHORARRAY(FY5)+_xlfn.ANCHORARRAY(AAK5))-(_xlfn.ANCHORARRAY(OS5)+_xlfn.ANCHORARRAY(AJJ5)))/10^9,0) -> 0 | APG5: =IFERROR(((_xlfn.ANCHORARRAY(FZ5)+_xlfn.ANCHORARRAY(AAL5))-(_xlfn.ANCHORARRAY(OT5)+_xlfn.ANCHORARRAY(AJK5)))/10^9,0) -> 0 | APH5: =IFERROR(((_xlfn.ANCHORARRAY(GA5)+_xlfn.ANCHORARRAY(AAM5))-(_xlfn.ANCHORARRAY(OU5)+_xlfn.ANCHORARRAY(AJL5)))/10^9,0) -> 0 | API5: =IFERROR(((_xlfn.ANCHORARRAY(GB5)+_xlfn.ANCHORARRAY(AAN5))-(_xlfn.ANCHORARRAY(OV5)+_xlfn.ANCHORARRAY(AJM5)))/10^9,0) -> 0 | APJ5: =IFERROR(((_xlfn.ANCHORARRAY(GC5)+_xlfn.ANCHORARRAY(AAO5))-(_xlfn.ANCHORARRAY(OW5)+_xlfn.ANCHORARRAY(AJN5)))/10^9,0) -> 0 | APK5: =IFERROR(((_xlfn.ANCHORARRAY(GD5)+_xlfn.ANCHORARRAY(AAP5))-(_xlfn.ANCHORARRAY(OX5)+_xlfn.ANCHORARRAY(AJO5)))/10^9,0) -> 0 | APL5: =IFERROR(((_xlfn.ANCHORARRAY(GE5)+_xlfn.ANCHORARRAY(AAQ5))-(_xlfn.ANCHORARRAY(OY5)+_xlfn.ANCHORARRAY(AJP5)))/10^9,0) -> 0 | APM5: =IFERROR(((_xlfn.ANCHORARRAY(GF5)+_xlfn.ANCHORARRAY(AAR5))-(_xlfn.ANCHORARRAY(OZ5)+_xlfn.ANCHORARRAY(AJQ5)))/10^9,0) -> 0 | APN5: =IFERROR(((_xlfn.ANCHORARRAY(GG5)+_xlfn.ANCHORARRAY(AAS5))-(_xlfn.ANCHORARRAY(PA5)+_xlfn.ANCHORARRAY(AJR5)))/10^9,0) -> 0 | APO5: =IFERROR(((_xlfn.ANCHORARRAY(GH5)+_xlfn.ANCHORARRAY(AAT5))-(_xlfn.ANCHORARRAY(PB5)+_xlfn.ANCHORARRAY(AJS5)))/10^9,0) -> 0 | APP5: =IFERROR(((_xlfn.ANCHORARRAY(GI5)+_xlfn.ANCHORARRAY(AAU5))-(_xlfn.ANCHORARRAY(PC5)+_xlfn.ANCHORARRAY(AJT5)))/10^9,0) -> 0 | APQ5: =IFERROR(((_xlfn.ANCHORARRAY(GJ5)+_xlfn.ANCHORARRAY(AAV5))-(_xlfn.ANCHORARRAY(PD5)+_xlfn.ANCHORARRAY(AJU5)))/10^9,0) -> 0 | APR5: =IFERROR(((_xlfn.ANCHORARRAY(GK5)+_xlfn.ANCHORARRAY(AAW5))-(_xlfn.ANCHORARRAY(PE5)+_xlfn.ANCHORARRAY(AJV5)))/10^9,0) -> 0 | APS5: =IFERROR(((_xlfn.ANCHORARRAY(GL5)+_xlfn.ANCHORARRAY(AAX5))-(_xlfn.ANCHORARRAY(PF5)+_xlfn.ANCHORARRAY(AJW5)))/10^9,0) -> 0 | APT5: =IFERROR(((_xlfn.ANCHORARRAY(GM5)+_xlfn.ANCHORARRAY(AAY5))-(_xlfn.ANCHORARRAY(PG5)+_xlfn.ANCHORARRAY(AJX5)))/10^9,0) -> 0 | APU5: =IFERROR(((_xlfn.ANCHORARRAY(GN5)+_xlfn.ANCHORARRAY(AAZ5))-(_xlfn.ANCHORARRAY(PH5)+_xlfn.ANCHORARRAY(AJY5)))/10^9,0) -> 0 | APV5: =IFERROR(((_xlfn.ANCHORARRAY(GO5)+_xlfn.ANCHORARRAY(ABA5))-(_xlfn.ANCHORARRAY(PI5)+_xlfn.ANCHORARRAY(AJZ5)))/10^9,0) -> 0 | APW5: =IFERROR(((_xlfn.ANCHORARRAY(GP5)+_xlfn.ANCHORARRAY(ABB5))-(_xlfn.ANCHORARRAY(PJ5)+_xlfn.ANCHORARRAY(AKA5)))/10^9,0) -> 0 | APX5: =IFERROR(((_xlfn.ANCHORARRAY(GQ5)+_xlfn.ANCHORARRAY(ABC5))-(_xlfn.ANCHORARRAY(PK5)+_xlfn.ANCHORARRAY(AKB5)))/10^9,0) -> 0 | APY5: =IFERROR(((_xlfn.ANCHORARRAY(GR5)+_xlfn.ANCHORARRAY(ABD5))-(_xlfn.ANCHORARRAY(PL5)+_xlfn.ANCHORARRAY(AKC5)))/10^9,0) -> 0 | APZ5: =IFERROR(((_xlfn.ANCHORARRAY(GS5)+_xlfn.ANCHORARRAY(ABE5))-(_xlfn.ANCHORARRAY(PM5)+_xlfn.ANCHORARRAY(AKD5)))/10^9,0) -> 0 | AQA5: =IFERROR(((_xlfn.ANCHORARRAY(GT5)+_xlfn.ANCHORARRAY(ABF5))-(_xlfn.ANCHORARRAY(PN5)+_xlfn.ANCHORARRAY(AKE5)))/10^9,0) -> 0 | AQB5: =IFERROR(((_xlfn.ANCHORARRAY(GU5)+_xlfn.ANCHORARRAY(ABG5))-(_xlfn.ANCHORARRAY(PO5)+_xlfn.ANCHORARRAY(AKF5)))/10^9,0) -> 0 | AQC5: =IFERROR(((_xlfn.ANCHORARRAY(GV5)+_xlfn.ANCHORARRAY(ABH5))-(_xlfn.ANCHORARRAY(PP5)+_xlfn.ANCHORARRAY(AKG5)))/10^9,0) -> 0 | AQD5: =IFERROR(((_xlfn.ANCHORARRAY(GW5)+_xlfn.ANCHORARRAY(ABI5))-(_xlfn.ANCHORARRAY(PQ5)+_xlfn.ANCHORARRAY(AKH5)))/10^9,0) -> 0 | AQE5: =IFERROR(((_xlfn.ANCHORARRAY(GX5)+_xlfn.ANCHORARRAY(ABJ5))-(_xlfn.ANCHORARRAY(PR5)+_xlfn.ANCHORARRAY(AKI5)))/10^9,0) -> 0 | AQF5: =IFERROR(((_xlfn.ANCHORARRAY(GY5)+_xlfn.ANCHORARRAY(ABK5))-(_xlfn.ANCHORARRAY(PS5)+_xlfn.ANCHORARRAY(AKJ5)))/10^9,0) -> 0 | AQG5: =IFERROR(((_xlfn.ANCHORARRAY(GZ5)+_xlfn.ANCHORARRAY(ABL5))-(_xlfn.ANCHORARRAY(PT5)+_xlfn.ANCHORARRAY(AKK5)))/10^9,0) -> 0 | AQH5: =(_xlfn.ANCHORARRAY(FO5)+_xlfn.ANCHORARRAY(AAA5))*INDEX(ElecCO2[],7,MATCH(TEXT('Topic 3 Calculator'!$D$18,"0"),ElecCO2[#Headers],0))+(_xlfn.ANCHORARRAY(ACY5)+_xlfn.ANCHORARRAY(JY5))*INDEX(GasCO2[],7,MATCH(TEXT('Topic 3 Calculator'!$D$18,"0"),GasCO2[#Headers],0)) ->  | AQI5: =(_xlfn.ANCHORARRAY(FP5)+_xlfn.ANCHORARRAY(AAB5))*INDEX(ElecCO2[],7,MATCH(TEXT('Topic 3 Calculator'!$D$18,"0"),ElecCO2[#Headers],0))+(_xlfn.ANCHORARRAY(ACZ5)+_xlfn.ANCHORARRAY(JZ5))*INDEX(GasCO2[],7,MATCH(TEXT('Topic 3 Calculator'!$D$18,"0"),GasCO2[#Headers],0)) ->  | AQJ5: =(_xlfn.ANCHORARRAY(FQ5)+_xlfn.ANCHORARRAY(AAC5))*INDEX(ElecCO2[],7,MATCH(TEXT('Topic 3 Calculator'!$D$18,"0"),ElecCO2[#Headers],0))+(_xlfn.ANCHORARRAY(ADA5)+_xlfn.ANCHORARRAY(KA5))*INDEX(GasCO2[],7,MATCH(TEXT('Topic 3 Calculator'!$D$18,"0"),GasCO2[#Headers],0)) ->  | AQK5: =(_xlfn.ANCHORARRAY(FR5)+_xlfn.ANCHORARRAY(AAD5))*INDEX(ElecCO2[],7,MATCH(TEXT('Topic 3 Calculator'!$D$18,"0"),ElecCO2[#Headers],0))+(_xlfn.ANCHORARRAY(ADB5)+_xlfn.ANCHORARRAY(KB5))*INDEX(GasCO2[],7,MATCH(TEXT('Topic 3 Calculator'!$D$18,"0"),GasCO2[#Headers],0)) ->  | AQL5: =(_xlfn.ANCHORARRAY(FS5)+_xlfn.ANCHORARRAY(AAE5))*INDEX(ElecCO2[],7,MATCH(TEXT('Topic 3 Calculator'!$D$18,"0"),ElecCO2[#Headers],0))+(_xlfn.ANCHORARRAY(ADC5)+_xlfn.ANCHORARRAY(KC5))*INDEX(GasCO2[],7,MATCH(TEXT('Topic 3 Calculator'!$D$18,"0"),GasCO2[#Headers],0)) ->  | AQM5: =(_xlfn.ANCHORARRAY(FT5)+_xlfn.ANCHORARRAY(AAF5))*INDEX(ElecCO2[],7,MATCH(TEXT('Topic 3 Calculator'!$D$18,"0"),ElecCO2[#Headers],0))+(_xlfn.ANCHORARRAY(ADD5)+_xlfn.ANCHORARRAY(KD5))*INDEX(GasCO2[],7,MATCH(TEXT('Topic 3 Calculator'!$D$18,"0"),GasCO2[#Headers],0)) ->  | AQN5: =(_xlfn.ANCHORARRAY(FU5)+_xlfn.ANCHORARRAY(AAG5))*INDEX(ElecCO2[],7,MATCH(TEXT('Topic 3 Calculator'!$D$18,"0"),ElecCO2[#Headers],0))+(_xlfn.ANCHORARRAY(ADE5)+_xlfn.ANCHORARRAY(KE5))*INDEX(GasCO2[],7,MATCH(TEXT('Topic 3 Calculator'!$D$18,"0"),GasCO2[#Headers],0)) ->  | AQO5: =(_xlfn.ANCHORARRAY(FV5)+_xlfn.ANCHORARRAY(AAH5))*INDEX(ElecCO2[],7,MATCH(TEXT('Topic 3 Calculator'!$D$18,"0"),ElecCO2[#Headers],0))+(_xlfn.ANCHORARRAY(ADF5)+_xlfn.ANCHORARRAY(KF5))*INDEX(GasCO2[],7,MATCH(TEXT('Topic 3 Calculator'!$D$18,"0"),GasCO2[#Headers],0)) ->  | AQP5: =(_xlfn.ANCHORARRAY(FW5)+_xlfn.ANCHORARRAY(AAI5))*INDEX(ElecCO2[],7,MATCH(TEXT('Topic 3 Calculator'!$D$18,"0"),ElecCO2[#Headers],0))+(_xlfn.ANCHORARRAY(ADG5)+_xlfn.ANCHORARRAY(KG5))*INDEX(GasCO2[],7,MATCH(TEXT('Topic 3 Calculator'!$D$18,"0"),GasCO2[#Headers],0)) ->  | AQQ5: =(_xlfn.ANCHORARRAY(FX5)+_xlfn.ANCHORARRAY(AAJ5))*INDEX(ElecCO2[],7,MATCH(TEXT('Topic 3 Calculator'!$D$18,"0"),ElecCO2[#Headers],0))+(_xlfn.ANCHORARRAY(ADH5)+_xlfn.ANCHORARRAY(KH5))*INDEX(GasCO2[],7,MATCH(TEXT('Topic 3 Calculator'!$D$18,"0"),GasCO2[#Headers],0)) ->  | AQR5: =(_xlfn.ANCHORARRAY(FY5)+_xlfn.ANCHORARRAY(AAK5))*INDEX(ElecCO2[],7,MATCH(TEXT('Topic 3 Calculator'!$D$18,"0"),ElecCO2[#Headers],0))+(_xlfn.ANCHORARRAY(ADI5)+_xlfn.ANCHORARRAY(KI5))*INDEX(GasCO2[],7,MATCH(TEXT('Topic 3 Calculator'!$D$18,"0"),GasCO2[#Headers],0)) ->  | AQS5: =(_xlfn.ANCHORARRAY(FZ5)+_xlfn.ANCHORARRAY(AAL5))*INDEX(ElecCO2[],7,MATCH(TEXT('Topic 3 Calculator'!$D$18,"0"),ElecCO2[#Headers],0))+(_xlfn.ANCHORARRAY(ADJ5)+_xlfn.ANCHORARRAY(KJ5))*INDEX(GasCO2[],7,MATCH(TEXT('Topic 3 Calculator'!$D$18,"0"),GasCO2[#Headers],0)) ->  | AQT5: =(_xlfn.ANCHORARRAY(GA5)+_xlfn.ANCHORARRAY(AAM5))*INDEX(ElecCO2[],7,MATCH(TEXT('Topic 3 Calculator'!$D$18,"0"),ElecCO2[#Headers],0))+(_xlfn.ANCHORARRAY(ADK5)+_xlfn.ANCHORARRAY(KK5))*INDEX(GasCO2[],7,MATCH(TEXT('Topic 3 Calculator'!$D$18,"0"),GasCO2[#Headers],0)) ->  | AQU5: =(_xlfn.ANCHORARRAY(GB5)+_xlfn.ANCHORARRAY(AAN5))*INDEX(ElecCO2[],7,MATCH(TEXT('Topic 3 Calculator'!$D$18,"0"),ElecCO2[#Headers],0))+(_xlfn.ANCHORARRAY(ADL5)+_xlfn.ANCHORARRAY(KL5))*INDEX(GasCO2[],7,MATCH(TEXT('Topic 3 Calculator'!$D$18,"0"),GasCO2[#Headers],0)) ->  | AQV5: =(_xlfn.ANCHORARRAY(GC5)+_xlfn.ANCHORARRAY(AAO5))*INDEX(ElecCO2[],7,MATCH(TEXT('Topic 3 Calculator'!$D$18,"0"),ElecCO2[#Headers],0))+(_xlfn.ANCHORARRAY(ADM5)+_xlfn.ANCHORARRAY(KM5))*INDEX(GasCO2[],7,MATCH(TEXT('Topic 3 Calculator'!$D$18,"0"),GasCO2[#Headers],0)) ->  | AQW5: =(_xlfn.ANCHORARRAY(GD5)+_xlfn.ANCHORARRAY(AAP5))*INDEX(ElecCO2[],7,MATCH(TEXT('Topic 3 Calculator'!$D$18,"0"),ElecCO2[#Headers],0))+(_xlfn.ANCHORARRAY(ADN5)+_xlfn.ANCHORARRAY(KN5))*INDEX(GasCO2[],7,MATCH(TEXT('Topic 3 Calculator'!$D$18,"0"),GasCO2[#Headers],0)) ->  | AQX5: =(_xlfn.ANCHORARRAY(GE5)+_xlfn.ANCHORARRAY(AAQ5))*INDEX(ElecCO2[],7,MATCH(TEXT('Topic 3 Calculator'!$D$18,"0"),ElecCO2[#Headers],0))+(_xlfn.ANCHORARRAY(ADO5)+_xlfn.ANCHORARRAY(KO5))*INDEX(GasCO2[],7,MATCH(TEXT('Topic 3 Calculator'!$D$18,"0"),GasCO2[#Headers],0)) ->  | AQY5: =(_xlfn.ANCHORARRAY(GF5)+_xlfn.ANCHORARRAY(AAR5))*INDEX(ElecCO2[],7,MATCH(TEXT('Topic 3 Calculator'!$D$18,"0"),ElecCO2[#Headers],0))+(_xlfn.ANCHORARRAY(ADP5)+_xlfn.ANCHORARRAY(KP5))*INDEX(GasCO2[],7,MATCH(TEXT('Topic 3 Calculator'!$D$18,"0"),GasCO2[#Headers],0)) ->  | AQZ5: =(_xlfn.ANCHORARRAY(GG5)+_xlfn.ANCHORARRAY(AAS5))*INDEX(ElecCO2[],7,MATCH(TEXT('Topic 3 Calculator'!$D$18,"0"),ElecCO2[#Headers],0))+(_xlfn.ANCHORARRAY(ADQ5)+_xlfn.ANCHORARRAY(KQ5))*INDEX(GasCO2[],7,MATCH(TEXT('Topic 3 Calculator'!$D$18,"0"),GasCO2[#Headers],0)) ->  | ARA5: =(_xlfn.ANCHORARRAY(GH5)+_xlfn.ANCHORARRAY(AAT5))*INDEX(ElecCO2[],7,MATCH(TEXT('Topic 3 Calculator'!$D$18,"0"),ElecCO2[#Headers],0))+(_xlfn.ANCHORARRAY(ADR5)+_xlfn.ANCHORARRAY(KR5))*INDEX(GasCO2[],7,MATCH(TEXT('Topic 3 Calculator'!$D$18,"0"),GasCO2[#Headers],0)) ->  | ARB5: =(_xlfn.ANCHORARRAY(GI5)+_xlfn.ANCHORARRAY(AAU5))*INDEX(ElecCO2[],7,MATCH(TEXT('Topic 3 Calculator'!$D$18,"0"),ElecCO2[#Headers],0))+(_xlfn.ANCHORARRAY(ADS5)+_xlfn.ANCHORARRAY(KS5))*INDEX(GasCO2[],7,MATCH(TEXT('Topic 3 Calculator'!$D$18,"0"),GasCO2[#Headers],0)) ->  | ARC5: =(_xlfn.ANCHORARRAY(GJ5)+_xlfn.ANCHORARRAY(AAV5))*INDEX(ElecCO2[],7,MATCH(TEXT('Topic 3 Calculator'!$D$18,"0"),ElecCO2[#Headers],0))+(_xlfn.ANCHORARRAY(ADT5)+_xlfn.ANCHORARRAY(KT5))*INDEX(GasCO2[],7,MATCH(TEXT('Topic 3 Calculator'!$D$18,"0"),GasCO2[#Headers],0)) ->  | ARD5: =(_xlfn.ANCHORARRAY(GK5)+_xlfn.ANCHORARRAY(AAW5))*INDEX(ElecCO2[],7,MATCH(TEXT('Topic 3 Calculator'!$D$18,"0"),ElecCO2[#Headers],0))+(_xlfn.ANCHORARRAY(ADU5)+_xlfn.ANCHORARRAY(KU5))*INDEX(GasCO2[],7,MATCH(TEXT('Topic 3 Calculator'!$D$18,"0"),GasCO2[#Headers],0)) ->  | ARE5: =(_xlfn.ANCHORARRAY(GL5)+_xlfn.ANCHORARRAY(AAX5))*INDEX(ElecCO2[],7,MATCH(TEXT('Topic 3 Calculator'!$D$18,"0"),ElecCO2[#Headers],0))+(_xlfn.ANCHORARRAY(ADV5)+_xlfn.ANCHORARRAY(KV5))*INDEX(GasCO2[],7,MATCH(TEXT('Topic 3 Calculator'!$D$18,"0"),GasCO2[#Headers],0)) ->  | ARF5: =(_xlfn.ANCHORARRAY(GM5)+_xlfn.ANCHORARRAY(AAY5))*INDEX(ElecCO2[],7,MATCH(TEXT('Topic 3 Calculator'!$D$18,"0"),ElecCO2[#Headers],0))+(_xlfn.ANCHORARRAY(ADW5)+_xlfn.ANCHORARRAY(KW5))*INDEX(GasCO2[],7,MATCH(TEXT('Topic 3 Calculator'!$D$18,"0"),GasCO2[#Headers],0)) ->  | ARG5: =(_xlfn.ANCHORARRAY(GN5)+_xlfn.ANCHORARRAY(AAZ5))*INDEX(ElecCO2[],7,MATCH(TEXT('Topic 3 Calculator'!$D$18,"0"),ElecCO2[#Headers],0))+(_xlfn.ANCHORARRAY(ADX5)+_xlfn.ANCHORARRAY(KX5))*INDEX(GasCO2[],7,MATCH(TEXT('Topic 3 Calculator'!$D$18,"0"),GasCO2[#Headers],0)) ->  | ARH5: =(_xlfn.ANCHORARRAY(GO5)+_xlfn.ANCHORARRAY(ABA5))*INDEX(ElecCO2[],7,MATCH(TEXT('Topic 3 Calculator'!$D$18,"0"),ElecCO2[#Headers],0))+(_xlfn.ANCHORARRAY(ADY5)+_xlfn.ANCHORARRAY(KY5))*INDEX(GasCO2[],7,MATCH(TEXT('Topic 3 Calculator'!$D$18,"0"),GasCO2[#Headers],0)) ->  | ARI5: =(_xlfn.ANCHORARRAY(GP5)+_xlfn.ANCHORARRAY(ABB5))*INDEX(ElecCO2[],7,MATCH(TEXT('Topic 3 Calculator'!$D$18,"0"),ElecCO2[#Headers],0))+(_xlfn.ANCHORARRAY(ADZ5)+_xlfn.ANCHORARRAY(KZ5))*INDEX(GasCO2[],7,MATCH(TEXT('Topic 3 Calculator'!$D$18,"0"),GasCO2[#Headers],0)) ->  | ARJ5: =(_xlfn.ANCHORARRAY(GQ5)+_xlfn.ANCHORARRAY(ABC5))*INDEX(ElecCO2[],7,MATCH(TEXT('Topic 3 Calculator'!$D$18,"0"),ElecCO2[#Headers],0))+(_xlfn.ANCHORARRAY(AEA5)+_xlfn.ANCHORARRAY(LA5))*INDEX(GasCO2[],7,MATCH(TEXT('Topic 3 Calculator'!$D$18,"0"),GasCO2[#Headers],0)) ->  | ARK5: =(_xlfn.ANCHORARRAY(GR5)+_xlfn.ANCHORARRAY(ABD5))*INDEX(ElecCO2[],7,MATCH(TEXT('Topic 3 Calculator'!$D$18,"0"),ElecCO2[#Headers],0))+(_xlfn.ANCHORARRAY(AEB5)+_xlfn.ANCHORARRAY(LB5))*INDEX(GasCO2[],7,MATCH(TEXT('Topic 3 Calculator'!$D$18,"0"),GasCO2[#Headers],0)) ->  | ARL5: =(_xlfn.ANCHORARRAY(GS5)+_xlfn.ANCHORARRAY(ABE5))*INDEX(ElecCO2[],7,MATCH(TEXT('Topic 3 Calculator'!$D$18,"0"),ElecCO2[#Headers],0))+(_xlfn.ANCHORARRAY(AEC5)+_xlfn.ANCHORARRAY(LC5))*INDEX(GasCO2[],7,MATCH(TEXT('Topic 3 Calculator'!$D$18,"0"),GasCO2[#Headers],0)) ->  | ARM5: =(_xlfn.ANCHORARRAY(GT5)+_xlfn.ANCHORARRAY(ABF5))*INDEX(ElecCO2[],7,MATCH(TEXT('Topic 3 Calculator'!$D$18,"0"),ElecCO2[#Headers],0))+(_xlfn.ANCHORARRAY(AED5)+_xlfn.ANCHORARRAY(LD5))*INDEX(GasCO2[],7,MATCH(TEXT('Topic 3 Calculator'!$D$18,"0"),GasCO2[#Headers],0)) ->  | ARN5: =(_xlfn.ANCHORARRAY(GU5)+_xlfn.ANCHORARRAY(ABG5))*INDEX(ElecCO2[],7,MATCH(TEXT('Topic 3 Calculator'!$D$18,"0"),ElecCO2[#Headers],0))+(_xlfn.ANCHORARRAY(AEE5)+_xlfn.ANCHORARRAY(LE5))*INDEX(GasCO2[],7,MATCH(TEXT('Topic 3 Calculator'!$D$18,"0"),GasCO2[#Headers],0)) ->  | ARO5: =(_xlfn.ANCHORARRAY(GV5)+_xlfn.ANCHORARRAY(ABH5))*INDEX(ElecCO2[],7,MATCH(TEXT('Topic 3 Calculator'!$D$18,"0"),ElecCO2[#Headers],0))+(_xlfn.ANCHORARRAY(AEF5)+_xlfn.ANCHORARRAY(LF5))*INDEX(GasCO2[],7,MATCH(TEXT('Topic 3 Calculator'!$D$18,"0"),GasCO2[#Headers],0)) ->  | ARP5: =(_xlfn.ANCHORARRAY(GW5)+_xlfn.ANCHORARRAY(ABI5))*INDEX(ElecCO2[],7,MATCH(TEXT('Topic 3 Calculator'!$D$18,"0"),ElecCO2[#Headers],0))+(_xlfn.ANCHORARRAY(AEG5)+_xlfn.ANCHORARRAY(LG5))*INDEX(GasCO2[],7,MATCH(TEXT('Topic 3 Calculator'!$D$18,"0"),GasCO2[#Headers],0)) ->  | ARQ5: =(_xlfn.ANCHORARRAY(GX5)+_xlfn.ANCHORARRAY(ABJ5))*INDEX(ElecCO2[],7,MATCH(TEXT('Topic 3 Calculator'!$D$18,"0"),ElecCO2[#Headers],0))+(_xlfn.ANCHORARRAY(AEH5)+_xlfn.ANCHORARRAY(LH5))*INDEX(GasCO2[],7,MATCH(TEXT('Topic 3 Calculator'!$D$18,"0"),GasCO2[#Headers],0)) ->  | ARR5: =(_xlfn.ANCHORARRAY(GY5)+_xlfn.ANCHORARRAY(ABK5))*INDEX(ElecCO2[],7,MATCH(TEXT('Topic 3 Calculator'!$D$18,"0"),ElecCO2[#Headers],0))+(_xlfn.ANCHORARRAY(AEI5)+_xlfn.ANCHORARRAY(LI5))*INDEX(GasCO2[],7,MATCH(TEXT('Topic 3 Calculator'!$D$18,"0"),GasCO2[#Headers],0)) ->  | ARS5: =(_xlfn.ANCHORARRAY(GZ5)+_xlfn.ANCHORARRAY(ABL5))*INDEX(ElecCO2[],7,MATCH(TEXT('Topic 3 Calculator'!$D$18,"0"),ElecCO2[#Headers],0))+(_xlfn.ANCHORARRAY(AEJ5)+_xlfn.ANCHORARRAY(LJ5))*INDEX(GasCO2[],7,MATCH(TEXT('Topic 3 Calculator'!$D$18,"0"),GasCO2[#Headers],0)) ->  | ART5: =(_xlfn.ANCHORARRAY(FO5)+_xlfn.ANCHORARRAY(AAA5))*INDEX(ElecCO2[],7,MATCH(TEXT(AQH4,"0"),ElecCO2[#Headers],0))+(_xlfn.ANCHORARRAY(ACY5)+_xlfn.ANCHORARRAY(JY5))*INDEX(GasCO2[],7,MATCH(TEXT(AQH4,"0"),GasCO2[#Headers],0)) ->  | ARU5: =(_xlfn.ANCHORARRAY(FP5)+_xlfn.ANCHORARRAY(AAB5))*INDEX(ElecCO2[],7,MATCH(TEXT(AQI4,"0"),ElecCO2[#Headers],0))+(_xlfn.ANCHORARRAY(ACZ5)+_xlfn.ANCHORARRAY(JZ5))*INDEX(GasCO2[],7,MATCH(TEXT(AQI4,"0"),GasCO2[#Headers],0)) ->  | ARV5: =(_xlfn.ANCHORARRAY(FQ5)+_xlfn.ANCHORARRAY(AAC5))*INDEX(ElecCO2[],7,MATCH(TEXT(AQJ4,"0"),ElecCO2[#Headers],0))+(_xlfn.ANCHORARRAY(ADA5)+_xlfn.ANCHORARRAY(KA5))*INDEX(GasCO2[],7,MATCH(TEXT(AQJ4,"0"),GasCO2[#Headers],0)) ->  | ARW5: =(_xlfn.ANCHORARRAY(FR5)+_xlfn.ANCHORARRAY(AAD5))*INDEX(ElecCO2[],7,MATCH(TEXT(AQK4,"0"),ElecCO2[#Headers],0))+(_xlfn.ANCHORARRAY(ADB5)+_xlfn.ANCHORARRAY(KB5))*INDEX(GasCO2[],7,MATCH(TEXT(AQK4,"0"),GasCO2[#Headers],0)) ->  | ARX5: =(_xlfn.ANCHORARRAY(FS5)+_xlfn.ANCHORARRAY(AAE5))*INDEX(ElecCO2[],7,MATCH(TEXT(AQL4,"0"),ElecCO2[#Headers],0))+(_xlfn.ANCHORARRAY(ADC5)+_xlfn.ANCHORARRAY(KC5))*INDEX(GasCO2[],7,MATCH(TEXT(AQL4,"0"),GasCO2[#Headers],0)) ->  | ARY5: =(_xlfn.ANCHORARRAY(FT5)+_xlfn.ANCHORARRAY(AAF5))*INDEX(ElecCO2[],7,MATCH(TEXT(AQM4,"0"),ElecCO2[#Headers],0))+(_xlfn.ANCHORARRAY(ADD5)+_xlfn.ANCHORARRAY(KD5))*INDEX(GasCO2[],7,MATCH(TEXT(AQM4,"0"),GasCO2[#Headers],0)) ->  | ARZ5: =(_xlfn.ANCHORARRAY(FU5)+_xlfn.ANCHORARRAY(AAG5))*INDEX(ElecCO2[],7,MATCH(TEXT(AQN4,"0"),ElecCO2[#Headers],0))+(_xlfn.ANCHORARRAY(ADE5)+_xlfn.ANCHORARRAY(KE5))*INDEX(GasCO2[],7,MATCH(TEXT(AQN4,"0"),GasCO2[#Headers],0)) ->  | ASA5: =(_xlfn.ANCHORARRAY(FV5)+_xlfn.ANCHORARRAY(AAH5))*INDEX(ElecCO2[],7,MATCH(TEXT(AQO4,"0"),ElecCO2[#Headers],0))+(_xlfn.ANCHORARRAY(ADF5)+_xlfn.ANCHORARRAY(KF5))*INDEX(GasCO2[],7,MATCH(TEXT(AQO4,"0"),GasCO2[#Headers],0)) ->  | ASB5: =(_xlfn.ANCHORARRAY(FW5)+_xlfn.ANCHORARRAY(AAI5))*INDEX(ElecCO2[],7,MATCH(TEXT(AQP4,"0"),ElecCO2[#Headers],0))+(_xlfn.ANCHORARRAY(ADG5)+_xlfn.ANCHORARRAY(KG5))*INDEX(GasCO2[],7,MATCH(TEXT(AQP4,"0"),GasCO2[#Headers],0)) ->  | ASC5: =(_xlfn.ANCHORARRAY(FX5)+_xlfn.ANCHORARRAY(AAJ5))*INDEX(ElecCO2[],7,MATCH(TEXT(AQQ4,"0"),ElecCO2[#Headers],0))+(_xlfn.ANCHORARRAY(ADH5)+_xlfn.ANCHORARRAY(KH5))*INDEX(GasCO2[],7,MATCH(TEXT(AQQ4,"0"),GasCO2[#Headers],0)) ->  | ASD5: =(_xlfn.ANCHORARRAY(FY5)+_xlfn.ANCHORARRAY(AAK5))*INDEX(ElecCO2[],7,MATCH(TEXT(AQR4,"0"),ElecCO2[#Headers],0))+(_xlfn.ANCHORARRAY(ADI5)+_xlfn.ANCHORARRAY(KI5))*INDEX(GasCO2[],7,MATCH(TEXT(AQR4,"0"),GasCO2[#Headers],0)) ->  | ASE5: =(_xlfn.ANCHORARRAY(FZ5)+_xlfn.ANCHORARRAY(AAL5))*INDEX(ElecCO2[],7,MATCH(TEXT(AQS4,"0"),ElecCO2[#Headers],0))+(_xlfn.ANCHORARRAY(ADJ5)+_xlfn.ANCHORARRAY(KJ5))*INDEX(GasCO2[],7,MATCH(TEXT(AQS4,"0"),GasCO2[#Headers],0)) ->  | ASF5: =(_xlfn.ANCHORARRAY(GA5)+_xlfn.ANCHORARRAY(AAM5))*INDEX(ElecCO2[],7,MATCH(TEXT(AQT4,"0"),ElecCO2[#Headers],0))+(_xlfn.ANCHORARRAY(ADK5)+_xlfn.ANCHORARRAY(KK5))*INDEX(GasCO2[],7,MATCH(TEXT(AQT4,"0"),GasCO2[#Headers],0)) ->  | ASG5: =(_xlfn.ANCHORARRAY(GB5)+_xlfn.ANCHORARRAY(AAN5))*INDEX(ElecCO2[],7,MATCH(TEXT(AQU4,"0"),ElecCO2[#Headers],0))+(_xlfn.ANCHORARRAY(ADL5)+_xlfn.ANCHORARRAY(KL5))*INDEX(GasCO2[],7,MATCH(TEXT(AQU4,"0"),GasCO2[#Headers],0)) ->  | ASH5: =(_xlfn.ANCHORARRAY(GC5)+_xlfn.ANCHORARRAY(AAO5))*INDEX(ElecCO2[],7,MATCH(TEXT(AQV4,"0"),ElecCO2[#Headers],0))+(_xlfn.ANCHORARRAY(ADM5)+_xlfn.ANCHORARRAY(KM5))*INDEX(GasCO2[],7,MATCH(TEXT(AQV4,"0"),GasCO2[#Headers],0)) ->  | ASI5: =(_xlfn.ANCHORARRAY(GD5)+_xlfn.ANCHORARRAY(AAP5))*INDEX(ElecCO2[],7,MATCH(TEXT(AQW4,"0"),ElecCO2[#Headers],0))+(_xlfn.ANCHORARRAY(ADN5)+_xlfn.ANCHORARRAY(KN5))*INDEX(GasCO2[],7,MATCH(TEXT(AQW4,"0"),GasCO2[#Headers],0)) ->  | ASJ5: =(_xlfn.ANCHORARRAY(GE5)+_xlfn.ANCHORARRAY(AAQ5))*INDEX(ElecCO2[],7,MATCH(TEXT(AQX4,"0"),ElecCO2[#Headers],0))+(_xlfn.ANCHORARRAY(ADO5)+_xlfn.ANCHORARRAY(KO5))*INDEX(GasCO2[],7,MATCH(TEXT(AQX4,"0"),GasCO2[#Headers],0)) ->  | ASK5: =(_xlfn.ANCHORARRAY(GF5)+_xlfn.ANCHORARRAY(AAR5))*INDEX(ElecCO2[],7,MATCH(TEXT(AQY4,"0"),ElecCO2[#Headers],0))+(_xlfn.ANCHORARRAY(ADP5)+_xlfn.ANCHORARRAY(KP5))*INDEX(GasCO2[],7,MATCH(TEXT(AQY4,"0"),GasCO2[#Headers],0)) ->  | ASL5: =(_xlfn.ANCHORARRAY(GG5)+_xlfn.ANCHORARRAY(AAS5))*INDEX(ElecCO2[],7,MATCH(TEXT(AQZ4,"0"),ElecCO2[#Headers],0))+(_xlfn.ANCHORARRAY(ADQ5)+_xlfn.ANCHORARRAY(KQ5))*INDEX(GasCO2[],7,MATCH(TEXT(AQZ4,"0"),GasCO2[#Headers],0)) ->  | ASM5: =(_xlfn.ANCHORARRAY(GH5)+_xlfn.ANCHORARRAY(AAT5))*INDEX(ElecCO2[],7,MATCH(TEXT(ARA4,"0"),ElecCO2[#Headers],0))+(_xlfn.ANCHORARRAY(ADR5)+_xlfn.ANCHORARRAY(KR5))*INDEX(GasCO2[],7,MATCH(TEXT(ARA4,"0"),GasCO2[#Headers],0)) ->  | ASN5: =(_xlfn.ANCHORARRAY(GI5)+_xlfn.ANCHORARRAY(AAU5))*INDEX(ElecCO2[],7,MATCH(TEXT(ARB4,"0"),ElecCO2[#Headers],0))+(_xlfn.ANCHORARRAY(ADS5)+_xlfn.ANCHORARRAY(KS5))*INDEX(GasCO2[],7,MATCH(TEXT(ARB4,"0"),GasCO2[#Headers],0)) ->  | ASO5: =(_xlfn.ANCHORARRAY(GJ5)+_xlfn.ANCHORARRAY(AAV5))*INDEX(ElecCO2[],7,MATCH(TEXT(ARC4,"0"),ElecCO2[#Headers],0))+(_xlfn.ANCHORARRAY(ADT5)+_xlfn.ANCHORARRAY(KT5))*INDEX(GasCO2[],7,MATCH(TEXT(ARC4,"0"),GasCO2[#Headers],0)) ->  | ASP5: =(_xlfn.ANCHORARRAY(GK5)+_xlfn.ANCHORARRAY(AAW5))*INDEX(ElecCO2[],7,MATCH(TEXT(ARD4,"0"),ElecCO2[#Headers],0))+(_xlfn.ANCHORARRAY(ADU5)+_xlfn.ANCHORARRAY(KU5))*INDEX(GasCO2[],7,MATCH(TEXT(ARD4,"0"),GasCO2[#Headers],0)) ->  | ASQ5: =(_xlfn.ANCHORARRAY(GL5)+_xlfn.ANCHORARRAY(AAX5))*INDEX(ElecCO2[],7,MATCH(TEXT(ARE4,"0"),ElecCO2[#Headers],0))+(_xlfn.ANCHORARRAY(ADV5)+_xlfn.ANCHORARRAY(KV5))*INDEX(GasCO2[],7,MATCH(TEXT(ARE4,"0"),GasCO2[#Headers],0)) ->  | ASR5: =(_xlfn.ANCHORARRAY(GM5)+_xlfn.ANCHORARRAY(AAY5))*INDEX(ElecCO2[],7,MATCH(TEXT(ARF4,"0"),ElecCO2[#Headers],0))+(_xlfn.ANCHORARRAY(ADW5)+_xlfn.ANCHORARRAY(KW5))*INDEX(GasCO2[],7,MATCH(TEXT(ARF4,"0"),GasCO2[#Headers],0)) ->  | ASS5: =(_xlfn.ANCHORARRAY(GN5)+_xlfn.ANCHORARRAY(AAZ5))*INDEX(ElecCO2[],7,MATCH(TEXT(ARG4,"0"),ElecCO2[#Headers],0))+(_xlfn.ANCHORARRAY(ADX5)+_xlfn.ANCHORARRAY(KX5))*INDEX(GasCO2[],7,MATCH(TEXT(ARG4,"0"),GasCO2[#Headers],0)) ->  | AST5: =(_xlfn.ANCHORARRAY(GO5)+_xlfn.ANCHORARRAY(ABA5))*INDEX(ElecCO2[],7,MATCH(TEXT(ARH4,"0"),ElecCO2[#Headers],0))+(_xlfn.ANCHORARRAY(ADY5)+_xlfn.ANCHORARRAY(KY5))*INDEX(GasCO2[],7,MATCH(TEXT(ARH4,"0"),GasCO2[#Headers],0)) ->  | ASU5: =(_xlfn.ANCHORARRAY(GP5)+_xlfn.ANCHORARRAY(ABB5))*INDEX(ElecCO2[],7,MATCH(TEXT(ARI4,"0"),ElecCO2[#Headers],0))+(_xlfn.ANCHORARRAY(ADZ5)+_xlfn.ANCHORARRAY(KZ5))*INDEX(GasCO2[],7,MATCH(TEXT(ARI4,"0"),GasCO2[#Headers],0)) ->  | ASV5: =(_xlfn.ANCHORARRAY(GQ5)+_xlfn.ANCHORARRAY(ABC5))*INDEX(ElecCO2[],7,MATCH(TEXT(ARJ4,"0"),ElecCO2[#Headers],0))+(_xlfn.ANCHORARRAY(AEA5)+_xlfn.ANCHORARRAY(LA5))*INDEX(GasCO2[],7,MATCH(TEXT(ARJ4,"0"),GasCO2[#Headers],0)) ->  | ASW5: =(_xlfn.ANCHORARRAY(GR5)+_xlfn.ANCHORARRAY(ABD5))*INDEX(ElecCO2[],7,MATCH(TEXT(ARK4,"0"),ElecCO2[#Headers],0))+(_xlfn.ANCHORARRAY(AEB5)+_xlfn.ANCHORARRAY(LB5))*INDEX(GasCO2[],7,MATCH(TEXT(ARK4,"0"),GasCO2[#Headers],0)) ->  | ASX5: =(_xlfn.ANCHORARRAY(GS5)+_xlfn.ANCHORARRAY(ABE5))*INDEX(ElecCO2[],7,MATCH(TEXT(ARL4,"0"),ElecCO2[#Headers],0))+(_xlfn.ANCHORARRAY(AEC5)+_xlfn.ANCHORARRAY(LC5))*INDEX(GasCO2[],7,MATCH(TEXT(ARL4,"0"),GasCO2[#Headers],0)) ->  | ASY5: =(_xlfn.ANCHORARRAY(GT5)+_xlfn.ANCHORARRAY(ABF5))*INDEX(ElecCO2[],7,MATCH(TEXT(ARM4,"0"),ElecCO2[#Headers],0))+(_xlfn.ANCHORARRAY(AED5)+_xlfn.ANCHORARRAY(LD5))*INDEX(GasCO2[],7,MATCH(TEXT(ARM4,"0"),GasCO2[#Headers],0)) ->  | ASZ5: =(_xlfn.ANCHORARRAY(GU5)+_xlfn.ANCHORARRAY(ABG5))*INDEX(ElecCO2[],7,MATCH(TEXT(ARN4,"0"),ElecCO2[#Headers],0))+(_xlfn.ANCHORARRAY(AEE5)+_xlfn.ANCHORARRAY(LE5))*INDEX(GasCO2[],7,MATCH(TEXT(ARN4,"0"),GasCO2[#Headers],0)) ->  | ATA5: =(_xlfn.ANCHORARRAY(GV5)+_xlfn.ANCHORARRAY(ABH5))*INDEX(ElecCO2[],7,MATCH(TEXT(ARO4,"0"),ElecCO2[#Headers],0))+(_xlfn.ANCHORARRAY(AEF5)+_xlfn.ANCHORARRAY(LF5))*INDEX(GasCO2[],7,MATCH(TEXT(ARO4,"0"),GasCO2[#Headers],0)) ->  | ATB5: =(_xlfn.ANCHORARRAY(GW5)+_xlfn.ANCHORARRAY(ABI5))*INDEX(ElecCO2[],7,MATCH(TEXT(ARP4,"0"),ElecCO2[#Headers],0))+(_xlfn.ANCHORARRAY(AEG5)+_xlfn.ANCHORARRAY(LG5))*INDEX(GasCO2[],7,MATCH(TEXT(ARP4,"0"),GasCO2[#Headers],0)) ->  | ATC5: =(_xlfn.ANCHORARRAY(GX5)+_xlfn.ANCHORARRAY(ABJ5))*INDEX(ElecCO2[],7,MATCH(TEXT(ARQ4,"0"),ElecCO2[#Headers],0))+(_xlfn.ANCHORARRAY(AEH5)+_xlfn.ANCHORARRAY(LH5))*INDEX(GasCO2[],7,MATCH(TEXT(ARQ4,"0"),GasCO2[#Headers],0)) ->  | ATD5: =(_xlfn.ANCHORARRAY(GY5)+_xlfn.ANCHORARRAY(ABK5))*INDEX(ElecCO2[],7,MATCH(TEXT(ARR4,"0"),ElecCO2[#Headers],0))+(_xlfn.ANCHORARRAY(AEI5)+_xlfn.ANCHORARRAY(LI5))*INDEX(GasCO2[],7,MATCH(TEXT(ARR4,"0"),GasCO2[#Headers],0)) ->  | ATE5: =(_xlfn.ANCHORARRAY(GZ5)+_xlfn.ANCHORARRAY(ABL5))*INDEX(ElecCO2[],7,MATCH(TEXT(ARS4,"0"),ElecCO2[#Headers],0))+(_xlfn.ANCHORARRAY(AEJ5)+_xlfn.ANCHORARRAY(LJ5))*INDEX(GasCO2[],7,MATCH(TEXT(ARS4,"0"),GasCO2[#Headers],0)) ->  | ATF5: =_xlfn.ANCHORARRAY(ART5)*INDEX(BPS_EUIFactors[],2,MATCH(TEXT(ATF4,"0"),BPS_EUIFactors[#Headers],0)) ->  | ATG5: =_xlfn.ANCHORARRAY(ARU5)*INDEX(BPS_EUIFactors[],2,MATCH(TEXT(ATG4,"0"),BPS_EUIFactors[#Headers],0)) ->  | ATH5: =_xlfn.ANCHORARRAY(ARV5)*INDEX(BPS_EUIFactors[],2,MATCH(TEXT(ATH4,"0"),BPS_EUIFactors[#Headers],0)) ->  | ATI5: =_xlfn.ANCHORARRAY(ARW5)*INDEX(BPS_EUIFactors[],2,MATCH(TEXT(ATI4,"0"),BPS_EUIFactors[#Headers],0)) ->  | ATJ5: =_xlfn.ANCHORARRAY(ARX5)*INDEX(BPS_EUIFactors[],2,MATCH(TEXT(ATJ4,"0"),BPS_EUIFactors[#Headers],0)) ->  | ATK5: =_xlfn.ANCHORARRAY(ARY5)*INDEX(BPS_EUIFactors[],2,MATCH(TEXT(ATK4,"0"),BPS_EUIFactors[#Headers],0)) ->  | ATL5: =_xlfn.ANCHORARRAY(ARZ5)*INDEX(BPS_EUIFactors[],2,MATCH(TEXT(ATL4,"0"),BPS_EUIFactors[#Headers],0)) ->  | ATM5: =_xlfn.ANCHORARRAY(ASA5)*INDEX(BPS_EUIFactors[],2,MATCH(TEXT(ATM4,"0"),BPS_EUIFactors[#Headers],0)) ->  | ATN5: =_xlfn.ANCHORARRAY(ASB5)*INDEX(BPS_EUIFactors[],2,MATCH(TEXT(ATN4,"0"),BPS_EUIFactors[#Headers],0)) ->  | ATO5: =_xlfn.ANCHORARRAY(ASC5)*INDEX(BPS_EUIFactors[],2,MATCH(TEXT(ATO4,"0"),BPS_EUIFactors[#Headers],0)) ->  | ATP5: =_xlfn.ANCHORARRAY(ASD5)*INDEX(BPS_EUIFactors[],2,MATCH(TEXT(ATP4,"0"),BPS_EUIFactors[#Headers],0)) ->  | ATQ5: =_xlfn.ANCHORARRAY(ASE5)*INDEX(BPS_EUIFactors[],2,MATCH(TEXT(ATQ4,"0"),BPS_EUIFactors[#Headers],0)) ->  | ATR5: =_xlfn.ANCHORARRAY(ASF5)*INDEX(BPS_EUIFactors[],2,MATCH(TEXT(ATR4,"0"),BPS_EUIFactors[#Headers],0)) ->  | ATS5: =_xlfn.ANCHORARRAY(ASG5)*INDEX(BPS_EUIFactors[],2,MATCH(TEXT(ATS4,"0"),BPS_EUIFactors[#Headers],0)) ->  | ATT5: =_xlfn.ANCHORARRAY(ASH5)*INDEX(BPS_EUIFactors[],2,MATCH(TEXT(ATT4,"0"),BPS_EUIFactors[#Headers],0)) ->  | ATU5: =_xlfn.ANCHORARRAY(ASI5)*INDEX(BPS_EUIFactors[],2,MATCH(TEXT(ATU4,"0"),BPS_EUIFactors[#Headers],0)) ->  | ATV5: =_xlfn.ANCHORARRAY(ASJ5)*INDEX(BPS_EUIFactors[],2,MATCH(TEXT(ATV4,"0"),BPS_EUIFactors[#Headers],0)) ->  | ATW5: =_xlfn.ANCHORARRAY(ASK5)*INDEX(BPS_EUIFactors[],2,MATCH(TEXT(ATW4,"0"),BPS_EUIFactors[#Headers],0)) ->  | ATX5: =_xlfn.ANCHORARRAY(ASL5)*INDEX(BPS_EUIFactors[],2,MATCH(TEXT(ATX4,"0"),BPS_EUIFactors[#Headers],0)) ->  | ATY5: =_xlfn.ANCHORARRAY(ASM5)*INDEX(BPS_EUIFactors[],2,MATCH(TEXT(ATY4,"0"),BPS_EUIFactors[#Headers],0)) ->  | ATZ5: =_xlfn.ANCHORARRAY(ASN5)*INDEX(BPS_EUIFactors[],2,MATCH(TEXT(ATZ4,"0"),BPS_EUIFactors[#Headers],0)) ->  | AUA5: =_xlfn.ANCHORARRAY(ASO5)*INDEX(BPS_EUIFactors[],2,MATCH(TEXT(AUA4,"0"),BPS_EUIFactors[#Headers],0)) ->  | AUB5: =_xlfn.ANCHORARRAY(ASP5)*INDEX(BPS_EUIFactors[],2,MATCH(TEXT(AUB4,"0"),BPS_EUIFactors[#Headers],0)) ->  | AUC5: =_xlfn.ANCHORARRAY(ASQ5)*INDEX(BPS_EUIFactors[],2,MATCH(TEXT(AUC4,"0"),BPS_EUIFactors[#Headers],0)) ->  | AUD5: =_xlfn.ANCHORARRAY(ASR5)*INDEX(BPS_EUIFactors[],2,MATCH(TEXT(AUD4,"0"),BPS_EUIFactors[#Headers],0)) ->  | AUE5: =_xlfn.ANCHORARRAY(ASS5)*INDEX(BPS_EUIFactors[],2,MATCH(TEXT(AUE4,"0"),BPS_EUIFactors[#Headers],0)) ->  | AUF5: =_xlfn.ANCHORARRAY(AST5)*INDEX(BPS_EUIFactors[],2,MATCH(TEXT(AUF4,"0"),BPS_EUIFactors[#Headers],0)) ->  | AUG5: =_xlfn.ANCHORARRAY(ASU5)*INDEX(BPS_EUIFactors[],2,MATCH(TEXT(AUG4,"0"),BPS_EUIFactors[#Headers],0)) ->  | AUH5: =_xlfn.ANCHORARRAY(ASV5)*INDEX(BPS_EUIFactors[],2,MATCH(TEXT(AUH4,"0"),BPS_EUIFactors[#Headers],0)) ->  | AUI5: =_xlfn.ANCHORARRAY(ASW5)*INDEX(BPS_EUIFactors[],2,MATCH(TEXT(AUI4,"0"),BPS_EUIFactors[#Headers],0)) ->  | AUJ5: =_xlfn.ANCHORARRAY(ASX5)*INDEX(BPS_EUIFactors[],2,MATCH(TEXT(AUJ4,"0"),BPS_EUIFactors[#Headers],0)) ->  | AUK5: =_xlfn.ANCHORARRAY(ASY5)*INDEX(BPS_EUIFactors[],2,MATCH(TEXT(AUK4,"0"),BPS_EUIFactors[#Headers],0)) ->  | AUL5: =_xlfn.ANCHORARRAY(ASZ5)*INDEX(BPS_EUIFactors[],2,MATCH(TEXT(AUL4,"0"),BPS_EUIFactors[#Headers],0)) ->  | AUM5: =_xlfn.ANCHORARRAY(ATA5)*INDEX(BPS_EUIFactors[],2,MATCH(TEXT(AUM4,"0"),BPS_EUIFactors[#Headers],0)) ->  | AUN5: =_xlfn.ANCHORARRAY(ATB5)*INDEX(BPS_EUIFactors[],2,MATCH(TEXT(AUN4,"0"),BPS_EUIFactors[#Headers],0)) ->  | AUO5: =_xlfn.ANCHORARRAY(ATC5)*INDEX(BPS_EUIFactors[],2,MATCH(TEXT(AUO4,"0"),BPS_EUIFactors[#Headers],0)) ->  | AUP5: =_xlfn.ANCHORARRAY(ATD5)*INDEX(BPS_EUIFactors[],2,MATCH(TEXT(AUP4,"0"),BPS_EUIFactors[#Headers],0)) ->  | AUQ5: =_xlfn.ANCHORARRAY(ATE5)*INDEX(BPS_EUIFactors[],2,MATCH(TEXT(AUQ4,"0"),BPS_EUIFactors[#Headers],0)) ->  | AUR5: =(_xlfn.ANCHORARRAY(ART5)-_xlfn.ANCHORARRAY(ATF5))/(Emissions_Lookup_andCalc!$A$28*INDEX(ElecCO2[],7,MATCH(TEXT(EnergyCalc!AUR4,"0"),ElecCO2[#Headers],0))+Emissions_Lookup_andCalc!$A$29*INDEX(GasCO2[],7,MATCH(TEXT(EnergyCalc!AUR4,"0"),GasCO2[#Headers],0))) ->  | AUS5: =(_xlfn.ANCHORARRAY(ARU5)-_xlfn.ANCHORARRAY(ATG5))/(Emissions_Lookup_andCalc!$A$28*INDEX(ElecCO2[],7,MATCH(TEXT(EnergyCalc!AUS4,"0"),ElecCO2[#Headers],0))+Emissions_Lookup_andCalc!$A$29*INDEX(GasCO2[],7,MATCH(TEXT(EnergyCalc!AUS4,"0"),GasCO2[#Headers],0))) ->  | AUT5: =(_xlfn.ANCHORARRAY(ARV5)-_xlfn.ANCHORARRAY(ATH5))/(Emissions_Lookup_andCalc!$A$28*INDEX(ElecCO2[],7,MATCH(TEXT(EnergyCalc!AUT4,"0"),ElecCO2[#Headers],0))+Emissions_Lookup_andCalc!$A$29*INDEX(GasCO2[],7,MATCH(TEXT(EnergyCalc!AUT4,"0"),GasCO2[#Headers],0))) ->  | AUU5: =(_xlfn.ANCHORARRAY(ARW5)-_xlfn.ANCHORARRAY(ATI5))/(Emissions_Lookup_andCalc!$A$28*INDEX(ElecCO2[],7,MATCH(TEXT(EnergyCalc!AUU4,"0"),ElecCO2[#Headers],0))+Emissions_Lookup_andCalc!$A$29*INDEX(GasCO2[],7,MATCH(TEXT(EnergyCalc!AUU4,"0"),GasCO2[#Headers],0))) ->  | AUV5: =(_xlfn.ANCHORARRAY(ARX5)-_xlfn.ANCHORARRAY(ATJ5))/(Emissions_Lookup_andCalc!$A$28*INDEX(ElecCO2[],7,MATCH(TEXT(EnergyCalc!AUV4,"0"),ElecCO2[#Headers],0))+Emissions_Lookup_andCalc!$A$29*INDEX(GasCO2[],7,MATCH(TEXT(EnergyCalc!AUV4,"0"),GasCO2[#Headers],0))) ->  | AUW5: =(_xlfn.ANCHORARRAY(ARY5)-_xlfn.ANCHORARRAY(ATK5))/(Emissions_Lookup_andCalc!$A$28*INDEX(ElecCO2[],7,MATCH(TEXT(EnergyCalc!AUW4,"0"),ElecCO2[#Headers],0))+Emissions_Lookup_andCalc!$A$29*INDEX(GasCO2[],7,MATCH(TEXT(EnergyCalc!AUW4,"0"),GasCO2[#Headers],0))) ->  | AUX5: =(_xlfn.ANCHORARRAY(ARZ5)-_xlfn.ANCHORARRAY(ATL5))/(Emissions_Lookup_andCalc!$A$28*INDEX(ElecCO2[],7,MATCH(TEXT(EnergyCalc!AUX4,"0"),ElecCO2[#Headers],0))+Emissions_Lookup_andCalc!$A$29*INDEX(GasCO2[],7,MATCH(TEXT(EnergyCalc!AUX4,"0"),GasCO2[#Headers],0))) ->  | AUY5: =(_xlfn.ANCHORARRAY(ASA5)-_xlfn.ANCHORARRAY(ATM5))/(Emissions_Lookup_andCalc!$A$28*INDEX(ElecCO2[],7,MATCH(TEXT(EnergyCalc!AUY4,"0"),ElecCO2[#Headers],0))+Emissions_Lookup_andCalc!$A$29*INDEX(GasCO2[],7,MATCH(TEXT(EnergyCalc!AUY4,"0"),GasCO2[#Headers],0))) ->  | AUZ5: =(_xlfn.ANCHORARRAY(ASB5)-_xlfn.ANCHORARRAY(ATN5))/(Emissions_Lookup_andCalc!$A$28*INDEX(ElecCO2[],7,MATCH(TEXT(EnergyCalc!AUZ4,"0"),ElecCO2[#Headers],0))+Emissions_Lookup_andCalc!$A$29*INDEX(GasCO2[],7,MATCH(TEXT(EnergyCalc!AUZ4,"0"),GasCO2[#Headers],0))) ->  | AVA5: =(_xlfn.ANCHORARRAY(ASC5)-_xlfn.ANCHORARRAY(ATO5))/(Emissions_Lookup_andCalc!$A$28*INDEX(ElecCO2[],7,MATCH(TEXT(EnergyCalc!AVA4,"0"),ElecCO2[#Headers],0))+Emissions_Lookup_andCalc!$A$29*INDEX(GasCO2[],7,MATCH(TEXT(EnergyCalc!AVA4,"0"),GasCO2[#Headers],0))) ->  | AVB5: =(_xlfn.ANCHORARRAY(ASD5)-_xlfn.ANCHORARRAY(ATP5))/(Emissions_Lookup_andCalc!$A$28*INDEX(ElecCO2[],7,MATCH(TEXT(EnergyCalc!AVB4,"0"),ElecCO2[#Headers],0))+Emissions_Lookup_andCalc!$A$29*INDEX(GasCO2[],7,MATCH(TEXT(EnergyCalc!AVB4,"0"),GasCO2[#Headers],0))) ->  | AVC5: =(_xlfn.ANCHORARRAY(ASE5)-_xlfn.ANCHORARRAY(ATQ5))/(Emissions_Lookup_andCalc!$A$28*INDEX(ElecCO2[],7,MATCH(TEXT(EnergyCalc!AVC4,"0"),ElecCO2[#Headers],0))+Emissions_Lookup_andCalc!$A$29*INDEX(GasCO2[],7,MATCH(TEXT(EnergyCalc!AVC4,"0"),GasCO2[#Headers],0))) ->  | AVD5: =(_xlfn.ANCHORARRAY(ASF5)-_xlfn.ANCHORARRAY(ATR5))/(Emissions_Lookup_andCalc!$A$28*INDEX(ElecCO2[],7,MATCH(TEXT(EnergyCalc!AVD4,"0"),ElecCO2[#Headers],0))+Emissions_Lookup_andCalc!$A$29*INDEX(GasCO2[],7,MATCH(TEXT(EnergyCalc!AVD4,"0"),GasCO2[#Headers],0))) ->  | AVE5: =(_xlfn.ANCHORARRAY(ASG5)-_xlfn.ANCHORARRAY(ATS5))/(Emissions_Lookup_andCalc!$A$28*INDEX(ElecCO2[],7,MATCH(TEXT(EnergyCalc!AVE4,"0"),ElecCO2[#Headers],0))+Emissions_Lookup_andCalc!$A$29*INDEX(GasCO2[],7,MATCH(TEXT(EnergyCalc!AVE4,"0"),GasCO2[#Headers],0))) ->  | AVF5: =(_xlfn.ANCHORARRAY(ASH5)-_xlfn.ANCHORARRAY(ATT5))/(Emissions_Lookup_andCalc!$A$28*INDEX(ElecCO2[],7,MATCH(TEXT(EnergyCalc!AVF4,"0"),ElecCO2[#Headers],0))+Emissions_Lookup_andCalc!$A$29*INDEX(GasCO2[],7,MATCH(TEXT(EnergyCalc!AVF4,"0"),GasCO2[#Headers],0))) ->  | AVG5: =(_xlfn.ANCHORARRAY(ASI5)-_xlfn.ANCHORARRAY(ATU5))/(Emissions_Lookup_andCalc!$A$28*INDEX(ElecCO2[],7,MATCH(TEXT(EnergyCalc!AVG4,"0"),ElecCO2[#Headers],0))+Emissions_Lookup_andCalc!$A$29*INDEX(GasCO2[],7,MATCH(TEXT(EnergyCalc!AVG4,"0"),GasCO2[#Headers],0))) ->  | AVH5: =(_xlfn.ANCHORARRAY(ASJ5)-_xlfn.ANCHORARRAY(ATV5))/(Emissions_Lookup_andCalc!$A$28*INDEX(ElecCO2[],7,MATCH(TEXT(EnergyCalc!AVH4,"0"),ElecCO2[#Headers],0))+Emissions_Lookup_andCalc!$A$29*INDEX(GasCO2[],7,MATCH(TEXT(EnergyCalc!AVH4,"0"),GasCO2[#Headers],0))) ->  | AVI5: =(_xlfn.ANCHORARRAY(ASK5)-_xlfn.ANCHORARRAY(ATW5))/(Emissions_Lookup_andCalc!$A$28*INDEX(ElecCO2[],7,MATCH(TEXT(EnergyCalc!AVI4,"0"),ElecCO2[#Headers],0))+Emissions_Lookup_andCalc!$A$29*INDEX(GasCO2[],7,MATCH(TEXT(EnergyCalc!AVI4,"0"),GasCO2[#Headers],0))) ->  | AVJ5: =(_xlfn.ANCHORARRAY(ASL5)-_xlfn.ANCHORARRAY(ATX5))/(Emissions_Lookup_andCalc!$A$28*INDEX(ElecCO2[],7,MATCH(TEXT(EnergyCalc!AVJ4,"0"),ElecCO2[#Headers],0))+Emissions_Lookup_andCalc!$A$29*INDEX(GasCO2[],7,MATCH(TEXT(EnergyCalc!AVJ4,"0"),GasCO2[#Headers],0))) ->  | AVK5: =(_xlfn.ANCHORARRAY(ASM5)-_xlfn.ANCHORARRAY(ATY5))/(Emissions_Lookup_andCalc!$A$28*INDEX(ElecCO2[],7,MATCH(TEXT(EnergyCalc!AVK4,"0"),ElecCO2[#Headers],0))+Emissions_Lookup_andCalc!$A$29*INDEX(GasCO2[],7,MATCH(TEXT(EnergyCalc!AVK4,"0"),GasCO2[#Headers],0))) ->  | AVL5: =(_xlfn.ANCHORARRAY(ASN5)-_xlfn.ANCHORARRAY(ATZ5))/(Emissions_Lookup_andCalc!$A$28*INDEX(ElecCO2[],7,MATCH(TEXT(EnergyCalc!AVL4,"0"),ElecCO2[#Headers],0))+Emissions_Lookup_andCalc!$A$29*INDEX(GasCO2[],7,MATCH(TEXT(EnergyCalc!AVL4,"0"),GasCO2[#Headers],0))) ->  | AVM5: =(_xlfn.ANCHORARRAY(ASO5)-_xlfn.ANCHORARRAY(AUA5))/(Emissions_Lookup_andCalc!$A$28*INDEX(ElecCO2[],7,MATCH(TEXT(EnergyCalc!AVM4,"0"),ElecCO2[#Headers],0))+Emissions_Lookup_andCalc!$A$29*INDEX(GasCO2[],7,MATCH(TEXT(EnergyCalc!AVM4,"0"),GasCO2[#Headers],0))) ->  | AVN5: =(_xlfn.ANCHORARRAY(ASP5)-_xlfn.ANCHORARRAY(AUB5))/(Emissions_Lookup_andCalc!$A$28*INDEX(ElecCO2[],7,MATCH(TEXT(EnergyCalc!AVN4,"0"),ElecCO2[#Headers],0))+Emissions_Lookup_andCalc!$A$29*INDEX(GasCO2[],7,MATCH(TEXT(EnergyCalc!AVN4,"0"),GasCO2[#Headers],0))) ->  | AVO5: =(_xlfn.ANCHORARRAY(ASQ5)-_xlfn.ANCHORARRAY(AUC5))/(Emissions_Lookup_andCalc!$A$28*INDEX(ElecCO2[],7,MATCH(TEXT(EnergyCalc!AVO4,"0"),ElecCO2[#Headers],0))+Emissions_Lookup_andCalc!$A$29*INDEX(GasCO2[],7,MATCH(TEXT(EnergyCalc!AVO4,"0"),GasCO2[#Headers],0))) ->  | AVP5: =(_xlfn.ANCHORARRAY(ASR5)-_xlfn.ANCHORARRAY(AUD5))/(Emissions_Lookup_andCalc!$A$28*INDEX(ElecCO2[],7,MATCH(TEXT(EnergyCalc!AVP4,"0"),ElecCO2[#Headers],0))+Emissions_Lookup_andCalc!$A$29*INDEX(GasCO2[],7,MATCH(TEXT(EnergyCalc!AVP4,"0"),GasCO2[#Headers],0))) ->  | AVQ5: =(_xlfn.ANCHORARRAY(ASS5)-_xlfn.ANCHORARRAY(AUE5))/(Emissions_Lookup_andCalc!$A$28*INDEX(ElecCO2[],7,MATCH(TEXT(EnergyCalc!AVQ4,"0"),ElecCO2[#Headers],0))+Emissions_Lookup_andCalc!$A$29*INDEX(GasCO2[],7,MATCH(TEXT(EnergyCalc!AVQ4,"0"),GasCO2[#Headers],0))) ->  | AVR5: =(_xlfn.ANCHORARRAY(AST5)-_xlfn.ANCHORARRAY(AUF5))/(Emissions_Lookup_andCalc!$A$28*INDEX(ElecCO2[],7,MATCH(TEXT(EnergyCalc!AVR4,"0"),ElecCO2[#Headers],0))+Emissions_Lookup_andCalc!$A$29*INDEX(GasCO2[],7,MATCH(TEXT(EnergyCalc!AVR4,"0"),GasCO2[#Headers],0))) ->  | AVS5: =(_xlfn.ANCHORARRAY(ASU5)-_xlfn.ANCHORARRAY(AUG5))/(Emissions_Lookup_andCalc!$A$28*INDEX(ElecCO2[],7,MATCH(TEXT(EnergyCalc!AVS4,"0"),ElecCO2[#Headers],0))+Emissions_Lookup_andCalc!$A$29*INDEX(GasCO2[],7,MATCH(TEXT(EnergyCalc!AVS4,"0"),GasCO2[#Headers],0))) ->  | AVT5: =(_xlfn.ANCHORARRAY(ASV5)-_xlfn.ANCHORARRAY(AUH5))/(Emissions_Lookup_andCalc!$A$28*INDEX(ElecCO2[],7,MATCH(TEXT(EnergyCalc!AVT4,"0"),ElecCO2[#Headers],0))+Emissions_Lookup_andCalc!$A$29*INDEX(GasCO2[],7,MATCH(TEXT(EnergyCalc!AVT4,"0"),GasCO2[#Headers],0))) ->  | AVU5: =(_xlfn.ANCHORARRAY(ASW5)-_xlfn.ANCHORARRAY(AUI5))/(Emissions_Lookup_andCalc!$A$28*INDEX(ElecCO2[],7,MATCH(TEXT(EnergyCalc!AVU4,"0"),ElecCO2[#Headers],0))+Emissions_Lookup_andCalc!$A$29*INDEX(GasCO2[],7,MATCH(TEXT(EnergyCalc!AVU4,"0"),GasCO2[#Headers],0))) ->  | AVV5: =(_xlfn.ANCHORARRAY(ASX5)-_xlfn.ANCHORARRAY(AUJ5))/(Emissions_Lookup_andCalc!$A$28*INDEX(ElecCO2[],7,MATCH(TEXT(EnergyCalc!AVV4,"0"),ElecCO2[#Headers],0))+Emissions_Lookup_andCalc!$A$29*INDEX(GasCO2[],7,MATCH(TEXT(EnergyCalc!AVV4,"0"),GasCO2[#Headers],0))) ->  | AVW5: =(_xlfn.ANCHORARRAY(ASY5)-_xlfn.ANCHORARRAY(AUK5))/(Emissions_Lookup_andCalc!$A$28*INDEX(ElecCO2[],7,MATCH(TEXT(EnergyCalc!AVW4,"0"),ElecCO2[#Headers],0))+Emissions_Lookup_andCalc!$A$29*INDEX(GasCO2[],7,MATCH(TEXT(EnergyCalc!AVW4,"0"),GasCO2[#Headers],0))) ->  | AVX5: =(_xlfn.ANCHORARRAY(ASZ5)-_xlfn.ANCHORARRAY(AUL5))/(Emissions_Lookup_andCalc!$A$28*INDEX(ElecCO2[],7,MATCH(TEXT(EnergyCalc!AVX4,"0"),ElecCO2[#Headers],0))+Emissions_Lookup_andCalc!$A$29*INDEX(GasCO2[],7,MATCH(TEXT(EnergyCalc!AVX4,"0"),GasCO2[#Headers],0))) ->  | AVY5: =(_xlfn.ANCHORARRAY(ATA5)-_xlfn.ANCHORARRAY(AUM5))/(Emissions_Lookup_andCalc!$A$28*INDEX(ElecCO2[],7,MATCH(TEXT(EnergyCalc!AVY4,"0"),ElecCO2[#Headers],0))+Emissions_Lookup_andCalc!$A$29*INDEX(GasCO2[],7,MATCH(TEXT(EnergyCalc!AVY4,"0"),GasCO2[#Headers],0))) ->  | AVZ5: =(_xlfn.ANCHORARRAY(ATB5)-_xlfn.ANCHORARRAY(AUN5))/(Emissions_Lookup_andCalc!$A$28*INDEX(ElecCO2[],7,MATCH(TEXT(EnergyCalc!AVZ4,"0"),ElecCO2[#Headers],0))+Emissions_Lookup_andCalc!$A$29*INDEX(GasCO2[],7,MATCH(TEXT(EnergyCalc!AVZ4,"0"),GasCO2[#Headers],0))) ->  | AWA5: =(_xlfn.ANCHORARRAY(ATC5)-_xlfn.ANCHORARRAY(AUO5))/(Emissions_Lookup_andCalc!$A$28*INDEX(ElecCO2[],7,MATCH(TEXT(EnergyCalc!AWA4,"0"),ElecCO2[#Headers],0))+Emissions_Lookup_andCalc!$A$29*INDEX(GasCO2[],7,MATCH(TEXT(EnergyCalc!AWA4,"0"),GasCO2[#Headers],0))) ->  | AWB5: =(_xlfn.ANCHORARRAY(ATD5)-_xlfn.ANCHORARRAY(AUP5))/(Emissions_Lookup_andCalc!$A$28*INDEX(ElecCO2[],7,MATCH(TEXT(EnergyCalc!AWB4,"0"),ElecCO2[#Headers],0))+Emissions_Lookup_andCalc!$A$29*INDEX(GasCO2[],7,MATCH(TEXT(EnergyCalc!AWB4,"0"),GasCO2[#Headers],0))) ->  | AWC5: =(_xlfn.ANCHORARRAY(ATE5)-_xlfn.ANCHORARRAY(AUQ5))/(Emissions_Lookup_andCalc!$A$28*INDEX(ElecCO2[],7,MATCH(TEXT(EnergyCalc!AWC4,"0"),ElecCO2[#Headers],0))+Emissions_Lookup_andCalc!$A$29*INDEX(GasCO2[],7,MATCH(TEXT(EnergyCalc!AWC4,"0"),GasCO2[#Headers],0))) ->  | AWD5: =IFERROR(((_xlfn.ANCHORARRAY(JY5)+_xlfn.ANCHORARRAY(ACY5))-(_xlfn.ANCHORARRAY(PU5)+_xlfn.ANCHORARRAY(ANJ5)))/10^9,0) -> 0 | AWE5: =IFERROR(((_xlfn.ANCHORARRAY(JZ5)+_xlfn.ANCHORARRAY(ACZ5))-(_xlfn.ANCHORARRAY(PV5)+_xlfn.ANCHORARRAY(ANK5)))/10^9,0) -> 0 | AWF5: =IFERROR(((_xlfn.ANCHORARRAY(KA5)+_xlfn.ANCHORARRAY(ADA5))-(_xlfn.ANCHORARRAY(PW5)+_xlfn.ANCHORARRAY(ANL5)))/10^9,0) -> 0 | AWG5: =IFERROR(((_xlfn.ANCHORARRAY(KB5)+_xlfn.ANCHORARRAY(ADB5))-(_xlfn.ANCHORARRAY(PX5)+_xlfn.ANCHORARRAY(ANM5)))/10^9,0) -> 0 | AWH5: =IFERROR(((_xlfn.ANCHORARRAY(KC5)+_xlfn.ANCHORARRAY(ADC5))-(_xlfn.ANCHORARRAY(PY5)+_xlfn.ANCHORARRAY(ANN5)))/10^9,0) -> 0 | AWI5: =IFERROR(((_xlfn.ANCHORARRAY(KD5)+_xlfn.ANCHORARRAY(ADD5))-(_xlfn.ANCHORARRAY(PZ5)+_xlfn.ANCHORARRAY(ANO5)))/10^9,0) -> 0 | AWJ5: =IFERROR(((_xlfn.ANCHORARRAY(KE5)+_xlfn.ANCHORARRAY(ADE5))-(_xlfn.ANCHORARRAY(QA5)+_xlfn.ANCHORARRAY(ANP5)))/10^9,0) -> 0 | AWK5: =IFERROR(((_xlfn.ANCHORARRAY(KF5)+_xlfn.ANCHORARRAY(ADF5))-(_xlfn.ANCHORARRAY(QB5)+_xlfn.ANCHORARRAY(ANQ5)))/10^9,0) -> 0 | AWL5: =IFERROR(((_xlfn.ANCHORARRAY(KG5)+_xlfn.ANCHORARRAY(ADG5))-(_xlfn.ANCHORARRAY(QC5)+_xlfn.ANCHORARRAY(ANR5)))/10^9,0) -> 0 | AWM5: =IFERROR(((_xlfn.ANCHORARRAY(KH5)+_xlfn.ANCHORARRAY(ADH5))-(_xlfn.ANCHORARRAY(QD5)+_xlfn.ANCHORARRAY(ANS5)))/10^9,0) -> 0 | AWN5: =IFERROR(((_xlfn.ANCHORARRAY(KI5)+_xlfn.ANCHORARRAY(ADI5))-(_xlfn.ANCHORARRAY(QE5)+_xlfn.ANCHORARRAY(ANT5)))/10^9,0) -> 0 | AWO5: =IFERROR(((_xlfn.ANCHORARRAY(KJ5)+_xlfn.ANCHORARRAY(ADJ5))-(_xlfn.ANCHORARRAY(QF5)+_xlfn.ANCHORARRAY(ANU5)))/10^9,0) -> 0 | AWP5: =IFERROR(((_xlfn.ANCHORARRAY(KK5)+_xlfn.ANCHORARRAY(ADK5))-(_xlfn.ANCHORARRAY(QG5)+_xlfn.ANCHORARRAY(ANV5)))/10^9,0) -> 0 | AWQ5: =IFERROR(((_xlfn.ANCHORARRAY(KL5)+_xlfn.ANCHORARRAY(ADL5))-(_xlfn.ANCHORARRAY(QH5)+_xlfn.ANCHORARRAY(ANW5)))/10^9,0) -> 0 | AWR5: =IFERROR(((_xlfn.ANCHORARRAY(KM5)+_xlfn.ANCHORARRAY(ADM5))-(_xlfn.ANCHORARRAY(QI5)+_xlfn.ANCHORARRAY(ANX5)))/10^9,0) -> 0 | AWS5: =IFERROR(((_xlfn.ANCHORARRAY(KN5)+_xlfn.ANCHORARRAY(ADN5))-(_xlfn.ANCHORARRAY(QJ5)+_xlfn.ANCHORARRAY(ANY5)))/10^9,0) -> 0 | AWT5: =IFERROR(((_xlfn.ANCHORARRAY(KO5)+_xlfn.ANCHORARRAY(ADO5))-(_xlfn.ANCHORARRAY(QK5)+_xlfn.ANCHORARRAY(ANZ5)))/10^9,0) -> 0 | AWU5: =IFERROR(((_xlfn.ANCHORARRAY(KP5)+_xlfn.ANCHORARRAY(ADP5))-(_xlfn.ANCHORARRAY(QL5)+_xlfn.ANCHORARRAY(AOA5)))/10^9,0) -> 0 | AWV5: =IFERROR(((_xlfn.ANCHORARRAY(KQ5)+_xlfn.ANCHORARRAY(ADQ5))-(_xlfn.ANCHORARRAY(QM5)+_xlfn.ANCHORARRAY(AOB5)))/10^9,0) -> 0 | AWW5: =IFERROR(((_xlfn.ANCHORARRAY(KR5)+_xlfn.ANCHORARRAY(ADR5))-(_xlfn.ANCHORARRAY(QN5)+_xlfn.ANCHORARRAY(AOC5)))/10^9,0) -> 0 | AWX5: =IFERROR(((_xlfn.ANCHORARRAY(KS5)+_xlfn.ANCHORARRAY(ADS5))-(_xlfn.ANCHORARRAY(QO5)+_xlfn.ANCHORARRAY(AOD5)))/10^9,0) -> 0 | AWY5: =IFERROR(((_xlfn.ANCHORARRAY(KT5)+_xlfn.ANCHORARRAY(ADT5))-(_xlfn.ANCHORARRAY(QP5)+_xlfn.ANCHORARRAY(AOE5)))/10^9,0) -> 0 | AWZ5: =IFERROR(((_xlfn.ANCHORARRAY(KU5)+_xlfn.ANCHORARRAY(ADU5))-(_xlfn.ANCHORARRAY(QQ5)+_xlfn.ANCHORARRAY(AOF5)))/10^9,0) -> 0 | AXA5: =IFERROR(((_xlfn.ANCHORARRAY(KV5)+_xlfn.ANCHORARRAY(ADV5))-(_xlfn.ANCHORARRAY(QR5)+_xlfn.ANCHORARRAY(AOG5)))/10^9,0) -> 0 | AXB5: =IFERROR(((_xlfn.ANCHORARRAY(KW5)+_xlfn.ANCHORARRAY(ADW5))-(_xlfn.ANCHORARRAY(QS5)+_xlfn.ANCHORARRAY(AOH5)))/10^9,0) -> 0 | AXC5: =IFERROR(((_xlfn.ANCHORARRAY(KX5)+_xlfn.ANCHORARRAY(ADX5))-(_xlfn.ANCHORARRAY(QT5)+_xlfn.ANCHORARRAY(AOI5)))/10^9,0) -> 0 | AXD5: =IFERROR(((_xlfn.ANCHORARRAY(KY5)+_xlfn.ANCHORARRAY(ADY5))-(_xlfn.ANCHORARRAY(QU5)+_xlfn.ANCHORARRAY(AOJ5)))/10^9,0) -> 0 | AXE5: =IFERROR(((_xlfn.ANCHORARRAY(KZ5)+_xlfn.ANCHORARRAY(ADZ5))-(_xlfn.ANCHORARRAY(QV5)+_xlfn.ANCHORARRAY(AOK5)))/10^9,0) -> 0 | AXF5: =IFERROR(((_xlfn.ANCHORARRAY(LA5)+_xlfn.ANCHORARRAY(AEA5))-(_xlfn.ANCHORARRAY(QW5)+_xlfn.ANCHORARRAY(AOL5)))/10^9,0) -> 0 | AXG5: =IFERROR(((_xlfn.ANCHORARRAY(LB5)+_xlfn.ANCHORARRAY(AEB5))-(_xlfn.ANCHORARRAY(QX5)+_xlfn.ANCHORARRAY(AOM5)))/10^9,0) -> 0 | AXH5: =IFERROR(((_xlfn.ANCHORARRAY(LC5)+_xlfn.ANCHORARRAY(AEC5))-(_xlfn.ANCHORARRAY(QY5)+_xlfn.ANCHORARRAY(AON5)))/10^9,0) -> 0 | AXI5: =IFERROR(((_xlfn.ANCHORARRAY(LD5)+_xlfn.ANCHORARRAY(AED5))-(_xlfn.ANCHORARRAY(QZ5)+_xlfn.ANCHORARRAY(AOO5)))/10^9,0) -> 0 | AXJ5: =IFERROR(((_xlfn.ANCHORARRAY(LE5)+_xlfn.ANCHORARRAY(AEE5))-(_xlfn.ANCHORARRAY(RA5)+_xlfn.ANCHORARRAY(AOP5)))/10^9,0) -> 0 | AXK5: =IFERROR(((_xlfn.ANCHORARRAY(LF5)+_xlfn.ANCHORARRAY(AEF5))-(_xlfn.ANCHORARRAY(RB5)+_xlfn.ANCHORARRAY(AOQ5)))/10^9,0) -> 0 | AXL5: =IFERROR(((_xlfn.ANCHORARRAY(LG5)+_xlfn.ANCHORARRAY(AEG5))-(_xlfn.ANCHORARRAY(RC5)+_xlfn.ANCHORARRAY(AOR5)))/10^9,0) -> 0 | AXM5: =IFERROR(((_xlfn.ANCHORARRAY(LH5)+_xlfn.ANCHORARRAY(AEH5))-(_xlfn.ANCHORARRAY(RD5)+_xlfn.ANCHORARRAY(AOS5)))/10^9,0) -> 0 | AXN5: =IFERROR(((_xlfn.ANCHORARRAY(LI5)+_xlfn.ANCHORARRAY(AEI5))-(_xlfn.ANCHORARRAY(RE5)+_xlfn.ANCHORARRAY(AOT5)))/10^9,0) -> 0 | AXO5: =IFERROR(((_xlfn.ANCHORARRAY(LJ5)+_xlfn.ANCHORARRAY(AEJ5))-(_xlfn.ANCHORARRAY(RF5)+_xlfn.ANCHORARRAY(AOU5)))/10^9,0) -> 0 | AXP5: =_xlfn.ANCHORARRAY(AOV5)+_xlfn.ANCHORARRAY(AWD5) -> 0 | AXQ5: =_xlfn.ANCHORARRAY(AOW5)+_xlfn.ANCHORARRAY(AWE5) -> 0 | AXR5: =_xlfn.ANCHORARRAY(AOX5)+_xlfn.ANCHORARRAY(AWF5) -> 0 | AXS5: =_xlfn.ANCHORARRAY(AOY5)+_xlfn.ANCHORARRAY(AWG5) -> 0 | AXT5: =_xlfn.ANCHORARRAY(AOZ5)+_xlfn.ANCHORARRAY(AWH5) -> 0 | AXU5: =_xlfn.ANCHORARRAY(APA5)+_xlfn.ANCHORARRAY(AWI5) -> 0 | AXV5: =_xlfn.ANCHORARRAY(APB5)+_xlfn.ANCHORARRAY(AWJ5) -> 0 | AXW5: =_xlfn.ANCHORARRAY(APC5)+_xlfn.ANCHORARRAY(AWK5) -> 0 | AXX5: =_xlfn.ANCHORARRAY(APD5)+_xlfn.ANCHORARRAY(AWL5) -> 0 | AXY5: =_xlfn.ANCHORARRAY(APE5)+_xlfn.ANCHORARRAY(AWM5) -> 0 | AXZ5: =_xlfn.ANCHORARRAY(APF5)+_xlfn.ANCHORARRAY(AWN5) -> 0 | AYA5: =_xlfn.ANCHORARRAY(APG5)+_xlfn.ANCHORARRAY(AWO5) -> 0 | AYB5: =_xlfn.ANCHORARRAY(APH5)+_xlfn.ANCHORARRAY(AWP5) -> 0 | AYC5: =_xlfn.ANCHORARRAY(API5)+_xlfn.ANCHORARRAY(AWQ5) -> 0 | AYD5: =_xlfn.ANCHORARRAY(APJ5)+_xlfn.ANCHORARRAY(AWR5) -> 0 | AYE5: =_xlfn.ANCHORARRAY(APK5)+_xlfn.ANCHORARRAY(AWS5) -> 0 | AYF5: =_xlfn.ANCHORARRAY(APL5)+_xlfn.ANCHORARRAY(AWT5) -> 0 | AYG5: =_xlfn.ANCHORARRAY(APM5)+_xlfn.ANCHORARRAY(AWU5) -> 0 | AYH5: =_xlfn.ANCHORARRAY(APN5)+_xlfn.ANCHORARRAY(AWV5) -> 0 | AYI5: =_xlfn.ANCHORARRAY(APO5)+_xlfn.ANCHORARRAY(AWW5) -> 0 | AYJ5: =_xlfn.ANCHORARRAY(APP5)+_xlfn.ANCHORARRAY(AWX5) -> 0 | AYK5: =_xlfn.ANCHORARRAY(APQ5)+_xlfn.ANCHORARRAY(AWY5) -> 0 | AYL5: =_xlfn.ANCHORARRAY(APR5)+_xlfn.ANCHORARRAY(AWZ5) -> 0 | AYM5: =_xlfn.ANCHORARRAY(APS5)+_xlfn.ANCHORARRAY(AXA5) -> 0 | AYN5: =_xlfn.ANCHORARRAY(APT5)+_xlfn.ANCHORARRAY(AXB5) -> 0 | AYO5: =_xlfn.ANCHORARRAY(APU5)+_xlfn.ANCHORARRAY(AXC5) -> 0 | AYP5: =_xlfn.ANCHORARRAY(APV5)+_xlfn.ANCHORARRAY(AXD5) -> 0 | AYQ5: =_xlfn.ANCHORARRAY(APW5)+_xlfn.ANCHORARRAY(AXE5) -> 0 | AYR5: =_xlfn.ANCHORARRAY(APX5)+_xlfn.ANCHORARRAY(AXF5) -> 0 | AYS5: =_xlfn.ANCHORARRAY(APY5)+_xlfn.ANCHORARRAY(AXG5) -> 0 | AYT5: =_xlfn.ANCHORARRAY(APZ5)+_xlfn.ANCHORARRAY(AXH5) -> 0 | AYU5: =_xlfn.ANCHORARRAY(AQA5)+_xlfn.ANCHORARRAY(AXI5) -> 0 | AYV5: =_xlfn.ANCHORARRAY(AQB5)+_xlfn.ANCHORARRAY(AXJ5) -> 0 | AYW5: =_xlfn.ANCHORARRAY(AQC5)+_xlfn.ANCHORARRAY(AXK5) -> 0 | AYX5: =_xlfn.ANCHORARRAY(AQD5)+_xlfn.ANCHORARRAY(AXL5) -> 0 | AYY5: =_xlfn.ANCHORARRAY(AQE5)+_xlfn.ANCHORARRAY(AXM5) -> 0 | AYZ5: =_xlfn.ANCHORARRAY(AQF5)+_xlfn.ANCHORARRAY(AXN5) -> 0 | AZA5: =_xlfn.ANCHORARRAY(AQG5)+_xlfn.ANCHORARRAY(AXO5) -> 0 | AZB5: =((_xlfn.ANCHORARRAY(FO5)+_xlfn.ANCHORARRAY(JY5))-(_xlfn.ANCHORARRAY(OI5)+_xlfn.ANCHORARRAY(PU5)))/10^9 ->  | AZC5: =((_xlfn.ANCHORARRAY(FP5)+_xlfn.ANCHORARRAY(JZ5))-(_xlfn.ANCHORARRAY(OJ5)+_xlfn.ANCHORARRAY(PV5)))/10^9 ->  | AZD5: =((_xlfn.ANCHORARRAY(FQ5)+_xlfn.ANCHORARRAY(KA5))-(_xlfn.ANCHORARRAY(OK5)+_xlfn.ANCHORARRAY(PW5)))/10^9 ->  | AZE5: =((_xlfn.ANCHORARRAY(FR5)+_xlfn.ANCHORARRAY(KB5))-(_xlfn.ANCHORARRAY(OL5)+_xlfn.ANCHORARRAY(PX5)))/10^9 ->  | AZF5: =((_xlfn.ANCHORARRAY(FS5)+_xlfn.ANCHORARRAY(KC5))-(_xlfn.ANCHORARRAY(OM5)+_xlfn.ANCHORARRAY(PY5)))/10^9 ->  | AZG5: =((_xlfn.ANCHORARRAY(FT5)+_xlfn.ANCHORARRAY(KD5))-(_xlfn.ANCHORARRAY(ON5)+_xlfn.ANCHORARRAY(PZ5)))/10^9 ->  | AZH5: =((_xlfn.ANCHORARRAY(FU5)+_xlfn.ANCHORARRAY(KE5))-(_xlfn.ANCHORARRAY(OO5)+_xlfn.ANCHORARRAY(QA5)))/10^9 ->  | AZI5: =((_xlfn.ANCHORARRAY(FV5)+_xlfn.ANCHORARRAY(KF5))-(_xlfn.ANCHORARRAY(OP5)+_xlfn.ANCHORARRAY(QB5)))/10^9 ->  | AZJ5: =((_xlfn.ANCHORARRAY(FW5)+_xlfn.ANCHORARRAY(KG5))-(_xlfn.ANCHORARRAY(OQ5)+_xlfn.ANCHORARRAY(QC5)))/10^9 ->  | AZK5: =((_xlfn.ANCHORARRAY(FX5)+_xlfn.ANCHORARRAY(KH5))-(_xlfn.ANCHORARRAY(OR5)+_xlfn.ANCHORARRAY(QD5)))/10^9 ->  | AZL5: =((_xlfn.ANCHORARRAY(FY5)+_xlfn.ANCHORARRAY(KI5))-(_xlfn.ANCHORARRAY(OS5)+_xlfn.ANCHORARRAY(QE5)))/10^9 ->  | AZM5: =((_xlfn.ANCHORARRAY(FZ5)+_xlfn.ANCHORARRAY(KJ5))-(_xlfn.ANCHORARRAY(OT5)+_xlfn.ANCHORARRAY(QF5)))/10^9 ->  | AZN5: =((_xlfn.ANCHORARRAY(GA5)+_xlfn.ANCHORARRAY(KK5))-(_xlfn.ANCHORARRAY(OU5)+_xlfn.ANCHORARRAY(QG5)))/10^9 ->  | AZO5: =((_xlfn.ANCHORARRAY(GB5)+_xlfn.ANCHORARRAY(KL5))-(_xlfn.ANCHORARRAY(OV5)+_xlfn.ANCHORARRAY(QH5)))/10^9 ->  | AZP5: =((_xlfn.ANCHORARRAY(GC5)+_xlfn.ANCHORARRAY(KM5))-(_xlfn.ANCHORARRAY(OW5)+_xlfn.ANCHORARRAY(QI5)))/10^9 ->  | AZQ5: =((_xlfn.ANCHORARRAY(GD5)+_xlfn.ANCHORARRAY(KN5))-(_xlfn.ANCHORARRAY(OX5)+_xlfn.ANCHORARRAY(QJ5)))/10^9 ->  | AZR5: =((_xlfn.ANCHORARRAY(GE5)+_xlfn.ANCHORARRAY(KO5))-(_xlfn.ANCHORARRAY(OY5)+_xlfn.ANCHORARRAY(QK5)))/10^9 ->  | AZS5: =((_xlfn.ANCHORARRAY(GF5)+_xlfn.ANCHORARRAY(KP5))-(_xlfn.ANCHORARRAY(OZ5)+_xlfn.ANCHORARRAY(QL5)))/10^9 ->  | AZT5: =((_xlfn.ANCHORARRAY(GG5)+_xlfn.ANCHORARRAY(KQ5))-(_xlfn.ANCHORARRAY(PA5)+_xlfn.ANCHORARRAY(QM5)))/10^9 ->  | AZU5: =((_xlfn.ANCHORARRAY(GH5)+_xlfn.ANCHORARRAY(KR5))-(_xlfn.ANCHORARRAY(PB5)+_xlfn.ANCHORARRAY(QN5)))/10^9 ->  | AZV5: =((_xlfn.ANCHORARRAY(GI5)+_xlfn.ANCHORARRAY(KS5))-(_xlfn.ANCHORARRAY(PC5)+_xlfn.ANCHORARRAY(QO5)))/10^9 ->  | AZW5: =((_xlfn.ANCHORARRAY(GJ5)+_xlfn.ANCHORARRAY(KT5))-(_xlfn.ANCHORARRAY(PD5)+_xlfn.ANCHORARRAY(QP5)))/10^9 ->  | AZX5: =((_xlfn.ANCHORARRAY(GK5)+_xlfn.ANCHORARRAY(KU5))-(_xlfn.ANCHORARRAY(PE5)+_xlfn.ANCHORARRAY(QQ5)))/10^9 ->  | AZY5: =((_xlfn.ANCHORARRAY(GL5)+_xlfn.ANCHORARRAY(KV5))-(_xlfn.ANCHORARRAY(PF5)+_xlfn.ANCHORARRAY(QR5)))/10^9 ->  | AZZ5: =((_xlfn.ANCHORARRAY(GM5)+_xlfn.ANCHORARRAY(KW5))-(_xlfn.ANCHORARRAY(PG5)+_xlfn.ANCHORARRAY(QS5)))/10^9 ->  | BAA5: =((_xlfn.ANCHORARRAY(GN5)+_xlfn.ANCHORARRAY(KX5))-(_xlfn.ANCHORARRAY(PH5)+_xlfn.ANCHORARRAY(QT5)))/10^9 ->  | BAB5: =((_xlfn.ANCHORARRAY(GO5)+_xlfn.ANCHORARRAY(KY5))-(_xlfn.ANCHORARRAY(PI5)+_xlfn.ANCHORARRAY(QU5)))/10^9 ->  | BAC5: =((_xlfn.ANCHORARRAY(GP5)+_xlfn.ANCHORARRAY(KZ5))-(_xlfn.ANCHORARRAY(PJ5)+_xlfn.ANCHORARRAY(QV5)))/10^9 ->  | BAD5: =((_xlfn.ANCHORARRAY(GQ5)+_xlfn.ANCHORARRAY(LA5))-(_xlfn.ANCHORARRAY(PK5)+_xlfn.ANCHORARRAY(QW5)))/10^9 ->  | BAE5: =((_xlfn.ANCHORARRAY(GR5)+_xlfn.ANCHORARRAY(LB5))-(_xlfn.ANCHORARRAY(PL5)+_xlfn.ANCHORARRAY(QX5)))/10^9 ->  | BAF5: =((_xlfn.ANCHORARRAY(GS5)+_xlfn.ANCHORARRAY(LC5))-(_xlfn.ANCHORARRAY(PM5)+_xlfn.ANCHORARRAY(QY5)))/10^9 ->  | BAG5: =((_xlfn.ANCHORARRAY(GT5)+_xlfn.ANCHORARRAY(LD5))-(_xlfn.ANCHORARRAY(PN5)+_xlfn.ANCHORARRAY(QZ5)))/10^9 ->  | BAH5: =((_xlfn.ANCHORARRAY(GU5)+_xlfn.ANCHORARRAY(LE5))-(_xlfn.ANCHORARRAY(PO5)+_xlfn.ANCHORARRAY(RA5)))/10^9 ->  | BAI5: =((_xlfn.ANCHORARRAY(GV5)+_xlfn.ANCHORARRAY(LF5))-(_xlfn.ANCHORARRAY(PP5)+_xlfn.ANCHORARRAY(RB5)))/10^9 ->  | BAJ5: =((_xlfn.ANCHORARRAY(GW5)+_xlfn.ANCHORARRAY(LG5))-(_xlfn.ANCHORARRAY(PQ5)+_xlfn.ANCHORARRAY(RC5)))/10^9 ->  | BAK5: =((_xlfn.ANCHORARRAY(GX5)+_xlfn.ANCHORARRAY(LH5))-(_xlfn.ANCHORARRAY(PR5)+_xlfn.ANCHORARRAY(RD5)))/10^9 ->  | BAL5: =((_xlfn.ANCHORARRAY(GY5)+_xlfn.ANCHORARRAY(LI5))-(_xlfn.ANCHORARRAY(PS5)+_xlfn.ANCHORARRAY(RE5)))/10^9 ->  | BAM5: =((_xlfn.ANCHORARRAY(GZ5)+_xlfn.ANCHORARRAY(LJ5))-(_xlfn.ANCHORARRAY(PT5)+_xlfn.ANCHORARRAY(RF5)))/10^9 ->  | BAN5: =((_xlfn.ANCHORARRAY(AAA5)+_xlfn.ANCHORARRAY(ACY5))-(_xlfn.ANCHORARRAY(AIZ5)+_xlfn.ANCHORARRAY(ANJ5)))/10^9 ->  | BAO5: =((_xlfn.ANCHORARRAY(AAB5)+_xlfn.ANCHORARRAY(ACZ5))-(_xlfn.ANCHORARRAY(AJA5)+_xlfn.ANCHORARRAY(ANK5)))/10^9 ->  | BAP5: =((_xlfn.ANCHORARRAY(AAC5)+_xlfn.ANCHORARRAY(ADA5))-(_xlfn.ANCHORARRAY(AJB5)+_xlfn.ANCHORARRAY(ANL5)))/10^9 ->  | BAQ5: =((_xlfn.ANCHORARRAY(AAD5)+_xlfn.ANCHORARRAY(ADB5))-(_xlfn.ANCHORARRAY(AJC5)+_xlfn.ANCHORARRAY(ANM5)))/10^9 ->  | BAR5: =((_xlfn.ANCHORARRAY(AAE5)+_xlfn.ANCHORARRAY(ADC5))-(_xlfn.ANCHORARRAY(AJD5)+_xlfn.ANCHORARRAY(ANN5)))/10^9 ->  | BAS5: =((_xlfn.ANCHORARRAY(AAF5)+_xlfn.ANCHORARRAY(ADD5))-(_xlfn.ANCHORARRAY(AJE5)+_xlfn.ANCHORARRAY(ANO5)))/10^9 ->  | BAT5: =((_xlfn.ANCHORARRAY(AAG5)+_xlfn.ANCHORARRAY(ADE5))-(_xlfn.ANCHORARRAY(AJF5)+_xlfn.ANCHORARRAY(ANP5)))/10^9 ->  | BAU5: =((_xlfn.ANCHORARRAY(AAH5)+_xlfn.ANCHORARRAY(ADF5))-(_xlfn.ANCHORARRAY(AJG5)+_xlfn.ANCHORARRAY(ANQ5)))/10^9 ->  | BAV5: =((_xlfn.ANCHORARRAY(AAI5)+_xlfn.ANCHORARRAY(ADG5))-(_xlfn.ANCHORARRAY(AJH5)+_xlfn.ANCHORARRAY(ANR5)))/10^9 ->  | BAW5: =((_xlfn.ANCHORARRAY(AAJ5)+_xlfn.ANCHORARRAY(ADH5))-(_xlfn.ANCHORARRAY(AJI5)+_xlfn.ANCHORARRAY(ANS5)))/10^9 ->  | BAX5: =((_xlfn.ANCHORARRAY(AAK5)+_xlfn.ANCHORARRAY(ADI5))-(_xlfn.ANCHORARRAY(AJJ5)+_xlfn.ANCHORARRAY(ANT5)))/10^9 ->  | BAY5: =((_xlfn.ANCHORARRAY(AAL5)+_xlfn.ANCHORARRAY(ADJ5))-(_xlfn.ANCHORARRAY(AJK5)+_xlfn.ANCHORARRAY(ANU5)))/10^9 ->  | BAZ5: =((_xlfn.ANCHORARRAY(AAM5)+_xlfn.ANCHORARRAY(ADK5))-(_xlfn.ANCHORARRAY(AJL5)+_xlfn.ANCHORARRAY(ANV5)))/10^9 ->  | BBA5: =((_xlfn.ANCHORARRAY(AAN5)+_xlfn.ANCHORARRAY(ADL5))-(_xlfn.ANCHORARRAY(AJM5)+_xlfn.ANCHORARRAY(ANW5)))/10^9 ->  | BBB5: =((_xlfn.ANCHORARRAY(AAO5)+_xlfn.ANCHORARRAY(ADM5))-(_xlfn.ANCHORARRAY(AJN5)+_xlfn.ANCHORARRAY(ANX5)))/10^9 ->  | BBC5: =((_xlfn.ANCHORARRAY(AAP5)+_xlfn.ANCHORARRAY(ADN5))-(_xlfn.ANCHORARRAY(AJO5)+_xlfn.ANCHORARRAY(ANY5)))/10^9 ->  | BBD5: =((_xlfn.ANCHORARRAY(AAQ5)+_xlfn.ANCHORARRAY(ADO5))-(_xlfn.ANCHORARRAY(AJP5)+_xlfn.ANCHORARRAY(ANZ5)))/10^9 ->  | BBE5: =((_xlfn.ANCHORARRAY(AAR5)+_xlfn.ANCHORARRAY(ADP5))-(_xlfn.ANCHORARRAY(AJQ5)+_xlfn.ANCHORARRAY(AOA5)))/10^9 ->  | BBF5: =((_xlfn.ANCHORARRAY(AAS5)+_xlfn.ANCHORARRAY(ADQ5))-(_xlfn.ANCHORARRAY(AJR5)+_xlfn.ANCHORARRAY(AOB5)))/10^9 ->  | BBG5: =((_xlfn.ANCHORARRAY(AAT5)+_xlfn.ANCHORARRAY(ADR5))-(_xlfn.ANCHORARRAY(AJS5)+_xlfn.ANCHORARRAY(AOC5)))/10^9 ->  | BBH5: =((_xlfn.ANCHORARRAY(AAU5)+_xlfn.ANCHORARRAY(ADS5))-(_xlfn.ANCHORARRAY(AJT5)+_xlfn.ANCHORARRAY(AOD5)))/10^9 ->  | BBI5: =((_xlfn.ANCHORARRAY(AAV5)+_xlfn.ANCHORARRAY(ADT5))-(_xlfn.ANCHORARRAY(AJU5)+_xlfn.ANCHORARRAY(AOE5)))/10^9 ->  | BBJ5: =((_xlfn.ANCHORARRAY(AAW5)+_xlfn.ANCHORARRAY(ADU5))-(_xlfn.ANCHORARRAY(AJV5)+_xlfn.ANCHORARRAY(AOF5)))/10^9 ->  | BBK5: =((_xlfn.ANCHORARRAY(AAX5)+_xlfn.ANCHORARRAY(ADV5))-(_xlfn.ANCHORARRAY(AJW5)+_xlfn.ANCHORARRAY(AOG5)))/10^9 ->  | BBL5: =((_xlfn.ANCHORARRAY(AAY5)+_xlfn.ANCHORARRAY(ADW5))-(_xlfn.ANCHORARRAY(AJX5)+_xlfn.ANCHORARRAY(AOH5)))/10^9 ->  | BBM5: =((_xlfn.ANCHORARRAY(AAZ5)+_xlfn.ANCHORARRAY(ADX5))-(_xlfn.ANCHORARRAY(AJY5)+_xlfn.ANCHORARRAY(AOI5)))/10^9 ->  | BBN5: =((_xlfn.ANCHORARRAY(ABA5)+_xlfn.ANCHORARRAY(ADY5))-(_xlfn.ANCHORARRAY(AJZ5)+_xlfn.ANCHORARRAY(AOJ5)))/10^9 ->  | BBO5: =((_xlfn.ANCHORARRAY(ABB5)+_xlfn.ANCHORARRAY(ADZ5))-(_xlfn.ANCHORARRAY(AKA5)+_xlfn.ANCHORARRAY(AOK5)))/10^9 ->  | BBP5: =((_xlfn.ANCHORARRAY(ABC5)+_xlfn.ANCHORARRAY(AEA5))-(_xlfn.ANCHORARRAY(AKB5)+_xlfn.ANCHORARRAY(AOL5)))/10^9 ->  | BBQ5: =((_xlfn.ANCHORARRAY(ABD5)+_xlfn.ANCHORARRAY(AEB5))-(_xlfn.ANCHORARRAY(AKC5)+_xlfn.ANCHORARRAY(AOM5)))/10^9 ->  | BBR5: =((_xlfn.ANCHORARRAY(ABE5)+_xlfn.ANCHORARRAY(AEC5))-(_xlfn.ANCHORARRAY(AKD5)+_xlfn.ANCHORARRAY(AON5)))/10^9 ->  | BBS5: =((_xlfn.ANCHORARRAY(ABF5)+_xlfn.ANCHORARRAY(AED5))-(_xlfn.ANCHORARRAY(AKE5)+_xlfn.ANCHORARRAY(AOO5)))/10^9 ->  | BBT5: =((_xlfn.ANCHORARRAY(ABG5)+_xlfn.ANCHORARRAY(AEE5))-(_xlfn.ANCHORARRAY(AKF5)+_xlfn.ANCHORARRAY(AOP5)))/10^9 ->  | BBU5: =((_xlfn.ANCHORARRAY(ABH5)+_xlfn.ANCHORARRAY(AEF5))-(_xlfn.ANCHORARRAY(AKG5)+_xlfn.ANCHORARRAY(AOQ5)))/10^9 ->  | BBV5: =((_xlfn.ANCHORARRAY(ABI5)+_xlfn.ANCHORARRAY(AEG5))-(_xlfn.ANCHORARRAY(AKH5)+_xlfn.ANCHORARRAY(AOR5)))/10^9 ->  | BBW5: =((_xlfn.ANCHORARRAY(ABJ5)+_xlfn.ANCHORARRAY(AEH5))-(_xlfn.ANCHORARRAY(AKI5)+_xlfn.ANCHORARRAY(AOS5)))/10^9 ->  | BBX5: =((_xlfn.ANCHORARRAY(ABK5)+_xlfn.ANCHORARRAY(AEI5))-(_xlfn.ANCHORARRAY(AKJ5)+_xlfn.ANCHORARRAY(AOT5)))/10^9 ->  | BBY5: =((_xlfn.ANCHORARRAY(ABL5)+_xlfn.ANCHORARRAY(AEJ5))-(_xlfn.ANCHORARRAY(AKK5)+_xlfn.ANCHORARRAY(AOU5)))/10^9 ->  | BBZ5: =(_xlfn.ANCHORARRAY(AHN5)+_xlfn.ANCHORARRAY(AIZ5))/10^9 ->  | BCA5: =(_xlfn.ANCHORARRAY(AHO5)+_xlfn.ANCHORARRAY(AJA5))/10^9 ->  | BCB5: =(_xlfn.ANCHORARRAY(AHP5)+_xlfn.ANCHORARRAY(AJB5))/10^9 ->  | BCC5: =(_xlfn.ANCHORARRAY(AHQ5)+_xlfn.ANCHORARRAY(AJC5))/10^9 ->  | BCD5: =(_xlfn.ANCHORARRAY(AHR5)+_xlfn.ANCHORARRAY(AJD5))/10^9 ->  | BCE5: =(_xlfn.ANCHORARRAY(AHS5)+_xlfn.ANCHORARRAY(AJE5))/10^9 ->  | BCF5: =(_xlfn.ANCHORARRAY(AHT5)+_xlfn.ANCHORARRAY(AJF5))/10^9 ->  | BCG5: =(_xlfn.ANCHORARRAY(AHU5)+_xlfn.ANCHORARRAY(AJG5))/10^9 ->  | BCH5: =(_xlfn.ANCHORARRAY(AHV5)+_xlfn.ANCHORARRAY(AJH5))/10^9 ->  | BCI5: =(_xlfn.ANCHORARRAY(AHW5)+_xlfn.ANCHORARRAY(AJI5))/10^9 ->  | BCJ5: =(_xlfn.ANCHORARRAY(AHX5)+_xlfn.ANCHORARRAY(AJJ5))/10^9 ->  | BCK5: =(_xlfn.ANCHORARRAY(AHY5)+_xlfn.ANCHORARRAY(AJK5))/10^9 ->  | BCL5: =(_xlfn.ANCHORARRAY(AHZ5)+_xlfn.ANCHORARRAY(AJL5))/10^9 ->  | BCM5: =(_xlfn.ANCHORARRAY(AIA5)+_xlfn.ANCHORARRAY(AJM5))/10^9 ->  | BCN5: =(_xlfn.ANCHORARRAY(AIB5)+_xlfn.ANCHORARRAY(AJN5))/10^9 ->  | BCO5: =(_xlfn.ANCHORARRAY(AIC5)+_xlfn.ANCHORARRAY(AJO5))/10^9 ->  | BCP5: =(_xlfn.ANCHORARRAY(AID5)+_xlfn.ANCHORARRAY(AJP5))/10^9 ->  | BCQ5: =(_xlfn.ANCHORARRAY(AIE5)+_xlfn.ANCHORARRAY(AJQ5))/10^9 ->  | BCR5: =(_xlfn.ANCHORARRAY(AIF5)+_xlfn.ANCHORARRAY(AJR5))/10^9 ->  | BCS5: =(_xlfn.ANCHORARRAY(AIG5)+_xlfn.ANCHORARRAY(AJS5))/10^9 ->  | BCT5: =(_xlfn.ANCHORARRAY(AIH5)+_xlfn.ANCHORARRAY(AJT5))/10^9 ->  | BCU5: =(_xlfn.ANCHORARRAY(AII5)+_xlfn.ANCHORARRAY(AJU5))/10^9 ->  | BCV5: =(_xlfn.ANCHORARRAY(AIJ5)+_xlfn.ANCHORARRAY(AJV5))/10^9 ->  | BCW5: =(_xlfn.ANCHORARRAY(AIK5)+_xlfn.ANCHORARRAY(AJW5))/10^9 ->  | BCX5: =(_xlfn.ANCHORARRAY(AIL5)+_xlfn.ANCHORARRAY(AJX5))/10^9 ->  | BCY5: =(_xlfn.ANCHORARRAY(AIM5)+_xlfn.ANCHORARRAY(AJY5))/10^9 ->  | BCZ5: =(_xlfn.ANCHORARRAY(AIN5)+_xlfn.ANCHORARRAY(AJZ5))/10^9 ->  | BDA5: =(_xlfn.ANCHORARRAY(AIO5)+_xlfn.ANCHORARRAY(AKA5))/10^9 ->  | BDB5: =(_xlfn.ANCHORARRAY(AIP5)+_xlfn.ANCHORARRAY(AKB5))/10^9 ->  | BDC5: =(_xlfn.ANCHORARRAY(AIQ5)+_xlfn.ANCHORARRAY(AKC5))/10^9 ->  | BDD5: =(_xlfn.ANCHORARRAY(AIR5)+_xlfn.ANCHORARRAY(AKD5))/10^9 ->  | BDE5: =(_xlfn.ANCHORARRAY(AIS5)+_xlfn.ANCHORARRAY(AKE5))/10^9 ->  | BDF5: =(_xlfn.ANCHORARRAY(AIT5)+_xlfn.ANCHORARRAY(AKF5))/10^9 ->  | BDG5: =(_xlfn.ANCHORARRAY(AIU5)+_xlfn.ANCHORARRAY(AKG5))/10^9 ->  | BDH5: =(_xlfn.ANCHORARRAY(AIV5)+_xlfn.ANCHORARRAY(AKH5))/10^9 ->  | BDI5: =(_xlfn.ANCHORARRAY(AIW5)+_xlfn.ANCHORARRAY(AKI5))/10^9 ->  | BDJ5: =(_xlfn.ANCHORARRAY(AIX5)+_xlfn.ANCHORARRAY(AKJ5))/10^9 ->  | BDK5: =(_xlfn.ANCHORARRAY(AIY5)+_xlfn.ANCHORARRAY(AKK5))/10^9 ->  | BDL5: =(_xlfn.ANCHORARRAY(ACY5)+_xlfn.ANCHORARRAY(ANJ5))/10^9 ->  | BDM5: =(_xlfn.ANCHORARRAY(ACZ5)+_xlfn.ANCHORARRAY(ANK5))/10^9 ->  | BDN5: =(_xlfn.ANCHORARRAY(ADA5)+_xlfn.ANCHORARRAY(ANL5))/10^9 ->  | BDO5: =(_xlfn.ANCHORARRAY(ADB5)+_xlfn.ANCHORARRAY(ANM5))/10^9 ->  | BDP5: =(_xlfn.ANCHORARRAY(ADC5)+_xlfn.ANCHORARRAY(ANN5))/10^9 ->  | BDQ5: =(_xlfn.ANCHORARRAY(ADD5)+_xlfn.ANCHORARRAY(ANO5))/10^9 ->  | BDR5: =(_xlfn.ANCHORARRAY(ADE5)+_xlfn.ANCHORARRAY(ANP5))/10^9 ->  | BDS5: =(_xlfn.ANCHORARRAY(ADF5)+_xlfn.ANCHORARRAY(ANQ5))/10^9 ->  | BDT5: =(_xlfn.ANCHORARRAY(ADG5)+_xlfn.ANCHORARRAY(ANR5))/10^9 ->  | BDU5: =(_xlfn.ANCHORARRAY(ADH5)+_xlfn.ANCHORARRAY(ANS5))/10^9 ->  | BDV5: =(_xlfn.ANCHORARRAY(ADI5)+_xlfn.ANCHORARRAY(ANT5))/10^9 ->  | BDW5: =(_xlfn.ANCHORARRAY(ADJ5)+_xlfn.ANCHORARRAY(ANU5))/10^9 ->  | BDX5: =(_xlfn.ANCHORARRAY(ADK5)+_xlfn.ANCHORARRAY(ANV5))/10^9 ->  | BDY5: =(_xlfn.ANCHORARRAY(ADL5)+_xlfn.ANCHORARRAY(ANW5))/10^9 ->  | BDZ5: =(_xlfn.ANCHORARRAY(ADM5)+_xlfn.ANCHORARRAY(ANX5))/10^9 ->  | BEA5: =(_xlfn.ANCHORARRAY(ADN5)+_xlfn.ANCHORARRAY(ANY5))/10^9 ->  | BEB5: =(_xlfn.ANCHORARRAY(ADO5)+_xlfn.ANCHORARRAY(ANZ5))/10^9 ->  | BEC5: =(_xlfn.ANCHORARRAY(ADP5)+_xlfn.ANCHORARRAY(AOA5))/10^9 ->  | BED5: =(_xlfn.ANCHORARRAY(ADQ5)+_xlfn.ANCHORARRAY(AOB5))/10^9 ->  | BEE5: =(_xlfn.ANCHORARRAY(ADR5)+_xlfn.ANCHORARRAY(AOC5))/10^9 ->  | BEF5: =(_xlfn.ANCHORARRAY(ADS5)+_xlfn.ANCHORARRAY(AOD5))/10^9 ->  | BEG5: =(_xlfn.ANCHORARRAY(ADT5)+_xlfn.ANCHORARRAY(AOE5))/10^9 ->  | BEH5: =(_xlfn.ANCHORARRAY(ADU5)+_xlfn.ANCHORARRAY(AOF5))/10^9 ->  | BEI5: =(_xlfn.ANCHORARRAY(ADV5)+_xlfn.ANCHORARRAY(AOG5))/10^9 ->  | BEJ5: =(_xlfn.ANCHORARRAY(ADW5)+_xlfn.ANCHORARRAY(AOH5))/10^9 ->  | BEK5: =(_xlfn.ANCHORARRAY(ADX5)+_xlfn.ANCHORARRAY(AOI5))/10^9 ->  | BEL5: =(_xlfn.ANCHORARRAY(ADY5)+_xlfn.ANCHORARRAY(AOJ5))/10^9 ->  | BEM5: =(_xlfn.ANCHORARRAY(ADZ5)+_xlfn.ANCHORARRAY(AOK5))/10^9 ->  | BEN5: =(_xlfn.ANCHORARRAY(AEA5)+_xlfn.ANCHORARRAY(AOL5))/10^9 ->  | BEO5: =(_xlfn.ANCHORARRAY(AEB5)+_xlfn.ANCHORARRAY(AOM5))/10^9 ->  | BEP5: =(_xlfn.ANCHORARRAY(AEC5)+_xlfn.ANCHORARRAY(AON5))/10^9 ->  | BEQ5: =(_xlfn.ANCHORARRAY(AED5)+_xlfn.ANCHORARRAY(AOO5))/10^9 ->  | BER5: =(_xlfn.ANCHORARRAY(AEE5)+_xlfn.ANCHORARRAY(AOP5))/10^9 ->  | BES5: =(_xlfn.ANCHORARRAY(AEF5)+_xlfn.ANCHORARRAY(AOQ5))/10^9 ->  | BET5: =(_xlfn.ANCHORARRAY(AEG5)+_xlfn.ANCHORARRAY(AOR5))/10^9 ->  | BEU5: =(_xlfn.ANCHORARRAY(AEH5)+_xlfn.ANCHORARRAY(AOS5))/10^9 ->  | BEV5: =(_xlfn.ANCHORARRAY(AEI5)+_xlfn.ANCHORARRAY(AOT5))/10^9 ->  | BEW5: =(_xlfn.ANCHORARRAY(AEJ5)+_xlfn.ANCHORARRAY(AOU5))/10^9 -> 

Sheet Emissions_Lookup_andCalc (hidden)
A2: Electricity: Upstream + Combustion | B2: Column1 | C2: 1992 | D2: 1993 | E2: 1994 | F2: 1995 | G2: 1996 | H2: 1997 | I2: 1998 | J2: 1999 | K2: 2000 | L2: 2001 | M2: 2002 | N2: 2003 | O2: 2004 | P2: 2005 | Q2: 2006 | R2: 2007 | S2: 2008 | T2: 2009 | U2: 2010 | V2: 2011 | W2: 2012 | X2: 2013 | Y2: 2014 | Z2: 2015 | AA2: 2016 | AB2: 2017 | AC2: 2018 | AD2: 2019 | AE2: 2020 | AF2: 2021 | AG2: 2022 | AH2: 2023 | AI2: 2024 | AJ2: 2025 | AK2: 2026 | AL2: 2027 | AM2: 2028 | AN2: 2029 | AO2: 2030 | AP2: 2031 | AQ2: 2032 | AR2: 2033 | AS2: 2034 | AT2: 2035 | AU2: 2036 | AV2: 2037 | AW2: 2038 | AX2: 2039 | AY2: 2040 | AZ2: 2041 | BA2: 2042 | BB2: 2043 | BC2: 2044 | BD2: 2045 | BE2: 2046 | BF2: 2047 | BG2: 2048 | BH2: 2049 | BI2: 2050 | BJ2: 2051 | BK2: 2052 | BL2: 2053 | BM2: 2054 | BN2: 2055 | BO2: 2056 | BP2: 2057 | BQ2: 2058 | BR2: 2059 | BS2: 2060
A3: SO2 | B3: kg per MWh | C3: 0.1187500002 | D3: 0.1187500002 | E3: 0.1187500002 | F3: 0.1187500002 | G3: 0.1187500002 | H3: 0.1187500002 | I3: 0.1187500002 | J3: 0.1187500002 | K3: 0.1187500002 | L3: 0.1187500002 | M3: 0.1187500002 | N3: 0.1187500002 | O3: 0.1187500002 | P3: 0.1187500002 | Q3: 0.1187500002 | R3: 0.1187500002 | S3: 0.1187500002 | T3: 0.1187500002 | U3: 0.1187500002 | V3: 0.1187500002 | W3: 0.1187500002 | X3: 0.1187500002 | Y3: 0.1187500002 | Z3: 0.1187500002 | AA3: 0.1187500002 | AB3: 0.1187500002 | AC3: 0.1187500002 | AD3: 0.1187500002 | AE3: 0.1187500002 | AF3: 0.1187500002 | AG3: 0.1187500002 | AH3: 0.1177044187 | AI3: 0.1176150552 | AJ3: 0.1176158672 | AK3: 0.1040311876 | AL3: 0.09016443605 | AM3: 0.07652294414 | AN3: 0.064912588 | AO3: 0.05852346014 | AP3: 0.05678289105 | AQ3: 0.05578423051 | AR3: 0.0563893635 | AS3: 0.05522148506 | AT3: 0.05483351754 | AU3: 0.05334355593 | AV3: 0.0512641766 | AW3: 0.0487839974 | AX3: 0.04657241244 | AY3: 0.044569286 | AZ3: 0.04399555244 | BA3: 0.04334892429 | BB3: 0.0422233414 | BC3: 0.04082346374 | BD3: 0.0398674912 | BE3: 0.03881341462 | BF3: 0.03848281198 | BG3: 0.03741146519 | BH3: 0.03822431286 | BI3: 0.03783231573
A4: NOx | B4: kg per MWh | C4: 0.5823122043 | D4: 0.5823122043 | E4: 0.5823122043 | F4: 0.5823122043 | G4: 0.5823122043 | H4: 0.5823122043 | I4: 0.5823122043 | J4: 0.5823122043 | K4: 0.5823122043 | L4: 0.5823122043 | M4: 0.5823122043 | N4: 0.5823122043 | O4: 0.5823122043 | P4: 0.5823122043 | Q4: 0.5823122043 | R4: 0.5823122043 | S4: 0.5823122043 | T4: 0.5823122043 | U4: 0.5823122043 | V4: 0.5823122043 | W4: 0.5823122043 | X4: 0.5823122043 | Y4: 0.5823122043 | Z4: 0.5823122043 | AA4: 0.5823122043 | AB4: 0.5823122043 | AC4: 0.5823122043 | AD4: 0.5823122043 | AE4: 0.5823122043 | AF4: 0.5823122043 | AG4: 0.5823122043 | AH4: 0.5810297745 | AI4: 0.580970383 | AJ4: 0.580976574 | AK4: 0.5215541694 | AL4: 0.4605884775 | AM4: 0.41587178 | AN4: 0.386017341 | AO4: 0.3623285982 | AP4: 0.3462506803 | AQ4: 0.3359479859 | AR4: 0.3274927796 | AS4: 0.3211576627 | AT4: 0.3176600813 | AU4: 0.315509478 | AV4: 0.3134307493 | AW4: 0.3128477601 | AX4: 0.3110789426 | AY4: 0.310756217 | AZ4: 0.3107690035 | BA4: 0.3117491987 | BB4: 0.3109566771 | BC4: 0.3060527107 | BD4: 0.301359834 | BE4: 0.2964589279 | BF4: 0.2912091388 | BG4: 0.2891140759 | BH4: 0.283213895 | BI4: 0.2750994162
A5: Hg | B5: kg per MWh | C5: 1.089687341e-06 | D5: 1.089687341e-06 | E5: 1.089687341e-06 | F5: 1.089687341e-06 | G5: 1.089687341e-06 | H5: 1.089687341e-06 | I5: 1.089687341e-06 | J5: 1.089687341e-06 | K5: 1.089687341e-06 | L5: 1.089687341e-06 | M5: 1.089687341e-06 | N5: 1.089687341e-06 | O5: 1.089687341e-06 | P5: 1.089687341e-06 | Q5: 1.089687341e-06 | R5: 1.089687341e-06 | S5: 1.089687341e-06 | T5: 1.089687341e-06 | U5: 1.089687341e-06 | V5: 1.089687341e-06 | W5: 1.089687341e-06 | X5: 1.089687341e-06 | Y5: 1.089687341e-06 | Z5: 1.089687341e-06 | AA5: 1.089687341e-06 | AB5: 1.089687341e-06 | AC5: 1.089687341e-06 | AD5: 1.089687341e-06 | AE5: 1.089687341e-06 | AF5: 1.089687341e-06 | AG5: 1.089687341e-06 | AH5: 1.080057173e-06 | AI5: 1.078887643e-06 | AJ5: 1.078859167e-06 | AK5: 8.706355314e-07 | AL5: 6.890030144e-07 | AM5: 5.344730423e-07 | AN5: 4.474750353e-07 | AO5: 3.981403316e-07 | AP5: 3.821328754e-07 | AQ5: 3.711194686e-07 | AR5: 3.71451004e-07 | AS5: 3.616806251e-07 | AT5: 3.572168298e-07 | AU5: 3.455116414e-07 | AV5: 3.300711248e-07 | AW5: 3.123379749e-07 | AX5: 2.990636394e-07 | AY5: 2.871777173e-07 | AZ5: 2.847894581e-07 | BA5: 2.819476864e-07 | BB5: 2.758557109e-07 | BC5: 2.697816618e-07 | BD5: 2.66482441e-07 | BE5: 2.619275297e-07 | BF5: 2.621736514e-07 | BG5: 2.57062265e-07 | BH5: 2.623861528e-07 | BI5: 2.592753483e-07
A6: N2O | B6: kg per MWh | C6: 0.004630009634 | D6: 0.004630009634 | E6: 0.004630009634 | F6: 0.004630009634 | G6: 0.004630009634 | H6: 0.004630009634 | I6: 0.004630009634 | J6: 0.004630009634 | K6: 0.004630009634 | L6: 0.004630009634 | M6: 0.004630009634 | N6: 0.004630009634 | O6: 0.004630009634 | P6: 0.004630009634 | Q6: 0.004630009634 | R6: 0.004630009634 | S6: 0.004630009634 | T6: 0.004630009634 | U6: 0.004630009634 | V6: 0.004630009634 | W6: 0.004630009634 | X6: 0.004630009634 | Y6: 0.004630009634 | Z6: 0.004630009634 | AA6: 0.004630009634 | AB6: 0.004630009634 | AC6: 0.004630009634 | AD6: 0.004630009634 | AE6: 0.004630009634 | AF6: 0.004630009634 | AG6: 0.004630009634 | AH6: 0.004593508798 | AI6: 0.004589847967 | AJ6: 0.004589820059 | AK6: 0.003864801734 | AL6: 0.003201657423 | AM6: 0.00262633895 | AN6: 0.002238540128 | AO6: 0.00201263761 | AP6: 0.001933894202 | AQ6: 0.00188282138 | AR6: 0.001879394521 | AS6: 0.001847232836 | AT6: 0.001841133857 | AU6: 0.001802576217 | AV6: 0.001748223835 | AW6: 0.001683525552 | AX6: 0.001621310506 | AY6: 0.001566460515 | AZ6: 0.001554146229 | BA6: 0.001539889697 | BB6: 0.0015103981 | BC6: 0.001440832994 | BD6: 0.001388301327 | BE6: 0.001331363425 | BF6: 0.001298153933 | BG6: 0.001246915689 | BH6: 0.001226594882 | BI6: 0.00117752857
A7: CH4 | B7: kg per MWh | C7: 2.203673637 | D7: 2.203673637 | E7: 2.203673637 | F7: 2.203673637 | G7: 2.203673637 | H7: 2.203673637 | I7: 2.203673637 | J7: 2.203673637 | K7: 2.203673637 | L7: 2.203673637 | M7: 2.203673637 | N7: 2.203673637 | O7: 2.203673637 | P7: 2.203673637 | Q7: 2.203673637 | R7: 2.203673637 | S7: 2.203673637 | T7: 2.203673637 | U7: 2.203673637 | V7: 2.203673637 | W7: 2.203673637 | X7: 2.203673637 | Y7: 2.203673637 | Z7: 2.203673637 | AA7: 2.203673637 | AB7: 2.203673637 | AC7: 2.203673637 | AD7: 2.203673637 | AE7: 2.203673637 | AF7: 2.203673637 | AG7: 2.203673637 | AH7: 2.203425288 | AI7: 2.203400305 | AJ7: 2.203400108 | AK7: 2.053314979 | AL7: 1.868430272 | AM7: 1.745639702 | AN7: 1.656913696 | AO7: 1.568654764 | AP7: 1.493937678 | AQ7: 1.439564633 | AR7: 1.403893583 | AS7: 1.3637515 | AT7: 1.341343758 | AU7: 1.330872727 | AV7: 1.329189925 | AW7: 1.34136131 | AX7: 1.345924249 | AY7: 1.36058968 | AZ7: 1.363464744 | BA7: 1.36978485 | BB7: 1.368256575 | BC7: 1.357888539 | BD7: 1.353548194 | BE7: 1.33691856 | BF7: 1.32612463 | BG7: 1.323841237 | BH7: 1.31709505 | BI7: 1.310351048
A8: CO2 | B8: kg per MWh | C8: 439.2204426 | D8: 439.2204426 | E8: 439.2204426 | F8: 439.2204426 | G8: 439.2204426 | H8: 439.2204426 | I8: 439.2204426 | J8: 439.2204426 | K8: 439.2204426 | L8: 439.2204426 | M8: 439.2204426 | N8: 439.2204426 | O8: 439.2204426 | P8: 439.2204426 | Q8: 439.2204426 | R8: 439.2204426 | S8: 439.2204426 | T8: 439.2204426 | U8: 439.2204426 | V8: 439.2204426 | W8: 439.2204426 | X8: 439.2204426 | Y8: 439.2204426 | Z8: 439.2204426 | AA8: 439.2204426 | AB8: 439.2204426 | AC8: 439.2204426 | AD8: 439.2204426 | AE8: 439.2204426 | AF8: 439.2204426 | AG8: 439.2204426 | AH8: 437.2848585 | AI8: 437.2474136 | AJ8: 437.2621518 | AK8: 380.7202689 | AL8: 324.9656025 | AM8: 280.7548857 | AN8: 250.9348926 | AO8: 230.872667 | AP8: 220.3602284 | AQ8: 213.5550767 | AR8: 207.6872882 | AS8: 202.7794889 | AT8: 198.7111544 | AU8: 195.7158481 | AV8: 191.2819719 | AW8: 188.1098348 | AX8: 186.5531096 | AY8: 184.8232515 | AZ8: 184.0097885 | BA8: 183.407903 | BB8: 182.312087 | BC8: 179.0259776 | BD8: 176.104306 | BE8: 172.1125659 | BF8: 169.5089395 | BG8: 167.0063569 | BH8: 165.1614674 | BI8: 162.5547824 | BJ8: =ElecCO2[[#This Row],[2050]] -> 162.5547824 | BK8: =ElecCO2[[#This Row],[2051]] -> 162.5547824 | BL8: =ElecCO2[[#This Row],[2052]] -> 162.5547824 | BM8: =ElecCO2[[#This Row],[2053]] -> 162.5547824 | BN8: =ElecCO2[[#This Row],[2054]] -> 162.5547824 | BO8: =ElecCO2[[#This Row],[2055]] -> 162.5547824 | BP8: =ElecCO2[[#This Row],[2056]] -> 162.5547824 | BQ8: =ElecCO2[[#This Row],[2057]] -> 162.5547824 | BR8: =ElecCO2[[#This Row],[2058]] -> 162.5547824 | BS8: =ElecCO2[[#This Row],[2059]] -> 162.5547824
A9: Use | B9: MMT per kBtu | C9: 0.001558951209 | D9: 0.001558951209 | E9: 0.001558951209 | F9: 0.001558951209 | G9: 0.001558951209 | H9: 0.001558951209 | I9: 0.001558951209 | J9: 0.001558951209 | K9: 0.001558951209 | L9: 0.001558951209 | M9: 0.001558951209 | N9: 0.001558951209 | O9: 0.001558951209 | P9: 0.001558951209 | Q9: 0.001558951209 | R9: 0.001558951209 | S9: 0.001558951209 | T9: 0.001558951209 | U9: 0.001558951209 | V9: 0.001558951209 | W9: 0.001558951209 | X9: 0.001558951209 | Y9: 0.001558951209 | Z9: 0.001558951209 | AA9: 0.001558951209 | AB9: 0.001558951209 | AC9: 0.001558951209 | AD9: 0.001558951209 | AE9: 0.001558951209 | AF9: 0.001558951209 | AG9: 0.001558951209 | AH9: 0.001558951209 | AI9: 0.001558951209 | AJ9: 0.001479365573 | AK9: 0.001436852677 | AL9: 0.001407780556 | AM9: 0.001379255371 | AN9: 0.001327287652 | AO9: 0.001293116363 | AP9: 0.001273174519 | AQ9: 0.001252211373 | AR9: 0.001238272908 | AS9: 0.001189262815 | AT9: 0.001153895824 | AU9: 0.001120572269 | AV9: 0.001102082192 | AW9: 0.001094517829 | AX9: 0.001086405274 | AY9: 0.001074828444 | AZ9: 0.001069154766 | BA9: 0.001061041945 | BB9: 0.001047739299 | BC9: 0.001039359114 | BD9: 0.001029577194 | BE9: 0.001022468574 | BF9: 0.001014315444 | BG9: 0.00100872207 | BH9: 0.001003458714 | BI9: 0.0009990788337 | BJ9: 0.0009914253295 | BK9: 0.0009852791936 | BL9: 0.0009791330577 | BM9: 0.0009729869218 | BN9: 0.0009668407859 | BO9: 0.00096069465 | BP9: 0.0009545485141 | BQ9: 0.0009484023782 | BR9: 0.0009422562423 | BS9: 0.0009361101065
A11: Natural Gas: Upstream + Combustion | B11: Column1 | C11: 1992 | D11: 1993 | E11: 1994 | F11: 1995 | G11: 1996 | H11: 1997 | I11: 1998 | J11: 1999 | K11: 2000 | L11: 2001 | M11: 2002 | N11: 2003 | O11: 2004 | P11: 2005 | Q11: 2006 | R11: 2007 | S11: 2008 | T11: 2009 | U11: 2010 | V11: 2011 | W11: 2012 | X11: 2013 | Y11: 2014 | Z11: 2015 | AA11: 2016 | AB11: 2017 | AC11: 2018 | AD11: 2019 | AE11: 2020 | AF11: 2021 | AG11: 2022 | AH11: 2023 | AI11: 2024 | AJ11: 2025 | AK11: 2026 | AL11: 2027 | AM11: 2028 | AN11: 2029 | AO11: 2030 | AP11: 2031 | AQ11: 2032 | AR11: 2033 | AS11: 2034 | AT11: 2035 | AU11: 2036 | AV11: 2037 | AW11: 2038 | AX11: 2039 | AY11: 2040 | AZ11: 2041 | BA11: 2042 | BB11: 2043 | BC11: 2044 | BD11: 2045 | BE11: 2046 | BF11: 2047 | BG11: 2048 | BH11: 2049 | BI11: 2050 | BJ11: 2051 | BK11: 2052 | BL11: 2053 | BM11: 2054 | BN11: 2055 | BO11: 2056 | BP11: 2057 | BQ11: 2058 | BR11: 2059 | BS11: 2060
A12: SO2 | B12: kg per MM-Btu | C12: 0.0002945379379 | D12: 0.0002945379379 | E12: 0.0002945379379 | F12: 0.0002945379379 | G12: 0.0002945379379 | H12: 0.0002945379379 | I12: 0.0002945379379 | J12: 0.0002945379379 | K12: 0.0002945379379 | L12: 0.0002945379379 | M12: 0.0002945379379 | N12: 0.0002945379379 | O12: 0.0002945379379 | P12: 0.0002945379379 | Q12: 0.0002945379379 | R12: 0.0002945379379 | S12: 0.0002945379379 | T12: 0.0002945379379 | U12: 0.0002945379379 | V12: 0.0002945379379 | W12: 0.0002945379379 | X12: 0.0002945379379 | Y12: 0.0002945379379 | Z12: 0.0002945379379 | AA12: 0.0002945379379 | AB12: 0.0002945379379 | AC12: 0.0002945379379 | AD12: 0.0002945379379 | AE12: 0.0002945379379 | AF12: 0.0002945379379 | AG12: 0.0002945379379 | AH12: 0.0002945379379 | AI12: 0.0002945379379 | AJ12: 0.0002945379379 | AK12: 0.0002942409428 | AL12: 0.0002938911225 | AM12: 0.0002935553606 | AN12: 0.000293542457 | AO12: 0.0002936415886 | AP12: 0.000293772028 | AQ12: 0.0002940809758 | AR12: 0.0002942237135 | AS12: 0.0002943392587 | AT12: 0.000294275224 | AU12: 0.0002944068747 | AV12: 0.0002943333138 | AW12: 0.0002942743686 | AX12: 0.0002942634711 | AY12: 0.0002942086557 | AZ12: 0.0002942062518 | BA12: 0.0002943085717 | BB12: 0.0002944044691 | BC12: 0.0002946551299 | BD12: 0.0002946085407 | BE12: 0.0002949777731 | BF12: 0.0002948589444 | BG12: 0.00029520393 | BH12: 0.0002952783809 | BI12: 0.0002950082103
A13: NOx | B13: kg per MM-Btu | C13: 0.1463647177 | D13: 0.1463647177 | E13: 0.1463647177 | F13: 0.1463647177 | G13: 0.1463647177 | H13: 0.1463647177 | I13: 0.1463647177 | J13: 0.1463647177 | K13: 0.1463647177 | L13: 0.1463647177 | M13: 0.1463647177 | N13: 0.1463647177 | O13: 0.1463647177 | P13: 0.1463647177 | Q13: 0.1463647177 | R13: 0.1463647177 | S13: 0.1463647177 | T13: 0.1463647177 | U13: 0.1463647177 | V13: 0.1463647177 | W13: 0.1463647177 | X13: 0.1463647177 | Y13: 0.1463647177 | Z13: 0.1463647177 | AA13: 0.1463647177 | AB13: 0.1463647177 | AC13: 0.1463647177 | AD13: 0.1463647177 | AE13: 0.1463647177 | AF13: 0.1463647177 | AG13: 0.1463647177 | AH13: 0.1463647177 | AI13: 0.1463647177 | AJ13: 0.1463647177 | AK13: 0.14537437 | AL13: 0.1442078738 | AM13: 0.143088256 | AN13: 0.1430452281 | AO13: 0.1433757883 | AP13: 0.143810746 | AQ13: 0.1448409506 | AR13: 0.1453169181 | AS13: 0.1457022102 | AT13: 0.1454886828 | AU13: 0.1459276798 | AV13: 0.1456823867 | AW13: 0.1454858304 | AX13: 0.1454494921 | AY13: 0.1452667069 | AZ13: 0.1452586908 | BA13: 0.1455998826 | BB13: 0.1459196582 | BC13: 0.1467555014 | BD13: 0.1466001469 | BE13: 0.1478313743 | BF13: 0.1474351327 | BG13: 0.1485855076 | BH13: 0.1488337684 | BI13: 0.1479328688
A14: Hg | B14: kg per MM-Btu | C14: 0 | D14: 0 | E14: 0 | F14: 0 | G14: 0 | H14: 0 | I14: 0 | J14: 0 | K14: 0 | L14: 0 | M14: 0 | N14: 0 | O14: 0 | P14: 0 | Q14: 0 | R14: 0 | S14: 0 | T14: 0 | U14: 0 | V14: 0 | W14: 0 | X14: 0 | Y14: 0 | Z14: 0 | AA14: 0 | AB14: 0 | AC14: 0 | AD14: 0 | AE14: 0 | AF14: 0 | AG14: 0 | AH14: 0 | AI14: 0 | AJ14: 0 | AK14: 0 | AL14: 0 | AM14: 0 | AN14: 0 | AO14: 0 | AP14: 0 | AQ14: 0 | AR14: 0 | AS14: 0 | AT14: 0 | AU14: 0 | AV14: 0 | AW14: 0 | AX14: 0 | AY14: 0 | AZ14: 0 | BA14: 0 | BB14: 0 | BC14: 0 | BD14: 0 | BE14: 0 | BF14: 0 | BG14: 0 | BH14: 0 | BI14: 0
A15: N2O | B15: kg per MM-Btu | C15: 0.0001108421975 | D15: 0.0001108421975 | E15: 0.0001108421975 | F15: 0.0001108421975 | G15: 0.0001108421975 | H15: 0.0001108421975 | I15: 0.0001108421975 | J15: 0.0001108421975 | K15: 0.0001108421975 | L15: 0.0001108421975 | M15: 0.0001108421975 | N15: 0.0001108421975 | O15: 0.0001108421975 | P15: 0.0001108421975 | Q15: 0.0001108421975 | R15: 0.0001108421975 | S15: 0.0001108421975 | T15: 0.0001108421975 | U15: 0.0001108421975 | V15: 0.0001108421975 | W15: 0.0001108421975 | X15: 0.0001108421975 | Y15: 0.0001108421975 | Z15: 0.0001108421975 | AA15: 0.0001108421975 | AB15: 0.0001108421975 | AC15: 0.0001108421975 | AD15: 0.0001108421975 | AE15: 0.0001108421975 | AF15: 0.0001108421975 | AG15: 0.0001108421975 | AH15: 0.0001108421975 | AI15: 0.0001108421975 | AJ15: 0.0001108421975 | AK15: 0.0001107330081 | AL15: 0.0001106043977 | AM15: 0.0001104809558 | AN15: 0.0001104762119 | AO15: 0.0001105126573 | AP15: 0.0001105606129 | AQ15: 0.0001106741967 | AR15: 0.0001107266738 | AS15: 0.0001107691537 | AT15: 0.0001107456115 | AU15: 0.0001107940125 | AV15: 0.000110766968 | AW15: 0.000110745297 | AX15: 0.0001107412906 | AY15: 0.0001107211379 | AZ15: 0.0001107202541 | BA15: 0.0001107578717 | BB15: 0.0001107931281 | BC15: 0.0001108852828 | BD15: 0.0001108681544 | BE15: 0.0001110039016 | BF15: 0.0001109602146 | BG15: 0.0001110870475 | BH15: 0.0001111144192 | BI15: 0.0001110150918
A16: CH4 | B16: kg per MM-Btu | C16: 0.6762174956 | D16: 0.6762174956 | E16: 0.6762174956 | F16: 0.6762174956 | G16: 0.6762174956 | H16: 0.6762174956 | I16: 0.6762174956 | J16: 0.6762174956 | K16: 0.6762174956 | L16: 0.6762174956 | M16: 0.6762174956 | N16: 0.6762174956 | O16: 0.6762174956 | P16: 0.6762174956 | Q16: 0.6762174956 | R16: 0.6762174956 | S16: 0.6762174956 | T16: 0.6762174956 | U16: 0.6762174956 | V16: 0.6762174956 | W16: 0.6762174956 | X16: 0.6762174956 | Y16: 0.6762174956 | Z16: 0.6762174956 | AA16: 0.6762174956 | AB16: 0.6762174956 | AC16: 0.6762174956 | AD16: 0.6762174956 | AE16: 0.6762174956 | AF16: 0.6762174956 | AG16: 0.6762174956 | AH16: 0.6762174956 | AI16: 0.6762174956 | AJ16: 0.6762174956 | AK16: 0.6753267173 | AL16: 0.6739689503 | AM16: 0.6726154111 | AN16: 0.6727966612 | AO16: 0.6736058253 | AP16: 0.6746251675 | AQ16: 0.676351717 | AR16: 0.6773966549 | AS16: 0.6783392107 | AT16: 0.6784064778 | AU16: 0.6790762482 | AV16: 0.6789136581 | AW16: 0.6788020615 | AX16: 0.6789371197 | AY16: 0.6787119083 | AZ16: 0.6788510565 | BA16: 0.6792934809 | BB16: 0.6795536994 | BC16: 0.6805506793 | BD16: 0.6804253326 | BE16: 0.6820403131 | BF16: 0.681380996 | BG16: 0.6826474221 | BH16: 0.6827075077 | BI16: 0.6814376073
A17: CO2 | B17: kg per MM-Btu | C17: 59.91891826 | D17: 59.91891826 | E17: 59.91891826 | F17: 59.91891826 | G17: 59.91891826 | H17: 59.91891826 | I17: 59.91891826 | J17: 59.91891826 | K17: 59.91891826 | L17: 59.91891826 | M17: 59.91891826 | N17: 59.91891826 | O17: 59.91891826 | P17: 59.91891826 | Q17: 59.91891826 | R17: 59.91891826 | S17: 59.91891826 | T17: 59.91891826 | U17: 59.91891826 | V17: 59.91891826 | W17: 59.91891826 | X17: 59.91891826 | Y17: 59.91891826 | Z17: 59.91891826 | AA17: 59.91891826 | AB17: 59.91891826 | AC17: 59.91891826 | AD17: 59.91891826 | AE17: 59.91891826 | AF17: 59.91891826 | AG17: 59.91891826 | AH17: 59.91891826 | AI17: 59.91891826 | AJ17: 59.91891826 | AK17: 59.86293512 | AL17: 59.79699453 | AM17: 59.7337039 | AN17: 59.7312716 | AO17: 59.74995776 | AP17: 59.77454538 | AQ17: 59.83278158 | AR17: 59.85968744 | AS17: 59.88146752 | AT17: 59.86939708 | AU17: 59.89421304 | AV17: 59.88034693 | AW17: 59.86923584 | AX17: 59.86718168 | AY17: 59.85684906 | AZ17: 59.85639592 | BA17: 59.87568307 | BB17: 59.8937596 | BC17: 59.94100878 | BD17: 59.93222678 | BE17: 60.00182655 | BF17: 59.97942751 | BG17: 60.04445679 | BH17: 60.05849066 | BI17: 60.00756392 | BJ17: =GasCO2[[#This Row],[2050]] -> 60.00756392 | BK17: =GasCO2[[#This Row],[2051]] -> 60.00756392 | BL17: =GasCO2[[#This Row],[2052]] -> 60.00756392 | BM17: =GasCO2[[#This Row],[2053]] -> 60.00756392 | BN17: =GasCO2[[#This Row],[2054]] -> 60.00756392 | BO17: =GasCO2[[#This Row],[2055]] -> 60.00756392 | BP17: =GasCO2[[#This Row],[2056]] -> 60.00756392 | BQ17: =GasCO2[[#This Row],[2057]] -> 60.00756392 | BR17: =GasCO2[[#This Row],[2058]] -> 60.00756392 | BS17: =GasCO2[[#This Row],[2059]] -> 60.00756392
A18: Use | B18: MMT per kBtu | C18: 0.0002041169719 | D18: 0.0002041169719 | E18: 0.0002041169719 | F18: 0.0002041169719 | G18: 0.0002041169719 | H18: 0.0002041169719 | I18: 0.0002041169719 | J18: 0.0002041169719 | K18: 0.0002041169719 | L18: 0.0002041169719 | M18: 0.0002041169719 | N18: 0.0002041169719 | O18: 0.0002041169719 | P18: 0.0002041169719 | Q18: 0.0002041169719 | R18: 0.0002041169719 | S18: 0.0002041169719 | T18: 0.0002041169719 | U18: 0.0002041169719 | V18: 0.0002041169719 | W18: 0.0002041169719 | X18: 0.0002041169719 | Y18: 0.0002041169719 | Z18: 0.0002041169719 | AA18: 0.0002041169719 | AB18: 0.0002041169719 | AC18: 0.0002041169719 | AD18: 0.0002041169719 | AE18: 0.0002041169719 | AF18: 0.0002041169719 | AG18: 0.0002041169719 | AH18: 0.0002041169719 | AI18: 0.0002041169719 | AJ18: 0.0002043042609 | AK18: 0.0002042250264 | AL18: 0.0002040670272 | AM18: 0.0002041892756 | AN18: 0.0002042337745 | AO18: 0.0002043423024 | AP18: 0.0002043861808 | AQ18: 0.0002044909033 | AR18: 0.000204544967 | AS18: 0.0002045077581 | AT18: 0.0002045249514 | AU18: 0.0002044874278 | AV18: 0.0002044467033 | AW18: 0.0002044652529 | AX18: 0.0002044890603 | AY18: 0.0002045564534 | AZ18: 0.0002045150797 | BA18: 0.0002045363398 | BB18: 0.0002045530052 | BC18: 0.0002044839889 | BD18: 0.0002044711315 | BE18: 0.0002045431646 | BF18: 0.0002045258979 | BG18: 0.0002046242773 | BH18: 0.0002046588757 | BI18: 0.0002046619567 | BJ18: 0.0002046619567 | BK18: 0.0002046619567 | BL18: 0.0002046619567 | BM18: 0.0002046619567 | BN18: 0.0002046619567 | BO18: 0.0002046619567 | BP18: 0.0002046619567 | BQ18: 0.0002046619567 | BR18: 0.0002046619567 | BS18: 0.0002046619567
A20: CO2 Calcs
A21: ='Topic 3 Calculator'!D27/(('Topic 3 Calculator'!D21-'Topic 3 Calculator'!D18+1)/5) -> 0.075 | B21: percent CO2 | G21: ='Topic 3 Calculator'!D27/(('Topic 3 Calculator'!D21-'Topic 3 Calculator'!D18+1)/30) -> 0.45 | H21: percent CO2 | L21: **Save these are the CO2 emissions calcs for 5 and 30 years. I think anyway. Need to check them
L22: ** Eric these are still in progress.
A23: =(INDEX(GasCO2[],7,MATCH(TEXT('Topic 3 Calculator'!$D$18,"0"),GasCO2[#Headers],0))+INDEX(GasCO2[],7,MATCH(TEXT('Topic 3 Calculator'!$D$18+4,"0"),GasCO2[#Headers],0)))/2 -> 0.0002042690177 | B23: G CO2 F | G23: =(INDEX(GasCO2[],7,MATCH(TEXT('Topic 3 Calculator'!$D$18,"0"),GasCO2[#Headers],0))+INDEX(GasCO2[],7,MATCH(TEXT('Topic 3 Calculator'!$D$18+29,"0"),GasCO2[#Headers],0)))/2 -> 0.0002044831088 | H23: G CO2 F
A24: =(INDEX(ElecCO2[],7,MATCH(TEXT('Topic 3 Calculator'!$D$18,"0"),ElecCO2[#Headers],0))+INDEX(ElecCO2[],7,MATCH(TEXT('Topic 3 Calculator'!$D$18+4,"0"),ElecCO2[#Headers],0)))/2 -> 0.001403326612 | B24: E CO2 F | G24: =(INDEX(ElecCO2[],7,MATCH(TEXT('Topic 3 Calculator'!$D$18,"0"),ElecCO2[#Headers],0))+INDEX(ElecCO2[],7,MATCH(TEXT('Topic 3 Calculator'!$D$18+29,"0"),ElecCO2[#Headers],0)))/2 -> 0.001226176247 | H24: E CO2 F
A25: =(SUMIFS(EnergyCalc!$HB$3:$IL$3,EnergyCalc!$HB$4:$IL$4,">="&'Topic 3 Calculator'!$D$18,EnergyCalc!$HB$4:$IL$4,"<"&'Topic 3 Calculator'!$D$18+5)+SUMIFS(EnergyCalc!$LL$3:$MU$3,EnergyCalc!$LL$4:$MU$4,">="&'Topic 3 Calculator'!$D$18,EnergyCalc!$LL$4:$MU$4,"<"&'Topic 3 Calculator'!$D$18+5)) ->  | B25: Emission with No BPS CO2 | G25: =(SUMIFS(EnergyCalc!$HB$3:$IL$3,EnergyCalc!$HB$4:$IL$4,">="&'Topic 3 Calculator'!$D$18,EnergyCalc!$HB$4:$IL$4,"<"&'Topic 3 Calculator'!$D$18+30)+SUMIFS(EnergyCalc!$LL$3:$MU$3,EnergyCalc!$LL$4:$MU$4,">="&'Topic 3 Calculator'!$D$18,EnergyCalc!$LL$4:$MU$4,"<"&'Topic 3 Calculator'!$D$18+30)) ->  | H25: Total CO2
A26: =(SUMIFS(EnergyCalc!$HB$3:$IL$3,EnergyCalc!$HB$4:$IL$4,"="&'Topic 3 Calculator'!$D$18))+SUMIFS(EnergyCalc!$LL$3:$MU$3,EnergyCalc!$LL$4:$MU$4,"="&'Topic 3 Calculator'!$D$18) ->  | B26: Emissions at Effective year | G26: =(SUMIFS(EnergyCalc!$HB$3:$IL$3,EnergyCalc!$HB$4:$IL$4,"="&'Topic 3 Calculator'!$D$18))+SUMIFS(EnergyCalc!$LL$3:$MU$3,EnergyCalc!$LL$4:$MU$4,"="&'Topic 3 Calculator'!$D$18) ->  | H26: Emissions at Effective Year
A27: =A26*A21 ->  | B27: Savings at year 5 | G27: =G26*G21 ->  | H27: Savings at Year 30
A28: =IFERROR(SUMIFS(EnergyCalc!$FP$3:$GZ$3,EnergyCalc!$FP$4:$GZ$4,">="&'Topic 3 Calculator'!$D$18,EnergyCalc!$FP$4:$GZ$4,"<"&'Topic 3 Calculator'!$D$18+5)/(SUMIFS(EnergyCalc!$FP$3:$GZ$3,EnergyCalc!$FP$4:$GZ$4,">="&'Topic 3 Calculator'!$D$18,EnergyCalc!$FP$4:$GZ$4,"<"&'Topic 3 Calculator'!$D$18+5)+SUMIFS(EnergyCalc!$JZ$3:$LI$3,EnergyCalc!$JZ$4:$LI$4,">="&'Topic 3 Calculator'!$D$18,EnergyCalc!$JZ$4:$LI$4,"<"&'Topic 3 Calculator'!$D$18+5)),VLOOKUP(UI.State,FuelMixAvg,2)) -> 0.619222455 | B28: % Elec | G28: =IFERROR(SUMIFS(EnergyCalc!$FP$3:$GZ$3,EnergyCalc!$FP$4:$GZ$4,">="&'Topic 3 Calculator'!$D$18,EnergyCalc!$FP$4:$GZ$4,"<"&'Topic 3 Calculator'!$D$18+30)/(SUMIFS(EnergyCalc!$FP$3:$GZ$3,EnergyCalc!$FP$4:$GZ$4,">="&'Topic 3 Calculator'!$D$18,EnergyCalc!$FP$4:$GZ$4,"<"&'Topic 3 Calculator'!$D$18+30)+SUMIFS(EnergyCalc!$JZ$3:$LI$3,EnergyCalc!$JZ$4:$LI$4,">="&'Topic 3 Calculator'!$D$18,EnergyCalc!$JZ$4:$LI$4,"<"&'Topic 3 Calculator'!$D$18+30)),VLOOKUP(UI.State,FuelMixAvg,2)) -> 0.619222455 | H28: % Elec
A29: =1-A28 -> 0.380777545 | B29: % Gas | G29: =1-G28 -> 0.380777545 | H29: % Gas
A30: =(SUMIFS(EnergyCalc!ARU3:ATE3,EnergyCalc!ARU4:ATE4,">="&'Topic 3 Calculator'!$D$18,EnergyCalc!ARU4:ATE4,"<"&'Topic 3 Calculator'!$D$18+5)-SUMIFS(EnergyCalc!ATG3:AUQ3,EnergyCalc!ATG4:AUQ4,">="&'Topic 3 Calculator'!$D$18,EnergyCalc!ATG4:AUQ4,"<"&'Topic 3 Calculator'!$D$18+5)) -> 0 | B30: EE CO2 Savings | G30: =(SUMIFS(EnergyCalc!ARU3:ATE3,EnergyCalc!ARU4:ATE4,">="&'Topic 3 Calculator'!$D$18,EnergyCalc!ARU4:ATE4,"<"&'Topic 3 Calculator'!$D$18+30)-SUMIFS(EnergyCalc!ATG3:AUQ3,EnergyCalc!ATG4:AUQ4,">="&'Topic 3 Calculator'!$D$18,EnergyCalc!ATG4:AUQ4,"<"&'Topic 3 Calculator'!$D$18+30)) -> 0
A31: =(A30/(A28*A24+A29*A23))/1000000000 -> 0 | B31: EE Savings | G31: =(G30/(G28*G24+G29*G23))/1000000000 -> 0 | H31: EE Savings
A32: =SUMIFS(EnergyCalc!AUS3:AWC3,EnergyCalc!AUS4:AWC4,">="&'Topic 3 Calculator'!D18,EnergyCalc!AUS4:AWC4,"<"&'Topic 3 Calculator'!D18+5)/1000000000*'Topic 3 Calculator'!$D$30 -> 0 | B32: More accurate EE | G32: =SUMIFS(EnergyCalc!AUS3:AWC3,EnergyCalc!AUS4:AWC4,">="&'Topic 3 Calculator'!D18,EnergyCalc!AUS4:AWC4,"<"&'Topic 3 Calculator'!D18+30)/1000000000*'Topic 3 Calculator'!D30 -> 0

Sheet Codes_Lookups (hidden)
C1: Site energy savings, commercial (TBtu) | D1: Site energy savings, commercial (TBtu)
B3: State | C3: 5-year LMC | D3: 5-year ZC | E3: 30-year LMC | F3: 30-year ZC | L3: Notes:
B4: Alabama | C4: 1.792107726 | D4: 2.211680578 | E4: 86.804638 | F4: 109.7995917
B5: Alaska | C5: 0.6552967944 | D5: 0.6549474094 | E5: 32.39534951 | F5: 33.1817202 | L5: Energy cost savings are in 2021 $
B6: Arizona | C6: 19.62132193 | D6: 21.19909804 | E6: 963.4776183 | F6: 1067.212161 | L6: Target codes are 90.1-2019
B7: Arkansas | C7: 2.846654368 | D7: 2.878889391 | E7: 140.7928744 | F7: 145.9635442 | L7: Baseline codes are the current codes per the 9/30/23 state maps analysis except:
B8: California | C8: 0 | D8: 4.309360565 | E8: 0 | F8: 218.3259213 | M8: No Code/Home Rule states let’s use the values for IECC 2012 for residential and 90.1-2010 for commercial
B9: Colorado | C9: -2.823437358 | D9: -0.03906873898 | E9: 345.2731099 | F9: 494.1549245 | M9: This way we are consistent between res and com
B10: Connecticut | C10: 0.3170523135 | D10: -0.09398159319 | E10: -15.3943404 | F10: -4.677736906 | M10: don’t make this change for Arizona and Hawaii, as even though they are home rule states, our maps have noted that over 85% of the state uses the same code (2009 IECC for res and 2007 for com for Arizona and 2015 IECC in res and 90.1-2013 for com in Hawaii)
B11: Delaware | C11: 0.3227052331 | D11: 0.4539503535 | E11: 16.19671779 | F11: 23.34857675
B12: District of Columbia | C12: 0.1911770464 | D12: 0.5942301772 | E12: 9.595260163 | F12: 30.56375833 | L12: IECC 2021 for ZC
B13: Florida | C13: 5.309084548 | D13: 10.9268292 | E13: 266.4652919 | F13: 562.0128018
B14: Georgia | C14: 3.24440784 | D14: 4.868234825 | E14: 162.8382585 | F14: 250.3938009
B15: Hawaii | C15: 0.4064235077 | D15: 0.8607159726 | E15: 20.0920128 | F15: 43.60661049
B16: Idaho | C16: 0.776326044 | D16: 1.280713165 | E16: 38.12040649 | F16: 64.47409514
B17: Illinois | C17: 2.457646332 | D17: 4.251973303 | E17: 121.085674 | F17: 214.7428433
B18: Indiana | C18: 9.193467666 | D18: 9.747681491 | E18: 452.9525724 | F18: 492.2996195
B19: Iowa | C19: 3.312278702 | D19: 3.487202132 | E19: 161.8401113 | F19: 174.678727
B20: Kansas | C20: 1.727020377 | D20: 2.046028973 | E20: 84.3833491 | F20: 102.4883912
B21: Kentucky | C21: 3.954299319 | D21: 4.415319645 | E21: 191.5350935 | F21: 219.19996
B22: Louisiana | C22: 0.03622211857 | D22: 0.1976858293 | E22: 1.791512256 | F22: 10.02293606
B23: Maine | C23: 0.3061154873 | D23: 0.3503872043 | E23: 14.86330745 | F23: 17.43978902
B24: Maryland | C24: -1.91128904 | D24: -0.03492367305 | E24: -95.92843877 | F24: -1.796271452
B25: Massachusetts | C25: 1.462976539 | D25: 2.200521933 | E25: 71.03420441 | F25: 109.526369
B26: Michigan | C26: 2.322542719 | D26: 2.927889182 | E26: 114.4292597 | F26: 147.8709303
B27: Minnesota | C27: -0.02437309487 | D27: 0.583800022 | E27: -1.190885412 | F27: 29.24334202
B28: Mississippi | C28: 1.906474132 | D28: 2.039854349 | E28: 92.34422379 | F28: 101.2692234
B29: Missouri | C29: 3.87186482 | D29: 4.800760281 | E29: 189.1818563 | F29: 240.4766522
B30: Montana | C30: -0.3411670535 | D30: -0.06681679844 | E30: -16.75253183 | F30: -3.363713856
B31: Nebraska | C31: 0.3809983657 | D31: 0.4220724086 | E31: 18.61583021 | F31: 21.14218455
B32: Nevada | C32: 1.271905638 | D32: 2.713482586 | E32: 62.45515055 | F32: 136.6030577
B33: New Hampshire | C33: 0.2043594665 | D33: 0.2714666093 | E33: 9.922587085 | F33: 13.51168174
B34: New Jersey | C34: 0 | D34: 1.738459398 | E34: 0 | F34: 85.86752161
B35: New Mexico | C35: 1.114943173 | D35: 1.478279629 | E35: 54.74772784 | F35: 74.42005288
B36: New York | C36: 3.544229218 | D36: 10.16371321 | E36: 170.762366 | F36: 502.0150973
B37: North Carolina | C37: 4.71608152 | D37: 6.383731768 | E37: 236.7022088 | F37: 328.3421854
B38: North Dakota | C38: -0.0488887549 | D38: -0.0309477872 | E38: 27.22741576 | F38: 28.81191307
B39: Ohio | C39: 10.98211464 | D39: 11.82498744 | E39: 541.0773452 | F39: 597.2124574
B40: Oklahoma | C40: 5.465859145 | D40: 5.63812708 | E40: 270.3363038 | F40: 285.8605871
B41: Oregon | C41: 0 | D41: 0.7212701896 | E41: 0 | F41: 36.54184332
B42: Pennsylvania | C42: 2.034538435 | D42: 3.264641738 | E42: 98.02486677 | F42: 161.2500674
B43: Rhode Island | C43: 0.204866607 | D43: 0.2852143562 | E43: 9.947211078 | F43: 14.19594705
B44: South Carolina | C44: 8.000157325 | D44: 8.676887089 | E44: 401.5314199 | F44: 446.2888123
B45: South Dakota | C45: 0.5981549353 | D45: 0.6138681144 | E45: 29.22624272 | F45: 30.74949392
B46: Tennessee | C46: 6.039864043 | D46: 6.94129875 | E46: 292.5539599 | F46: 344.6030028
B47: Texas | C47: 4.880142342 | D47: 6.72467367 | E47: 241.3672961 | F47: 340.9499531
B48: Utah | C48: -1.060548489 | D48: 0.1313508655 | E48: -52.07675285 | F48: 6.612509678
B49: Vermont | C49: 0.05588353103 | D49: 0.08530802149 | E49: 2.71340111 | F49: 4.246028046
B50: Virginia | C50: 2.198301775 | D50: 4.39789027 | E50: 110.3337343 | F50: 226.2020014
B51: Washington | C51: -0.6023744883 | D51: 1.372380719 | E51: -29.77907453 | F51: 69.52917498
B52: West Virginia | C52: 0.5938857137 | D52: 0.5695671 | E52: 29.80738555 | F52: 29.29523249
B53: Wisconsin | C53: 2.271158129 | D53: 2.793474457 | E53: 111.8975945 | F53: 141.0824116
B54: Wyoming | C54: 0.826135098 | D54: 0.933782616 | E54: 40.56621055 | F54: 47.00880015

Sheet EB_Lookups (hidden)
B1: Demolition Rates
B2: Prototype | C2: 2023 | D2: 2024 | E2: 2025 | F2: 2026 | G2: 2027 | H2: 2028 | I2: 2029 | J2: 2030 | K2: 2031 | L2: 2032 | M2: 2033 | N2: 2034 | O2: 2035 | P2: 2036 | Q2: 2037 | R2: 2038 | S2: 2039 | T2: 2040 | U2: 2041 | V2: 2042 | W2: 2043 | X2: 2044 | Y2: 2045 | Z2: 2046 | AA2: 2047 | AB2: 2048 | AC2: 2049 | AD2: 2050 | AE2: 2051 | AF2: 2052 | AG2: 2053 | AH2: 2054 | AI2: 2055 | AJ2: 2056 | AK2: 2057 | AL2: 2058 | AM2: 2059 | AN2: 2060
B3: FullServiceRestaurant | C3: 0.012 | D3: 0.012 | E3: 0.012 | F3: 0.012 | G3: 0.012 | H3: 0.012 | I3: 0.012 | J3: 0.012 | K3: 0.012 | L3: 0.012 | M3: 0.012 | N3: 0.012 | O3: 0.012 | P3: 0.012 | Q3: 0.012 | R3: 0.012 | S3: 0.012 | T3: 0.012 | U3: 0.012 | V3: 0.012 | W3: 0.012 | X3: 0.012 | Y3: 0.012 | Z3: 0.012 | AA3: 0.012 | AB3: 0.012 | AC3: 0.012 | AD3: 0.012 | AE3: 0.012 | AF3: 0.012 | AG3: 0.012 | AH3: 0.012 | AI3: 0.012 | AJ3: 0.012 | AK3: 0.012 | AL3: 0.012 | AM3: 0.012 | AN3: 0.012
B4: Hospital | C4: 0.012 | D4: 0.012 | E4: 0.012 | F4: 0.012 | G4: 0.012 | H4: 0.012 | I4: 0.012 | J4: 0.012 | K4: 0.012 | L4: 0.012 | M4: 0.012 | N4: 0.012 | O4: 0.012 | P4: 0.012 | Q4: 0.012 | R4: 0.012 | S4: 0.012 | T4: 0.012 | U4: 0.012 | V4: 0.012 | W4: 0.012 | X4: 0.012 | Y4: 0.012 | Z4: 0.012 | AA4: 0.012 | AB4: 0.012 | AC4: 0.012 | AD4: 0.012 | AE4: 0.012 | AF4: 0.012 | AG4: 0.012 | AH4: 0.012 | AI4: 0.012 | AJ4: 0.012 | AK4: 0.012 | AL4: 0.012 | AM4: 0.012 | AN4: 0.012
B5: LargeHotel | C5: 0.012 | D5: 0.012 | E5: 0.012 | F5: 0.012 | G5: 0.012 | H5: 0.012 | I5: 0.012 | J5: 0.012 | K5: 0.012 | L5: 0.012 | M5: 0.012 | N5: 0.012 | O5: 0.012 | P5: 0.012 | Q5: 0.012 | R5: 0.012 | S5: 0.012 | T5: 0.012 | U5: 0.012 | V5: 0.012 | W5: 0.012 | X5: 0.012 | Y5: 0.012 | Z5: 0.012 | AA5: 0.012 | AB5: 0.012 | AC5: 0.012 | AD5: 0.012 | AE5: 0.012 | AF5: 0.012 | AG5: 0.012 | AH5: 0.012 | AI5: 0.012 | AJ5: 0.012 | AK5: 0.012 | AL5: 0.012 | AM5: 0.012 | AN5: 0.012
B6: LargeOffice | C6: 0.012 | D6: 0.012 | E6: 0.012 | F6: 0.012 | G6: 0.012 | H6: 0.012 | I6: 0.012 | J6: 0.012 | K6: 0.012 | L6: 0.012 | M6: 0.012 | N6: 0.012 | O6: 0.012 | P6: 0.012 | Q6: 0.012 | R6: 0.012 | S6: 0.012 | T6: 0.012 | U6: 0.012 | V6: 0.012 | W6: 0.012 | X6: 0.012 | Y6: 0.012 | Z6: 0.012 | AA6: 0.012 | AB6: 0.012 | AC6: 0.012 | AD6: 0.012 | AE6: 0.012 | AF6: 0.012 | AG6: 0.012 | AH6: 0.012 | AI6: 0.012 | AJ6: 0.012 | AK6: 0.012 | AL6: 0.012 | AM6: 0.012 | AN6: 0.012
B7: MediumOffice | C7: 0.012 | D7: 0.012 | E7: 0.012 | F7: 0.012 | G7: 0.012 | H7: 0.012 | I7: 0.012 | J7: 0.012 | K7: 0.012 | L7: 0.012 | M7: 0.012 | N7: 0.012 | O7: 0.012 | P7: 0.012 | Q7: 0.012 | R7: 0.012 | S7: 0.012 | T7: 0.012 | U7: 0.012 | V7: 0.012 | W7: 0.012 | X7: 0.012 | Y7: 0.012 | Z7: 0.012 | AA7: 0.012 | AB7: 0.012 | AC7: 0.012 | AD7: 0.012 | AE7: 0.012 | AF7: 0.012 | AG7: 0.012 | AH7: 0.012 | AI7: 0.012 | AJ7: 0.012 | AK7: 0.012 | AL7: 0.012 | AM7: 0.012 | AN7: 0.012
B8: Outpatient | C8: 0.012 | D8: 0.012 | E8: 0.012 | F8: 0.012 | G8: 0.012 | H8: 0.012 | I8: 0.012 | J8: 0.012 | K8: 0.012 | L8: 0.012 | M8: 0.012 | N8: 0.012 | O8: 0.012 | P8: 0.012 | Q8: 0.012 | R8: 0.012 | S8: 0.012 | T8: 0.012 | U8: 0.012 | V8: 0.012 | W8: 0.012 | X8: 0.012 | Y8: 0.012 | Z8: 0.012 | AA8: 0.012 | AB8: 0.012 | AC8: 0.012 | AD8: 0.012 | AE8: 0.012 | AF8: 0.012 | AG8: 0.012 | AH8: 0.012 | AI8: 0.012 | AJ8: 0.012 | AK8: 0.012 | AL8: 0.012 | AM8: 0.012 | AN8: 0.012
B9: PrimarySchool | C9: 0.012 | D9: 0.012 | E9: 0.012 | F9: 0.012 | G9: 0.012 | H9: 0.012 | I9: 0.012 | J9: 0.012 | K9: 0.012 | L9: 0.012 | M9: 0.012 | N9: 0.012 | O9: 0.012 | P9: 0.012 | Q9: 0.012 | R9: 0.012 | S9: 0.012 | T9: 0.012 | U9: 0.012 | V9: 0.012 | W9: 0.012 | X9: 0.012 | Y9: 0.012 | Z9: 0.012 | AA9: 0.012 | AB9: 0.012 | AC9: 0.012 | AD9: 0.012 | AE9: 0.012 | AF9: 0.012 | AG9: 0.012 | AH9: 0.012 | AI9: 0.012 | AJ9: 0.012 | AK9: 0.012 | AL9: 0.012 | AM9: 0.012 | AN9: 0.012
B10: QuickServiceRestaurant | C10: 0.012 | D10: 0.012 | E10: 0.012 | F10: 0.012 | G10: 0.012 | H10: 0.012 | I10: 0.012 | J10: 0.012 | K10: 0.012 | L10: 0.012 | M10: 0.012 | N10: 0.012 | O10: 0.012 | P10: 0.012 | Q10: 0.012 | R10: 0.012 | S10: 0.012 | T10: 0.012 | U10: 0.012 | V10: 0.012 | W10: 0.012 | X10: 0.012 | Y10: 0.012 | Z10: 0.012 | AA10: 0.012 | AB10: 0.012 | AC10: 0.012 | AD10: 0.012 | AE10: 0.012 | AF10: 0.012 | AG10: 0.012 | AH10: 0.012 | AI10: 0.012 | AJ10: 0.012 | AK10: 0.012 | AL10: 0.012 | AM10: 0.012 | AN10: 0.012
B11: RetailStandalone | C11: 0.012 | D11: 0.012 | E11: 0.012 | F11: 0.012 | G11: 0.012 | H11: 0.012 | I11: 0.012 | J11: 0.012 | K11: 0.012 | L11: 0.012 | M11: 0.012 | N11: 0.012 | O11: 0.012 | P11: 0.012 | Q11: 0.012 | R11: 0.012 | S11: 0.012 | T11: 0.012 | U11: 0.012 | V11: 0.012 | W11: 0.012 | X11: 0.012 | Y11: 0.012 | Z11: 0.012 | AA11: 0.012 | AB11: 0.012 | AC11: 0.012 | AD11: 0.012 | AE11: 0.012 | AF11: 0.012 | AG11: 0.012 | AH11: 0.012 | AI11: 0.012 | AJ11: 0.012 | AK11: 0.012 | AL11: 0.012 | AM11: 0.012 | AN11: 0.012
B12: RetailStripmall | C12: 0.012 | D12: 0.012 | E12: 0.012 | F12: 0.012 | G12: 0.012 | H12: 0.012 | I12: 0.012 | J12: 0.012 | K12: 0.012 | L12: 0.012 | M12: 0.012 | N12: 0.012 | O12: 0.012 | P12: 0.012 | Q12: 0.012 | R12: 0.012 | S12: 0.012 | T12: 0.012 | U12: 0.012 | V12: 0.012 | W12: 0.012 | X12: 0.012 | Y12: 0.012 | Z12: 0.012 | AA12: 0.012 | AB12: 0.012 | AC12: 0.012 | AD12: 0.012 | AE12: 0.012 | AF12: 0.012 | AG12: 0.012 | AH12: 0.012 | AI12: 0.012 | AJ12: 0.012 | AK12: 0.012 | AL12: 0.012 | AM12: 0.012 | AN12: 0.012
